Workbook

Sheet Definition
A1: Label | B1: Distribution | C1: Stock | D1: Pipeline | E1: Expiration (month) | F1: NB
A2: Blanket | B2: NFI_Blanket_Track | C2: NFI_Blanket_Stock | D2: NFI_Blanket_Pipeline | E2: 12 | F2: 2
A3: Complementary Kit | B3: NFI_Complementary_Track | C3: NFI_Complementary_Stock | D3: NFI_Complementary_Pipeline | E3: 12 | F3: 1
A4: Hygiene Kit | B4: NFI_Hygiene_Track | C4: NFI_Hygiene_Stock | D4: NFI_Hygiene_Pipeline | E4: 12 | F4: 1
A5: Kitchen Set | B5: NFI_Kitchen_Track | C5: NFI_Kitchen_Stock | D5: NFI_Kitchen_Pipeline | E5: 12 | F5: 1
A6: Mosquito net | B6: NFI_Mosquito_Track | C6: NFI_Mosquito_Stock | D6: NFI_Mosquito_Pipeline | E6: 12 | F6: 2
A7: NFI Core Kit | B7: NFI_Core_Track | C7: NFI_Core_Stock | D7: NFI_Core_Pipeline | E7: 12 | F7: 1
A8: Sanitary Kit | B8: NFI_Sanitary_Track | C8: NFI_Sanitary_Stock | D8: NFI_Sanitary_Pipeline | E8: 12 | F8: 1
A9: Tarpaulin | B9: NFI_Tarpaulin_Track | C9: NFI_Tarpaulin_Stock | D9: NFI_Tarpaulin_Pipeline | E9: 12 | F9: 1
A10: Plastic Bucket | B10: NFI_Plastic_Bucket_Track | C10: NFI_Plastic_Bucket_Stock | D10: NFI_Plastic_Bucket_Pipeline | E10: 12 | F10: 1
A11: Plastic Mat | B11: NFI_Plastic_Mat_Track | C11: NFI_Plastic_Mat_Stock | D11: NFI_Plastic_Mat_Pipeline | E11: 12 | F11: 2
A19: 2013-12-01

Sheet Sheet1
A1: Camp_P_Code | B1: Type of accomodation | C1: Type Population | D1: Household | E1: Male | F1: Female | G1: Total | H1: 0 to 4 | I1: 5 to 11 | J1: 12 to 17 | K1: 18 to 59 | L1: 60 +
A2: MMR012CMP001 | B2: Individual accommodation | C2: Muslim | D2: 16 | E2: 67 | F2: 55 | G2: 122 | M2: =IF(H2,H2/$G2,"") ->  | N2: =IF(I2,I2/$G2,"") ->  | O2: =IF(J2,J2/$G2,"") ->  | P2: =IF(K2,K2/$G2,"") ->  | Q2: =IF(L2,L2/$G2,"") ->  | S2: =IF(E2,E2/$G2,"") -> 0.5491803279 | T2: =IF(F2,F2/$G2,"") -> 0.4508196721
A3: MMR012CMP002 | B3: Individual accommodation | C3: Muslim | D3: 203 | G3: 1008 | M3: =IF(H3,H3/$G3,"") ->  | N3: =IF(I3,I3/$G3,"") ->  | O3: =IF(J3,J3/$G3,"") ->  | P3: =IF(K3,K3/$G3,"") ->  | Q3: =IF(L3,L3/$G3,"") ->  | S3: =IF(E3,E3/$G3,"") ->  | T3: =IF(F3,F3/$G3,"") -> 
A4: MMR012CMP003 | B4: Individual accommodation | C4: Muslim | D4: 125 | G4: 483
A5: MMR012CMP005 | B5: Individual accommodation | C5: Muslim | D5: 296 | G5: 1585
A6: MMR012CMP006 | B6: Individual accommodation | C6: Muslim | D6: 86 | G6: 586
A7: MMR012CMP008 | B7: Individual accommodation | C7: Muslim | D7: 225 | G7: 1341
A8: MMR012CMP009 | B8: Planned Camp | C8: Muslim | D8: 240 | G8: 1228
A9: MMR012CMP010 | B9: Individual accommodation | C9: Muslim | D9: 398 | E9: 1295 | F9: 1318 | G9: 2613 | S9: 0.4955989284 | T9: 0.5044010716
A10: MMR012CMP012 | B10: Planned Camp | C10: Maramargyi | D10: 11 | G10: 64
A11: MMR012CMP013 | B11: Planned Camp | C11: Rakhine | D11: 44 | E11: 136 | F11: 133 | G11: 269 | S11: 0.5055762082 | T11: 0.4944237918
A12: MMR012CMP014 | B12: Planned Camp | C12: Muslim | D12: 752 | E12: 1748 | F12: 1633 | G12: 3381 | S12: 0.5170068027 | T12: 0.4829931973
A13: MMR012CMP015 | B13: Planned Camp | C13: Rakhine | D13: 21 | G13: 97
A14: MMR012CMP016 | B14: Planned Camp | C14: Muslim | D14: 880 | G14: 4285
A15: MMR012CMP017 | B15: Planned Camp | C15: Muslim | D15: 1176 | E15: 2929 | F15: 2960 | G15: 5889 | S15: 0.4973679742 | T15: 0.5026320258
A16: MMR012CMP018 | B16: Planned Camp | C16: Muslim | D16: 1045 | E16: 2261 | F16: 2337 | G16: 4598 | S16: 0.4917355372 | T16: 0.5082644628
A17: MMR012CMP019 | B17: Planned Camp | C17: Muslim | D17: 748 | E17: 1223 | F17: 1423 | G17: 2646 | S17: 0.4622071051 | T17: 0.5377928949
A18: MMR012CMP020 | B18: Individual accommodation | C18: Muslim | D18: 18 | G18: 157
A19: MMR012CMP021 | B19: Individual accommodation | C19: Muslim | D19: 64 | G19: 512
A20: MMR012CMP022 | B20: Individual accommodation | C20: Muslim | D20: 17 | G20: 136
A21: MMR012CMP023 | B21: Planned Camp | C21: Muslim | D21: 85 | G21: 531
A22: MMR012CMP024 | B22: Individual accommodation | C22: Muslim | D22: 133 | G22: 806
A23: MMR012CMP025 | B23: Individual accommodation | C23: Muslim | D23: 14 | G23: 84
A24: MMR012CMP026 | B24: Individual accommodation | C24: Muslim | D24: 230 | G24: 1382
A25: MMR012CMP027 | B25: Individual accommodation | C25: Muslim | D25: 116 | G25: 709
A26: MMR012CMP028 | B26: Individual accommodation | C26: Muslim | D26: 138 | G26: 780
A27: MMR012CMP029 | B27: Individual accommodation | C27: Muslim | D27: 174 | G27: 944
A28: MMR012CMP030 | B28: Individual accommodation | C28: Muslim | D28: 99 | G28: 590
A29: MMR012CMP031 | B29: Planned Camp | C29: Muslim | D29: 62 | E29: 195 | F29: 225 | G29: 420 | S29: 0.4642857143 | T29: 0.5357142857
A30: MMR012CMP032 | B30: Planned Camp | C30: Muslim | D30: 57 | E30: 127 | F30: 169 | G30: 296 | S30: 0.4290540541 | T30: 0.5709459459
A31: MMR012CMP033 | B31: Planned Camp | C31: Muslim | D31: 217 | E31: 562 | F31: 654 | G31: 1216 | S31: 0.4621710526 | T31: 0.5378289474
A32: MMR012CMP034 | B32: Individual accommodation | C32: Muslim | D32: 250 | E32: 609 | F32: 622 | G32: 1231 | S32: 0.49471974 | T32: 0.50528026
A33: MMR012CMP035 | B33: Planned Camp | C33: Muslim | D33: 427 | E33: 721 | F33: 814 | G33: 1535 | S33: 0.4697068404 | T33: 0.5302931596
A34: MMR012CMP036 | B34: Planned Camp | C34: Rakhine | D34: 65 | E34: 149 | F34: 172 | G34: 321 | S34: 0.4641744548 | T34: 0.5358255452
A35: MMR012CMP037 | B35: Planned Camp | C35: Muslim | D35: 57 | E35: 81 | F35: 104 | G35: 185 | S35: 0.4378378378 | T35: 0.5621621622
A36: MMR012CMP038 | B36: Individual accommodation | C36: Rakhine | D36: 18 | E36: 25 | F36: 45 | G36: 70 | S36: 0.3571428571 | T36: 0.6428571429
A37: MMR012CMP039 | B37: Planned Camp | C37: Muslim | D37: 413 | E37: 910 | F37: 968 | G37: 1878 | H37: 379 | I37: 269 | J37: 264 | K37: 910 | L37: 56 | M37: 0.2018104366 | N37: 0.1432374867 | O37: 0.1405750799 | P37: 0.4845580405 | Q37: 0.02981895634 | S37: 0.4845580405 | T37: 0.5154419595
A38: MMR012CMP041 | B38: Planned Camp | C38: Muslim | D38: 1776 | E38: 5149 | F38: 5499 | G38: 10648 | H38: 1621 | I38: 2388 | J38: 1748 | K38: 4563 | L38: 328 | M38: 0.1522351615 | N38: 0.2242674681 | O38: 0.164162284 | P38: 0.4285311796 | Q38: 0.03080390684 | S38: 0.4835649887 | T38: 0.5164350113
A39: MMR012CMP042 | B39: Planned Camp | C39: Muslim | D39: 791 | E39: 1887 | F39: 2031 | G39: 3918 | H39: 839 | I39: 650 | J39: 502 | K39: 1815 | L39: 112 | M39: 0.2141398673 | N39: 0.1659009699 | O39: 0.1281265952 | P39: 0.4632465544 | Q39: 0.02858601327 | S39: 0.4816232772 | T39: 0.5183767228
A40: MMR012CMP045 | B40: Planned Camp | C40: Muslim | D40: 2554 | E40: 6678 | F40: 7069 | G40: 13747 | H40: 3225 | I40: 3073 | J40: 2106 | K40: 4971 | L40: 372 | M40: 0.2345966393 | N40: 0.2235396814 | O40: 0.1531970612 | P40: 0.3616061686 | Q40: 0.02706044955 | S40: 0.4857787154 | T40: 0.5142212846
A41: MMR012CMP046 | B41: Planned Camp | C41: Muslim | D41: 981 | E41: 2709 | F41: 2743 | G41: 5452 | H41: 1052 | I41: 1030 | J41: 761 | K41: 2553 | L41: 56 | M41: 0.1929567131 | N41: 0.1889214967 | O41: 0.1395818048 | P41: 0.4682685253 | Q41: 0.01027146001 | S41: 0.4968818782 | T41: 0.5031181218
A42: MMR012CMP048 | B42: Planned Camp | C42: Muslim | D42: 913 | E42: 2078 | F42: 2754 | G42: 4832 | H42: 622 | I42: 974 | J42: 795 | K42: 2285 | L42: 156 | M42: 0.1287251656 | N42: 0.2015728477 | O42: 0.1645281457 | P42: 0.4728890728 | Q42: 0.03228476821 | S42: 0.4300496689 | T42: 0.5699503311
A43: MMR012CMP056 | B43: Planned Camp | C43: Maramargyi | D43: 74 | E43: 214 | F43: 222 | G43: 436 | H43: 40 | M43: 0.09174311927 | S43: 0.4908256881 | T43: 0.5091743119
A44: MMR012CMP058 | B44: Individual accommodation | C44: Rakhine | D44: 7 | G44: 30
A45: MMR012CMP082 | B45: Individual accommodation | C45: Muslim | D45: 4 | E45: 10 | F45: 10 | G45: 20 | S45: 0.5 | T45: 0.5
A46: MMR012CMP083 | B46: Individual accommodation | C46: Muslim | D46: 80 | E46: 294 | F46: 291 | G46: 585 | S46: 0.5025641026 | T46: 0.4974358974
A47: MMR012CMP084 | B47: Individual accommodation | C47: Muslim | D47: 10 | E47: 60 | F47: 46 | G47: 106 | S47: 0.5660377358 | T47: 0.4339622642
A48: MMR012CMP085 | B48: Individual accommodation | C48: Muslim | D48: 8 | E48: 21 | F48: 41 | G48: 62 | S48: 0.3387096774 | T48: 0.6612903226
A49: MMR012CMP086 | B49: Individual accommodation | C49: Muslim | D49: 15 | E49: 28 | F49: 41 | G49: 69 | S49: 0.4057971014 | T49: 0.5942028986
A50: MMR012CMP088 | B50: Individual accommodation | C50: Muslim | D50: 45 | E50: 143 | F50: 148 | G50: 291 | S50: 0.4914089347 | T50: 0.5085910653
A51: MMR012CMP091 | B51: Individual accommodation | C51: Muslim | D51: 420 | E51: 1174 | F51: 1284 | G51: 2458 | H51: 177 | M51: 0.07200976404 | S51: 0.4776240846 | T51: 0.5223759154
A52: MMR012CMP092 | B52: Planned Camp | C52: Muslim | D52: 667 | E52: 1699 | F52: 1880 | G52: 3579 | H52: 684 | I52: 634 | J52: 649 | K52: 1303 | L52: 309 | M52: 0.1911148365 | N52: 0.1771444538 | O52: 0.1813355686 | P52: 0.3640681755 | Q52: 0.08633696563 | S52: 0.4747136072 | T52: 0.5252863928
A53: MMR012CMP093 | B53: Planned Camp | C53: Rakhine | D53: 176 | E53: 384 | F53: 395 | G53: 779 | H53: 113 | M53: 0.1450577664 | S53: 0.4929396662 | T53: 0.5070603338
A54: MMR012CMP094 | B54: Individual accommodation | C54: Muslim | D54: 8 | E54: 28 | F54: 25 | G54: 53 | S54: 0.5283018868 | T54: 0.4716981132
A55: MMR012CMP095 | B55: Individual accommodation | C55: Muslim | D55: 52 | E55: 167 | F55: 202 | G55: 369 | S55: 0.4525745257 | T55: 0.5474254743
A56: MMR012CMP097 | B56: Individual accommodation | C56: Muslim | D56: 518 | E56: 1457 | F56: 1494 | G56: 2951 | H56: 369 | I56: 551 | J56: 463 | K56: 1448 | L56: 120 | M56: 0.1250423585 | N56: 0.1867163673 | O56: 0.1568959675 | P56: 0.490681125 | Q56: 0.04066418163 | S56: 0.4937309387 | T56: 0.5062690613
A57: MMR012CMP098 | B57: Planned Camp | C57: Muslim | D57: 627 | E57: 1532 | F57: 1469 | G57: 3001 | H57: 710 | I57: 705 | J57: 415 | K57: 1056 | L57: 115 | M57: 0.2365878041 | N57: 0.2349216928 | O57: 0.1382872376 | P57: 0.3518827058 | Q57: 0.03832055981 | S57: 0.5104965012 | T57: 0.4895034988
A58: MMR012CMP101 | B58: Individual accommodation | C58: Muslim | D58: 1025 | E58: 2659 | F58: 2783 | G58: 5442 | H58: 821 | I58: 1012 | J58: 910 | K58: 2634 | L58: 65 | M58: 0.1508636531 | N58: 0.1859610437 | O58: 0.1672179346 | P58: 0.4840132304 | Q58: 0.01194413818 | S58: 0.4886071297 | T58: 0.5113928703
A59: MMR012CMP103 | B59: Individual accommodation | C59: Muslim | D59: 41 | E59: 103 | F59: 123 | G59: 226 | S59: 0.4557522124 | T59: 0.5442477876
A60: MMR012CMP104 | B60: Individual accommodation | C60: Rakhine | D60: 17 | G60: 72
A61: MMR012CMP109 | B61: Individual accommodation | C61: Muslim | D61: 60 | E61: 160 | F61: 196 | G61: 356 | S61: 0.4494382022 | T61: 0.5505617978
A62: MMR012CMP110 | B62: Planned Camp | C62: Muslim | D62: 196 | E62: 431 | F62: 482 | G62: 913 | S62: 0.4720700986 | T62: 0.5279299014
A63: MMR012CMP111 | B63: Planned Camp | C63: Rakhine | D63: 631 | E63: 1470 | F63: 1532 | G63: 3002 | H63: 279 | I63: 427 | J63: 467 | K63: 1648 | L63: 181 | M63: 0.09293804131 | N63: 0.1422385077 | O63: 0.155562958 | P63: 0.5489673551 | Q63: 0.06029313791 | S63: 0.489673551 | T63: 0.510326449
A64: MMR012CMP112 | B64: Planned Camp | C64: Rakhine
A65: MMR012CMP113 | B65: Planned Camp | C65: Muslim | D65: 901 | E65: 2104 | F65: 2200 | G65: 4314 | H65: 680 | I65: 898 | J65: 588 | K65: 2066 | L65: 108 | M65: 0.1576263329 | N65: 0.2081594808 | O65: 0.1363004172 | P65: 0.4789058878 | Q65: 0.02503477051 | S65: 0.4877144182 | T65: 0.5099675475
A66: MMR012CMP114 | B66: Planned Camp | C66: Muslim | D66: 1234 | E66: 3210 | F66: 3300 | G66: 6513 | H66: 1136 | I66: 1407 | J66: 888 | K66: 2939 | L66: 142 | M66: 0.17442039 | N66: 0.2160294795 | O66: 0.1363426992 | P66: 0.4512513435 | Q66: 0.02180254875 | S66: 0.492860433 | T66: 0.5066789498
A67: MMR012CMP115 | B67: Planned Camp | C67: Muslim | D67: 1490 | E67: 3991 | F67: 4195 | G67: 8186 | H67: 1731 | I67: 1812 | J67: 1159 | K67: 3197 | L67: 287 | M67: =IF(H67,H67/$G67,"") -> 0.2114585878 | N67: 0.2213535304 | O67: 0.1415831908 | P67: 0.3905448326 | Q67: 0.03505985829 | S67: =IF(E67,E67/$G67,"") -> 0.4875397019 | T67: 0.5124602981
A68: MMR012CMP116 | B68: Planned Camp | C68: Muslim | D68: 2276 | E68: 6086 | F68: 6229 | G68: 12315 | H68: 2438 | I68: 2784 | J68: 1922 | K68: 4940 | L68: 231 | M68: 0.1979699553 | N68: 0.2260657734 | O68: 0.1560698335 | P68: 0.401136825 | Q68: 0.01875761267 | S68: 0.4941940723 | T68: 0.5058059277
A69: MMR012CMP117 | B69: Planned Camp | C69: Rakhine | D69: 31 | G69: 130

Sheet Home
C2: CLUSTER REPORT
C5: =Report_Date -> 2013-12-01
C7: CCCM | F7: Report & Analysis | L7: Dashboards | P7: 3W | T7: Contact List
L9: Rakhine | M9: Kachin | N9: Myanmar | P9: Rakhine | Q9: Kachin | R9: Myanmar | T9: Rakhine | U9: Kachin | V9: Myanmar
C14: Shelter
L16: Rakhine | M16: Kachin | N16: Myanmar | P16: Rakhine | Q16: Kachin | R16: Myanmar | T16: Rakhine | U16: Kachin | V16: Myanmar
C21: NFI
L22: Rakhine | M22: Kachin
L23: Rakhine | M23: Kachin | N23: Myanmar | P23: Rakhine | Q23: Kachin | R23: Myanmar | T23: Rakhine | U23: Kachin | V23: Myanmar

Sheet Camp_List
A2: DETAILED CAMP LIST
A3: =Report_Date -> 2013-12-01
A4: Status | B4: State | C4: State_Pcode | D4: District | E4: District_Pcode | F4: TOWNSHIP_NAME | G4: Township_Pcode | H4: VillageTracKTown_Name | I4: VillageTrackTown_Pcode | J4: VillageWard_Name | K4: VillageWard_Pcode | L4: Camp Name | M4: P_Code | N4: Longitude | O4: Latitude | P4: Altitude | Q4: HH | R4: Total | S4: Avg | T4: Accessibility2 | U4: Type of Accomodation | V4: Type of Location | W4: Opening Date | X4: Type Population | Y4: CM/FP | Z4: Responsible Agency | AA4: Source | AB4: Method | AC4: Update Date | AD4: Comment | AE4: Comment2 | AF4: Status2
A5: Close | B5: Rakhine | C5: MMR012 | F5: Minbya | G5: MMR012005 | H5: Shwe Ta Mar | I5: MMR012005018 | J5: Na Ga Yar Pyin | K5: 197063 | L5: Nagara Pauktaw | M5: MMR012CMP004 | N5: 93.258476° | O5: 20.554084° | S5: =IF(AND(Table_CampList[[#This Row],[HH]]<>"",Table_CampList[[#This Row],[HH]]>0),Table_CampList[[#This Row],[Total]]/Table_CampList[[#This Row],[HH]],0) -> 0 | T5: Accessible by All | U5: Privately Hosted | AA5: Camp/Community Leader | AB5: Estimate | AC5: 2013-09-03 | AF5: =A5 -> Close
A6: Close | B6: Rakhine | C6: MMR012 | F6: Minbya | G6: MMR012005 | H6: San Bar Lay | I6: MMR012005009 | J6: Thay Kan | K6: 197021 | L6: Thay Kan | M6: MMR012CMP007 | N6: 93.321957° | O6: 20.403736° | S6: =IF(AND(Table_CampList[[#This Row],[HH]]<>"",Table_CampList[[#This Row],[HH]]>0),Table_CampList[[#This Row],[Total]]/Table_CampList[[#This Row],[HH]],0) -> 0 | T6: Accessible by All | U6: Individual (non hosted) | AA6: Camp/Community Leader | AB6: Estimate | AC6: 2013-09-03 | AF6: Close
A7: Close | B7: Rakhine | C7: MMR012 | D7: Sittwe | E7: MMR012D001 | F7: Mrauk_U | G7: MMR012003 | H7: Urban | I7: MMR012003701 | L7: Myat Buddha Mandine Monastery | M7: MMR012CMP011 | N7: 93.187996° | O7: 20.589569° | S7: =IF(AND(Table_CampList[[#This Row],[HH]]<>"",Table_CampList[[#This Row],[HH]]>0),Table_CampList[[#This Row],[Total]]/Table_CampList[[#This Row],[HH]],0) -> 0 | T7: Accessible by All | U7: Collective Centre | AA7: Camp/Community Leader | AB7: Estimate | AC7: 2013-10-01 | AD7: Ward Name not available | AE7: Ward Name not available | AF7: Close
A8: Close | B8: Rakhine | C8: MMR012 | D8: Sittwe | E8: MMR012D001 | F8: Sittwe | G8: MMR012001 | H8: Khaung Doke Kar | I8: MMR012001025 | J8: Baw Du Hpa | K8: 196192 | L8: Baw Du Pha | M8: MMR012CMP040 | N8: 92.807419° | O8: 20.181238° | S8: =IF(AND(Table_CampList[[#This Row],[HH]]<>"",Table_CampList[[#This Row],[HH]]>0),Table_CampList[[#This Row],[Total]]/Table_CampList[[#This Row],[HH]],0) -> 0 | T8: Accessible by All | U8: Planned Camp | AA8: Camp/Community Leader | AB8: Estimate | AC8: 2013-10-01 | AF8: Close
A9: Close | B9: Rakhine | C9: MMR012 | D9: Sittwe | E9: MMR012D001 | F9: Sittwe | G9: MMR012001 | H9: Khaung Doke Kar | I9: MMR012001025 | J9: Baw Du Hpa | K9: 196192 | L9: Ohn Taw Gyi 1 | M9: MMR012CMP043 | N9: 92.798677° | O9: 20.187751° | S9: =IF(AND(Table_CampList[[#This Row],[HH]]<>"",Table_CampList[[#This Row],[HH]]>0),Table_CampList[[#This Row],[Total]]/Table_CampList[[#This Row],[HH]],0) -> 0 | T9: Accessible by All | U9: Planned Camp | AA9: Camp/Community Leader | AB9: Estimate | AC9: 2013-10-01 | AF9: Close
A10: Close | B10: Rakhine | C10: MMR012 | D10: Sittwe | E10: MMR012D001 | F10: Sittwe | G10: MMR012001 | H10: Aung Daing | I10: MMR012001005 | J10: Hpwe Ywar Kone | K10: 196157 | L10: Phwe Yar Kone | M10: MMR012CMP044 | N10: 92.788177° | O10: 20.207285° | S10: =IF(AND(Table_CampList[[#This Row],[HH]]<>"",Table_CampList[[#This Row],[HH]]>0),Table_CampList[[#This Row],[Total]]/Table_CampList[[#This Row],[HH]],0) -> 0 | T10: Accessible by All | U10: Planned Camp | AA10: Camp/Community Leader | AB10: Estimate | AC10: 2013-10-01 | AF10: Close
A11: close | B11: Rakhine | C11: MMR012 | D11: Sittwe | E11: MMR012D001 | F11: Sittwe | G11: MMR012001 | H11: Bu May | I11: MMR012001027 | J11: Thea Chaung Ku Lar | K11: 196211 | L11: Thae Chaung (Kyaukphyu) | M11: MMR012CMP047 | N11: 92.837577° | O11: 20.156842° | S11: =IF(AND(Table_CampList[[#This Row],[HH]]<>"",Table_CampList[[#This Row],[HH]]>0),Table_CampList[[#This Row],[Total]]/Table_CampList[[#This Row],[HH]],0) -> 0 | T11: Accessible by All | U11: Individual (non hosted) | AA11: Camp/Community Leader | AB11: Estimate | AC11: 2013-11-01 | AE11: Counted within Thae Chaung | AF11: close
A12: Close | B12: Rakhine | C12: MMR012 | D12: Sittwe | E12: MMR012D001 | F12: Sittwe | G12: MMR012001 | H12: Bu May | I12: MMR012001027 | J12: Hman Zi | K12: 196207 | L12: Hmanzi Junction | M12: MMR012CMP049 | N12: 92.826407° | O12: 20.175169° | S12: =IF(AND(Table_CampList[[#This Row],[HH]]<>"",Table_CampList[[#This Row],[HH]]>0),Table_CampList[[#This Row],[Total]]/Table_CampList[[#This Row],[HH]],0) -> 0 | T12: Accessible by All | U12: Planned Camp | AA12: Camp/Community Leader | AB12: Estimate | AC12: 2013-09-03 | AF12: Close
A13: Close | B13: Rakhine | C13: MMR012 | D13: Sittwe | E13: MMR012D001 | F13: Sittwe | G13: MMR012001 | H13: Say Tha Mar | I13: MMR012001010 | J13: Say Tha Mar Gyi | K13: 196154 | L13: Pa Lin Pyin Ywar Thit | M13: MMR012CMP050 | N13: 92.792959° | O13: 20.205295° | S13: =IF(AND(Table_CampList[[#This Row],[HH]]<>"",Table_CampList[[#This Row],[HH]]>0),Table_CampList[[#This Row],[Total]]/Table_CampList[[#This Row],[HH]],0) -> 0 | T13: Accessible by All | U13: Self-Settled Camp | AA13: Camp/Community Leader | AB13: Estimate | AC13: 2013-09-03 | AF13: Close
A14: Close | B14: Rakhine | C14: MMR012 | D14: Sittwe | E14: MMR012D001 | F14: Sittwe | G14: MMR012001 | H14: Bu May | I14: MMR012001027 | J14: Thea Chaung Let Tha Mar Kone | K14: 196209 | L14: Bu May Ohn Taw | M14: MMR012CMP051 | N14: 92.847967° | O14: 20.147108° | S14: =IF(AND(Table_CampList[[#This Row],[HH]]<>"",Table_CampList[[#This Row],[HH]]>0),Table_CampList[[#This Row],[Total]]/Table_CampList[[#This Row],[HH]],0) -> 0 | T14: Accessible by All | U14: Self-Settled Camp | AA14: Camp/Community Leader | AB14: Estimate | AC14: 2013-09-03 | AF14: Close
A15: Close | B15: Rakhine | C15: MMR012 | D15: Sittwe | E15: MMR012D001 | F15: Sittwe | G15: MMR012001 | H15: Bu May | I15: MMR012001027 | J15: Tin Bi | K15: 196216 | L15: Bu May Ohn Taw Shore | M15: MMR012CMP052 | N15: 92.848348° | O15: 20.133385° | S15: =IF(AND(Table_CampList[[#This Row],[HH]]<>"",Table_CampList[[#This Row],[HH]]>0),Table_CampList[[#This Row],[Total]]/Table_CampList[[#This Row],[HH]],0) -> 0 | T15: Accessible by All | U15: Self-Settled Camp | AA15: Camp/Community Leader | AB15: Estimate | AC15: 2013-09-03 | AF15: Close
A16: Close | B16: Rakhine | C16: MMR012 | D16: Sittwe | E16: MMR012D001 | F16: Sittwe | G16: MMR012001 | H16: Ye New Su Ward | I16: MMR012001701 | K16: MMR012001701523 | L16: Ma Gyi Myaing | M16: MMR012CMP053 | N16: 92.886890° | O16: 20.132695° | S16: =IF(AND(Table_CampList[[#This Row],[HH]]<>"",Table_CampList[[#This Row],[HH]]>0),Table_CampList[[#This Row],[Total]]/Table_CampList[[#This Row],[HH]],0) -> 0 | T16: Accessible by All | U16: Planned Camp | AA16: Camp/Community Leader | AB16: Estimate | AC16: 2013-09-03 | AF16: Close
A17: Close | B17: Rakhine | C17: MMR012 | D17: Sittwe | E17: MMR012D001 | F17: Sittwe | G17: MMR012001 | H17: Min Gan Ward | I17: MMR012001701 | K17: MMR012001701532 | L17: Mingan | M17: MMR012CMP054 | N17: 92.860599° | O17: 20.154343° | S17: =IF(AND(Table_CampList[[#This Row],[HH]]<>"",Table_CampList[[#This Row],[HH]]>0),Table_CampList[[#This Row],[Total]]/Table_CampList[[#This Row],[HH]],0) -> 0 | T17: Accessible by All | U17: Planned Camp | AA17: Camp/Community Leader | AB17: Estimate | AC17: 2013-09-03 | AF17: Close
A18: Close | B18: Rakhine | C18: MMR012 | D18: Sittwe | E18: MMR012D001 | F18: Sittwe | G18: MMR012001 | H18: Baw Lone Kwin Ward | I18: MMR012001701 | K18: MMR012001701528 | L18: Danyawaddy Baw Lone Kwin | M18: MMR012CMP055 | N18: 92.889384° | O18: 20.135474° | S18: =IF(AND(Table_CampList[[#This Row],[HH]]<>"",Table_CampList[[#This Row],[HH]]>0),Table_CampList[[#This Row],[Total]]/Table_CampList[[#This Row],[HH]],0) -> 0 | T18: Accessible by All | U18: Planned Camp | AA18: Camp/Community Leader | AB18: Estimate | AC18: 2013-09-03 | AF18: Close
A19: Close | B19: Rakhine | C19: MMR012 | D19: Sittwe | E19: MMR012D001 | F19: Sittwe | G19: MMR012001 | H19: Ywar Gyi (North) Ward | I19: MMR012001701 | K19: MMR012001701515 | L19: Dohn Taik Kwin | M19: MMR012CMP057 | N19: 92.897178° | O19: 20.153129° | S19: =IF(AND(Table_CampList[[#This Row],[HH]]<>"",Table_CampList[[#This Row],[HH]]>0),Table_CampList[[#This Row],[Total]]/Table_CampList[[#This Row],[HH]],0) -> 0 | T19: Accessible by All | U19: Planned Camp | AA19: Camp/Community Leader | AB19: Estimate | AC19: 2013-09-03 | AF19: Close
A20: Close | B20: Rakhine | C20: MMR012 | D20: Sittwe | E20: MMR012D001 | F20: Sittwe | G20: MMR012001 | H20: Kyaung Tet Lan Ward | I20: MMR012001701 | K20: MMR012001701519 | L20: Dak Kaung Monastery | M20: MMR012CMP059 | N20: 92.894568° | O20: 20.145585° | S20: =IF(AND(Table_CampList[[#This Row],[HH]]<>"",Table_CampList[[#This Row],[HH]]>0),Table_CampList[[#This Row],[Total]]/Table_CampList[[#This Row],[HH]],0) -> 0 | T20: Accessible by All | U20: Collective Centre | AA20: Camp/Community Leader | AB20: Estimate | AC20: 2013-09-03 | AF20: Close
A21: Close | B21: Rakhine | C21: MMR012 | D21: Sittwe | E21: MMR012D001 | F21: Sittwe | G21: MMR012001 | H21: Bauk Thee Su Ward | I21: MMR012001701 | K21: MMR012001701518 | L21: Dama Set Kyar Monastery | M21: MMR012CMP060 | N21: 92.898398° | O21: 20.152559° | S21: =IF(AND(Table_CampList[[#This Row],[HH]]<>"",Table_CampList[[#This Row],[HH]]>0),Table_CampList[[#This Row],[Total]]/Table_CampList[[#This Row],[HH]],0) -> 0 | T21: Accessible by All | U21: Collective Centre | AA21: Camp/Community Leader | AB21: Estimate | AC21: 2013-09-03 | AF21: Close
A22: Close | B22: Rakhine | C22: MMR012 | D22: Sittwe | E22: MMR012D001 | F22: Sittwe | G22: MMR012001 | H22: Ywar Gyi (North) Ward | I22: MMR012001701 | K22: MMR012001701515 | L22: Gyit Chay Monastery | M22: MMR012CMP061 | N22: 92.896409° | O22: 20.153754° | S22: =IF(AND(Table_CampList[[#This Row],[HH]]<>"",Table_CampList[[#This Row],[HH]]>0),Table_CampList[[#This Row],[Total]]/Table_CampList[[#This Row],[HH]],0) -> 0 | T22: Accessible by All | U22: Collective Centre | AA22: Camp/Community Leader | AB22: Estimate | AC22: 2013-09-03 | AF22: Close
A23: Close | B23: Rakhine | C23: MMR012 | D23: Sittwe | E23: MMR012D001 | F23: Sittwe | G23: MMR012001 | H23: Sin Ku Lan Ward | I23: MMR012001701 | K23: MMR012001701512 | L23: Layaungwin Monastery | M23: MMR012CMP062 | N23: 92.896006° | O23: 20.154331° | S23: =IF(AND(Table_CampList[[#This Row],[HH]]<>"",Table_CampList[[#This Row],[HH]]>0),Table_CampList[[#This Row],[Total]]/Table_CampList[[#This Row],[HH]],0) -> 0 | T23: Accessible by All | U23: Collective Centre | AA23: Camp/Community Leader | AB23: Estimate | AC23: 2013-09-03 | AF23: Close
A24: Close | B24: Rakhine | C24: MMR012 | D24: Sittwe | E24: MMR012D001 | F24: Sittwe | G24: MMR012001 | H24: Bauk Thee Su Ward | I24: MMR012001701 | K24: MMR012001701518 | L24: Myo Ma Monastery | M24: MMR012CMP063 | N24: 92.897783° | O24: 20.151050° | S24: =IF(AND(Table_CampList[[#This Row],[HH]]<>"",Table_CampList[[#This Row],[HH]]>0),Table_CampList[[#This Row],[Total]]/Table_CampList[[#This Row],[HH]],0) -> 0 | T24: Accessible by All | U24: Collective Centre | AA24: Camp/Community Leader | AB24: Estimate | AC24: 2013-09-03 | AF24: Close
A25: Close | B25: Rakhine | C25: MMR012 | D25: Sittwe | E25: MMR012D001 | F25: Sittwe | G25: MMR012001 | H25: Baung Dut Ward | I25: MMR012001701 | K25: MMR012001701517 | L25: Pyin Nyar Mandine Monastery | M25: MMR012CMP064 | N25: 92.896944° | O25: 20.150892° | S25: =IF(AND(Table_CampList[[#This Row],[HH]]<>"",Table_CampList[[#This Row],[HH]]>0),Table_CampList[[#This Row],[Total]]/Table_CampList[[#This Row],[HH]],0) -> 0 | T25: Accessible by All | U25: Collective Centre | AA25: Camp/Community Leader | AB25: Estimate | AC25: 2013-09-03 | AF25: Close
A26: Close | B26: Rakhine | C26: MMR012 | D26: Sittwe | E26: MMR012D001 | F26: Sittwe | G26: MMR012001 | H26: Ywar Gyi (North) Ward | I26: MMR012001701 | K26: MMR012001701515 | L26: Shwe Zay Ti Monastery | M26: MMR012CMP065 | N26: 92.894500° | O26: 20.146200° | S26: =IF(AND(Table_CampList[[#This Row],[HH]]<>"",Table_CampList[[#This Row],[HH]]>0),Table_CampList[[#This Row],[Total]]/Table_CampList[[#This Row],[HH]],0) -> 0 | T26: Accessible by All | U26: Collective Centre | AA26: Camp/Community Leader | AB26: Estimate | AC26: 2013-09-03 | AF26: Close
A27: Close | B27: Rakhine | C27: MMR012 | D27: Sittwe | E27: MMR012D001 | F27: Sittwe | G27: MMR012001 | H27: Pyi Taw Thar Ward | I27: MMR012001701 | K27: MMR012001701520 | L27: Su Taung Pyae Monastery | M27: MMR012CMP066 | N27: 92.888950° | O27: 20.125033° | S27: =IF(AND(Table_CampList[[#This Row],[HH]]<>"",Table_CampList[[#This Row],[HH]]>0),Table_CampList[[#This Row],[Total]]/Table_CampList[[#This Row],[HH]],0) -> 0 | T27: Accessible by All | U27: Collective Centre | AA27: Camp/Community Leader | AB27: Estimate | AC27: 2013-09-03 | AF27: Close
A28: Close | B28: Rakhine | C28: MMR012 | D28: Sittwe | E28: MMR012D001 | F28: Sittwe | G28: MMR012001 | H28: Ywar Gyi (North) Ward | I28: MMR012001701 | K28: MMR012001701515 | L28: Theit Di Kar Yone Monastery | M28: MMR012CMP067 | N28: 92.896418° | O28: 20.152895° | S28: =IF(AND(Table_CampList[[#This Row],[HH]]<>"",Table_CampList[[#This Row],[HH]]>0),Table_CampList[[#This Row],[Total]]/Table_CampList[[#This Row],[HH]],0) -> 0 | T28: Accessible by All | U28: Collective Centre | AA28: Camp/Community Leader | AB28: Estimate | AC28: 2013-09-03 | AF28: Close
A29: Close | B29: Rakhine | C29: MMR012 | D29: Sittwe | E29: MMR012D001 | F29: Sittwe | G29: MMR012001 | H29: Sin Ku Lan Ward | I29: MMR012001701 | K29: MMR012001701512 | L29: Sin Ku Lann Monastery | M29: MMR012CMP068 | N29: 92.897933° | O29: 20.155850° | S29: =IF(AND(Table_CampList[[#This Row],[HH]]<>"",Table_CampList[[#This Row],[HH]]>0),Table_CampList[[#This Row],[Total]]/Table_CampList[[#This Row],[HH]],0) -> 0 | T29: Accessible by All | U29: Collective Centre | AA29: Camp/Community Leader | AB29: Estimate | AC29: 2013-09-03 | AF29: Close
A30: Close | B30: Rakhine | C30: MMR012 | D30: Sittwe | E30: MMR012D001 | F30: Sittwe | G30: MMR012001 | H30: Ywar Gyi (North) Ward | I30: MMR012001701 | K30: MMR012001701515 | L30: Ar Thaw Ka Yone Monastery | M30: MMR012CMP069 | N30: 92.895900° | O30: 20.153800° | S30: =IF(AND(Table_CampList[[#This Row],[HH]]<>"",Table_CampList[[#This Row],[HH]]>0),Table_CampList[[#This Row],[Total]]/Table_CampList[[#This Row],[HH]],0) -> 0 | T30: Accessible by All | U30: Collective Centre | AA30: Camp/Community Leader | AB30: Estimate | AC30: 2013-09-03 | AF30: Close
A31: Close | B31: Rakhine | C31: MMR012 | D31: Sittwe | E31: MMR012D001 | F31: Sittwe | G31: MMR012001 | H31: Ywar Gyi (South) Ward | I31: MMR012001701 | K31: MMR012001701516 | L31: Thangga Yarzar Monastery | M31: MMR012CMP070 | N31: 92.892432° | O31: 20.146041° | S31: =IF(AND(Table_CampList[[#This Row],[HH]]<>"",Table_CampList[[#This Row],[HH]]>0),Table_CampList[[#This Row],[Total]]/Table_CampList[[#This Row],[HH]],0) -> 0 | T31: Accessible by All | U31: Collective Centre | AA31: Camp/Community Leader | AB31: Estimate | AC31: 2013-09-03 | AF31: Close
A32: Close | B32: Rakhine | C32: MMR012 | D32: Sittwe | E32: MMR012D001 | F32: Sittwe | G32: MMR012001 | H32: Ywar Gyi (South) Ward | I32: MMR012001701 | K32: MMR012001701516 | L32: Kha Maung Taw Monastery | M32: MMR012CMP071 | N32: 92.894450° | O32: 20.147100° | S32: =IF(AND(Table_CampList[[#This Row],[HH]]<>"",Table_CampList[[#This Row],[HH]]>0),Table_CampList[[#This Row],[Total]]/Table_CampList[[#This Row],[HH]],0) -> 0 | T32: Accessible by All | U32: Collective Centre | AA32: Camp/Community Leader | AB32: Estimate | AC32: 2013-09-03 | AF32: Close
A33: Close | B33: Rakhine | C33: MMR012 | D33: Sittwe | E33: MMR012D001 | F33: Sittwe | G33: MMR012001 | L33: Ma Ni Yadanar Monastery | M33: MMR012CMP072 | N33: 92.893904° | O33: 20.146673° | S33: =IF(AND(Table_CampList[[#This Row],[HH]]<>"",Table_CampList[[#This Row],[HH]]>0),Table_CampList[[#This Row],[Total]]/Table_CampList[[#This Row],[HH]],0) -> 0 | T33: Accessible by All | U33: Collective Centre | AA33: Camp/Community Leader | AB33: Estimate | AC33: 2013-09-03 | AF33: Close
A34: Close | B34: Rakhine | C34: MMR012 | D34: Sittwe | E34: MMR012D001 | F34: Sittwe | G34: MMR012001 | H34: Kyaung Tet Lan Ward | I34: MMR012001701 | K34: MMR012001701519 | L34: Gyit Bak Monastery | M34: MMR012CMP073 | N34: 92.895600° | O34: 20.146917° | S34: =IF(AND(Table_CampList[[#This Row],[HH]]<>"",Table_CampList[[#This Row],[HH]]>0),Table_CampList[[#This Row],[Total]]/Table_CampList[[#This Row],[HH]],0) -> 0 | T34: Accessible by All | U34: Collective Centre | AA34: Camp/Community Leader | AB34: Estimate | AC34: 2013-09-03 | AF34: Close
A35: Close | B35: Rakhine | C35: MMR012 | D35: Sittwe | E35: MMR012D001 | F35: Sittwe | G35: MMR012001 | H35: Ywar Gyi (South) Ward | I35: MMR012001701 | K35: MMR012001701516 | L35: Ya Tayar Monastery | M35: MMR012CMP074 | N35: 92.893333° | O35: 20.146117° | S35: =IF(AND(Table_CampList[[#This Row],[HH]]<>"",Table_CampList[[#This Row],[HH]]>0),Table_CampList[[#This Row],[Total]]/Table_CampList[[#This Row],[HH]],0) -> 0 | T35: Accessible by All | U35: Collective Centre | AA35: Camp/Community Leader | AB35: Estimate | AC35: 2013-09-03 | AF35: Close
A36: Close | B36: Rakhine | C36: MMR012 | D36: Sittwe | E36: MMR012D001 | F36: Sittwe | G36: MMR012001 | H36: Sin Ku Lan Ward | I36: MMR012001701 | K36: MMR012001701512 | L36: Weikzar Thaikdi Monastery | M36: MMR012CMP075 | N36: 92.896533° | O36: 20.154650° | S36: =IF(AND(Table_CampList[[#This Row],[HH]]<>"",Table_CampList[[#This Row],[HH]]>0),Table_CampList[[#This Row],[Total]]/Table_CampList[[#This Row],[HH]],0) -> 0 | T36: Accessible by All | U36: Collective Centre | AA36: Camp/Community Leader | AB36: Estimate | AC36: 2013-09-03 | AF36: Close
A37: Close | B37: Rakhine | C37: MMR012 | D37: Maungdaw | E37: MMR012D002 | F37: Maungdaw | G37: MMR012009 | H37: NA | I37: NA | J37: NA | K37: NA | L37: Maw Ya Waddy | M37: MMR012CMP076 | N37: NA | O37: NA | S37: =IF(AND(Table_CampList[[#This Row],[HH]]<>"",Table_CampList[[#This Row],[HH]]>0),Table_CampList[[#This Row],[Total]]/Table_CampList[[#This Row],[HH]],0) -> 0 | T37: Accessible by All | U37: Planned Camp | AA37: Camp/Community Leader | AB37: Estimate | AC37: 2013-09-03 | AF37: =A37 -> Close
A38: Close | B38: Rakhine | C38: MMR012 | D38: Maungdaw | E38: MMR012D002 | F38: Maungdaw | G38: MMR012009 | H38: Tha Yae Kone Tan | I38: MMR012009080 | J38: Tha Ray Kon Baung | K38: 198016 | L38: Tha Yay Kone Baung | M38: MMR012CMP077 | N38: 92.429600° | O38: 20.729867° | S38: =IF(AND(Table_CampList[[#This Row],[HH]]<>"",Table_CampList[[#This Row],[HH]]>0),Table_CampList[[#This Row],[Total]]/Table_CampList[[#This Row],[HH]],0) -> 0 | T38: Accessible by All | U38: Planned Camp | AA38: Camp/Community Leader | AB38: Estimate | AC38: 2013-09-03 | AF38: Close
A39: Close | B39: Rakhine | C39: MMR012 | D39: Maungdaw | E39: MMR012D002 | F39: Maungdaw | G39: MMR012009 | H39: NA | I39: NA | J39: NA | K39: NA | L39: Kyaing Gyi | M39: MMR012CMP078 | N39: NA | O39: NA | S39: =IF(AND(Table_CampList[[#This Row],[HH]]<>"",Table_CampList[[#This Row],[HH]]>0),Table_CampList[[#This Row],[Total]]/Table_CampList[[#This Row],[HH]],0) -> 0 | T39: Accessible by All | U39: Planned Camp | AA39: Camp/Community Leader | AB39: Estimate | AC39: 2013-09-03 | AF39: Close
A40: Close | B40: Rakhine | C40: MMR012 | D40: Maungdaw | E40: MMR012D002 | F40: Maungdaw | G40: MMR012009 | H40: Ba Gone Nar | I40: MMR012009066 | J40: Baw Di Kone(No standard name yet | K40: 217897 | L40: Baw Di Gone | M40: MMR012CMP079 | N40: 92.416264° | O40: 20.796128° | S40: =IF(AND(Table_CampList[[#This Row],[HH]]<>"",Table_CampList[[#This Row],[HH]]>0),Table_CampList[[#This Row],[Total]]/Table_CampList[[#This Row],[HH]],0) -> 0 | T40: Accessible by All | U40: Planned Camp | AA40: Camp/Community Leader | AB40: Estimate | AC40: 2013-09-03 | AF40: Close
A41: Close | B41: Rakhine | C41: MMR012 | D41: Maungdaw | E41: MMR012D002 | F41: Maungdaw | G41: MMR012009 | H41: (Du) Chee Yar Tan | I41: MMR012009069 | J41: King Chaung(No standard name yet) | K41: 217898 | L41: Kin Chaung | M41: MMR012CMP080 | N41: 92.424139° | O41: 20.762731° | S41: =IF(AND(Table_CampList[[#This Row],[HH]]<>"",Table_CampList[[#This Row],[HH]]>0),Table_CampList[[#This Row],[Total]]/Table_CampList[[#This Row],[HH]],0) -> 0 | T41: Accessible by All | U41: Planned Camp | AA41: Camp/Community Leader | AB41: Estimate | AC41: 2013-09-03 | AF41: Close
A42: Close | B42: Rakhine | C42: MMR012 | D42: Maungdaw | E42: MMR012D002 | F42: Maungdaw | G42: MMR012009 | H42: Ba Gone Nar | I42: MMR012009066 | J42: Kan Thar Yar(No standard name yet) | K42: 217895 | L42: Kan Thar Yar | M42: MMR012CMP081 | N42: 92.423364° | O42: 20.801544° | S42: =IF(AND(Table_CampList[[#This Row],[HH]]<>"",Table_CampList[[#This Row],[HH]]>0),Table_CampList[[#This Row],[Total]]/Table_CampList[[#This Row],[HH]],0) -> 0 | T42: Accessible by All | U42: Planned Camp | AA42: Camp/Community Leader | AB42: Estimate | AC42: 2013-09-03 | AF42: Close
A43: Close | B43: Rakhine | C43: MMR012 | D43: Maungdaw | E43: MMR012D002 | F43: Maungdaw | G43: MMR012009 | H43: Zaw Ma Tet | I43: MMR012009078 | J43: Zaw Ma Tet | K43: 198045 | L43: Lamber Gone Nah | M43: MMR012CMP087 | N43: 92.426886° | O43: 20.717331° | S43: =IF(AND(Table_CampList[[#This Row],[HH]]<>"",Table_CampList[[#This Row],[HH]]>0),Table_CampList[[#This Row],[Total]]/Table_CampList[[#This Row],[HH]],0) -> 0 | T43: Accessible by All | U43: Individual (non hosted) | AA43: Camp/Community Leader | AB43: Estimate | AC43: 2013-09-03 | AF43: Close
A44: Close | B44: Rakhine | C44: MMR012 | D44: Maungdaw | E44: MMR012D002 | F44: Maungdaw | G44: MMR012009 | H44: Zaw Ma Tet | I44: MMR012009078 | J44: Hin Thar Ya | K44: 198049 | L44: Alima Fara | M44: MMR012CMP089 | N44: 92.435075° | O44: 20.714533° | S44: =IF(AND(Table_CampList[[#This Row],[HH]]<>"",Table_CampList[[#This Row],[HH]]>0),Table_CampList[[#This Row],[Total]]/Table_CampList[[#This Row],[HH]],0) -> 0 | T44: Accessible by All | U44: Privately Hosted | AA44: Camp/Community Leader | AB44: Estimate | AC44: 2013-09-03 | AF44: Close
A45: Close | B45: Rakhine | C45: MMR012 | D45: Sittwe | E45: MMR012D001 | F45: Sittwe | G45: MMR012001 | H45: Khaung Doke Kar | I45: MMR012001025 | J45: Baw Du Hpa | K45: 196192 | L45: Ohn Taw Gyi 3 | M45: MMR012CMP090 | N45: 92.800694° | O45: 20.190056° | S45: =IF(AND(Table_CampList[[#This Row],[HH]]<>"",Table_CampList[[#This Row],[HH]]>0),Table_CampList[[#This Row],[Total]]/Table_CampList[[#This Row],[HH]],0) -> 0 | T45: Accessible by All | U45: Planned Camp | AA45: Camp/Community Leader | AB45: Estimate | AC45: 2013-10-01 | AF45: Close
A46: Close | B46: Rakhine | C46: MMR012 | D46: Sittwe | E46: MMR012D001 | F46: Pauktaw | G46: MMR012007 | H46: Sin Tet Maw | I46: MMR012007051 | J46: Sin Tet Maw (Ku Lar) | K46: 197548 | L46: Sin Tet Maw (from Nget Chaung) | M46: MMR012CMP096 | N46: 92.993759° | O46: 20.064226° | S46: =IF(AND(Table_CampList[[#This Row],[HH]]<>"",Table_CampList[[#This Row],[HH]]>0),Table_CampList[[#This Row],[Total]]/Table_CampList[[#This Row],[HH]],0) -> 0 | T46: Accessible by All | U46: Individual (non hosted) | AA46: Camp/Community Leader | AB46: Estimate | AC46: 2013-11-01 | AE46: No Reliable figures available | AF46: Close
A47: Close | B47: Rakhine | C47: MMR012 | D47: Sittwe | E47: MMR012D001 | F47: Sittwe | G47: MMR012001 | H47: Khaung Doke Kar | I47: MMR012001025 | J47: Baw Du Hpa | K47: 196192 | L47: Ohn Taw Gyi 4 | M47: MMR012CMP099 | N47: 92.800528° | O47: 20.185583° | S47: =IF(AND(Table_CampList[[#This Row],[HH]]<>"",Table_CampList[[#This Row],[HH]]>0),Table_CampList[[#This Row],[Total]]/Table_CampList[[#This Row],[HH]],0) -> 0 | T47: Accessible by All | U47: Planned Camp | AA47: Camp/Community Leader | AB47: Estimate | AC47: 2013-10-01 | AD47: This HH and Total population is for Both camps Ohn Taw Gyi 4 and 5 because information is only possible to get combine information for 2 camps. | AE47: This HH and Total population is for Both camps Ohn Taw Gyi 4 and 5 because information is only possible to get combine information for 2 camps. | AF47: Close
A48: Close | B48: Rakhine | C48: MMR012 | D48: Sittwe | E48: MMR012D001 | F48: Sittwe | G48: MMR012001 | H48: Khaung Doke Kar | I48: MMR012001025 | J48: Baw Du Hpa | K48: 196192 | L48: Ohn Taw Gyi 5 | M48: MMR012CMP100 | N48: 92.799861° | O48: 20.185194° | S48: =IF(AND(Table_CampList[[#This Row],[HH]]<>"",Table_CampList[[#This Row],[HH]]>0),Table_CampList[[#This Row],[Total]]/Table_CampList[[#This Row],[HH]],0) -> 0 | T48: Accessible by All | U48: Planned Camp | AA48: Camp/Community Leader | AB48: Estimate | AC48: 2013-10-01 | AF48: Close
A49: Close | B49: Rakhine | C49: MMR012 | D49: Sittwe | E49: MMR012D001 | F49: Sittwe | G49: MMR012001 | H49: Khaung Doke Kar | I49: MMR012001025 | L49: Hmanzi | M49: MMR012CMP102 | N49: 92.816639° | O49: 20.180194 | S49: =IF(AND(Table_CampList[[#This Row],[HH]]<>"",Table_CampList[[#This Row],[HH]]>0),Table_CampList[[#This Row],[Total]]/Table_CampList[[#This Row],[HH]],0) -> 0 | T49: Accessible by All | U49: Planned Camp | AA49: Camp/Community Leader | AB49: Estimate | AC49: 2013-10-01 | AF49: Close
A50: Close | B50: Rakhine | C50: MMR012 | D50: Sittwe | E50: MMR012D001 | F50: Sittwe | G50: MMR012001 | H50: Urban | I50: MMR012001701 | J50: Sut Yoe Kya Ward | K50: MMR012001701531 | L50: Sat Roe Kya | M50: MMR012CMP105 | N50: 92.887278° | O50: 20.151472° | S50: =IF(AND(Table_CampList[[#This Row],[HH]]<>"",Table_CampList[[#This Row],[HH]]>0),Table_CampList[[#This Row],[Total]]/Table_CampList[[#This Row],[HH]],0) -> 0 | T50: Accessible by All | U50: Individual (non hosted) | AA50: Camp/Community Leader | AB50: Estimate | AC50: 2013-10-01 | AF50: Close
A51: Close | B51: Rakhine | C51: MMR013 | D51: Maungdaw | E51: MMR012D002 | F51: Maungdaw | G51: MMR012009 | H51: Urban | I51: MMR012009701 | L51: Bomu Ywa 2 | M51: MMR012CMP106 | N51: 92.365619° | O51: 20.820317° | S51: =IF(AND(Table_CampList[[#This Row],[HH]]<>"",Table_CampList[[#This Row],[HH]]>0),Table_CampList[[#This Row],[Total]]/Table_CampList[[#This Row],[HH]],0) -> 0 | T51: Accessible by All | U51: Planned Camp | AA51: Camp/Community Leader | AB51: Estimate | AC51: 2013-10-01 | AF51: Close
A52: Close | B52: Rakhine | C52: MMR014 | D52: Maungdaw | E52: MMR012D002 | F52: Maungdaw | G52: MMR012009 | H52: Urban | I52: MMR012009701 | L52: Ywa thit Kay 2 | M52: MMR012CMP107 | N52: 92.367536° | O52: 20.825500° | S52: =IF(AND(Table_CampList[[#This Row],[HH]]<>"",Table_CampList[[#This Row],[HH]]>0),Table_CampList[[#This Row],[Total]]/Table_CampList[[#This Row],[HH]],0) -> 0 | T52: Accessible by All | U52: Planned Camp | AA52: Camp/Community Leader | AB52: Estimate | AC52: 2013-10-01 | AF52: Close
A53: Close | B53: Rakhine | C53: MMR015 | D53: Maungdaw | E53: MMR012D002 | F53: Maungdaw | G53: MMR012009 | H53: Urban | I53: MMR012009701 | L53: Ywa thit Kay 3 | M53: MMR012CMP108 | N53: 92.367933° | O53: 20.825417° | S53: =IF(AND(Table_CampList[[#This Row],[HH]]<>"",Table_CampList[[#This Row],[HH]]>0),Table_CampList[[#This Row],[Total]]/Table_CampList[[#This Row],[HH]],0) -> 0 | T53: Accessible by All | U53: Individual (non hosted) | AA53: Camp/Community Leader | AB53: Estimate | AC53: 2013-10-01 | AF53: Close
A54: Open | B54: Rakhine | C54: MMR012 | D54: Sittwe | E54: MMR012D001 | F54: Minbya | G54: MMR012005 | H54: Kin Seik | I54: MMR012005001 | J54: Kin Seik | K54: 196984 | L54: Paik Thay | M54: MMR012CMP001 | N54: 93.271642° | O54: 20.377523° | Q54: 16 | R54: 122 | S54: =IF(AND(Table_CampList[[#This Row],[HH]]<>"",Table_CampList[[#This Row],[HH]]>0),Table_CampList[[#This Row],[Total]]/Table_CampList[[#This Row],[HH]],0) -> 7.625 | T54: Accessible by All | U54: Individual accommodation | X54: Muslim | Y54: Focal Point | Z54: UNHCR | AA54: Camp/Community Leader | AB54: Estimate | AC54: 2013-10-01 | AF54: Open
A55: Open | B55: Rakhine | C55: MMR012 | D55: Sittwe | E55: MMR012D001 | F55: Minbya | G55: MMR012005 | H55: Kin Seik | I55: MMR012005001 | J55: Thar Dar | K55: 196997 | L55: Tha Dar | M55: MMR012CMP002 | N55: 93.257272° | O55: 20.392138° | Q55: 203 | R55: 1008 | S55: =IF(AND(Table_CampList[[#This Row],[HH]]<>"",Table_CampList[[#This Row],[HH]]>0),Table_CampList[[#This Row],[Total]]/Table_CampList[[#This Row],[HH]],0) -> 4.965517241 | T55: Accessible by All | U55: Individual accommodation | X55: Muslim | Y55: Focal Point | Z55: UNHCR | AA55: Camp/Community Leader | AB55: Estimate | AC55: 2013-10-01 | AF55: Open
A56: Open | B56: Rakhine | C56: MMR012 | D56: Sittwe | E56: MMR012D001 | F56: Minbya | G56: MMR012005 | H56: Chaik Taung | I56: MMR012005003 | J56: San Htoe Tan | K56: 196995 | L56: San Htoe Tan | M56: MMR012CMP003 | N56: 93.249670° | O56: 20.399020° | Q56: 125 | R56: 483 | S56: =IF(AND(Table_CampList[[#This Row],[HH]]<>"",Table_CampList[[#This Row],[HH]]>0),Table_CampList[[#This Row],[Total]]/Table_CampList[[#This Row],[HH]],0) -> 3.864 | T56: Accessible by All | U56: Individual accommodation | X56: Muslim | Y56: Focal Point | Z56: UNHCR | AA56: Camp/Community Leader | AB56: Estimate | AC56: 2013-10-01 | AF56: Open
A57: Open | B57: Rakhine | C57: MMR012 | D57: Sittwe | E57: MMR012D001 | F57: Minbya | G57: MMR012005 | H57: Tha Yet Oke | I57: MMR012005017 | J57: Tha Yet Oke | K57: 197062 | L57: Tha Yet Oak | M57: MMR012CMP005 | N57: 93.258574° | O57: 20.587142° | Q57: 296 | R57: 1585 | S57: =IF(AND(Table_CampList[[#This Row],[HH]]<>"",Table_CampList[[#This Row],[HH]]>0),Table_CampList[[#This Row],[Total]]/Table_CampList[[#This Row],[HH]],0) -> 5.35472973 | T57: Accessible by All | U57: Individual accommodation | X57: Muslim | Y57: Focal Point | Z57: UNHCR | AA57: Camp/Community Leader | AB57: Estimate | AC57: 2013-10-01 | AF57: Open
A58: Open | B58: Rakhine | C58: MMR012 | D58: Sittwe | E58: MMR012D001 | F58: Minbya | G58: MMR012005 | H58: Sa Par Htar | I58: MMR012005032 | J58: Aung Taing | K58: 197150 | L58: Aung Taing | M58: MMR012CMP006 | N58: 93.299485° | O58: 20.480898° | Q58: 86 | R58: 586 | S58: =IF(AND(Table_CampList[[#This Row],[HH]]<>"",Table_CampList[[#This Row],[HH]]>0),Table_CampList[[#This Row],[Total]]/Table_CampList[[#This Row],[HH]],0) -> 6.813953488 | T58: Accessible by All | U58: Individual accommodation | X58: Muslim | Y58: Focal Point | Z58: UNHCR | AA58: Camp/Community Leader | AB58: Estimate | AC58: 2013-10-01 | AF58: Open
A59: Open | B59: Rakhine | C59: MMR012 | D59: Sittwe | E59: MMR012D001 | F59: Minbya | G59: MMR012005 | H59: San Bar Lay | I59: MMR012005009 | J59: Zi War | K59: 197025 | L59: Sam Ba Le | M59: MMR012CMP008 | N59: 93.313628° | O59: 20.407971° | Q59: 225 | R59: 1341 | S59: =IF(AND(Table_CampList[[#This Row],[HH]]<>"",Table_CampList[[#This Row],[HH]]>0),Table_CampList[[#This Row],[Total]]/Table_CampList[[#This Row],[HH]],0) -> 5.96 | T59: Accessible by All | U59: Individual accommodation | X59: Muslim | Y59: Focal Point | Z59: UNHCR | AA59: Camp/Community Leader | AB59: Estimate | AC59: 2013-10-01 | AF59: Open
A60: Open | B60: Rakhine | C60: MMR012 | D60: Sittwe | E60: MMR012D001 | F60: Mrauk_U | G60: MMR012003 | H60: Pu Rein | I60: MMR012003004 | J60: Pu Rein | K60: 196428 | L60: Pa Rein | M60: MMR012CMP009 | N60: 93.245551° | O60: 20.576577° | Q60: 240 | R60: 1228 | S60: =IF(AND(Table_CampList[[#This Row],[HH]]<>"",Table_CampList[[#This Row],[HH]]>0),Table_CampList[[#This Row],[Total]]/Table_CampList[[#This Row],[HH]],0) -> 5.116666667 | T60: Accessible by All | U60: Planned Camp | X60: Muslim | Y60: Focal Point | Z60: UNHCR | AA60: Camp/Community Leader | AB60: Estimate | AC60: 2013-10-01 | AF60: Open
A61: Open | B61: Rakhine | C61: MMR012 | D61: Sittwe | E61: MMR012D001 | F61: Mrauk_U | G61: MMR012003 | H61: Yin Thei | I61: MMR012003026 | J61: Yin Thei | K61: 196507 | L61: Yai Thei-Muslim | M61: MMR012CMP010 | N61: 93.217040° | O61: 20.501758° | Q61: 398 | R61: 2613 | S61: =IF(AND(Table_CampList[[#This Row],[HH]]<>"",Table_CampList[[#This Row],[HH]]>0),Table_CampList[[#This Row],[Total]]/Table_CampList[[#This Row],[HH]],0) -> 6.565326633 | T61: Accessible by All | U61: Individual accommodation | X61: Muslim | Y61: Focal Point | Z61: UNHCR | AA61: Camp/Community Leader | AB61: Estimate | AC61: 2013-10-01 | AF61: Open
A62: Open | B62: Rakhine | C62: MMR012 | D62: Sittwe | E62: MMR012D001 | F62: Mrauk_U | G62: MMR012003 | H62: Sin Oe | I62: MMR012003006 | J62: Raw Ma Ni | K62: 196441 | L62: Raw Ma Ni Sin Oe | M62: MMR012CMP012 | N62: 93.239520° | O62: 20.616920° | Q62: 11 | R62: 64 | S62: =IF(AND(Table_CampList[[#This Row],[HH]]<>"",Table_CampList[[#This Row],[HH]]>0),Table_CampList[[#This Row],[Total]]/Table_CampList[[#This Row],[HH]],0) -> 5.818181818 | T62: Accessible by All | U62: Planned Camp | X62: Maramargyi | Y62: Focal Point | Z62: UNHCR | AA62: Camp/Community Leader | AB62: Estimate | AC62: 2013-10-01 | AF62: Open
A63: Open | B63: Rakhine | C63: MMR012 | D63: Sittwe | E63: MMR012D001 | F63: Meybon | G63: MMR012006 | H63: Urban | I63: MMR012006701 | J63: Kan Thar Htwet Wa Ward | K63: MMR012006701502 | L63: Kan Thar Htwat Wa | M63: MMR012CMP013 | N63: 93.373951° | O63: 20.041981° | Q63: 44 | R63: 269 | S63: =IF(AND(Table_CampList[[#This Row],[HH]]<>"",Table_CampList[[#This Row],[HH]]>0),Table_CampList[[#This Row],[Total]]/Table_CampList[[#This Row],[HH]],0) -> 6.113636364 | T63: Accessible by All | U63: Planned Camp | X63: Rakhine | Y63: Focal Point | Z63: Relief International | AA63: Camp/Community Leader | AB63: Estimate | AC63: 2013-10-01 | AF63: Open
A64: Open | B64: Rakhine | C64: MMR012 | D64: Sittwe | E64: MMR012D001 | F64: Meybon | G64: MMR012006 | H64: Ah Ngu | I64: MMR012006001 | J64: Pyin Taw Che | K64: 217973 | L64: Taung Paw | M64: MMR012CMP014 | N64: 93.370038° | O64: 20.037655° | Q64: 752 | R64: 3381 | S64: =IF(AND(Table_CampList[[#This Row],[HH]]<>"",Table_CampList[[#This Row],[HH]]>0),Table_CampList[[#This Row],[Total]]/Table_CampList[[#This Row],[HH]],0) -> 4.496010638 | T64: Accessible by All | U64: Planned Camp | X64: Muslim | Y64: Focal Point | Z64: Relief International | AA64: Camp/Community Leader | AB64: Estimate | AC64: 2013-10-01 | AF64: Open
A65: Open | B65: Rakhine | C65: MMR012 | D65: Sittwe | E65: MMR012D001 | F65: Pauktaw | G65: MMR012007 | H65: Urban | I65: MMR012007701 | J65: Ba Wan Chaung Wa Su Ward | K65: MMR012007701504 | L65: Ba Wan Chaung Wa Su | M65: MMR012CMP015 | N65: 93.067891° | O65: 20.173468° | Q65: 21 | R65: 97 | S65: =IF(AND(Table_CampList[[#This Row],[HH]]<>"",Table_CampList[[#This Row],[HH]]>0),Table_CampList[[#This Row],[Total]]/Table_CampList[[#This Row],[HH]],0) -> 4.619047619 | T65: Accessible by All | U65: Planned Camp | X65: Rakhine | Y65: Focal Point | Z65: UNHCR | AA65: Camp/Community Leader | AB65: Estimate | AC65: 2013-10-01 | AF65: Open
A66: Open | B66: Rakhine | C66: MMR012 | D66: Sittwe | E66: MMR012D001 | F66: Pauktaw | G66: MMR012007 | H66: Pein Hne Chaung | I66: MMR012007049 | J66: Kyauk Pyin Seik | K66: 197537 | L66: Ah Nauk Ywe | M66: MMR012CMP016 | N66: 92.985095° | O66: 20.108102° | Q66: 880 | R66: 4285 | S66: =IF(AND(Table_CampList[[#This Row],[HH]]<>"",Table_CampList[[#This Row],[HH]]>0),Table_CampList[[#This Row],[Total]]/Table_CampList[[#This Row],[HH]],0) -> 4.869318182 | T66: Accessible by All | U66: Planned Camp | X66: Muslim | Y66: Focal Point | Z66: Solidarites International | AA66: Camp/Community Leader | AB66: Estimate | AC66: 2013-10-01 | AF66: Open
A67: Open | B67: Rakhine | C67: MMR012 | D67: Sittwe | E67: MMR012D001 | F67: Pauktaw | G67: MMR012007 | H67: Pon Nar Gyi | I67: MMR012007012 | J67: Cha Eik | K67: 197414 | L67: Nget Chaung | M67: MMR012CMP017 | N67: 93.154552° | O67: 20.073438° | Q67: 1176 | R67: 5889 | S67: =IF(AND(Table_CampList[[#This Row],[HH]]<>"",Table_CampList[[#This Row],[HH]]>0),Table_CampList[[#This Row],[Total]]/Table_CampList[[#This Row],[HH]],0) -> 5.007653061 | T67: Accessible by All | U67: Planned Camp | X67: Muslim | Y67: Focal Point | Z67: Solidarites International | AA67: Camp/Community Leader | AB67: Estimate | AC67: 2013-10-01 | AF67: Open
A68: Open | B68: Rakhine | C68: MMR012 | D68: Sittwe | E68: MMR012D001 | F68: Pauktaw | G68: MMR012007 | H68: Pein Hne Chaung | I68: MMR012007049 | J68: Kyein Ni Pyin | K68: 197533 | L68: Kyein Ni Pyin | M68: MMR012CMP018 | N68: 93.010369° | O68: 20.090183° | Q68: 1045 | R68: 4598 | S68: =IF(AND(Table_CampList[[#This Row],[HH]]<>"",Table_CampList[[#This Row],[HH]]>0),Table_CampList[[#This Row],[Total]]/Table_CampList[[#This Row],[HH]],0) -> 4.4 | T68: Accessible by All | U68: Planned Camp | X68: Muslim | Y68: Camp Management | Z68: Save the Children | AA68: Camp/Community Leader | AB68: Estimate | AC68: 2013-10-01 | AF68: Open
A69: Open | B69: Rakhine | C69: MMR012 | D69: Sittwe | E69: MMR012D001 | F69: Pauktaw | G69: MMR012007 | H69: Sin Tet Maw | I69: MMR012007051 | J69: Sin Tet Maw (Ku Lar) | K69: 197548 | L69: Sin Tet Maw | M69: MMR012CMP019 | N69: 92.993759° | O69: 20.064226° | Q69: 748 | R69: 2646 | S69: =IF(AND(Table_CampList[[#This Row],[HH]]<>"",Table_CampList[[#This Row],[HH]]>0),Table_CampList[[#This Row],[Total]]/Table_CampList[[#This Row],[HH]],0) -> 3.537433155 | T69: Accessible by All | U69: Planned Camp | X69: Muslim | Y69: Camp Management | Z69: Save the Children | AA69: Camp/Community Leader | AB69: Estimate | AC69: 2013-10-01 | AF69: =A69 -> Open
A70: Open | B70: Rakhine | C70: MMR012 | D70: Sittwe | E70: MMR012D001 | F70: Kyauktaw | G70: MMR012004 | H70: Hpa Yar Paung | I70: MMR012004046 | J70: Taung Pauk | K70: 196873 | L70: Let Saung Kauk | M70: MMR012CMP020 | N70: 92.982676° | O70: 20.805734° | Q70: 18 | R70: 157 | S70: =IF(AND(Table_CampList[[#This Row],[HH]]<>"",Table_CampList[[#This Row],[HH]]>0),Table_CampList[[#This Row],[Total]]/Table_CampList[[#This Row],[HH]],0) -> 8.722222222 | T70: Accessible by All | U70: Individual accommodation | X70: Muslim | Y70: Focal Point | Z70: UNHCR | AA70: Camp/Community Leader | AB70: Estimate | AC70: 2013-10-01 | AF70: Open
A71: Open | B71: Rakhine | C71: MMR012 | D71: Sittwe | E71: MMR012D001 | F71: Kyauktaw | G71: MMR012004 | H71: Ya Da Nar Pon | I71: MMR012004019 | J71: Ku Lar Taung Bway | K71: 196789 | L71: Taung Bwe | M71: MMR012CMP021 | N71: 93.000815° | O71: 20.929649° | Q71: 64 | R71: 512 | S71: =IF(AND(Table_CampList[[#This Row],[HH]]<>"",Table_CampList[[#This Row],[HH]]>0),Table_CampList[[#This Row],[Total]]/Table_CampList[[#This Row],[HH]],0) -> 8 | T71: Accessible by All | U71: Individual accommodation | X71: Muslim | Y71: Focal Point | Z71: UNHCR | AA71: Camp/Community Leader | AB71: Estimate | AC71: 2013-10-01 | AF71: Open
A72: Open | B72: Rakhine | C72: MMR012 | D72: Sittwe | E72: MMR012D001 | F72: Kyauktaw | G72: MMR012004 | H72: Ya Da Nar Pon | I72: MMR012004019 | J72: Ah Lel | K72: 196786 | L72: Ah Lel | M72: MMR012CMP022 | N72: 93.003205° | O72: 20.921425° | Q72: 17 | R72: 136 | S72: =IF(AND(Table_CampList[[#This Row],[HH]]<>"",Table_CampList[[#This Row],[HH]]>0),Table_CampList[[#This Row],[Total]]/Table_CampList[[#This Row],[HH]],0) -> 8 | T72: Accessible by All | U72: Individual accommodation | X72: Muslim | Y72: Focal Point | Z72: UNHCR | AA72: Camp/Community Leader | AB72: Estimate | AC72: 2013-10-01 | AF72: Open
A73: Open | B73: Rakhine | C73: MMR012 | D73: Sittwe | E73: MMR012D001 | F73: Kyauktaw | G73: MMR012004 | H73: Wa Kin | I73: MMR012004028 | J73: Ni Din | K73: 196829 | L73: Nidin | M73: MMR012CMP023 | N73: 92.965981° | O73: 20.865687° | Q73: 85 | R73: 531 | S73: =IF(AND(Table_CampList[[#This Row],[HH]]<>"",Table_CampList[[#This Row],[HH]]>0),Table_CampList[[#This Row],[Total]]/Table_CampList[[#This Row],[HH]],0) -> 6.247058824 | T73: Accessible by All | U73: Planned Camp | X73: Muslim | Y73: Focal Point | Z73: UNHCR | AA73: Camp/Community Leader | AB73: Estimate | AC73: 2013-10-01 | AF73: Open
A74: Open | B74: Rakhine | C74: MMR012 | D74: Sittwe | E74: MMR012D001 | F74: Kyauktaw | G74: MMR012004 | H74: Ah Pauk Wa | I74: MMR012004064 | J74: Ah Pauk Wa | K74: 196946 | L74: Ah Pauk Wa | M74: MMR012CMP024 | N74: 92.961841° | O74: 20.720213° | Q74: 133 | R74: 806 | S74: =IF(AND(Table_CampList[[#This Row],[HH]]<>"",Table_CampList[[#This Row],[HH]]>0),Table_CampList[[#This Row],[Total]]/Table_CampList[[#This Row],[HH]],0) -> 6.060150376 | T74: Accessible by All | U74: Individual accommodation | X74: Muslim | Y74: Focal Point | Z74: UNHCR | AA74: Camp/Community Leader | AB74: Estimate | AC74: 2013-10-01 | AF74: Open
A75: Open | B75: Rakhine | C75: MMR012 | D75: Sittwe | E75: MMR012D001 | F75: Kyauktaw | G75: MMR012004 | H75: Ah Lel Kyun | I75: MMR012004031 | J75: Ah Lel Kyun Ku Lar | K75: 196842 | L75: Ah Lel Kyun | M75: MMR012CMP025 | N75: 93.014350° | O75: 20.896740° | Q75: 14 | R75: 84 | S75: =IF(AND(Table_CampList[[#This Row],[HH]]<>"",Table_CampList[[#This Row],[HH]]>0),Table_CampList[[#This Row],[Total]]/Table_CampList[[#This Row],[HH]],0) -> 6 | T75: Accessible by All | U75: Individual accommodation | X75: Muslim | Y75: Focal Point | Z75: UNHCR | AA75: Camp/Community Leader | AB75: Estimate | AC75: 2013-10-01 | AF75: Open
A76: Open | B76: Rakhine | C76: MMR012 | D76: Sittwe | E76: MMR012D001 | F76: Kyauktaw | G76: MMR012004 | H76: Doke Kan Chaung | I76: MMR012004063 | J76: In Bar Yi | K76: 196945 | L76: In Bar Yi | M76: MMR012CMP026 | N76: 93.009900° | O76: 20.696820° | Q76: 230 | R76: 1382 | S76: =IF(AND(Table_CampList[[#This Row],[HH]]<>"",Table_CampList[[#This Row],[HH]]>0),Table_CampList[[#This Row],[Total]]/Table_CampList[[#This Row],[HH]],0) -> 6.008695652 | T76: Accessible by All | U76: Individual accommodation | X76: Muslim | Y76: Focal Point | Z76: UNHCR | AA76: Camp/Community Leader | AB76: Estimate | AC76: 2013-10-01 | AF76: Open
A77: Open | B77: Rakhine | C77: MMR012 | D77: Sittwe | E77: MMR012D001 | F77: Kyauktaw | G77: MMR012004 | H77: Goke Pi Htaunt | I77: MMR012004074 | J77: Goke Pi Htaunt (Ku Lar) | K77: 196972 | L77: Goke Pi Htaunt | M77: MMR012CMP027 | N77: 93.014090° | O77: 20.713260° | Q77: 116 | R77: 709 | S77: =IF(AND(Table_CampList[[#This Row],[HH]]<>"",Table_CampList[[#This Row],[HH]]>0),Table_CampList[[#This Row],[Total]]/Table_CampList[[#This Row],[HH]],0) -> 6.112068966 | T77: Accessible by All | U77: Individual accommodation | X77: Muslim | Y77: Focal Point | Z77: UNHCR | AA77: Camp/Community Leader | AB77: Estimate | AC77: 2013-10-01 | AF77: Open
A78: Open | B78: Rakhine | C78: MMR012 | D78: Sittwe | E78: MMR012D001 | F78: Kyauktaw | G78: MMR012004 | H78: Ah Pauk Wa | I78: MMR012004064 | J78: Yun Nyar | K78: 196952 | L78: Yun Nyar | M78: MMR012CMP028 | N78: 92.969350° | O78: 20.727590° | Q78: 138 | R78: 780 | S78: =IF(AND(Table_CampList[[#This Row],[HH]]<>"",Table_CampList[[#This Row],[HH]]>0),Table_CampList[[#This Row],[Total]]/Table_CampList[[#This Row],[HH]],0) -> 5.652173913 | T78: Accessible by All | U78: Individual accommodation | X78: Muslim | Y78: Focal Point | Z78: UNHCR | AA78: Camp/Community Leader | AB78: Estimate | AC78: 2013-10-01 | AF78: Open
A79: Open | B79: Rakhine | C79: MMR012 | D79: Sittwe | E79: MMR012D001 | F79: Kyauktaw | G79: MMR012004 | H79: Sin Oe Chaing | I79: MMR012004069 | J79: Shwe Hlaing Ku Lar | K79: 196868 | L79: Shwe Hlaing | M79: MMR012CMP029 | N79: 92.987400° | O79: 20.783320° | Q79: 174 | R79: 944 | S79: =IF(AND(Table_CampList[[#This Row],[HH]]<>"",Table_CampList[[#This Row],[HH]]>0),Table_CampList[[#This Row],[Total]]/Table_CampList[[#This Row],[HH]],0) -> 5.425287356 | T79: Accessible by All | U79: Individual accommodation | X79: Muslim | Y79: Focal Point | Z79: UNHCR | AA79: Camp/Community Leader | AB79: Estimate | AC79: 2013-10-01 | AF79: Open
A80: Open | B80: Rakhine | C80: MMR012 | D80: Sittwe | E80: MMR012D001 | F80: Kyauktaw | G80: MMR012004 | H80: Khaung Toke | I80: MMR012004030 | J80: Khaung Toke (Ku Lar) | K80: 196838 | L80: Khaung Htoke | M80: MMR012CMP030 | N80: 93.006498° | O80: 20.886998° | Q80: 99 | R80: 590 | S80: =IF(AND(Table_CampList[[#This Row],[HH]]<>"",Table_CampList[[#This Row],[HH]]>0),Table_CampList[[#This Row],[Total]]/Table_CampList[[#This Row],[HH]],0) -> 5.95959596 | T80: Accessible by All | U80: Individual accommodation | X80: Muslim | Y80: Focal Point | Z80: UNHCR | AA80: Camp/Community Leader | AB80: Estimate | AC80: 2013-10-01 | AF80: Open
A81: Open | B81: Rakhine | C81: MMR012 | D81: Sittwe | E81: MMR012D001 | F81: Rathedaung | G81: MMR012008 | H81: Nyaung Pin Gyi | I81: MMR012008082 | J81: Nyaung Pin Gyi (Ku Lar) | K81: 197780 | L81: Nyaung Pin Gyi | M81: MMR012CMP031 | N81: 92.785706° | O81: 20.335864° | Q81: 62 | R81: 420 | S81: =IF(AND(Table_CampList[[#This Row],[HH]]<>"",Table_CampList[[#This Row],[HH]]>0),Table_CampList[[#This Row],[Total]]/Table_CampList[[#This Row],[HH]],0) -> 6.774193548 | T81: Accessible by All | U81: Planned Camp | X81: Muslim | Y81: Focal Point | Z81: UNHCR | AA81: Camp/Community Leader | AB81: Estimate | AC81: 2013-10-01 | AE81: Individual Accomodation to Planned Camp (Gov't constructed Long Houses) | AF81: Open
A82: Open | B82: Rakhine | C82: MMR012 | D82: Sittwe | E82: MMR012D001 | F82: Rathedaung | G82: MMR012008 | H82: Ah Nauk Pyin | I82: MMR012008072 | J82: Ah Nauk Pyin | K82: 197763 | L82: Ah Nauk Pyin | M82: MMR012CMP032 | N82: 92.781294° | O82: 20.399269° | Q82: 57 | R82: 296 | S82: =IF(AND(Table_CampList[[#This Row],[HH]]<>"",Table_CampList[[#This Row],[HH]]>0),Table_CampList[[#This Row],[Total]]/Table_CampList[[#This Row],[HH]],0) -> 5.192982456 | T82: Accessible by All | U82: Planned Camp | X82: Muslim | Y82: Focal Point | Z82: UNHCR | AA82: Camp/Community Leader | AB82: Estimate | AC82: 2013-10-01 | AE82: Individual Accomodation to Planned Camp (Gov't constructed Long Houses) | AF82: Open
A83: Open | B83: Rakhine | C83: MMR012 | D83: Sittwe | E83: MMR012D001 | F83: Rathedaung | G83: MMR012008 | H83: Koe Tan Kauk | I83: MMR012008031 | J83: Chein Khar Li (Ku Lar) | K83: 197651 | L83: Chein Khar Li | M83: MMR012CMP033 | N83: 92.660361° | O83: 20.408453° | Q83: 217 | R83: 1216 | S83: =IF(AND(Table_CampList[[#This Row],[HH]]<>"",Table_CampList[[#This Row],[HH]]>0),Table_CampList[[#This Row],[Total]]/Table_CampList[[#This Row],[HH]],0) -> 5.603686636 | T83: Accessible by All | U83: Planned Camp | X83: Muslim | Y83: Focal Point | Z83: UNHCR | AA83: Camp/Community Leader | AB83: Estimate | AC83: 2013-10-01 | AF83: Open
A84: Open | B84: Rakhine | C84: MMR012 | D84: Sittwe | E84: MMR012D001 | F84: Rathedaung | G84: MMR012008 | H84: Chut Pyin | I84: MMR012008006 | J84: Chut Pyin | K84: 197590 | L84: Ah Htet Nan Yar | M84: MMR012CMP034 | N84: 92.640022° | O84: 20.569219° | Q84: 250 | R84: 1231 | S84: =IF(AND(Table_CampList[[#This Row],[HH]]<>"",Table_CampList[[#This Row],[HH]]>0),Table_CampList[[#This Row],[Total]]/Table_CampList[[#This Row],[HH]],0) -> 4.924 | T84: Accessible by All | U84: Individual accommodation | X84: Muslim | Y84: Focal Point | Z84: UNHCR | AA84: Camp/Community Leader | AB84: Estimate | AC84: 2013-10-01 | AF84: Open
A85: Open | B85: Rakhine | C85: MMR012 | D85: Kyaukpyu | E85: MMR012D003 | F85: Kyauk_Phyu | G85: MMR012011 | H85: Gone Chein | I85: MMR012011006 | J85: Say Poke Kay | K85: 198486 | L85: Kyauk Ta Lone | M85: MMR012CMP035 | N85: 93.512326° | O85: 19.424577° | Q85: 427 | R85: 1535 | S85: =IF(AND(Table_CampList[[#This Row],[HH]]<>"",Table_CampList[[#This Row],[HH]]>0),Table_CampList[[#This Row],[Total]]/Table_CampList[[#This Row],[HH]],0) -> 3.594847775 | T85: Accessible by All | U85: Planned Camp | X85: Muslim | Y85: Focal Point | Z85: Oxfam | AA85: Camp/Community Leader | AB85: Estimate | AC85: 2013-10-01 | AF85: Open
A86: Open | B86: Rakhine | C86: MMR012 | D86: Kyaukpyu | E86: MMR012D003 | F86: Kyauk_Phyu | G86: MMR012011 | H86: Taung Yin | I86: MMR012011002 | J86: Ka Nyin Taw | K86: 198469 | L86: Pha Yar Gyi Kwin | M86: MMR012CMP036 | N86: 93.552452° | O86: 19.421102° | Q86: 65 | R86: 321 | S86: =IF(AND(Table_CampList[[#This Row],[HH]]<>"",Table_CampList[[#This Row],[HH]]>0),Table_CampList[[#This Row],[Total]]/Table_CampList[[#This Row],[HH]],0) -> 4.938461538 | T86: Accessible by All | U86: Planned Camp | X86: Rakhine | Y86: Focal Point | Z86: Oxfam | AA86: Camp/Community Leader | AB86: Estimate | AC86: 2013-10-01 | AF86: Open
A87: Open | B87: Rakhine | C87: MMR012 | D87: Kyaukpyu | E87: MMR012D003 | F87: Ramree | G87: MMR012013 | H87: Kha Maung Chi Taing | I87: MMR012013020 | L87: Ramree Ward 6 | M87: MMR012CMP037 | N87: 93.857593° | O87: 19.088283° | Q87: 57 | R87: 185 | S87: =IF(AND(Table_CampList[[#This Row],[HH]]<>"",Table_CampList[[#This Row],[HH]]>0),Table_CampList[[#This Row],[Total]]/Table_CampList[[#This Row],[HH]],0) -> 3.245614035 | T87: Accessible by All | U87: Planned Camp | X87: Muslim | Y87: Focal Point | Z87: Oxfam | AA87: Camp/Community Leader | AB87: Estimate | AC87: 2013-10-01 | AD87: Urban | AE87: Urban | AF87: Open
A88: Open | B88: Rakhine | C88: MMR012 | D88: Kyaukpyu | E88: MMR012D003 | F88: Ramree | G88: MMR012013 | H88: Kha Maung Chi Taing | I88: MMR012013020 | L88: Ramree Town | M88: MMR012CMP038 | N88: 93.865170° | O88: 19.091054° | Q88: 18 | R88: 70 | S88: =IF(AND(Table_CampList[[#This Row],[HH]]<>"",Table_CampList[[#This Row],[HH]]>0),Table_CampList[[#This Row],[Total]]/Table_CampList[[#This Row],[HH]],0) -> 3.888888889 | T88: Accessible by All | U88: Individual accommodation | X88: Rakhine | Y88: Focal Point | Z88: Oxfam | AA88: Camp/Community Leader | AB88: Estimate | AC88: 2013-10-01 | AD88: Urban | AE88: Urban | AF88: Open
A89: Open | B89: Rakhine | C89: MMR012 | D89: Sittwe | E89: MMR012D001 | F89: Sittwe | G89: MMR012001 | H89: San Pya Ward | I89: MMR012002701 | K89: MMR012002701501 | L89: Basare | M89: MMR012CMP039 | N89: 92.875814° | O89: 20.128489° | Q89: 413 | R89: 1878 | S89: =IF(AND(Table_CampList[[#This Row],[HH]]<>"",Table_CampList[[#This Row],[HH]]>0),Table_CampList[[#This Row],[Total]]/Table_CampList[[#This Row],[HH]],0) -> 4.547215496 | T89: Accessible by All | U89: Planned Camp | X89: Muslim | Y89: Camp Management | Z89: Luteran World Federation | AA89: Camp/Community Leader | AB89: Estimate | AC89: 2013-10-01 | AF89: Open
A90: Open | B90: Rakhine | C90: MMR012 | D90: Sittwe | E90: MMR012D001 | F90: Sittwe | G90: MMR012001 | H90: Bu May | I90: MMR012001027 | J90: Dar Paing Ywar Thit | K90: 196206 | L90: Dar Pai | M90: MMR012CMP041 | N90: 92.827427° | O90: 20.168460° | Q90: 1776 | R90: 10648 | S90: =IF(AND(Table_CampList[[#This Row],[HH]]<>"",Table_CampList[[#This Row],[HH]]>0),Table_CampList[[#This Row],[Total]]/Table_CampList[[#This Row],[HH]],0) -> 5.995495495 | T90: Accessible by All | U90: Planned Camp | X90: Muslim | Y90: Camp Management | Z90: Danish Refugee Council | AA90: Camp/Community Leader | AB90: Estimate | AC90: 2013-10-01 | AF90: Open
A91: Open | B91: Rakhine | C91: MMR012 | D91: Sittwe | E91: MMR012D001 | F91: Sittwe | G91: MMR012001 | H91: Khaung Doke Kar | I91: MMR012001025 | J91: Khaung Doke Kar | K91: 196191 | L91: Khaung Doke Khar | M91: MMR012CMP042 | N91: 92.823167° | O91: 20.181778° | Q91: 791 | R91: 3918 | S91: =IF(AND(Table_CampList[[#This Row],[HH]]<>"",Table_CampList[[#This Row],[HH]]>0),Table_CampList[[#This Row],[Total]]/Table_CampList[[#This Row],[HH]],0) -> 4.953223767 | T91: Accessible by All | U91: Planned Camp | X91: Muslim | Y91: Camp Management | Z91: Luteran World Federation | AA91: Camp/Community Leader | AB91: Estimate | AC91: 2013-10-01 | AE91: Merged with Hmanzi | AF91: Open
A92: Open | B92: Rakhine | C92: MMR012 | D92: Sittwe | E92: MMR012D001 | F92: Sittwe | G92: MMR012001 | H92: Say Tha Mar | I92: MMR012001010 | J92: Say Tha Mar Gyi | K92: 196154 | L92: Say Tha Mar Gyi | M92: MMR012CMP045 | N92: 92.792480° | O92: 20.202525° | Q92: 2554 | R92: 13747 | S92: =IF(AND(Table_CampList[[#This Row],[HH]]<>"",Table_CampList[[#This Row],[HH]]>0),Table_CampList[[#This Row],[Total]]/Table_CampList[[#This Row],[HH]],0) -> 5.382537197 | T92: Accessible by All | U92: Planned Camp | X92: Muslim | Y92: Camp Management | Z92: Danish Refugee Council | AA92: Camp/Community Leader | AB92: Estimate | AC92: 2013-10-01 | AE92: Merged with Phwe Yar Kone | AF92: Open
A93: Open | B93: Rakhine | C93: MMR012 | D93: Sittwe | E93: MMR012D001 | F93: Sittwe | G93: MMR012001 | H93: Bu May | I93: MMR012001027 | J93: Thea Chaung Ku Lar | K93: 196211 | L93: Thae Chaung | M93: MMR012CMP046 | N93: 92.839417° | O93: 20.158500° | Q93: 981 | R93: 5452 | S93: =IF(AND(Table_CampList[[#This Row],[HH]]<>"",Table_CampList[[#This Row],[HH]]>0),Table_CampList[[#This Row],[Total]]/Table_CampList[[#This Row],[HH]],0) -> 5.557594292 | T93: Accessible by All | U93: Planned Camp | X93: Muslim | Y93: Focal Point | Z93: Solidarites International | AA93: Camp/Community Leader | AB93: Estimate | AC93: 2013-10-01 | AF93: Open
A94: Open | B94: Rakhine | C94: MMR012 | D94: Sittwe | E94: MMR012D001 | F94: Sittwe | G94: MMR012001 | H94: Bu May | I94: MMR012001027 | J94: Kha War De Ywar Haung | K94: 196186 | L94: Thet Kae Pyin | M94: MMR012CMP048 | N94: 92.831879° | O94: 20.179940° | Q94: 913 | R94: 4832 | S94: =IF(AND(Table_CampList[[#This Row],[HH]]<>"",Table_CampList[[#This Row],[HH]]>0),Table_CampList[[#This Row],[Total]]/Table_CampList[[#This Row],[HH]],0) -> 5.292442497 | T94: Accessible by All | U94: Planned Camp | X94: Muslim | Y94: Camp Management | Z94: Save the Children | AA94: Camp/Community Leader | AB94: Estimate | AC94: 2013-10-01 | AF94: Open
A95: Open | B95: Rakhine | C95: MMR012 | D95: Sittwe | E95: MMR012D001 | F95: Sittwe | G95: MMR012001 | H95: Set Yon Su Ward | I95: MMR012001701 | K95: MMR012001701526 | L95: Set Yone Su | M95: MMR012CMP056 | N95: 92.880320° | O95: 20.148584° | Q95: 74 | R95: 436 | S95: =IF(AND(Table_CampList[[#This Row],[HH]]<>"",Table_CampList[[#This Row],[HH]]>0),Table_CampList[[#This Row],[Total]]/Table_CampList[[#This Row],[HH]],0) -> 5.891891892 | T95: Accessible by All | U95: Planned Camp | X95: Maramargyi | Y95: Focal Point | Z95: UNHCR | AA95: Camp/Community Leader | AB95: Estimate | AC95: 2013-10-01 | AF95: Open
A96: Open | B96: Rakhine | C96: MMR012 | D96: Sittwe | E96: MMR012D001 | F96: Sittwe | G96: MMR012001 | H96: Thin Pone Tan | I96: MMR012001002 | J96: Thin Pone Tan | K96: 196129 | L96: Thin Pone Tan | M96: MMR012CMP058 | N96: 92.836861° | O96: 20.226865° | Q96: 7 | R96: 30 | S96: =IF(AND(Table_CampList[[#This Row],[HH]]<>"",Table_CampList[[#This Row],[HH]]>0),Table_CampList[[#This Row],[Total]]/Table_CampList[[#This Row],[HH]],0) -> 4.285714286 | T96: Accessible by All | U96: Individual accommodation | X96: Rakhine | Y96: Focal Point | Z96: UNHCR | AA96: Camp/Community Leader | AB96: Estimate | AC96: 2013-10-01 | AF96: Open
A97: Open | B97: Rakhine | C97: MMR012 | D97: Maungdaw | E97: MMR012D002 | F97: Maungdaw | G97: MMR012009 | H97: Urban | I97: MMR012009701 | L97: Nyaung Pin Hla | M97: MMR012CMP082 | N97: 92.362197° | O97: 20.824778° | Q97: 4 | R97: 20 | S97: =IF(AND(Table_CampList[[#This Row],[HH]]<>"",Table_CampList[[#This Row],[HH]]>0),Table_CampList[[#This Row],[Total]]/Table_CampList[[#This Row],[HH]],0) -> 5 | T97: Accessible by All | U97: Individual accommodation | X97: Muslim | Y97: Focal Point | Z97: UNHCR | AA97: Camp/Community Leader | AB97: Estimate | AC97: 2013-10-01 | AD97: Ward Name not available | AE97: Ward Name not available | AF97: Open
A98: Open | B98: Rakhine | C98: MMR012 | D98: Maungdaw | E98: MMR012D002 | F98: Maungdaw | G98: MMR012009 | H98: Myo Ma (North) Ward | I98: MMR012009701 | K98: MMR012009701503 | L98: Myoma Myauk | M98: MMR012CMP083 | N98: 92.362933° | O98: 20.827044° | Q98: 80 | R98: 585 | S98: =IF(AND(Table_CampList[[#This Row],[HH]]<>"",Table_CampList[[#This Row],[HH]]>0),Table_CampList[[#This Row],[Total]]/Table_CampList[[#This Row],[HH]],0) -> 7.3125 | T98: Accessible by All | U98: Individual accommodation | X98: Muslim | Y98: Focal Point | Z98: UNHCR | AA98: Camp/Community Leader | AB98: Estimate | AC98: 2013-10-01 | AF98: Open
A99: Open | B99: Rakhine | C99: MMR012 | D99: Maungdaw | E99: MMR012D002 | F99: Maungdaw | G99: MMR012009 | H99: Myo Ma (North) Ward | I99: MMR012009701 | K99: MMR012009701503 | L99: Bomu Ywa | M99: MMR012CMP084 | N99: 92.365794° | O99: 20.819958° | Q99: 10 | R99: 106 | S99: =IF(AND(Table_CampList[[#This Row],[HH]]<>"",Table_CampList[[#This Row],[HH]]>0),Table_CampList[[#This Row],[Total]]/Table_CampList[[#This Row],[HH]],0) -> 10.6 | T99: Accessible by All | U99: Individual accommodation | X99: Muslim | Y99: Focal Point | Z99: UNHCR | AA99: Camp/Community Leader | AB99: Estimate | AC99: 2013-10-01 | AF99: Open
A100: Open | B100: Rakhine | C100: MMR012 | D100: Maungdaw | E100: MMR012D002 | F100: Maungdaw | G100: MMR012009 | H100: Ywar Thit Kay Ward | I100: MMR012009701 | K100: MMR012009701505 | L100: Ywa thit Kay | M100: MMR012CMP085 | N100: 92.367853° | O100: 20.825306° | Q100: 8 | R100: 62 | S100: =IF(AND(Table_CampList[[#This Row],[HH]]<>"",Table_CampList[[#This Row],[HH]]>0),Table_CampList[[#This Row],[Total]]/Table_CampList[[#This Row],[HH]],0) -> 7.75 | T100: Accessible by All | U100: Individual accommodation | X100: Muslim | Y100: Focal Point | Z100: UNHCR | AA100: Camp/Community Leader | AB100: Estimate | AC100: 2013-10-01 | AF100: Open
A101: Open | B101: Rakhine | C101: MMR012 | D101: Maungdaw | E101: MMR012D002 | F101: Maungdaw | G101: MMR012009 | H101: Myo Thu Gyi | I101: MMR012009063 | J101: Ywar Haung | K101: 197990 | L101: Thaung Paing Nyar | M101: MMR012CMP086 | N101: 92.401294° | O101: 20.824517° | Q101: 15 | R101: 69 | S101: =IF(AND(Table_CampList[[#This Row],[HH]]<>"",Table_CampList[[#This Row],[HH]]>0),Table_CampList[[#This Row],[Total]]/Table_CampList[[#This Row],[HH]],0) -> 4.6 | T101: Accessible by All | U101: Individual accommodation | X101: Muslim | Y101: Focal Point | Z101: UNHCR | AA101: Camp/Community Leader | AB101: Estimate | AC101: 2013-10-01 | AF101: =A101 -> Open
A102: Open | B102: Rakhine | C102: MMR012 | D102: Maungdaw | E102: MMR012D002 | F102: Maungdaw | G102: MMR012009 | H102: Than Dar | I102: MMR012009075 | J102: Myo Thu Gyi (Yar Zar Bi) | K102: 197988 | L102: Du Than Dar | M102: MMR012CMP088 | N102: 92.443428° | O102: 20.714847° | Q102: 45 | R102: 291 | S102: =IF(AND(Table_CampList[[#This Row],[HH]]<>"",Table_CampList[[#This Row],[HH]]>0),Table_CampList[[#This Row],[Total]]/Table_CampList[[#This Row],[HH]],0) -> 6.466666667 | T102: Accessible by All | U102: Individual accommodation | X102: Muslim | Y102: Focal Point | Z102: UNHCR | AA102: Camp/Community Leader | AB102: Estimate | AC102: 2013-10-01 | AF102: Open
A103: Open | B103: Rakhine | C103: MMR012 | D103: Sittwe | E103: MMR012D001 | F103: Sittwe | G103: MMR012001 | H103: Bu May | I103: MMR012001027 | J103: Kha War De Ywar Haung | K103: 196186 | L103: Thet Kae Pyin (IDPs in host family) | M103: MMR012CMP091 | N103: 92.842230° | O103: 20.181742° | Q103: 420 | R103: 2458 | S103: =IF(AND(Table_CampList[[#This Row],[HH]]<>"",Table_CampList[[#This Row],[HH]]>0),Table_CampList[[#This Row],[Total]]/Table_CampList[[#This Row],[HH]],0) -> 5.852380952 | T103: Accessible by All | U103: Individual accommodation | X103: Muslim | Y103: Focal Point | Z103: Save the Children | AA103: Camp/Community Leader | AB103: Estimate | AC103: 2013-10-01 | AF103: Open
A104: Open | B104: Rakhine | C104: MMR012 | D104: Sittwe | E104: MMR012D001 | F104: Sittwe | G104: MMR012001 | H104: Bu May | I104: MMR012001027 | J104: Bu May | K104: 196200 | L104: Maw Ti Ngar | M104: MMR012CMP092 | N104: 92.831000° | O104: 20.185917° | Q104: 667 | R104: 3579 | S104: =IF(AND(Table_CampList[[#This Row],[HH]]<>"",Table_CampList[[#This Row],[HH]]>0),Table_CampList[[#This Row],[Total]]/Table_CampList[[#This Row],[HH]],0) -> 5.365817091 | T104: Accessible by All | U104: Planned Camp | X104: Muslim | Y104: Camp Management | Z104: Save the Children | AA104: Camp/Community Leader | AB104: Estimate | AC104: 2013-10-01 | AF104: Open
A105: Open | B105: Rakhine | C105: MMR012 | D105: Sittwe | E105: MMR012D001 | F105: Sittwe | G105: MMR012001 | H105: Set Yon Su Ward | I105: MMR012001701 | K105: MMR012001701526 | L105: Set Yone Su 3 | M105: MMR012CMP093 | N105: 92.879139° | O105: 20.155806° | Q105: 176 | R105: 779 | S105: =IF(AND(Table_CampList[[#This Row],[HH]]<>"",Table_CampList[[#This Row],[HH]]>0),Table_CampList[[#This Row],[Total]]/Table_CampList[[#This Row],[HH]],0) -> 4.426136364 | T105: Accessible by All | U105: Planned Camp | X105: Rakhine | Y105: Focal Point | Z105: UNHCR | AA105: Camp/Community Leader | AB105: Estimate | AC105: 2013-10-01 | AF105: Open
A106: Open | B106: Rakhine | C106: MMR012 | D106: Maungdaw | E106: MMR012D002 | F106: Maungdaw | G106: MMR012009 | H106: Laung Don | I106: MMR012009025 | J106: Laung Done Zay Di Pyin | K106: 197868 | L106: Sin Thay Pyin | M106: MMR012CMP094 | N106: 92.338031° | O106: 21.066664° | Q106: 8 | R106: 53 | S106: =IF(AND(Table_CampList[[#This Row],[HH]]<>"",Table_CampList[[#This Row],[HH]]>0),Table_CampList[[#This Row],[Total]]/Table_CampList[[#This Row],[HH]],0) -> 6.625 | T106: Accessible by All | U106: Individual accommodation | X106: Muslim | Y106: Focal Point | Z106: UNHCR | AA106: Camp/Community Leader | AB106: Estimate | AC106: 2013-10-01 | AF106: Open
A107: Open | B107: Rakhine | C107: MMR012 | D107: Maungdaw | E107: MMR012D002 | F107: Maungdaw | G107: MMR012009 | H107: Myo Thu Gyi | I107: MMR012009063 | L107: Ward-6 | M107: MMR012CMP095 | N107: 92.416683° | O107: 20.833831° | Q107: 52 | R107: 369 | S107: =IF(AND(Table_CampList[[#This Row],[HH]]<>"",Table_CampList[[#This Row],[HH]]>0),Table_CampList[[#This Row],[Total]]/Table_CampList[[#This Row],[HH]],0) -> 7.096153846 | T107: Accessible by All | U107: Individual accommodation | X107: Muslim | Y107: Focal Point | Z107: UNHCR | AA107: Camp/Community Leader | AB107: Estimate | AC107: 2013-10-01 | AF107: Open
A108: Open | B108: Rakhine | C108: MMR012 | D108: Sittwe | E108: MMR012D001 | F108: Sittwe | G108: MMR012001 | H108: Bu May | I108: MMR012001027 | J108: Dar Paing Ywar Thit | K108: 196206 | L108: Dar Pai (IDP in host families) | M108: MMR012CMP097 | N108: 92.830075° | O108: 20.167422° | Q108: 518 | R108: 2951 | S108: =IF(AND(Table_CampList[[#This Row],[HH]]<>"",Table_CampList[[#This Row],[HH]]>0),Table_CampList[[#This Row],[Total]]/Table_CampList[[#This Row],[HH]],0) -> 5.696911197 | T108: Accessible by All | U108: Individual accommodation | X108: Muslim | Y108: Focal Point | Z108: Solidarites International | AA108: Camp/Community Leader | AB108: Estimate | AC108: 2013-10-01 | AF108: Open
A109: Open | B109: Rakhine | C109: MMR012 | D109: Sittwe | E109: MMR012D001 | F109: Sittwe | G109: MMR012001 | H109: Say Tha Mar | I109: MMR012001010 | J109: Ohn Taw Shey | K109: 196158 | L109: Ohn Taw Chay | M109: MMR012CMP098 | N109: 92.774194° | O109: 20.206778° | Q109: 627 | R109: 3001 | S109: =IF(AND(Table_CampList[[#This Row],[HH]]<>"",Table_CampList[[#This Row],[HH]]>0),Table_CampList[[#This Row],[Total]]/Table_CampList[[#This Row],[HH]],0) -> 4.786283892 | T109: Accessible by All | U109: Planned Camp | X109: Muslim | Y109: Camp Management | Z109: Danish Refugee Council | AA109: Camp/Community Leader | AB109: Estimate | AC109: 2013-10-01 | AE109: Former OTG 2 | AF109: Open
A110: Open | B110: Rakhine | C110: MMR012 | D110: Sittwe | E110: MMR012D001 | F110: Sittwe | G110: MMR012001 | H110: Bu May | I110: MMR012001027 | J110: Thea Chaung Ku Lar | K110: 196211 | L110: Thae Chaung (IDP in host families) | M110: MMR012CMP101 | N110: 92.839166° | O110: 20.157311° | Q110: 1025 | R110: 5442 | S110: =IF(AND(Table_CampList[[#This Row],[HH]]<>"",Table_CampList[[#This Row],[HH]]>0),Table_CampList[[#This Row],[Total]]/Table_CampList[[#This Row],[HH]],0) -> 5.309268293 | T110: Accessible by All | U110: Individual accommodation | X110: Muslim | Y110: Focal Point | Z110: Solidarites International | AA110: Camp/Community Leader | AB110: Estimate | AC110: 2013-10-01 | AE110: It includes the group from Kyaukphyu | AF110: Open
A111: Open | B111: Rakhine | C111: MMR012 | D111: Sittwe | E111: MMR012D001 | F111: Sittwe | G111: MMR012001 | H111: Khaung Doke Kar | I111: MMR012001025 | J111: Baw Du Hpa | K111: 196192 | L111: Baw Du Pha (IDP in host families) | M111: MMR012CMP103 | N111: 92.804803° | O111: 20.182987° | Q111: 41 | R111: 226 | S111: =IF(AND(Table_CampList[[#This Row],[HH]]<>"",Table_CampList[[#This Row],[HH]]>0),Table_CampList[[#This Row],[Total]]/Table_CampList[[#This Row],[HH]],0) -> 5.512195122 | T111: Accessible by All | U111: Individual accommodation | X111: Muslim | Y111: Focal Point | Z111: Solidarites International | AA111: Camp/Community Leader | AB111: Estimate | AC111: 2013-10-01 | AF111: Open
A112: Open | B112: Rakhine | C112: MMR012 | D112: Sittwe | E112: MMR012D001 | F112: Minbya | G112: MMR012005 | H112: Na Yan | I112: MMR012005010 | J112: Sat Yon Maw (Ku Lar) | K112: 197023 | L112: Set Yone Maw | M112: MMR012CMP104 | N112: 93.314695° | O112: 20.409645° | Q112: 17 | R112: 72 | S112: =IF(AND(Table_CampList[[#This Row],[HH]]<>"",Table_CampList[[#This Row],[HH]]>0),Table_CampList[[#This Row],[Total]]/Table_CampList[[#This Row],[HH]],0) -> 4.235294118 | T112: Accessible by All | U112: Individual accommodation | X112: Rakhine | Y112: Focal Point | Z112: UNHCR | AA112: Camp/Community Leader | AB112: Estimate | AC112: 2013-10-01 | AF112: Open
A113: Open | B113: Rakhine | C113: MMR016 | D113: Maungdaw | E113: MMR012D002 | F113: Maungdaw | G113: MMR012009 | H113: Zaw Ma Tet | I113: MMR012009078 | J113: Hin Thar Ya | K113: 198049 | L113: Honsara (Zaw Ma Tat) | M113: MMR012CMP109 | N113: 92.435378° | O113: 20.713883° | Q113: 60 | R113: 356 | S113: =IF(AND(Table_CampList[[#This Row],[HH]]<>"",Table_CampList[[#This Row],[HH]]>0),Table_CampList[[#This Row],[Total]]/Table_CampList[[#This Row],[HH]],0) -> 5.933333333 | T113: Accessible by All | U113: Individual accommodation | X113: Muslim | Y113: Focal Point | Z113: UNHCR | AA113: Camp/Community Leader | AB113: Estimate | AC113: 2013-10-01 | AF113: Open
A114: Open | B114: Rakhine | C114: MMR012 | D114: Sittwe | E114: MMR012D001 | F114: Rathedaung | G114: MMR012008 | H114: Koe Tan Kauk | I114: MMR012008031 | J114: Koe Tan Kauk Ywar Ma | K114: 197652 | L114: Koe Tan Kauk | M114: MMR012CMP110 | N114: 92.639589° | O114: 20.447261° | Q114: 196 | R114: 913 | S114: =IF(AND(Table_CampList[[#This Row],[HH]]<>"",Table_CampList[[#This Row],[HH]]>0),Table_CampList[[#This Row],[Total]]/Table_CampList[[#This Row],[HH]],0) -> 4.658163265 | T114: Accessible by All | U114: Planned Camp | X114: Muslim | Y114: Focal Point | Z114: UNHCR | AA114: Camp/Community Leader | AB114: Estimate | AC114: 2013-10-01 | AF114: Open
A115: Open | B115: Rakhine | C115: MMR012 | D115: Sittwe | E115: MMR012D001 | F115: Sittwe | G115: MMR012001 | H115: Urban | I115: MMR012001701 | J115: Sut Yoe Kya Ward | K115: MMR012001701531 | L115: Sat Roe Kya 1 | M115: MMR012CMP111 | N115: 92.887278° | O115: 20.151472° | Q115: 631 | R115: 3002 | S115: =IF(AND(Table_CampList[[#This Row],[HH]]<>"",Table_CampList[[#This Row],[HH]]>0),Table_CampList[[#This Row],[Total]]/Table_CampList[[#This Row],[HH]],0) -> 4.757527734 | T115: Accessible by All | U115: Planned Camp | X115: Rakhine | Y115: Camp Management | Z115: Save the Children | AA115: Camp/Community Leader | AB115: Estimate | AC115: 2013-10-01 | AD115: We only have data for Sat Roe Kya 1 and 2 as combination | AE115: We only have data for Sat Roe Kya 1 and 2 as combination | AF115: Open
A116: Open | B116: Rakhine | C116: MMR012 | D116: Sittwe | E116: MMR012D001 | F116: Sittwe | G116: MMR012001 | H116: Urban | I116: MMR012001701 | J116: Sut Yoe Kya Ward | K116: MMR012001701531 | L116: Sat Roe Kya 2 | M116: MMR012CMP112 | N116: 92.887278° | O116: 20.151472° | Q116: 0 | R116: 0 | S116: =IF(AND(Table_CampList[[#This Row],[HH]]<>"",Table_CampList[[#This Row],[HH]]>0),Table_CampList[[#This Row],[Total]]/Table_CampList[[#This Row],[HH]],0) -> 0 | T116: Accessible by All | U116: Planned Camp | X116: Rakhine | Y116: Focal Point | AA116: Camp/Community Leader | AB116: Estimate | AC116: 2013-10-01 | AD116: We only have data for Sat Roe Kya 1 and 2 as combination | AE116: We only have data for Sat Roe Kya 1 and 2 as combination | AF116: Open
A117: Open | B117: Rakhine | C117: MMR012 | D117: Sittwe | E117: MMR012D001 | F117: Sittwe | G117: MMR012001 | H117: Khaung Doke Kar | I117: MMR012001025 | J117: Baw Du Hpa | K117: 196192 | L117: Baw Du Pha 1 | M117: MMR012CMP113 | N117: 92.813028° | O117: 20.179417° | Q117: 901 | R117: 4314 | S117: =IF(AND(Table_CampList[[#This Row],[HH]]<>"",Table_CampList[[#This Row],[HH]]>0),Table_CampList[[#This Row],[Total]]/Table_CampList[[#This Row],[HH]],0) -> 4.788013319 | T117: Accessible by All | U117: Planned Camp | X117: Muslim | Y117: Camp Management | Z117: Danish Refugee Council | AA117: Camp/Community Leader | AB117: Estimate | AC117: 2013-10-01 | AD117: We only have data forBaw Du Pha 1 and 2 as combination | AE117: We only have data forBaw Du Pha 1 and 2 as combination | AF117: Open
A118: Open | B118: Rakhine | C118: MMR012 | D118: Sittwe | E118: MMR012D001 | F118: Sittwe | G118: MMR012001 | H118: Khaung Doke Kar | I118: MMR012001025 | J118: Baw Du Hpa | K118: 196192 | L118: Baw Du Pha 2 | M118: MMR012CMP114 | N118: 92.807552° | O118: 20.181406° | Q118: 1234 | R118: 6513 | S118: =IF(AND(Table_CampList[[#This Row],[HH]]<>"",Table_CampList[[#This Row],[HH]]>0),Table_CampList[[#This Row],[Total]]/Table_CampList[[#This Row],[HH]],0) -> 5.277957861 | T118: Accessible by All | U118: Planned Camp | X118: Muslim | Y118: Camp Management | Z118: Danish Refugee Council | AA118: Camp/Community Leader | AB118: Estimate | AC118: 2013-10-01 | AD118: We only have data forBaw Du Pha 1 and 2 as combination | AE118: We only have data forBaw Du Pha 1 and 2 as combination | AF118: Open
A119: Open | B119: Rakhine | C119: MMR012 | D119: Sittwe | E119: MMR012D001 | F119: Sittwe | G119: MMR012001 | H119: Khaung Doke Kar | I119: MMR012001025 | J119: Baw Du Hpa | K119: 196192 | L119: Ohn Taw Gyi (North) | M119: MMR012CMP115 | N119: 92.798881° | O119: 20.189940° | Q119: 1490 | R119: 8186 | S119: =IF(AND(Table_CampList[[#This Row],[HH]]<>"",Table_CampList[[#This Row],[HH]]>0),Table_CampList[[#This Row],[Total]]/Table_CampList[[#This Row],[HH]],0) -> 5.493959732 | T119: Accessible by All | U119: Planned Camp | X119: Muslim | Y119: Camp Management | Z119: Danish Refugee Council | AA119: LWF | AB119: Estimate | AC119: 2013-10-01 | AE119: Former OTG 1 - 115 shelters inland side, OTG 3, OTG 6, BDP (60) | AF119: Open
A120: Open | B120: Rakhine | C120: MMR012 | D120: Sittwe | E120: MMR012D001 | F120: Sittwe | G120: MMR012001 | H120: Khaung Doke Kar | I120: MMR012001025 | J120: Baw Du Hpa | K120: 196192 | L120: Ohn Taw Gyi (South) | M120: MMR012CMP116 | N120: 92.802296° | O120: 20.185092° | Q120: 2276 | R120: 12315 | S120: =IF(AND(Table_CampList[[#This Row],[HH]]<>"",Table_CampList[[#This Row],[HH]]>0),Table_CampList[[#This Row],[Total]]/Table_CampList[[#This Row],[HH]],0) -> 5.410808436 | T120: Accessible by All | U120: Planned Camp | X120: Muslim | Y120: Camp Management | Z120: Luteran World Federation | AA120: DRC | AB120: Estimate | AC120: 2013-10-01 | AE120: Former OTG 1 - 35 shelters seaside, OTG 4, OTG 5, BDP (20) | AF120: Open
A121: Open | B121: Rakhine | C121: MMR012 | D121: Sittwe | E121: MMR012D001 | F121: Mrauk_U | G121: MMR012003 | H121: Oke Kar Kyaw | I121: MMR012003024 | J121: Thi Kyar | K121: 196501 | L121: Thi Kyar | M121: MMR012CMP117 | N121: 93.246863° | O121: 20.495086° | Q121: 31 | R121: 130 | S121: =IF(AND(Table_CampList[[#This Row],[HH]]<>"",Table_CampList[[#This Row],[HH]]>0),Table_CampList[[#This Row],[Total]]/Table_CampList[[#This Row],[HH]],0) -> 4.193548387 | T121: Accessible by All | U121: Planned Camp | X121: Rakhine | Y121: Focal Point | Z121: UNHCR | AA121: Camp/Community Leader | AB121: Estimate | AC121: 2013-10-01 | AD121: People are from Myat Buddha Mandine Monastery | AE121: People are from Myat Buddha Mandine Monastery | AF121: Open

Sheet Definition_TCL (hidden)
A1: Status | B1: (All)
A3: TOWNSHIP_NAME | B3: Camp Name | C3: Count of Township_Pcode | G3: Camp Name | H3: P_Code | I3: Status | J3: Sum of HH
A4: Kyauk_Phyu | B4: Kyauk Ta Lone | C4: 1 | G4: Ah Htet Nan Yar | H4: MMR012CMP034 | I4: Open | J4: 250
A5: Kyauk_Phyu | B5: Pha Yar Gyi Kwin | C5: 1 | G5: Ah Lel | H5: MMR012CMP022 | I5: Open | J5: 17
A6: Kyauktaw | B6: Ah Lel | C6: 1 | G6: Ah Lel Kyun | H6: MMR012CMP025 | I6: Open | J6: 14
A7: Kyauktaw | B7: Ah Lel Kyun | C7: 1 | G7: Ah Nauk Pyin | H7: MMR012CMP032 | I7: Open | J7: 57
A8: Kyauktaw | B8: Ah Pauk Wa | C8: 1 | G8: Ah Nauk Ywe | H8: MMR012CMP016 | I8: Open | J8: 880
A9: Kyauktaw | B9: Goke Pi Htaunt | C9: 1 | G9: Ah Pauk Wa | H9: MMR012CMP024 | I9: Open | J9: 133
A10: Kyauktaw | B10: In Bar Yi | C10: 1 | G10: Alima Fara | H10: MMR012CMP089 | I10: Close
A11: Kyauktaw | B11: Khaung Htoke | C11: 1 | G11: Ar Thaw Ka Yone Monastery | H11: MMR012CMP069 | I11: Close
A12: Kyauktaw | B12: Let Saung Kauk | C12: 1 | G12: Aung Taing | H12: MMR012CMP006 | I12: Open | J12: 86
A13: Kyauktaw | B13: Nidin | C13: 1 | G13: Ba Wan Chaung Wa Su | H13: MMR012CMP015 | I13: Open | J13: 21
A14: Kyauktaw | B14: Shwe Hlaing | C14: 1 | G14: Basare | H14: MMR012CMP039 | I14: Open | J14: 413
A15: Kyauktaw | B15: Taung Bwe | C15: 1 | G15: Baw Di Gone | H15: MMR012CMP079 | I15: Close
A16: Kyauktaw | B16: Yun Nyar | C16: 1 | G16: Baw Du Pha | H16: MMR012CMP040 | I16: Close
A17: Maungdaw | B17: Alima Fara | C17: 1 | G17: Baw Du Pha (IDP in host families) | H17: MMR012CMP103 | I17: Open | J17: 41
A18: Maungdaw | B18: Baw Di Gone | C18: 1 | G18: Baw Du Pha 1 | H18: MMR012CMP113 | I18: Open | J18: 901
A19: Maungdaw | B19: Bomu Ywa | C19: 1 | G19: Baw Du Pha 2 | H19: MMR012CMP114 | I19: Open | J19: 1234
A20: Maungdaw | B20: Bomu Ywa 2 | C20: 1 | G20: Bomu Ywa | H20: MMR012CMP084 | I20: Open | J20: 10
A21: Maungdaw | B21: Du Than Dar | C21: 1 | G21: Bomu Ywa 2 | H21: MMR012CMP106 | I21: Close
A22: Maungdaw | B22: Honsara (Zaw Ma Tat) | C22: 1 | G22: Bu May Ohn Taw | H22: MMR012CMP051 | I22: Close
A23: Maungdaw | B23: Kan Thar Yar | C23: 1 | G23: Bu May Ohn Taw Shore | H23: MMR012CMP052 | I23: Close
A24: Maungdaw | B24: Kin Chaung | C24: 1 | G24: Chein Khar Li | H24: MMR012CMP033 | I24: Open | J24: 217
A25: Maungdaw | B25: Kyaing Gyi | C25: 1 | G25: Dak Kaung Monastery | H25: MMR012CMP059 | I25: Close
A26: Maungdaw | B26: Lamber Gone Nah | C26: 1 | G26: Dama Set Kyar Monastery | H26: MMR012CMP060 | I26: Close
A27: Maungdaw | B27: Maw Ya Waddy | C27: 1 | G27: Danyawaddy Baw Lone Kwin | H27: MMR012CMP055 | I27: Close
A28: Maungdaw | B28: Myoma Myauk | C28: 1 | G28: Dar Pai | H28: MMR012CMP041 | I28: Open | J28: 1776
A29: Maungdaw | B29: Nyaung Pin Hla | C29: 1 | G29: Dar Pai (IDP in host families) | H29: MMR012CMP097 | I29: Open | J29: 518
A30: Maungdaw | B30: Sin Thay Pyin | C30: 1 | G30: Dohn Taik Kwin | H30: MMR012CMP057 | I30: Close
A31: Maungdaw | B31: Tha Yay Kone Baung | C31: 1 | G31: Du Than Dar | H31: MMR012CMP088 | I31: Open | J31: 45
A32: Maungdaw | B32: Thaung Paing Nyar | C32: 1 | G32: Goke Pi Htaunt | H32: MMR012CMP027 | I32: Open | J32: 116
A33: Maungdaw | B33: Ward-6 | C33: 1 | G33: Gyit Bak Monastery | H33: MMR012CMP073 | I33: Close
A34: Maungdaw | B34: Ywa thit Kay | C34: 1 | G34: Gyit Chay Monastery | H34: MMR012CMP061 | I34: Close
A35: Maungdaw | B35: Ywa thit Kay 2 | C35: 1 | G35: Hmanzi | H35: MMR012CMP102 | I35: Close
A36: Maungdaw | B36: Ywa thit Kay 3 | C36: 1 | G36: Hmanzi Junction | H36: MMR012CMP049 | I36: Close
A37: Meybon | B37: Kan Thar Htwat Wa | C37: 1 | G37: Honsara (Zaw Ma Tat) | H37: MMR012CMP109 | I37: Open | J37: 60
A38: Meybon | B38: Taung Paw | C38: 1 | G38: In Bar Yi | H38: MMR012CMP026 | I38: Open | J38: 230
A39: Minbya | B39: Aung Taing | C39: 1 | G39: Kan Thar Htwat Wa | H39: MMR012CMP013 | I39: Open | J39: 44
A40: Minbya | B40: Nagara Pauktaw | C40: 1 | G40: Kan Thar Yar | H40: MMR012CMP081 | I40: Close
A41: Minbya | B41: Paik Thay | C41: 1 | G41: Kha Maung Taw Monastery | H41: MMR012CMP071 | I41: Close
A42: Minbya | B42: Sam Ba Le | C42: 1 | G42: Khaung Doke Khar | H42: MMR012CMP042 | I42: Open | J42: 791
A43: Minbya | B43: San Htoe Tan | C43: 1 | G43: Khaung Htoke | H43: MMR012CMP030 | I43: Open | J43: 99
A44: Minbya | B44: Set Yone Maw | C44: 1 | G44: Kin Chaung | H44: MMR012CMP080 | I44: Close
A45: Minbya | B45: Tha Dar | C45: 1 | G45: Koe Tan Kauk | H45: MMR012CMP110 | I45: Open | J45: 196
A46: Minbya | B46: Tha Yet Oak | C46: 1 | G46: Kyaing Gyi | H46: MMR012CMP078 | I46: Close
A47: Minbya | B47: Thay Kan | C47: 1 | G47: Kyauk Ta Lone | H47: MMR012CMP035 | I47: Open | J47: 427
A48: Mrauk_U | B48: Myat Buddha Mandine Monastery | C48: 1 | G48: Kyein Ni Pyin | H48: MMR012CMP018 | I48: Open | J48: 1045
A49: Mrauk_U | B49: Pa Rein | C49: 1 | G49: Lamber Gone Nah | H49: MMR012CMP087 | I49: Close
A50: Mrauk_U | B50: Raw Ma Ni Sin Oe | C50: 1 | G50: Layaungwin Monastery | H50: MMR012CMP062 | I50: Close
A51: Mrauk_U | B51: Thi Kyar | C51: 1 | G51: Let Saung Kauk | H51: MMR012CMP020 | I51: Open | J51: 18
A52: Mrauk_U | B52: Yai Thei-Muslim | C52: 1 | G52: Ma Gyi Myaing | H52: MMR012CMP053 | I52: Close
A53: Pauktaw | B53: Ah Nauk Ywe | C53: 1 | G53: Ma Ni Yadanar Monastery | H53: MMR012CMP072 | I53: Close
A54: Pauktaw | B54: Ba Wan Chaung Wa Su | C54: 1 | G54: Maw Ti Ngar | H54: MMR012CMP092 | I54: Open | J54: 667
A55: Pauktaw | B55: Kyein Ni Pyin | C55: 1 | G55: Maw Ya Waddy | H55: MMR012CMP076 | I55: Close
A56: Pauktaw | B56: Nget Chaung | C56: 1 | G56: Mingan | H56: MMR012CMP054 | I56: Close
A57: Pauktaw | B57: Sin Tet Maw | C57: 1 | G57: Myat Buddha Mandine Monastery | H57: MMR012CMP011 | I57: Close
A58: Pauktaw | B58: Sin Tet Maw (from Nget Chaung) | C58: 1 | G58: Myo Ma Monastery | H58: MMR012CMP063 | I58: Close
A59: Ramree | B59: Ramree Town | C59: 1 | G59: Myoma Myauk | H59: MMR012CMP083 | I59: Open | J59: 80
A60: Ramree | B60: Ramree Ward 6 | C60: 1 | G60: Nagara Pauktaw | H60: MMR012CMP004 | I60: Close
A61: Rathedaung | B61: Ah Htet Nan Yar | C61: 1 | G61: Nget Chaung | H61: MMR012CMP017 | I61: Open | J61: 1176
A62: Rathedaung | B62: Ah Nauk Pyin | C62: 1 | G62: Nidin | H62: MMR012CMP023 | I62: Open | J62: 85
A63: Rathedaung | B63: Chein Khar Li | C63: 1 | G63: Nyaung Pin Gyi | H63: MMR012CMP031 | I63: Open | J63: 62
A64: Rathedaung | B64: Koe Tan Kauk | C64: 1 | G64: Nyaung Pin Hla | H64: MMR012CMP082 | I64: Open | J64: 4
A65: Rathedaung | B65: Nyaung Pin Gyi | C65: 1 | G65: Ohn Taw Chay | H65: MMR012CMP098 | I65: Open | J65: 627
A66: Sittwe | B66: Ar Thaw Ka Yone Monastery | C66: 1 | G66: Ohn Taw Gyi (North) | H66: MMR012CMP115 | I66: Open | J66: 1490
A67: Sittwe | B67: Basare | C67: 1 | G67: Ohn Taw Gyi (South) | H67: MMR012CMP116 | I67: Open | J67: 2276
A68: Sittwe | B68: Baw Du Pha | C68: 1 | G68: Ohn Taw Gyi 1 | H68: MMR012CMP043 | I68: Close
A69: Sittwe | B69: Baw Du Pha (IDP in host families) | C69: 1 | G69: Ohn Taw Gyi 3 | H69: MMR012CMP090 | I69: Close
A70: Sittwe | B70: Baw Du Pha 1 | C70: 1 | G70: Ohn Taw Gyi 4 | H70: MMR012CMP099 | I70: Close
A71: Sittwe | B71: Baw Du Pha 2 | C71: 1 | G71: Ohn Taw Gyi 5 | H71: MMR012CMP100 | I71: Close
A72: Sittwe | B72: Bu May Ohn Taw | C72: 1 | G72: Pa Lin Pyin Ywar Thit | H72: MMR012CMP050 | I72: Close
A73: Sittwe | B73: Bu May Ohn Taw Shore | C73: 1 | G73: Pa Rein | H73: MMR012CMP009 | I73: Open | J73: 240
A74: Sittwe | B74: Dak Kaung Monastery | C74: 1 | G74: Paik Thay | H74: MMR012CMP001 | I74: Open | J74: 16
A75: Sittwe | B75: Dama Set Kyar Monastery | C75: 1 | G75: Pha Yar Gyi Kwin | H75: MMR012CMP036 | I75: Open | J75: 65
A76: Sittwe | B76: Danyawaddy Baw Lone Kwin | C76: 1 | G76: Phwe Yar Kone | H76: MMR012CMP044 | I76: Close
A77: Sittwe | B77: Dar Pai | C77: 1 | G77: Pyin Nyar Mandine Monastery | H77: MMR012CMP064 | I77: Close
A78: Sittwe | B78: Dar Pai (IDP in host families) | C78: 1 | G78: Ramree Town | H78: MMR012CMP038 | I78: Open | J78: 18
A79: Sittwe | B79: Dohn Taik Kwin | C79: 1 | G79: Ramree Ward 6 | H79: MMR012CMP037 | I79: Open | J79: 57
A80: Sittwe | B80: Gyit Bak Monastery | C80: 1 | G80: Raw Ma Ni Sin Oe | H80: MMR012CMP012 | I80: Open | J80: 11
A81: Sittwe | B81: Gyit Chay Monastery | C81: 1 | G81: Sam Ba Le | H81: MMR012CMP008 | I81: Open | J81: 225
A82: Sittwe | B82: Hmanzi | C82: 1 | G82: San Htoe Tan | H82: MMR012CMP003 | I82: Open | J82: 125
A83: Sittwe | B83: Hmanzi Junction | C83: 1 | G83: Sat Roe Kya | H83: MMR012CMP105 | I83: Close
A84: Sittwe | B84: Kha Maung Taw Monastery | C84: 1 | G84: Sat Roe Kya 1 | H84: MMR012CMP111 | I84: Open | J84: 631
A85: Sittwe | B85: Khaung Doke Khar | C85: 1 | G85: Sat Roe Kya 2 | H85: MMR012CMP112 | I85: Open | J85: 0
A86: Sittwe | B86: Layaungwin Monastery | C86: 1 | G86: Say Tha Mar Gyi | H86: MMR012CMP045 | I86: Open | J86: 2554
A87: Sittwe | B87: Ma Gyi Myaing | C87: 1 | G87: Set Yone Maw | H87: MMR012CMP104 | I87: Open | J87: 17
A88: Sittwe | B88: Ma Ni Yadanar Monastery | C88: 1 | G88: Set Yone Su | H88: MMR012CMP056 | I88: Open | J88: 74
A89: Sittwe | B89: Maw Ti Ngar | C89: 1 | G89: Set Yone Su 3 | H89: MMR012CMP093 | I89: Open | J89: 176
A90: Sittwe | B90: Mingan | C90: 1 | G90: Shwe Hlaing | H90: MMR012CMP029 | I90: Open | J90: 174
A91: Sittwe | B91: Myo Ma Monastery | C91: 1 | G91: Shwe Zay Ti Monastery | H91: MMR012CMP065 | I91: Close
A92: Sittwe | B92: Ohn Taw Chay | C92: 1 | G92: Sin Ku Lann Monastery | H92: MMR012CMP068 | I92: Close
A93: Sittwe | B93: Ohn Taw Gyi (North) | C93: 1 | G93: Sin Tet Maw | H93: MMR012CMP019 | I93: Open | J93: 748
A94: Sittwe | B94: Ohn Taw Gyi (South) | C94: 1 | G94: Sin Tet Maw (from Nget Chaung) | H94: MMR012CMP096 | I94: Close
A95: Sittwe | B95: Ohn Taw Gyi 1 | C95: 1 | G95: Sin Thay Pyin | H95: MMR012CMP094 | I95: Open | J95: 8
A96: Sittwe | B96: Ohn Taw Gyi 3 | C96: 1 | G96: Su Taung Pyae Monastery | H96: MMR012CMP066 | I96: Close
A97: Sittwe | B97: Ohn Taw Gyi 4 | C97: 1 | G97: Taung Bwe | H97: MMR012CMP021 | I97: Open | J97: 64
A98: Sittwe | B98: Ohn Taw Gyi 5 | C98: 1 | G98: Taung Paw | H98: MMR012CMP014 | I98: Open | J98: 752
A99: Sittwe | B99: Pa Lin Pyin Ywar Thit | C99: 1 | G99: Tha Dar | H99: MMR012CMP002 | I99: Open | J99: 203
A100: Sittwe | B100: Phwe Yar Kone | C100: 1 | G100: Tha Yay Kone Baung | H100: MMR012CMP077 | I100: Close
A101: Sittwe | B101: Pyin Nyar Mandine Monastery | C101: 1 | G101: Tha Yet Oak | H101: MMR012CMP005 | I101: Open | J101: 296
A102: Sittwe | B102: Sat Roe Kya | C102: 1 | G102: Thae Chaung | H102: MMR012CMP046 | I102: Open | J102: 981
A103: Sittwe | B103: Sat Roe Kya 1 | C103: 1 | G103: Thae Chaung (IDP in host families) | H103: MMR012CMP101 | I103: Open | J103: 1025
A104: Sittwe | B104: Sat Roe Kya 2 | C104: 1 | G104: Thae Chaung (Kyaukphyu) | H104: MMR012CMP047 | I104: Close
A105: Sittwe | B105: Say Tha Mar Gyi | C105: 1 | G105: Thangga Yarzar Monastery | H105: MMR012CMP070 | I105: Close
A106: Sittwe | B106: Set Yone Su | C106: 1 | G106: Thaung Paing Nyar | H106: MMR012CMP086 | I106: Open | J106: 15
A107: Sittwe | B107: Set Yone Su 3 | C107: 1 | G107: Thay Kan | H107: MMR012CMP007 | I107: Close
A108: Sittwe | B108: Shwe Zay Ti Monastery | C108: 1 | G108: Theit Di Kar Yone Monastery | H108: MMR012CMP067 | I108: Close
A109: Sittwe | B109: Sin Ku Lann Monastery | C109: 1 | G109: Thet Kae Pyin | H109: MMR012CMP048 | I109: Open | J109: 913
A110: Sittwe | B110: Su Taung Pyae Monastery | C110: 1 | G110: Thet Kae Pyin (IDPs in host family) | H110: MMR012CMP091 | I110: Open | J110: 420
A111: Sittwe | B111: Thae Chaung | C111: 1 | G111: Thi Kyar | H111: MMR012CMP117 | I111: Open | J111: 31
A112: Sittwe | B112: Thae Chaung (IDP in host families) | C112: 1 | G112: Thin Pone Tan | H112: MMR012CMP058 | I112: Open | J112: 7
A113: Sittwe | B113: Thae Chaung (Kyaukphyu) | C113: 1 | G113: Ward-6 | H113: MMR012CMP095 | I113: Open | J113: 52
A114: Sittwe | B114: Thangga Yarzar Monastery | C114: 1 | G114: Weikzar Thaikdi Monastery | H114: MMR012CMP075 | I114: Close
A115: Sittwe | B115: Theit Di Kar Yone Monastery | C115: 1 | G115: Ya Tayar Monastery | H115: MMR012CMP074 | I115: Close
A116: Sittwe | B116: Thet Kae Pyin | C116: 1 | G116: Yai Thei-Muslim | H116: MMR012CMP010 | I116: Open | J116: 398
A117: Sittwe | B117: Thet Kae Pyin (IDPs in host family) | C117: 1 | G117: Yun Nyar | H117: MMR012CMP028 | I117: Open | J117: 138
A118: Sittwe | B118: Thin Pone Tan | C118: 1 | G118: Ywa thit Kay | H118: MMR012CMP085 | I118: Open | J118: 8
A119: Sittwe | B119: Weikzar Thaikdi Monastery | C119: 1 | G119: Ywa thit Kay 2 | H119: MMR012CMP107 | I119: Close
A120: Sittwe | B120: Ya Tayar Monastery | C120: 1 | G120: Ywa thit Kay 3 | H120: MMR012CMP108 | I120: Close

Sheet Camp List_print
A2: Rakhine - IDPs CAMP LIST
A3: =Report_Date -> 2013-12-01
A6: Status | B6: Open
A8: TOWNSHIP_NAME | B8: Camp Name | C8: Type of Accomodation | D8: P_Code | E8: Longitude | F8: Latitude | G8: HH | H8: Ind
A9: Kyauk_Phyu | B9: Kyauk Ta Lone | C9: Planned Camp | D9: MMR012CMP035 | E9: 93.512326° | F9: 19.424577° | G9: 427 | H9: 1535
B10: Pha Yar Gyi Kwin | C10: Planned Camp | D10: MMR012CMP036 | E10: 93.552452° | F10: 19.421102° | G10: 65 | H10: 321
A11: Kyauk_Phyu Total | G11: 492 | H11: 1856
A12: Kyauktaw | B12: Ah Lel | C12: Individual accommodation | D12: MMR012CMP022 | E12: 93.003205° | F12: 20.921425° | G12: 17 | H12: 136
B13: Ah Lel Kyun | C13: Individual accommodation | D13: MMR012CMP025 | E13: 93.014350° | F13: 20.896740° | G13: 14 | H13: 84
B14: Ah Pauk Wa | C14: Individual accommodation | D14: MMR012CMP024 | E14: 92.961841° | F14: 20.720213° | G14: 133 | H14: 806
B15: Goke Pi Htaunt | C15: Individual accommodation | D15: MMR012CMP027 | E15: 93.014090° | F15: 20.713260° | G15: 116 | H15: 709
B16: In Bar Yi | C16: Individual accommodation | D16: MMR012CMP026 | E16: 93.009900° | F16: 20.696820° | G16: 230 | H16: 1382
B17: Khaung Htoke | C17: Individual accommodation | D17: MMR012CMP030 | E17: 93.006498° | F17: 20.886998° | G17: 99 | H17: 590
B18: Let Saung Kauk | C18: Individual accommodation | D18: MMR012CMP020 | E18: 92.982676° | F18: 20.805734° | G18: 18 | H18: 157
B19: Nidin | C19: Planned Camp | D19: MMR012CMP023 | E19: 92.965981° | F19: 20.865687° | G19: 85 | H19: 531
B20: Shwe Hlaing | C20: Individual accommodation | D20: MMR012CMP029 | E20: 92.987400° | G20: 174 | H20: 944
B21: Taung Bwe | C21: Individual accommodation | D21: MMR012CMP021 | E21: 93.000815° | F21: 20.929649° | G21: 64 | H21: 512
B22: Yun Nyar | C22: Individual accommodation | D22: MMR012CMP028 | E22: 92.969350° | F22: 20.727590° | G22: 138 | H22: 780
A23: Kyauktaw Total | G23: 1088 | H23: 6631
A24: Maungdaw | B24: Bomu Ywa | C24: Individual accommodation | D24: MMR012CMP084 | E24: 92.365794° | F24: 20.819958° | G24: 10 | H24: 106
B25: Du Than Dar | C25: Individual accommodation | D25: MMR012CMP088 | E25: 92.443428° | F25: 20.714847° | G25: 45 | H25: 291
B26: Myoma Myauk | C26: Individual accommodation | D26: MMR012CMP083 | E26: 92.362933° | F26: 20.827044° | G26: 80 | H26: 585
B27: Nyaung Pin Hla | C27: Individual accommodation | D27: MMR012CMP082 | E27: 92.362197° | F27: 20.824778° | G27: 4 | H27: 20
B28: Sin Thay Pyin | C28: Individual accommodation | D28: MMR012CMP094 | E28: 92.338031° | F28: 21.066664° | G28: 8 | H28: 53
B29: Thaung Paing Nyar | C29: Individual accommodation | D29: MMR012CMP086 | E29: 92.401294° | F29: 20.824517° | G29: 15 | H29: 69
B30: Ward-6 | C30: Individual accommodation | D30: MMR012CMP095 | E30: 92.416683° | F30: 20.833831° | G30: 52 | H30: 369
B31: Ywa thit Kay | C31: Individual accommodation | D31: MMR012CMP085 | E31: 92.367853° | F31: 20.825306° | G31: 8 | H31: 62
B32: Honsara (Zaw Ma Tat) | C32: Individual accommodation | D32: MMR012CMP109 | E32: 92.435378° | F32: 20.713883° | G32: 60 | H32: 356
A33: Maungdaw Total | G33: 282 | H33: 1911
A34: Meybon | B34: Kan Thar Htwat Wa | C34: Planned Camp | D34: MMR012CMP013 | E34: 93.373951° | F34: 20.041981° | G34: 44 | H34: 269
B35: Taung Paw | C35: Planned Camp | D35: MMR012CMP014 | E35: 93.370038° | F35: 20.037655° | G35: 752 | H35: 3381
A36: Meybon Total | G36: 796 | H36: 3650
A37: Minbya | B37: Aung Taing | C37: Individual accommodation | D37: MMR012CMP006 | E37: 93.299485° | F37: 20.480898° | G37: 86 | H37: 586
B38: Paik Thay | C38: Individual accommodation | D38: MMR012CMP001 | E38: 93.271642° | F38: 20.377523° | G38: 16 | H38: 122
B39: Sam Ba Le | C39: Individual accommodation | D39: MMR012CMP008 | E39: 93.313628° | F39: 20.407971° | G39: 225 | H39: 1341
B40: San Htoe Tan | C40: Individual accommodation | D40: MMR012CMP003 | E40: 93.249670° | F40: 20.399020° | G40: 125 | H40: 483
B41: Set Yone Maw | C41: Individual accommodation | D41: MMR012CMP104 | E41: 93.314695° | F41: 20.409645° | G41: 17 | H41: 72
B42: Tha Dar | C42: Individual accommodation | D42: MMR012CMP002 | E42: 93.257272° | F42: 20.392138° | G42: 203 | H42: 1008
B43: Tha Yet Oak | C43: Individual accommodation | D43: MMR012CMP005 | E43: 93.258574° | F43: 20.587142° | G43: 296 | H43: 1585
A44: Minbya Total | G44: 968 | H44: 5197
A45: Mrauk_U | B45: Pa Rein | C45: Planned Camp | D45: MMR012CMP009 | E45: 93.245551° | F45: 20.576577° | G45: 240 | H45: 1228
B46: Raw Ma Ni Sin Oe | C46: Planned Camp | D46: MMR012CMP012 | E46: 93.239520° | F46: 20.616920° | G46: 11 | H46: 64
B47: Yai Thei-Muslim | C47: Individual accommodation | D47: MMR012CMP010 | E47: 93.217040° | F47: 20.501758° | G47: 398 | H47: 2613
B48: Thi Kyar | C48: Planned Camp | D48: MMR012CMP117 | E48: 93.246863° | F48: 20.495086° | G48: 31 | H48: 130
A49: Mrauk_U Total | G49: 680 | H49: 4035
A50: Pauktaw | B50: Ah Nauk Ywe | C50: Planned Camp | D50: MMR012CMP016 | E50: 92.985095° | F50: 20.108102° | G50: 880 | H50: 4285
B51: Ba Wan Chaung Wa Su | C51: Planned Camp | D51: MMR012CMP015 | E51: 93.067891° | F51: 20.173468° | G51: 21 | H51: 97
B52: Kyein Ni Pyin | C52: Planned Camp | D52: MMR012CMP018 | E52: 93.010369° | F52: 20.090183° | G52: 1045 | H52: 4598
B53: Nget Chaung | C53: Planned Camp | D53: MMR012CMP017 | E53: 93.154552° | F53: 20.073438° | G53: 1176 | H53: 5889
B54: Sin Tet Maw | C54: Planned Camp | D54: MMR012CMP019 | E54: 92.993759° | F54: 20.064226° | G54: 748 | H54: 2646
A55: Pauktaw Total | G55: 3870 | H55: 17515
A56: Ramree | B56: Ramree Town | C56: Individual accommodation | D56: MMR012CMP038 | E56: 93.865170° | F56: 19.091054° | G56: 18 | H56: 70
B57: Ramree Ward 6 | C57: Planned Camp | D57: MMR012CMP037 | E57: 93.857593° | F57: 19.088283° | G57: 57 | H57: 185
A58: Ramree Total | G58: 75 | H58: 255
A59: Rathedaung | B59: Ah Htet Nan Yar | C59: Individual accommodation | D59: MMR012CMP034 | E59: 92.640022° | F59: 20.569219° | G59: 250 | H59: 1231
B60: Ah Nauk Pyin | C60: Planned Camp | D60: MMR012CMP032 | E60: 92.781294° | F60: 20.399269° | G60: 57 | H60: 296
B61: Nyaung Pin Gyi | C61: Planned Camp | D61: MMR012CMP031 | E61: 92.785706° | F61: 20.335864° | G61: 62 | H61: 420
B62: Chein Khar Li | C62: Planned Camp | D62: MMR012CMP033 | E62: 92.660361° | F62: 20.408453° | G62: 217 | H62: 1216
B63: Koe Tan Kauk | C63: Planned Camp | D63: MMR012CMP110 | E63: 92.639589° | F63: 20.447261° | G63: 196 | H63: 913
A64: Rathedaung Total | G64: 782 | H64: 4076
A65: Sittwe | B65: Basare | C65: Planned Camp | D65: MMR012CMP039 | E65: 92.875814° | F65: 20.128489° | G65: 413 | H65: 1878
B66: Baw Du Pha (IDP in host families) | C66: Individual accommodation | D66: MMR012CMP103 | E66: 92.804803° | F66: 20.182987° | G66: 41 | H66: 226
B67: Dar Pai | C67: Planned Camp | D67: MMR012CMP041 | E67: 92.827427° | F67: 20.168460° | G67: 1776 | H67: 10648
B68: Dar Pai (IDP in host families) | C68: Individual accommodation | D68: MMR012CMP097 | E68: 92.830075° | F68: 20.167422° | G68: 518 | H68: 2951
B69: Khaung Doke Khar | C69: Planned Camp | D69: MMR012CMP042 | E69: 92.823167° | F69: 20.181778° | G69: 791 | H69: 3918
B70: Say Tha Mar Gyi | C70: Planned Camp | D70: MMR012CMP045 | E70: 92.792480° | F70: 20.202525° | G70: 2554 | H70: 13747
B71: Set Yone Su | C71: Planned Camp | D71: MMR012CMP056 | E71: 92.880320° | F71: 20.148584° | G71: 74 | H71: 436
B72: Set Yone Su 3 | C72: Planned Camp | D72: MMR012CMP093 | E72: 92.879139° | F72: 20.155806° | G72: 176 | H72: 779
B73: Thae Chaung | C73: Planned Camp | D73: MMR012CMP046 | E73: 92.839417° | F73: 20.158500° | G73: 981 | H73: 5452
B74: Thae Chaung (IDP in host families) | C74: Individual accommodation | D74: MMR012CMP101 | E74: 92.839166° | F74: 20.157311° | G74: 1025 | H74: 5442
B75: Thet Kae Pyin | C75: Planned Camp | D75: MMR012CMP048 | E75: 92.831879° | F75: 20.179940° | G75: 913 | H75: 4832
B76: Thet Kae Pyin (IDPs in host family) | C76: Individual accommodation | D76: MMR012CMP091 | E76: 92.842230° | F76: 20.181742° | G76: 420 | H76: 2458
B77: Thin Pone Tan | C77: Individual accommodation | D77: MMR012CMP058 | E77: 92.836861° | F77: 20.226865° | G77: 7 | H77: 30
B78: Baw Du Pha 1 | C78: Planned Camp | D78: MMR012CMP113 | E78: 92.813028° | F78: 20.179417° | G78: 901 | H78: 4314
B79: Baw Du Pha 2 | C79: Planned Camp | D79: MMR012CMP114 | E79: 92.807552° | F79: 20.181406° | G79: 1234 | H79: 6513
B80: Maw Ti Ngar | C80: Planned Camp | D80: MMR012CMP092 | E80: 92.831000° | F80: 20.185917° | G80: 667 | H80: 3579
B81: Ohn Taw Chay | C81: Planned Camp | D81: MMR012CMP098 | E81: 92.774194° | F81: 20.206778° | G81: 627 | H81: 3001
B82: Ohn Taw Gyi (North) | C82: Planned Camp | D82: MMR012CMP115 | E82: 92.798881° | F82: 20.189940° | G82: 1490 | H82: 8186
B83: Ohn Taw Gyi (South) | C83: Planned Camp | D83: MMR012CMP116 | E83: 92.802296° | F83: 20.185092° | G83: 2276 | H83: 12315
B84: Sat Roe Kya 1 | C84: Planned Camp | D84: MMR012CMP111 | E84: 92.887278° | F84: 20.151472° | G84: 631 | H84: 3002
B85: Sat Roe Kya 2 | C85: Planned Camp | D85: MMR012CMP112 | E85: 92.887278° | F85: 20.151472° | G85: 0 | H85: 0
A86: Sittwe Total | G86: 17515 | H86: 93707
A87: Grand Total | G87: 26548 | H87: 138833

Sheet CampAnalysis
A2: CAMPS SUMMARY
A3: =Report_Date -> 2013-12-01
A5: Rakhine State # of IDPs /Township
A7: State | B7: Rakhine | C7: (Select State)
A9: Row Labels | B9: # of Camps | C9: Households | D9: Population | M9: State | N9: Rakhine | O9: (Select State)
A10: Close | B10: 49
A11: Maungdaw | B11: 11 | M11: Row Labels | N11: Population
A12: Minbya | B12: 2 | M12: Sittwe | N12: 93707
A13: Mrauk_U | B13: 1 | M13: Pauktaw | N13: 17515
A14: Pauktaw | B14: 1 | M14: Kyauktaw | N14: 6631
A15: Sittwe | B15: 34 | M15: Minbya | N15: 5197
A16: Open | B16: 68 | C16: 26548 | D16: 138833 | M16: Rathedaung | N16: 4076
A17: Kyauk_Phyu | B17: 2 | C17: 492 | D17: 1856 | M17: Mrauk_U | N17: 4035
A18: Kyauktaw | B18: 11 | C18: 1088 | D18: 6631 | M18: Meybon | N18: 3650
A19: Maungdaw | B19: 9 | C19: 282 | D19: 1911 | M19: Maungdaw | N19: 1911
A20: Meybon | B20: 2 | C20: 796 | D20: 3650 | M20: Kyauk_Phyu | N20: 1856
A21: Minbya | B21: 7 | C21: 968 | D21: 5197 | M21: Ramree | N21: 255
A22: Mrauk_U | B22: 4 | C22: 680 | D22: 4035 | M22: Grand Total | N22: 138833
A23: Pauktaw | B23: 5 | C23: 3870 | D23: 17515
A24: Ramree | B24: 2 | C24: 75 | D24: 255
A25: Rathedaung | B25: 5 | C25: 782 | D25: 4076
A26: Sittwe | B26: 21 | C26: 17515 | D26: 93707
A27: Grand Total | B27: 117 | C27: 26548 | D27: 138833
A30: Status | B30: Open
A32: Sum of Total | B32: Column Labels
A33: Row Labels | B33: Camp Management | C33: Focal Point | D33: Grand Total
A34: Planned Camp | B34: 83177 | C34: 27427 | D34: 110604
A35: Ind. Acc. | C35: 28229 | D35: 28229
A36: Grand Total | B36: 83177 | C36: 55656 | D36: 138833
A38: Status | B38: Open | G38: Status | H38: Open
B40: Column Labels | G40: Sum of Total | H40: Column Labels
B41: Muslim | C41: Rakhine | D41: Maramargyi | E41: Grand Total | G41: Row Labels | H41: Camp Management | I41: Focal Point | J41: Grand Total
A42: Sum of Total | B42: 133563 | C42: 4770 | D42: 500 | E42: 138833 | G42: Danish Refugee Council | H42: 46409 | J42: 46409
G43: Solidarites International | I43: 24245 | J43: 24245
G44: UNHCR | I44: 23192 | J44: 23192
G45: Save the Children | H45: 18657 | I45: 2458 | J45: 21115
G46: Luteran World Federation | H46: 18111 | J46: 18111
G47: Relief International | I47: 3650 | J47: 3650
G48: Oxfam | I48: 2111 | J48: 2111
G49: Grand Total | H49: 83177 | I49: 55656 | J49: 138833
A54: Status | B54: Open
A56: Sum of Total | B56: Column Labels
A57: Row Labels | B57: Camp Management | C57: Focal Point | D57: Grand Total
A58: Individual accommodation | C58: 28229 | D58: 28229
A59: Kyauktaw | C59: 6100 | D59: 6100
A60: 84 | C60: 84 | D60: 84
A61: 136 | C61: 136 | D61: 136
A62: 157 | C62: 157 | D62: 157
A63: 512 | C63: 512 | D63: 512
A64: 590 | C64: 590 | D64: 590
A65: 709 | C65: 709 | D65: 709
A66: 780 | C66: 780 | D66: 780
A67: 806 | C67: 806 | D67: 806
A68: 944 | C68: 944 | D68: 944
A69: 1382 | C69: 1382 | D69: 1382
A70: Maungdaw | C70: 1911 | D70: 1911
A71: 20 | C71: 20 | D71: 20
A72: 53 | C72: 53 | D72: 53
A73: 62 | C73: 62 | D73: 62
A74: 69 | C74: 69 | D74: 69
A75: 106 | C75: 106 | D75: 106
A76: 291 | C76: 291 | D76: 291
A77: 356 | C77: 356 | D77: 356
A78: 369 | C78: 369 | D78: 369
A79: 585 | C79: 585 | D79: 585
A80: Minbya | C80: 5197 | D80: 5197
A81: 72 | C81: 72 | D81: 72
A82: 122 | C82: 122 | D82: 122
A83: 483 | C83: 483 | D83: 483
A84: 586 | C84: 586 | D84: 586
A85: 1008 | C85: 1008 | D85: 1008
A86: 1341 | C86: 1341 | D86: 1341
A87: 1585 | C87: 1585 | D87: 1585
A88: Mrauk_U | C88: 2613 | D88: 2613
A89: 2613 | C89: 2613 | D89: 2613
A90: Ramree | C90: 70 | D90: 70
A91: 70 | C91: 70 | D91: 70
A92: Rathedaung | C92: 1231 | D92: 1231
A93: 1231 | C93: 1231 | D93: 1231
A94: Sittwe | C94: 11107 | D94: 11107
A95: 30 | C95: 30 | D95: 30
A96: 226 | C96: 226 | D96: 226
A97: 2458 | C97: 2458 | D97: 2458
A98: 2951 | C98: 2951 | D98: 2951
A99: 5442 | C99: 5442 | D99: 5442
A100: Planned Camp | B100: 83177 | C100: 27427 | D100: 110604
A101: Kyauk_Phyu | C101: 1856 | D101: 1856
A102: 321 | C102: 321 | D102: 321
A103: 1535 | C103: 1535 | D103: 1535
A104: Kyauktaw | C104: 531 | D104: 531
A105: 531 | C105: 531 | D105: 531
A106: Meybon | C106: 3650 | D106: 3650
A107: 269 | C107: 269 | D107: 269
A108: 3381 | C108: 3381 | D108: 3381
A109: Mrauk_U | C109: 1422 | D109: 1422
A110: 64 | C110: 64 | D110: 64
A111: 130 | C111: 130 | D111: 130
A112: 1228 | C112: 1228 | D112: 1228
A113: Pauktaw | B113: 7244 | C113: 10271 | D113: 17515
A114: 97 | C114: 97 | D114: 97
A115: 2646 | B115: 2646 | D115: 2646
A116: 4285 | C116: 4285 | D116: 4285
A117: 4598 | B117: 4598 | D117: 4598
A118: 5889 | C118: 5889 | D118: 5889
A119: Ramree | C119: 185 | D119: 185
A120: 185 | C120: 185 | D120: 185
A121: Rathedaung | C121: 2845 | D121: 2845
A122: 296 | C122: 296 | D122: 296
A123: 420 | C123: 420 | D123: 420
A124: 913 | C124: 913 | D124: 913
A125: 1216 | C125: 1216 | D125: 1216
A126: Sittwe | B126: 75933 | C126: 6667 | D126: 82600
A127: 0 | C127: 0 | D127: 0
A128: 436 | C128: 436 | D128: 436
A129: 779 | C129: 779 | D129: 779
A130: 1878 | B130: 1878 | D130: 1878
A131: 3001 | B131: 3001 | D131: 3001
A132: 3002 | B132: 3002 | D132: 3002
A133: 3579 | B133: 3579 | D133: 3579
A134: 3918 | B134: 3918 | D134: 3918
A135: 4314 | B135: 4314 | D135: 4314
A136: 4832 | B136: 4832 | D136: 4832
A137: 5452 | C137: 5452 | D137: 5452
A138: 6513 | B138: 6513 | D138: 6513
A139: 8186 | B139: 8186 | D139: 8186
A140: 10648 | B140: 10648 | D140: 10648
A141: 12315 | B141: 12315 | D141: 12315
A142: 13747 | B142: 13747 | D142: 13747
A143: Grand Total | B143: 83177 | C143: 55656 | D143: 138833

Sheet Rakhine_CCCM_D
A2: Rakhine CCCM Dashboard
A3: =Report_Date -> 2013-12-01
AH4: Township | AI4: 1-1k | AJ4: 1k-5k | AK4: 5k-10k | AL4: Over 10k
AH5: Kyauk_Phyu | AI5: =SUMIFS(Camplist_Popl,Camplist_Township,AH5,Camplist_Popl,">0",Camplist_Popl,"<=1000") -> 321 | AJ5: =SUMIFS(Camplist_Popl,Camplist_Township,AH5,Camplist_Popl,">1000",Camplist_Popl,"<=5000") -> 1535 | AK5: =SUMIFS(Camplist_Popl,Camplist_Township,AH5,Camplist_Popl,">5000",Camplist_Popl,"<=10000") -> 0 | AL5: =SUMIFS(Camplist_Popl,Camplist_Township,AH5,Camplist_Popl,">10000") -> 0 | AM5: =SUMIFS(Camplist_Popl,Camplist_Township,AH5,Camplist_Popl,"=0") -> 0
AH6: Kyauktaw | AI6: =SUMIFS(Camplist_Popl,Camplist_Township,AH6,Camplist_Popl,">0",Camplist_Popl,"<=1000") -> 5249 | AJ6: =SUMIFS(Camplist_Popl,Camplist_Township,AH6,Camplist_Popl,">1000",Camplist_Popl,"<=5000") -> 1382 | AK6: =SUMIFS(Camplist_Popl,Camplist_Township,AH6,Camplist_Popl,">5000",Camplist_Popl,"<=10000") -> 0 | AL6: 0 | AM6: 0
AH7: Maungdaw | AI7: 1911 | AJ7: 0 | AK7: =SUMIFS(Camplist_Popl,Camplist_Township,AH7,Camplist_Popl,">5000",Camplist_Popl,"<=10000") -> 0 | AL7: 0 | AM7: 0
AH8: Meybon | AI8: 269 | AJ8: 3381 | AK8: 0 | AL8: 0 | AM8: 0
A9: Township | B9: # of HH | C9: # of IDPs | D9: # of Camp | AH9: Minbya | AI9: 1263 | AJ9: 3934 | AK9: 0 | AL9: 0 | AM9: 0
A10: Kyauk_Phyu | B10: =SUMIFS(Camplist_HH,Camplist_Township,Rakhine_CCCM_D!$A10,CampList_Status,"Open") -> 492 | C10: =SUMIFS(Camplist_Popl,Camplist_Township,Rakhine_CCCM_D!$A10,CampList_Status,"Open") -> 1856 | D10: =COUNTIFS(Camplist_Township,Rakhine_CCCM_D!A10,CampList_Status,"open") -> 2 | AH10: Mrauk_U | AI10: 194 | AJ10: 3841 | AK10: 0 | AL10: 0 | AM10: 0
A11: Kyauktaw | B11: =SUMIFS(Camplist_HH,Camplist_Township,Rakhine_CCCM_D!$A11,CampList_Status,"Open") -> 1088 | C11: =SUMIFS(Camplist_Popl,Camplist_Township,Rakhine_CCCM_D!$A11,CampList_Status,"Open") -> 6631 | D11: =COUNTIFS(Camplist_Township,Rakhine_CCCM_D!A11,CampList_Status,"open") -> 11 | AH11: Pauktaw | AI11: 97 | AJ11: 11529 | AK11: 5889 | AL11: 0 | AM11: 0
A12: Maungdaw | B12: =SUMIFS(Camplist_HH,Camplist_Township,Rakhine_CCCM_D!$A12,CampList_Status,"Open") -> 282 | C12: =SUMIFS(Camplist_Popl,Camplist_Township,Rakhine_CCCM_D!$A12,CampList_Status,"Open") -> 1911 | D12: =COUNTIFS(Camplist_Township,Rakhine_CCCM_D!A12,CampList_Status,"open") -> 9 | AH12: Ramree | AI12: 255 | AJ12: 0 | AK12: 0 | AL12: 0 | AM12: 0
A13: Meybon | B13: =SUMIFS(Camplist_HH,Camplist_Township,Rakhine_CCCM_D!$A13,CampList_Status,"Open") -> 796 | C13: =SUMIFS(Camplist_Popl,Camplist_Township,Rakhine_CCCM_D!$A13,CampList_Status,"Open") -> 3650 | D13: =COUNTIFS(Camplist_Township,Rakhine_CCCM_D!A13,CampList_Status,"open") -> 2 | AH13: Rathedaung | AI13: 1629 | AJ13: 2447 | AK13: 0 | AL13: 0 | AM13: 0
A14: Minbya | B14: =SUMIFS(Camplist_HH,Camplist_Township,Rakhine_CCCM_D!$A14,CampList_Status,"Open") -> 968 | C14: =SUMIFS(Camplist_Popl,Camplist_Township,Rakhine_CCCM_D!$A14,CampList_Status,"Open") -> 5197 | D14: =COUNTIFS(Camplist_Township,Rakhine_CCCM_D!A14,CampList_Status,"open") -> 7 | AH14: Sittwe | AI14: 1471 | AJ14: 29933 | AK14: 25593 | AL14: 36710 | AM14: 0
A15: Mrauk_U | B15: =SUMIFS(Camplist_HH,Camplist_Township,Rakhine_CCCM_D!$A15,CampList_Status,"Open") -> 680 | C15: =SUMIFS(Camplist_Popl,Camplist_Township,Rakhine_CCCM_D!$A15,CampList_Status,"Open") -> 4035 | D15: =COUNTIFS(Camplist_Township,Rakhine_CCCM_D!A15,CampList_Status,"open") -> 4 | AH15: Total | AI15: =SUM(AI5:AI14) -> 12659 | AJ15: =SUM(AJ5:AJ14) -> 57982 | AK15: =SUM(AK5:AK14) -> 31482 | AL15: =SUM(AL5:AL14) -> 36710 | AM15: 0 | AN15: =SUM(AI15:AL15) -> 138833
A16: Pauktaw | B16: =SUMIFS(Camplist_HH,Camplist_Township,Rakhine_CCCM_D!$A16,CampList_Status,"Open") -> 3870 | C16: =SUMIFS(Camplist_Popl,Camplist_Township,Rakhine_CCCM_D!$A16,CampList_Status,"Open") -> 17515 | D16: =COUNTIFS(Camplist_Township,Rakhine_CCCM_D!A16,CampList_Status,"open") -> 5 | AH16: % of IDP | AI16: =AI15/$AN$15 -> 0.09118149143 | AJ16: =AJ15/$AN$15 -> 0.4176384577 | AK16: =AK15/$AN$15 -> 0.2267616489 | AL16: =AL15/$AN$15 -> 0.264418402 | AM16: =AM15/$AN$15 -> 0
A17: Ramree | B17: =SUMIFS(Camplist_HH,Camplist_Township,Rakhine_CCCM_D!$A17,CampList_Status,"Open") -> 75 | C17: =SUMIFS(Camplist_Popl,Camplist_Township,Rakhine_CCCM_D!$A17,CampList_Status,"Open") -> 255 | D17: =COUNTIFS(Camplist_Township,Rakhine_CCCM_D!A17,CampList_Status,"open") -> 2
A18: Rathedaung | B18: =SUMIFS(Camplist_HH,Camplist_Township,Rakhine_CCCM_D!$A18,CampList_Status,"Open") -> 782 | C18: =SUMIFS(Camplist_Popl,Camplist_Township,Rakhine_CCCM_D!$A18,CampList_Status,"Open") -> 4076 | D18: =COUNTIFS(Camplist_Township,Rakhine_CCCM_D!A18,CampList_Status,"open") -> 5 | E18: Size of camps
A19: Sittwe | B19: =SUMIFS(Camplist_HH,Camplist_Township,Rakhine_CCCM_D!$A19,CampList_Status,"Open") -> 17515 | C19: =SUMIFS(Camplist_Popl,Camplist_Township,Rakhine_CCCM_D!$A19,CampList_Status,"Open") -> 93707 | D19: =COUNTIFS(Camplist_Township,Rakhine_CCCM_D!A19,CampList_Status,"open") -> 21 | F19: 1-1k | G19: 1k-5k | H19: 5k-10k | I19: Over 10k | J19: Unknown
A20: Total | B20: =SUM(B10:B19) -> 26548 | C20: =SUM(C10:C19) -> 138833 | D20: =SUM(D10:D19) -> 68 | E20: # of Camps | F20: =AI32 -> 37 | G20: =AJ32 -> 22 | H20: =AK32 -> 5 | I20: =AL32 -> 3 | J20: =AM32 -> 1 | AI20: # of camps by Size of Population
E21: # of IDP | F21: =AI15 -> 12659 | G21: =AJ15 -> 57982 | H21: =AK15 -> 31482 | I21: =AL15 -> 36710 | J21: =AM15 -> 0 | AH21: Township | AI21: 1-1k | AJ21: 1k - 5k | AK21: 5k-10k | AL21: >10k | AM21: Unknown
AH22: Kyauk_Phyu | AI22: =COUNTIFS(Camplist_Township,Rakhine_CCCM_D!$AH22,Camplist_Popl,">0",Camplist_Popl,"<=1000") -> 1 | AJ22: =COUNTIFS(Camplist_Township,Rakhine_CCCM_D!$AH22,Camplist_Popl,">1000",Camplist_Popl,"<=5000") -> 1 | AK22: =COUNTIFS(Camplist_Township,Rakhine_CCCM_D!$AH22,Camplist_Popl,">5000",Camplist_Popl,"<=10000") -> 0 | AL22: =COUNTIFS(Camplist_Township,Rakhine_CCCM_D!$AH22,Camplist_Popl,">10000") -> 0 | AM22: =COUNTIFS(Camplist_Township,Rakhine_CCCM_D!$AH22,Camplist_Popl,"=0",CampList_Status,"Open") -> 0 | AN22: =SUM(AI22:AM22) -> 2 | AO22: 2
AH23: Kyauktaw | AI23: =COUNTIFS(Camplist_Township,Rakhine_CCCM_D!$AH23,Camplist_Popl,">0",Camplist_Popl,"<=1000") -> 10 | AJ23: =COUNTIFS(Camplist_Township,Rakhine_CCCM_D!$AH23,Camplist_Popl,">1000",Camplist_Popl,"<=5000") -> 1 | AK23: =COUNTIFS(Camplist_Township,Rakhine_CCCM_D!$AH23,Camplist_Popl,">5000",Camplist_Popl,"<=10000") -> 0 | AL23: =COUNTIFS(Camplist_Township,Rakhine_CCCM_D!$AH23,Camplist_Popl,">10000") -> 0 | AM23: =COUNTIFS(Camplist_Township,Rakhine_CCCM_D!$AH23,Camplist_Popl,"=0",CampList_Status,"Open") -> 0 | AN23: =SUM(AI23:AM23) -> 11 | AO23: 11
AH24: Maungdaw | AI24: =COUNTIFS(Camplist_Township,Rakhine_CCCM_D!$AH24,Camplist_Popl,">0",Camplist_Popl,"<=1000") -> 9 | AJ24: =COUNTIFS(Camplist_Township,Rakhine_CCCM_D!$AH24,Camplist_Popl,">1000",Camplist_Popl,"<=5000") -> 0 | AK24: =COUNTIFS(Camplist_Township,Rakhine_CCCM_D!$AH24,Camplist_Popl,">5000",Camplist_Popl,"<=10000") -> 0 | AL24: =COUNTIFS(Camplist_Township,Rakhine_CCCM_D!$AH24,Camplist_Popl,">10000") -> 0 | AM24: =COUNTIFS(Camplist_Township,Rakhine_CCCM_D!$AH24,Camplist_Popl,"=0",CampList_Status,"Open") -> 0 | AN24: 9 | AO24: 9
AH25: Meybon | AI25: =COUNTIFS(Camplist_Township,Rakhine_CCCM_D!$AH25,Camplist_Popl,">0",Camplist_Popl,"<=1000") -> 1 | AJ25: =COUNTIFS(Camplist_Township,Rakhine_CCCM_D!$AH25,Camplist_Popl,">1000",Camplist_Popl,"<=5000") -> 1 | AK25: =COUNTIFS(Camplist_Township,Rakhine_CCCM_D!$AH25,Camplist_Popl,">5000",Camplist_Popl,"<=10000") -> 0 | AL25: =COUNTIFS(Camplist_Township,Rakhine_CCCM_D!$AH25,Camplist_Popl,">10000") -> 0 | AM25: =COUNTIFS(Camplist_Township,Rakhine_CCCM_D!$AH25,Camplist_Popl,"=0",CampList_Status,"Open") -> 0 | AN25: 2 | AO25: 2
AH26: Minbya | AI26: =COUNTIFS(Camplist_Township,Rakhine_CCCM_D!$AH26,Camplist_Popl,">0",Camplist_Popl,"<=1000") -> 4 | AJ26: =COUNTIFS(Camplist_Township,Rakhine_CCCM_D!$AH26,Camplist_Popl,">1000",Camplist_Popl,"<=5000") -> 3 | AK26: =COUNTIFS(Camplist_Township,Rakhine_CCCM_D!$AH26,Camplist_Popl,">5000",Camplist_Popl,"<=10000") -> 0 | AL26: =COUNTIFS(Camplist_Township,Rakhine_CCCM_D!$AH26,Camplist_Popl,">10000") -> 0 | AM26: =COUNTIFS(Camplist_Township,Rakhine_CCCM_D!$AH26,Camplist_Popl,"=0",CampList_Status,"Open") -> 0 | AN26: 7 | AO26: 7
AH27: Mrauk_U | AI27: =COUNTIFS(Camplist_Township,Rakhine_CCCM_D!$AH27,Camplist_Popl,">0",Camplist_Popl,"<=1000") -> 2 | AJ27: =COUNTIFS(Camplist_Township,Rakhine_CCCM_D!$AH27,Camplist_Popl,">1000",Camplist_Popl,"<=5000") -> 2 | AK27: =COUNTIFS(Camplist_Township,Rakhine_CCCM_D!$AH27,Camplist_Popl,">5000",Camplist_Popl,"<=10000") -> 0 | AL27: =COUNTIFS(Camplist_Township,Rakhine_CCCM_D!$AH27,Camplist_Popl,">10000") -> 0 | AM27: =COUNTIFS(Camplist_Township,Rakhine_CCCM_D!$AH27,Camplist_Popl,"=0",CampList_Status,"Open") -> 0 | AN27: 4 | AO27: 4
AH28: Pauktaw | AI28: =COUNTIFS(Camplist_Township,Rakhine_CCCM_D!$AH28,Camplist_Popl,">0",Camplist_Popl,"<=1000") -> 1 | AJ28: =COUNTIFS(Camplist_Township,Rakhine_CCCM_D!$AH28,Camplist_Popl,">1000",Camplist_Popl,"<=5000") -> 3 | AK28: =COUNTIFS(Camplist_Township,Rakhine_CCCM_D!$AH28,Camplist_Popl,">5000",Camplist_Popl,"<=10000") -> 1 | AL28: =COUNTIFS(Camplist_Township,Rakhine_CCCM_D!$AH28,Camplist_Popl,">10000") -> 0 | AM28: =COUNTIFS(Camplist_Township,Rakhine_CCCM_D!$AH28,Camplist_Popl,"=0",CampList_Status,"Open") -> 0 | AN28: 5 | AO28: 6
AH29: Ramree | AI29: =COUNTIFS(Camplist_Township,Rakhine_CCCM_D!$AH29,Camplist_Popl,">0",Camplist_Popl,"<=1000") -> 2 | AJ29: =COUNTIFS(Camplist_Township,Rakhine_CCCM_D!$AH29,Camplist_Popl,">1000",Camplist_Popl,"<=5000") -> 0 | AK29: =COUNTIFS(Camplist_Township,Rakhine_CCCM_D!$AH29,Camplist_Popl,">5000",Camplist_Popl,"<=10000") -> 0 | AL29: =COUNTIFS(Camplist_Township,Rakhine_CCCM_D!$AH29,Camplist_Popl,">10000") -> 0 | AM29: =COUNTIFS(Camplist_Township,Rakhine_CCCM_D!$AH29,Camplist_Popl,"=0",CampList_Status,"Open") -> 0 | AN29: 2 | AO29: 2
AH30: Rathedaung | AI30: =COUNTIFS(Camplist_Township,Rakhine_CCCM_D!$AH30,Camplist_Popl,">0",Camplist_Popl,"<=1000") -> 3 | AJ30: =COUNTIFS(Camplist_Township,Rakhine_CCCM_D!$AH30,Camplist_Popl,">1000",Camplist_Popl,"<=5000") -> 2 | AK30: =COUNTIFS(Camplist_Township,Rakhine_CCCM_D!$AH30,Camplist_Popl,">5000",Camplist_Popl,"<=10000") -> 0 | AL30: =COUNTIFS(Camplist_Township,Rakhine_CCCM_D!$AH30,Camplist_Popl,">10000") -> 0 | AM30: =COUNTIFS(Camplist_Township,Rakhine_CCCM_D!$AH30,Camplist_Popl,"=0",CampList_Status,"Open") -> 0 | AN30: 5 | AO30: 5
AH31: Sittwe | AI31: =COUNTIFS(Camplist_Township,Rakhine_CCCM_D!$AH31,Camplist_Popl,">0",Camplist_Popl,"<=1000") -> 4 | AJ31: =COUNTIFS(Camplist_Township,Rakhine_CCCM_D!$AH31,Camplist_Popl,">1000",Camplist_Popl,"<=5000") -> 9 | AK31: =COUNTIFS(Camplist_Township,Rakhine_CCCM_D!$AH31,Camplist_Popl,">5000",Camplist_Popl,"<=10000") -> 4 | AL31: =COUNTIFS(Camplist_Township,Rakhine_CCCM_D!$AH31,Camplist_Popl,">10000") -> 3 | AM31: =COUNTIFS(Camplist_Township,Rakhine_CCCM_D!$AH31,Camplist_Popl,"=0",CampList_Status,"Open") -> 1 | AN31: =SUM(AI31:AM31) -> 21 | AO31: 22
AH32: Total | AI32: =SUM(AI22:AI31) -> 37 | AJ32: =SUM(AJ22:AJ31) -> 22 | AK32: =SUM(AK22:AK31) -> 5 | AL32: =SUM(AL22:AL31) -> 3 | AM32: =SUM(AM22:AM31) -> 1 | AN32: =SUM(AI32:AM32) -> 68

Sheet Shelter Tracking
A2: SHELTERTRACKINGSHEET
A3: =Report_Date -> 2013-12-01
A4: DateUpdated | B4: Organization | C4: ImplementingPartner | D4: State | E4: Township | F4: CampName | G4: HHperShelter | H4: #ofFamilyTentPlanned(Target) | I4: #ofFamilyTentDistributed | J4: #ofTemporaryShelterPlanned(Target) | K4: #ofTemporaryShelterBuilt | L4: #ofTemporaryShelterUnderConstruction | M4: #ofPermanentHousePlanned(Target) | N4: #ofPermanentHouseBuilt | O4: #ofPermanentHouseUnderConstruction | P4: HHCovered | Q4: Pcode | R4: Status | S4: Coverage
A5: 2013-10-01 | B5: Government | C5: Government | D5: Rakhine | E5: Kyauk_Phyu | F5: Kyauk Ta Lone | G5: 8 | J5: 22 | K5: 22 | P5: =Table_Shelter[[#This Row],[HHperShelter]]*(Table_Shelter[[#This Row],['#ofTemporaryShelterBuilt]]+Table_Shelter[[#This Row],['#ofTemporaryShelterUnderConstruction]]+Table_Shelter[[#This Row],['#ofPermanentHouseUnderConstruction]]) -> 176 | Q5: =IFERROR(VLOOKUP(Table_Shelter[[#This Row],[CampName]],CL,2,0),"") -> MMR012CMP035 | R5: =IFERROR(VLOOKUP(Table_Shelter[[#This Row],[CampName]],CL,3,0),"") -> Open | S5: =IFERROR(Table_Shelter[[#This Row],[HHCovered]]/VLOOKUP(Table_Shelter[[#This Row],[CampName]],CL,4,0),"") -> 0.4121779859
A6: 2013-10-01 | B6: Service City | C6: Service City | D6: Rakhine | E6: Kyauk_Phyu | F6: Kyauk Ta Lone | G6: 8 | J6: 31 | K6: 31 | P6: =Table_Shelter[[#This Row],[HHperShelter]]*(Table_Shelter[[#This Row],['#ofTemporaryShelterBuilt]]+Table_Shelter[[#This Row],['#ofTemporaryShelterUnderConstruction]]+Table_Shelter[[#This Row],['#ofPermanentHouseUnderConstruction]]) -> 248 | Q6: =IFERROR(VLOOKUP(Table_Shelter[[#This Row],[CampName]],CL,2,0),"") -> MMR012CMP035 | R6: =IFERROR(VLOOKUP(Table_Shelter[[#This Row],[CampName]],CL,3,0),"") -> Open | S6: =IFERROR(Table_Shelter[[#This Row],[HHCovered]]/VLOOKUP(Table_Shelter[[#This Row],[CampName]],CL,4,0),"") -> 0.5807962529
A7: 2013-10-01 | B7: Service City | C7: Service City | D7: Rakhine | E7: Kyauk_Phyu | F7: Pha Yar Gyi Kwin | G7: 8 | J7: 7 | K7: 7 | P7: =Table_Shelter[[#This Row],[HHperShelter]]*(Table_Shelter[[#This Row],['#ofTemporaryShelterBuilt]]+Table_Shelter[[#This Row],['#ofTemporaryShelterUnderConstruction]]+Table_Shelter[[#This Row],['#ofPermanentHouseUnderConstruction]]) -> 56 | Q7: =IFERROR(VLOOKUP(Table_Shelter[[#This Row],[CampName]],CL,2,0),"") -> MMR012CMP036 | R7: =IFERROR(VLOOKUP(Table_Shelter[[#This Row],[CampName]],CL,3,0),"") -> Open | S7: =IFERROR(Table_Shelter[[#This Row],[HHCovered]]/VLOOKUP(Table_Shelter[[#This Row],[CampName]],CL,4,0),"") -> 0.8615384615
A8: 2013-10-01 | B8: Government | C8: Government | D8: Rakhine | E8: Kyauktaw | F8: Ah Lel Kyun | G8: 8 | J8: 2 | K8: 2 | P8: =Table_Shelter[[#This Row],[HHperShelter]]*(Table_Shelter[[#This Row],['#ofTemporaryShelterBuilt]]+Table_Shelter[[#This Row],['#ofTemporaryShelterUnderConstruction]]+Table_Shelter[[#This Row],['#ofPermanentHouseUnderConstruction]]) -> 16 | Q8: =IFERROR(VLOOKUP(Table_Shelter[[#This Row],[CampName]],CL,2,0),"") -> MMR012CMP025 | R8: =IFERROR(VLOOKUP(Table_Shelter[[#This Row],[CampName]],CL,3,0),"") -> Open | S8: =IFERROR(Table_Shelter[[#This Row],[HHCovered]]/VLOOKUP(Table_Shelter[[#This Row],[CampName]],CL,4,0),"") -> 1.142857143
A9: 2013-10-01 | B9: Government | C9: Government | D9: Rakhine | E9: Kyauktaw | F9: Ah Lel | G9: 8 | J9: 2 | K9: 2 | P9: =Table_Shelter[[#This Row],[HHperShelter]]*(Table_Shelter[[#This Row],['#ofTemporaryShelterBuilt]]+Table_Shelter[[#This Row],['#ofTemporaryShelterUnderConstruction]]+Table_Shelter[[#This Row],['#ofPermanentHouseUnderConstruction]]) -> 16 | Q9: =IFERROR(VLOOKUP(Table_Shelter[[#This Row],[CampName]],CL,2,0),"") -> MMR012CMP022 | R9: =IFERROR(VLOOKUP(Table_Shelter[[#This Row],[CampName]],CL,3,0),"") -> Open | S9: =IFERROR(Table_Shelter[[#This Row],[HHCovered]]/VLOOKUP(Table_Shelter[[#This Row],[CampName]],CL,4,0),"") -> 0.9411764706
A10: 2013-10-01 | B10: Government | C10: Government | D10: Rakhine | E10: Kyauktaw | F10: Ah Pauk Wa | G10: 8 | J10: 7 | K10: 7 | P10: =Table_Shelter[[#This Row],[HHperShelter]]*(Table_Shelter[[#This Row],['#ofTemporaryShelterBuilt]]+Table_Shelter[[#This Row],['#ofTemporaryShelterUnderConstruction]]+Table_Shelter[[#This Row],['#ofPermanentHouseUnderConstruction]]) -> 56 | Q10: =IFERROR(VLOOKUP(Table_Shelter[[#This Row],[CampName]],CL,2,0),"") -> MMR012CMP024 | R10: =IFERROR(VLOOKUP(Table_Shelter[[#This Row],[CampName]],CL,3,0),"") -> Open | S10: =IFERROR(Table_Shelter[[#This Row],[HHCovered]]/VLOOKUP(Table_Shelter[[#This Row],[CampName]],CL,4,0),"") -> 0.4210526316
A11: 2013-10-01 | B11: MRCS | C11: MRCS | D11: Rakhine | E11: Kyauktaw | F11: Ah Pauk Wa | G11: 8 | J11: 4 | L11: 4 | P11: =Table_Shelter[[#This Row],[HHperShelter]]*(Table_Shelter[[#This Row],['#ofTemporaryShelterBuilt]]+Table_Shelter[[#This Row],['#ofTemporaryShelterUnderConstruction]]+Table_Shelter[[#This Row],['#ofPermanentHouseUnderConstruction]]) -> 32 | Q11: =IFERROR(VLOOKUP(Table_Shelter[[#This Row],[CampName]],CL,2,0),"") -> MMR012CMP024 | R11: =IFERROR(VLOOKUP(Table_Shelter[[#This Row],[CampName]],CL,3,0),"") -> Open | S11: =IFERROR(Table_Shelter[[#This Row],[HHCovered]]/VLOOKUP(Table_Shelter[[#This Row],[CampName]],CL,4,0),"") -> 0.2406015038
A12: 2013-10-01 | B12: Government | C12: Government | D12: Rakhine | E12: Kyauktaw | F12: Goke Pi Htaunt | G12: 8 | J12: 10 | K12: 10 | P12: =Table_Shelter[[#This Row],[HHperShelter]]*(Table_Shelter[[#This Row],['#ofTemporaryShelterBuilt]]+Table_Shelter[[#This Row],['#ofTemporaryShelterUnderConstruction]]+Table_Shelter[[#This Row],['#ofPermanentHouseUnderConstruction]]) -> 80 | Q12: =IFERROR(VLOOKUP(Table_Shelter[[#This Row],[CampName]],CL,2,0),"") -> MMR012CMP027 | R12: =IFERROR(VLOOKUP(Table_Shelter[[#This Row],[CampName]],CL,3,0),"") -> Open | S12: =IFERROR(Table_Shelter[[#This Row],[HHCovered]]/VLOOKUP(Table_Shelter[[#This Row],[CampName]],CL,4,0),"") -> 0.6896551724
A13: 2013-10-01 | B13: MRCS | C13: MRCS | D13: Rakhine | E13: Kyauktaw | F13: Goke Pi Htaunt | G13: 8 | J13: 5 | L13: 5 | P13: =Table_Shelter[[#This Row],[HHperShelter]]*(Table_Shelter[[#This Row],['#ofTemporaryShelterBuilt]]+Table_Shelter[[#This Row],['#ofTemporaryShelterUnderConstruction]]+Table_Shelter[[#This Row],['#ofPermanentHouseUnderConstruction]]) -> 40 | Q13: =IFERROR(VLOOKUP(Table_Shelter[[#This Row],[CampName]],CL,2,0),"") -> MMR012CMP027 | R13: =IFERROR(VLOOKUP(Table_Shelter[[#This Row],[CampName]],CL,3,0),"") -> Open | S13: =IFERROR(Table_Shelter[[#This Row],[HHCovered]]/VLOOKUP(Table_Shelter[[#This Row],[CampName]],CL,4,0),"") -> 0.3448275862
A14: 2013-10-01 | B14: Government | C14: Government | D14: Rakhine | E14: Kyauktaw | F14: In Bar Yi | G14: 8 | J14: 29 | K14: 29 | P14: =Table_Shelter[[#This Row],[HHperShelter]]*(Table_Shelter[[#This Row],['#ofTemporaryShelterBuilt]]+Table_Shelter[[#This Row],['#ofTemporaryShelterUnderConstruction]]+Table_Shelter[[#This Row],['#ofPermanentHouseUnderConstruction]]) -> 232 | Q14: =IFERROR(VLOOKUP(Table_Shelter[[#This Row],[CampName]],CL,2,0),"") -> MMR012CMP026 | R14: =IFERROR(VLOOKUP(Table_Shelter[[#This Row],[CampName]],CL,3,0),"") -> Open | S14: =IFERROR(Table_Shelter[[#This Row],[HHCovered]]/VLOOKUP(Table_Shelter[[#This Row],[CampName]],CL,4,0),"") -> 1.008695652
A15: 2013-10-01 | B15: Government | C15: Government | D15: Rakhine | E15: Kyauktaw | F15: Khaung Htoke | G15: 8 | J15: 10 | K15: 10 | P15: =Table_Shelter[[#This Row],[HHperShelter]]*(Table_Shelter[[#This Row],['#ofTemporaryShelterBuilt]]+Table_Shelter[[#This Row],['#ofTemporaryShelterUnderConstruction]]+Table_Shelter[[#This Row],['#ofPermanentHouseUnderConstruction]]) -> 80 | Q15: =IFERROR(VLOOKUP(Table_Shelter[[#This Row],[CampName]],CL,2,0),"") -> MMR012CMP030 | R15: =IFERROR(VLOOKUP(Table_Shelter[[#This Row],[CampName]],CL,3,0),"") -> Open | S15: =IFERROR(Table_Shelter[[#This Row],[HHCovered]]/VLOOKUP(Table_Shelter[[#This Row],[CampName]],CL,4,0),"") -> 0.8080808081
A16: 2013-10-01 | B16: MRCS | C16: MRCS | D16: Rakhine | E16: Kyauktaw | F16: Khaung Htoke | G16: 8 | J16: 2 | L16: 2 | P16: =Table_Shelter[[#This Row],[HHperShelter]]*(Table_Shelter[[#This Row],['#ofTemporaryShelterBuilt]]+Table_Shelter[[#This Row],['#ofTemporaryShelterUnderConstruction]]+Table_Shelter[[#This Row],['#ofPermanentHouseUnderConstruction]]) -> 16 | Q16: =IFERROR(VLOOKUP(Table_Shelter[[#This Row],[CampName]],CL,2,0),"") -> MMR012CMP030 | R16: =IFERROR(VLOOKUP(Table_Shelter[[#This Row],[CampName]],CL,3,0),"") -> Open | S16: =IFERROR(Table_Shelter[[#This Row],[HHCovered]]/VLOOKUP(Table_Shelter[[#This Row],[CampName]],CL,4,0),"") -> 0.1616161616
A17: 2013-10-01 | B17: Government | C17: Government | D17: Rakhine | E17: Kyauktaw | F17: Let Saung Kauk | G17: 8 | J17: 2 | K17: 2 | P17: =Table_Shelter[[#This Row],[HHperShelter]]*(Table_Shelter[[#This Row],['#ofTemporaryShelterBuilt]]+Table_Shelter[[#This Row],['#ofTemporaryShelterUnderConstruction]]+Table_Shelter[[#This Row],['#ofPermanentHouseUnderConstruction]]) -> 16 | Q17: =IFERROR(VLOOKUP(Table_Shelter[[#This Row],[CampName]],CL,2,0),"") -> MMR012CMP020 | R17: =IFERROR(VLOOKUP(Table_Shelter[[#This Row],[CampName]],CL,3,0),"") -> Open | S17: =IFERROR(Table_Shelter[[#This Row],[HHCovered]]/VLOOKUP(Table_Shelter[[#This Row],[CampName]],CL,4,0),"") -> 0.8888888889
A18: 2013-10-01 | B18: MRCS | C18: MRCS | D18: Rakhine | E18: Kyauktaw | F18: Let Saung Kauk | G18: 8 | J18: 1 | L18: 1 | P18: =Table_Shelter[[#This Row],[HHperShelter]]*(Table_Shelter[[#This Row],['#ofTemporaryShelterBuilt]]+Table_Shelter[[#This Row],['#ofTemporaryShelterUnderConstruction]]+Table_Shelter[[#This Row],['#ofPermanentHouseUnderConstruction]]) -> 8 | Q18: =IFERROR(VLOOKUP(Table_Shelter[[#This Row],[CampName]],CL,2,0),"") -> MMR012CMP020 | R18: =IFERROR(VLOOKUP(Table_Shelter[[#This Row],[CampName]],CL,3,0),"") -> Open | S18: =IFERROR(Table_Shelter[[#This Row],[HHCovered]]/VLOOKUP(Table_Shelter[[#This Row],[CampName]],CL,4,0),"") -> 0.4444444444
A19: 2013-10-01 | B19: Government | C19: Government | D19: Rakhine | E19: Kyauktaw | F19: Nidin | G19: 8 | J19: 9 | K19: 9 | P19: =Table_Shelter[[#This Row],[HHperShelter]]*(Table_Shelter[[#This Row],['#ofTemporaryShelterBuilt]]+Table_Shelter[[#This Row],['#ofTemporaryShelterUnderConstruction]]+Table_Shelter[[#This Row],['#ofPermanentHouseUnderConstruction]]) -> 72 | Q19: =IFERROR(VLOOKUP(Table_Shelter[[#This Row],[CampName]],CL,2,0),"") -> MMR012CMP023 | R19: =IFERROR(VLOOKUP(Table_Shelter[[#This Row],[CampName]],CL,3,0),"") -> Open | S19: =IFERROR(Table_Shelter[[#This Row],[HHCovered]]/VLOOKUP(Table_Shelter[[#This Row],[CampName]],CL,4,0),"") -> 0.8470588235
A20: 2013-10-01 | B20: MRCS | C20: MRCS | D20: Rakhine | E20: Kyauktaw | F20: Nidin | G20: 8 | J20: 2 | L20: 2 | P20: =Table_Shelter[[#This Row],[HHperShelter]]*(Table_Shelter[[#This Row],['#ofTemporaryShelterBuilt]]+Table_Shelter[[#This Row],['#ofTemporaryShelterUnderConstruction]]+Table_Shelter[[#This Row],['#ofPermanentHouseUnderConstruction]]) -> 16 | Q20: =IFERROR(VLOOKUP(Table_Shelter[[#This Row],[CampName]],CL,2,0),"") -> MMR012CMP023 | R20: =IFERROR(VLOOKUP(Table_Shelter[[#This Row],[CampName]],CL,3,0),"") -> Open | S20: =IFERROR(Table_Shelter[[#This Row],[HHCovered]]/VLOOKUP(Table_Shelter[[#This Row],[CampName]],CL,4,0),"") -> 0.1882352941
A21: 2013-10-01 | B21: Government | C21: Government | D21: Rakhine | E21: Kyauktaw | F21: Shwe Hlaing | G21: 8 | J21: 18 | K21: 18 | P21: =Table_Shelter[[#This Row],[HHperShelter]]*(Table_Shelter[[#This Row],['#ofTemporaryShelterBuilt]]+Table_Shelter[[#This Row],['#ofTemporaryShelterUnderConstruction]]+Table_Shelter[[#This Row],['#ofPermanentHouseUnderConstruction]]) -> 144 | Q21: =IFERROR(VLOOKUP(Table_Shelter[[#This Row],[CampName]],CL,2,0),"") -> MMR012CMP029 | R21: =IFERROR(VLOOKUP(Table_Shelter[[#This Row],[CampName]],CL,3,0),"") -> Open | S21: =IFERROR(Table_Shelter[[#This Row],[HHCovered]]/VLOOKUP(Table_Shelter[[#This Row],[CampName]],CL,4,0),"") -> 0.8275862069
A22: 2013-10-01 | B22: Government | C22: Government | D22: Rakhine | E22: Kyauktaw | F22: Taung Bwe | G22: 8 | J22: 8 | K22: 8 | P22: =Table_Shelter[[#This Row],[HHperShelter]]*(Table_Shelter[[#This Row],['#ofTemporaryShelterBuilt]]+Table_Shelter[[#This Row],['#ofTemporaryShelterUnderConstruction]]+Table_Shelter[[#This Row],['#ofPermanentHouseUnderConstruction]]) -> 64 | Q22: =IFERROR(VLOOKUP(Table_Shelter[[#This Row],[CampName]],CL,2,0),"") -> MMR012CMP021 | R22: =IFERROR(VLOOKUP(Table_Shelter[[#This Row],[CampName]],CL,3,0),"") -> Open | S22: =IFERROR(Table_Shelter[[#This Row],[HHCovered]]/VLOOKUP(Table_Shelter[[#This Row],[CampName]],CL,4,0),"") -> 1
A23: 2013-10-01 | B23: Government | C23: Government | D23: Rakhine | E23: Kyauktaw | F23: Yun Nyar | G23: 8 | J23: 14 | K23: 14 | P23: =Table_Shelter[[#This Row],[HHperShelter]]*(Table_Shelter[[#This Row],['#ofTemporaryShelterBuilt]]+Table_Shelter[[#This Row],['#ofTemporaryShelterUnderConstruction]]+Table_Shelter[[#This Row],['#ofPermanentHouseUnderConstruction]]) -> 112 | Q23: =IFERROR(VLOOKUP(Table_Shelter[[#This Row],[CampName]],CL,2,0),"") -> MMR012CMP028 | R23: =IFERROR(VLOOKUP(Table_Shelter[[#This Row],[CampName]],CL,3,0),"") -> Open | S23: =IFERROR(Table_Shelter[[#This Row],[HHCovered]]/VLOOKUP(Table_Shelter[[#This Row],[CampName]],CL,4,0),"") -> 0.8115942029
A24: 2013-10-01 | B24: TDC/Natala Government | C24: TDC/Natala Government | D24: Rakhine | E24: Maungdaw | F24: Baw Di Gone | G24: 1 | M24: 10 | N24: 10 | P24: =Table_Shelter[[#This Row],[HHperShelter]]*(Table_Shelter[[#This Row],['#ofTemporaryShelterBuilt]]+Table_Shelter[[#This Row],['#ofTemporaryShelterUnderConstruction]]+Table_Shelter[[#This Row],['#ofPermanentHouseUnderConstruction]]) -> 0 | Q24: =IFERROR(VLOOKUP(Table_Shelter[[#This Row],[CampName]],CL,2,0),"") -> MMR012CMP079 | R24: =IFERROR(VLOOKUP(Table_Shelter[[#This Row],[CampName]],CL,3,0),"") -> Close | S24: =IFERROR(Table_Shelter[[#This Row],[HHCovered]]/VLOOKUP(Table_Shelter[[#This Row],[CampName]],CL,4,0),"") -> 
A25: 2013-10-01 | B25: UNHCR/BAJ | C25: UNHCR/BAJ | D25: Rakhine | E25: Maungdaw | F25: Baw Di Gone | G25: 1 | M25: 31 | N25: 27 | P25: =Table_Shelter[[#This Row],[HHperShelter]]*(Table_Shelter[[#This Row],['#ofTemporaryShelterBuilt]]+Table_Shelter[[#This Row],['#ofTemporaryShelterUnderConstruction]]+Table_Shelter[[#This Row],['#ofPermanentHouseUnderConstruction]]) -> 0 | Q25: =IFERROR(VLOOKUP(Table_Shelter[[#This Row],[CampName]],CL,2,0),"") -> MMR012CMP079 | R25: =IFERROR(VLOOKUP(Table_Shelter[[#This Row],[CampName]],CL,3,0),"") -> Close | S25: =IFERROR(Table_Shelter[[#This Row],[HHCovered]]/VLOOKUP(Table_Shelter[[#This Row],[CampName]],CL,4,0),"") -> 
A26: 2013-10-01 | B26: TDC/Natala Government | C26: TDC/Natala Government | D26: Rakhine | E26: Maungdaw | F26: Kan Pyin Thar Si | G26: 1 | M26: 15 | N26: 15 | P26: =Table_Shelter[[#This Row],[HHperShelter]]*(Table_Shelter[[#This Row],['#ofTemporaryShelterBuilt]]+Table_Shelter[[#This Row],['#ofTemporaryShelterUnderConstruction]]+Table_Shelter[[#This Row],['#ofPermanentHouseUnderConstruction]]) -> 0 | Q26: =IFERROR(VLOOKUP(Table_Shelter[[#This Row],[CampName]],CL,2,0),"") ->  | R26: =IFERROR(VLOOKUP(Table_Shelter[[#This Row],[CampName]],CL,3,0),"") ->  | S26: =IFERROR(Table_Shelter[[#This Row],[HHCovered]]/VLOOKUP(Table_Shelter[[#This Row],[CampName]],CL,4,0),"") -> 
A27: 2013-10-01 | B27: TDC/Natala Government | C27: TDC/Natala Government | D27: Rakhine | E27: Maungdaw | F27: Kan Thar Yar | G27: 1 | M27: 10 | N27: 10 | P27: =Table_Shelter[[#This Row],[HHperShelter]]*(Table_Shelter[[#This Row],['#ofTemporaryShelterBuilt]]+Table_Shelter[[#This Row],['#ofTemporaryShelterUnderConstruction]]+Table_Shelter[[#This Row],['#ofPermanentHouseUnderConstruction]]) -> 0 | Q27: =IFERROR(VLOOKUP(Table_Shelter[[#This Row],[CampName]],CL,2,0),"") -> MMR012CMP081 | R27: =IFERROR(VLOOKUP(Table_Shelter[[#This Row],[CampName]],CL,3,0),"") -> Close | S27: =IFERROR(Table_Shelter[[#This Row],[HHCovered]]/VLOOKUP(Table_Shelter[[#This Row],[CampName]],CL,4,0),"") -> 
A28: 2013-10-01 | B28: UNHCR/BAJ | C28: UNHCR/BAJ | D28: Rakhine | E28: Maungdaw | F28: Kan Thar Yar | G28: 1 | M28: 21 | N28: 21 | P28: =Table_Shelter[[#This Row],[HHperShelter]]*(Table_Shelter[[#This Row],['#ofTemporaryShelterBuilt]]+Table_Shelter[[#This Row],['#ofTemporaryShelterUnderConstruction]]+Table_Shelter[[#This Row],['#ofPermanentHouseUnderConstruction]]) -> 0 | Q28: =IFERROR(VLOOKUP(Table_Shelter[[#This Row],[CampName]],CL,2,0),"") -> MMR012CMP081 | R28: =IFERROR(VLOOKUP(Table_Shelter[[#This Row],[CampName]],CL,3,0),"") -> Close | S28: =IFERROR(Table_Shelter[[#This Row],[HHCovered]]/VLOOKUP(Table_Shelter[[#This Row],[CampName]],CL,4,0),"") -> 
A29: 2013-10-01 | B29: TDC/Natala Government | C29: TDC/Natala Government | D29: Rakhine | E29: Maungdaw | F29: Kha Yay Myaing( DPA) | G29: 1 | M29: 2 | N29: 2 | P29: =Table_Shelter[[#This Row],[HHperShelter]]*(Table_Shelter[[#This Row],['#ofTemporaryShelterBuilt]]+Table_Shelter[[#This Row],['#ofTemporaryShelterUnderConstruction]]+Table_Shelter[[#This Row],['#ofPermanentHouseUnderConstruction]]) -> 0 | Q29: =IFERROR(VLOOKUP(Table_Shelter[[#This Row],[CampName]],CL,2,0),"") ->  | R29: =IFERROR(VLOOKUP(Table_Shelter[[#This Row],[CampName]],CL,3,0),"") ->  | S29: =IFERROR(Table_Shelter[[#This Row],[HHCovered]]/VLOOKUP(Table_Shelter[[#This Row],[CampName]],CL,4,0),"") -> 
A30: 2013-10-01 | B30: TDC/Natala Government | C30: TDC/Natala Government | D30: Rakhine | E30: Maungdaw | F30: Kha Yay Myaing(short legged) | G30: 1 | M30: 22 | N30: 22 | P30: =Table_Shelter[[#This Row],[HHperShelter]]*(Table_Shelter[[#This Row],['#ofTemporaryShelterBuilt]]+Table_Shelter[[#This Row],['#ofTemporaryShelterUnderConstruction]]+Table_Shelter[[#This Row],['#ofPermanentHouseUnderConstruction]]) -> 0 | Q30: =IFERROR(VLOOKUP(Table_Shelter[[#This Row],[CampName]],CL,2,0),"") ->  | R30: =IFERROR(VLOOKUP(Table_Shelter[[#This Row],[CampName]],CL,3,0),"") ->  | S30: =IFERROR(Table_Shelter[[#This Row],[HHCovered]]/VLOOKUP(Table_Shelter[[#This Row],[CampName]],CL,4,0),"") -> 
A31: 2013-10-01 | B31: UNHCR/BAJ | C31: UNHCR/BAJ | D31: Rakhine | E31: Maungdaw | F31: Kha Yay Myaing(short legged) | G31: 1 | M31: 25 | N31: 25 | P31: =Table_Shelter[[#This Row],[HHperShelter]]*(Table_Shelter[[#This Row],['#ofTemporaryShelterBuilt]]+Table_Shelter[[#This Row],['#ofTemporaryShelterUnderConstruction]]+Table_Shelter[[#This Row],['#ofPermanentHouseUnderConstruction]]) -> 0 | Q31: =IFERROR(VLOOKUP(Table_Shelter[[#This Row],[CampName]],CL,2,0),"") ->  | R31: =IFERROR(VLOOKUP(Table_Shelter[[#This Row],[CampName]],CL,3,0),"") ->  | S31: =IFERROR(Table_Shelter[[#This Row],[HHCovered]]/VLOOKUP(Table_Shelter[[#This Row],[CampName]],CL,4,0),"") -> 
A32: 2013-10-01 | B32: CARE | C32: CARE | D32: Rakhine | E32: Maungdaw | F32: Kin Chaung | G32: 1 | M32: 25 | N32: 25 | P32: =Table_Shelter[[#This Row],[HHperShelter]]*(Table_Shelter[[#This Row],['#ofTemporaryShelterBuilt]]+Table_Shelter[[#This Row],['#ofTemporaryShelterUnderConstruction]]+Table_Shelter[[#This Row],['#ofPermanentHouseUnderConstruction]]) -> 0 | Q32: =IFERROR(VLOOKUP(Table_Shelter[[#This Row],[CampName]],CL,2,0),"") -> MMR012CMP080 | R32: =IFERROR(VLOOKUP(Table_Shelter[[#This Row],[CampName]],CL,3,0),"") -> Close | S32: =IFERROR(Table_Shelter[[#This Row],[HHCovered]]/VLOOKUP(Table_Shelter[[#This Row],[CampName]],CL,4,0),"") -> 
A33: 2013-10-01 | B33: TDC/Natala Government | C33: TDC/Natala Government | D33: Rakhine | E33: Maungdaw | F33: Kyaing Gyi | G33: 1 | M33: 36 | N33: 36 | P33: =Table_Shelter[[#This Row],[HHperShelter]]*(Table_Shelter[[#This Row],['#ofTemporaryShelterBuilt]]+Table_Shelter[[#This Row],['#ofTemporaryShelterUnderConstruction]]+Table_Shelter[[#This Row],['#ofPermanentHouseUnderConstruction]]) -> 0 | Q33: =IFERROR(VLOOKUP(Table_Shelter[[#This Row],[CampName]],CL,2,0),"") -> MMR012CMP078 | R33: =IFERROR(VLOOKUP(Table_Shelter[[#This Row],[CampName]],CL,3,0),"") -> Close | S33: =IFERROR(Table_Shelter[[#This Row],[HHCovered]]/VLOOKUP(Table_Shelter[[#This Row],[CampName]],CL,4,0),"") -> 
A34: 2013-10-01 | B34: UNHCR/BAJ | C34: UNHCR/BAJ | D34: Rakhine | E34: Maungdaw | F34: Kyaing Gyi | G34: 1 | M34: 36 | N34: 36 | P34: =Table_Shelter[[#This Row],[HHperShelter]]*(Table_Shelter[[#This Row],['#ofTemporaryShelterBuilt]]+Table_Shelter[[#This Row],['#ofTemporaryShelterUnderConstruction]]+Table_Shelter[[#This Row],['#ofPermanentHouseUnderConstruction]]) -> 0 | Q34: =IFERROR(VLOOKUP(Table_Shelter[[#This Row],[CampName]],CL,2,0),"") -> MMR012CMP078 | R34: =IFERROR(VLOOKUP(Table_Shelter[[#This Row],[CampName]],CL,3,0),"") -> Close | S34: =IFERROR(Table_Shelter[[#This Row],[HHCovered]]/VLOOKUP(Table_Shelter[[#This Row],[CampName]],CL,4,0),"") -> 
A35: 2013-10-01 | B35: TDC/Natala Government | C35: TDC/Natala Government | D35: Rakhine | E35: Maungdaw | F35: Maw Ya Waddy | G35: 1 | M35: 11 | N35: 11 | P35: =Table_Shelter[[#This Row],[HHperShelter]]*(Table_Shelter[[#This Row],['#ofTemporaryShelterBuilt]]+Table_Shelter[[#This Row],['#ofTemporaryShelterUnderConstruction]]+Table_Shelter[[#This Row],['#ofPermanentHouseUnderConstruction]]) -> 0 | Q35: =IFERROR(VLOOKUP(Table_Shelter[[#This Row],[CampName]],CL,2,0),"") -> MMR012CMP076 | R35: =IFERROR(VLOOKUP(Table_Shelter[[#This Row],[CampName]],CL,3,0),"") -> Close | S35: =IFERROR(Table_Shelter[[#This Row],[HHCovered]]/VLOOKUP(Table_Shelter[[#This Row],[CampName]],CL,4,0),"") -> 
A36: 2013-10-01 | B36: UNHCR/BAJ | C36: UNHCR/BAJ | D36: Rakhine | E36: Maungdaw | F36: Maw Ya Waddy | G36: 1 | M36: 98 | N36: 102 | P36: =Table_Shelter[[#This Row],[HHperShelter]]*(Table_Shelter[[#This Row],['#ofTemporaryShelterBuilt]]+Table_Shelter[[#This Row],['#ofTemporaryShelterUnderConstruction]]+Table_Shelter[[#This Row],['#ofPermanentHouseUnderConstruction]]) -> 0 | Q36: =IFERROR(VLOOKUP(Table_Shelter[[#This Row],[CampName]],CL,2,0),"") -> MMR012CMP076 | R36: =IFERROR(VLOOKUP(Table_Shelter[[#This Row],[CampName]],CL,3,0),"") -> Close | S36: =IFERROR(Table_Shelter[[#This Row],[HHCovered]]/VLOOKUP(Table_Shelter[[#This Row],[CampName]],CL,4,0),"") -> 
A37: 2013-10-01 | B37: TDC/Natala Government | C37: TDC/Natala Government | D37: Rakhine | E37: Maungdaw | F37: Shwe Yin Aye | G37: 1 | M37: 77 | N37: 77 | P37: =Table_Shelter[[#This Row],[HHperShelter]]*(Table_Shelter[[#This Row],['#ofTemporaryShelterBuilt]]+Table_Shelter[[#This Row],['#ofTemporaryShelterUnderConstruction]]+Table_Shelter[[#This Row],['#ofPermanentHouseUnderConstruction]]) -> 0 | Q37: =IFERROR(VLOOKUP(Table_Shelter[[#This Row],[CampName]],CL,2,0),"") ->  | R37: =IFERROR(VLOOKUP(Table_Shelter[[#This Row],[CampName]],CL,3,0),"") ->  | S37: =IFERROR(Table_Shelter[[#This Row],[HHCovered]]/VLOOKUP(Table_Shelter[[#This Row],[CampName]],CL,4,0),"") -> 
A38: 2013-10-01 | B38: CARE | C38: CARE | D38: Rakhine | E38: Maungdaw | F38: Tha Yay Kone Baung | G38: 1 | M38: 103 | N38: 103 | P38: =Table_Shelter[[#This Row],[HHperShelter]]*(Table_Shelter[[#This Row],['#ofTemporaryShelterBuilt]]+Table_Shelter[[#This Row],['#ofTemporaryShelterUnderConstruction]]+Table_Shelter[[#This Row],['#ofPermanentHouseUnderConstruction]]) -> 0 | Q38: =IFERROR(VLOOKUP(Table_Shelter[[#This Row],[CampName]],CL,2,0),"") -> MMR012CMP077 | R38: =IFERROR(VLOOKUP(Table_Shelter[[#This Row],[CampName]],CL,3,0),"") -> Close | S38: =IFERROR(Table_Shelter[[#This Row],[HHCovered]]/VLOOKUP(Table_Shelter[[#This Row],[CampName]],CL,4,0),"") -> 
A39: 2013-10-01 | B39: TDC/Natala Government | C39: TDC/Natala Government | D39: Rakhine | E39: Maungdaw | F39: Tha Yay Kone Baung | G39: 1 | M39: 12 | N39: 12 | P39: =Table_Shelter[[#This Row],[HHperShelter]]*(Table_Shelter[[#This Row],['#ofTemporaryShelterBuilt]]+Table_Shelter[[#This Row],['#ofTemporaryShelterUnderConstruction]]+Table_Shelter[[#This Row],['#ofPermanentHouseUnderConstruction]]) -> 0 | Q39: =IFERROR(VLOOKUP(Table_Shelter[[#This Row],[CampName]],CL,2,0),"") -> MMR012CMP077 | R39: =IFERROR(VLOOKUP(Table_Shelter[[#This Row],[CampName]],CL,3,0),"") -> Close | S39: =IFERROR(Table_Shelter[[#This Row],[HHCovered]]/VLOOKUP(Table_Shelter[[#This Row],[CampName]],CL,4,0),"") -> 
A40: 2013-10-01 | B40: TDC/Natala Government | C40: TDC/Natala Government | D40: Rakhine | E40: Maungdaw | F40: Wai Thar Li | G40: 1 | M40: 9 | N40: 9 | P40: =Table_Shelter[[#This Row],[HHperShelter]]*(Table_Shelter[[#This Row],['#ofTemporaryShelterBuilt]]+Table_Shelter[[#This Row],['#ofTemporaryShelterUnderConstruction]]+Table_Shelter[[#This Row],['#ofPermanentHouseUnderConstruction]]) -> 0 | Q40: =IFERROR(VLOOKUP(Table_Shelter[[#This Row],[CampName]],CL,2,0),"") ->  | R40: =IFERROR(VLOOKUP(Table_Shelter[[#This Row],[CampName]],CL,3,0),"") ->  | S40: =IFERROR(Table_Shelter[[#This Row],[HHCovered]]/VLOOKUP(Table_Shelter[[#This Row],[CampName]],CL,4,0),"") -> 
A41: 2013-10-01 | B41: UNHCR/BAJ | C41: UNHCR/BAJ | D41: Rakhine | E41: Maungdaw | G41: 1 | M41: 11 | N41: 11 | P41: =Table_Shelter[[#This Row],[HHperShelter]]*(Table_Shelter[[#This Row],['#ofTemporaryShelterBuilt]]+Table_Shelter[[#This Row],['#ofTemporaryShelterUnderConstruction]]+Table_Shelter[[#This Row],['#ofPermanentHouseUnderConstruction]]) -> 0 | Q41: =IFERROR(VLOOKUP(Table_Shelter[[#This Row],[CampName]],CL,2,0),"") ->  | R41: =IFERROR(VLOOKUP(Table_Shelter[[#This Row],[CampName]],CL,3,0),"") ->  | S41: =IFERROR(Table_Shelter[[#This Row],[HHCovered]]/VLOOKUP(Table_Shelter[[#This Row],[CampName]],CL,4,0),"") -> 
A42: 2013-10-01 | B42: UNHCR | C42: UNHCR | D42: Rakhine | E42: Meybon | F42: Kan Thar Htwat Wa | G42: 8 | J42: 6 | K42: 6 | P42: =Table_Shelter[[#This Row],[HHperShelter]]*(Table_Shelter[[#This Row],['#ofTemporaryShelterBuilt]]+Table_Shelter[[#This Row],['#ofTemporaryShelterUnderConstruction]]+Table_Shelter[[#This Row],['#ofPermanentHouseUnderConstruction]]) -> 48 | Q42: =IFERROR(VLOOKUP(Table_Shelter[[#This Row],[CampName]],CL,2,0),"") -> MMR012CMP013 | R42: =IFERROR(VLOOKUP(Table_Shelter[[#This Row],[CampName]],CL,3,0),"") -> Open | S42: =IFERROR(Table_Shelter[[#This Row],[HHCovered]]/VLOOKUP(Table_Shelter[[#This Row],[CampName]],CL,4,0),"") -> 1.090909091
A43: 2013-10-01 | B43: UNHCR | C43: UNHCR | D43: Rakhine | E43: Meybon | F43: Taung Paw | G43: 8 | J43: 89 | K43: 89 | P43: =Table_Shelter[[#This Row],[HHperShelter]]*(Table_Shelter[[#This Row],['#ofTemporaryShelterBuilt]]+Table_Shelter[[#This Row],['#ofTemporaryShelterUnderConstruction]]+Table_Shelter[[#This Row],['#ofPermanentHouseUnderConstruction]]) -> 712 | Q43: =IFERROR(VLOOKUP(Table_Shelter[[#This Row],[CampName]],CL,2,0),"") -> MMR012CMP014 | R43: =IFERROR(VLOOKUP(Table_Shelter[[#This Row],[CampName]],CL,3,0),"") -> Open | S43: =IFERROR(Table_Shelter[[#This Row],[HHCovered]]/VLOOKUP(Table_Shelter[[#This Row],[CampName]],CL,4,0),"") -> 0.9468085106
A44: 2013-10-01 | B44: Government | C44: Government | D44: Rakhine | E44: Minbya | F44: Aung Taing | G44: 8 | J44: 10 | K44: 10 | P44: =Table_Shelter[[#This Row],[HHperShelter]]*(Table_Shelter[[#This Row],['#ofTemporaryShelterBuilt]]+Table_Shelter[[#This Row],['#ofTemporaryShelterUnderConstruction]]+Table_Shelter[[#This Row],['#ofPermanentHouseUnderConstruction]]) -> 80 | Q44: =IFERROR(VLOOKUP(Table_Shelter[[#This Row],[CampName]],CL,2,0),"") -> MMR012CMP006 | R44: =IFERROR(VLOOKUP(Table_Shelter[[#This Row],[CampName]],CL,3,0),"") -> Open | S44: =IFERROR(Table_Shelter[[#This Row],[HHCovered]]/VLOOKUP(Table_Shelter[[#This Row],[CampName]],CL,4,0),"") -> 0.9302325581
A45: 2013-10-01 | B45: Government | C45: Government | D45: Rakhine | E45: Minbya | F45: Paik Thay | G45: 8 | J45: 2 | K45: 2 | P45: =Table_Shelter[[#This Row],[HHperShelter]]*(Table_Shelter[[#This Row],['#ofTemporaryShelterBuilt]]+Table_Shelter[[#This Row],['#ofTemporaryShelterUnderConstruction]]+Table_Shelter[[#This Row],['#ofPermanentHouseUnderConstruction]]) -> 16 | Q45: =IFERROR(VLOOKUP(Table_Shelter[[#This Row],[CampName]],CL,2,0),"") -> MMR012CMP001 | R45: =IFERROR(VLOOKUP(Table_Shelter[[#This Row],[CampName]],CL,3,0),"") -> Open | S45: =IFERROR(Table_Shelter[[#This Row],[HHCovered]]/VLOOKUP(Table_Shelter[[#This Row],[CampName]],CL,4,0),"") -> 1
A46: 2013-10-01 | B46: MRCS | C46: MRCS | D46: Rakhine | E46: Minbya | F46: Paik Thay | G46: 8 | J46: 1 | L46: 1 | P46: =Table_Shelter[[#This Row],[HHperShelter]]*(Table_Shelter[[#This Row],['#ofTemporaryShelterBuilt]]+Table_Shelter[[#This Row],['#ofTemporaryShelterUnderConstruction]]+Table_Shelter[[#This Row],['#ofPermanentHouseUnderConstruction]]) -> 8 | Q46: =IFERROR(VLOOKUP(Table_Shelter[[#This Row],[CampName]],CL,2,0),"") -> MMR012CMP001 | R46: =IFERROR(VLOOKUP(Table_Shelter[[#This Row],[CampName]],CL,3,0),"") -> Open | S46: =IFERROR(Table_Shelter[[#This Row],[HHCovered]]/VLOOKUP(Table_Shelter[[#This Row],[CampName]],CL,4,0),"") -> 0.5
A47: 2013-10-01 | B47: Government | C47: Government | D47: Rakhine | E47: Minbya | F47: Sam Ba Le | G47: 8 | J47: 28 | K47: 28 | P47: =Table_Shelter[[#This Row],[HHperShelter]]*(Table_Shelter[[#This Row],['#ofTemporaryShelterBuilt]]+Table_Shelter[[#This Row],['#ofTemporaryShelterUnderConstruction]]+Table_Shelter[[#This Row],['#ofPermanentHouseUnderConstruction]]) -> 224 | Q47: =IFERROR(VLOOKUP(Table_Shelter[[#This Row],[CampName]],CL,2,0),"") -> MMR012CMP008 | R47: =IFERROR(VLOOKUP(Table_Shelter[[#This Row],[CampName]],CL,3,0),"") -> Open | S47: =IFERROR(Table_Shelter[[#This Row],[HHCovered]]/VLOOKUP(Table_Shelter[[#This Row],[CampName]],CL,4,0),"") -> 0.9955555556
A48: 2013-10-01 | B48: MRCS | C48: MRCS | D48: Rakhine | E48: Minbya | F48: Sam Ba Le | G48: 8 | J48: 1 | L48: 1 | P48: =Table_Shelter[[#This Row],[HHperShelter]]*(Table_Shelter[[#This Row],['#ofTemporaryShelterBuilt]]+Table_Shelter[[#This Row],['#ofTemporaryShelterUnderConstruction]]+Table_Shelter[[#This Row],['#ofPermanentHouseUnderConstruction]]) -> 8 | Q48: =IFERROR(VLOOKUP(Table_Shelter[[#This Row],[CampName]],CL,2,0),"") -> MMR012CMP008 | R48: =IFERROR(VLOOKUP(Table_Shelter[[#This Row],[CampName]],CL,3,0),"") -> Open | S48: =IFERROR(Table_Shelter[[#This Row],[HHCovered]]/VLOOKUP(Table_Shelter[[#This Row],[CampName]],CL,4,0),"") -> 0.03555555556
A49: 2013-10-01 | B49: Government | C49: Government | D49: Rakhine | E49: Minbya | F49: San Htoe Tan | G49: 8 | J49: 10 | K49: 10 | P49: =Table_Shelter[[#This Row],[HHperShelter]]*(Table_Shelter[[#This Row],['#ofTemporaryShelterBuilt]]+Table_Shelter[[#This Row],['#ofTemporaryShelterUnderConstruction]]+Table_Shelter[[#This Row],['#ofPermanentHouseUnderConstruction]]) -> 80 | Q49: =IFERROR(VLOOKUP(Table_Shelter[[#This Row],[CampName]],CL,2,0),"") -> MMR012CMP003 | R49: =IFERROR(VLOOKUP(Table_Shelter[[#This Row],[CampName]],CL,3,0),"") -> Open | S49: =IFERROR(Table_Shelter[[#This Row],[HHCovered]]/VLOOKUP(Table_Shelter[[#This Row],[CampName]],CL,4,0),"") -> 0.64
A50: 2013-10-01 | B50: MRCS | C50: MRCS | D50: Rakhine | E50: Minbya | F50: San Htoe Tan | G50: 8 | J50: 1 | L50: 1 | P50: =Table_Shelter[[#This Row],[HHperShelter]]*(Table_Shelter[[#This Row],['#ofTemporaryShelterBuilt]]+Table_Shelter[[#This Row],['#ofTemporaryShelterUnderConstruction]]+Table_Shelter[[#This Row],['#ofPermanentHouseUnderConstruction]]) -> 8 | Q50: =IFERROR(VLOOKUP(Table_Shelter[[#This Row],[CampName]],CL,2,0),"") -> MMR012CMP003 | R50: =IFERROR(VLOOKUP(Table_Shelter[[#This Row],[CampName]],CL,3,0),"") -> Open | S50: =IFERROR(Table_Shelter[[#This Row],[HHCovered]]/VLOOKUP(Table_Shelter[[#This Row],[CampName]],CL,4,0),"") -> 0.064
A51: 2013-10-01 | B51: Government | C51: Government | D51: Rakhine | E51: Minbya | F51: Tha Dar | G51: 8 | J51: 14 | K51: 14 | P51: =Table_Shelter[[#This Row],[HHperShelter]]*(Table_Shelter[[#This Row],['#ofTemporaryShelterBuilt]]+Table_Shelter[[#This Row],['#ofTemporaryShelterUnderConstruction]]+Table_Shelter[[#This Row],['#ofPermanentHouseUnderConstruction]]) -> 112 | Q51: =IFERROR(VLOOKUP(Table_Shelter[[#This Row],[CampName]],CL,2,0),"") -> MMR012CMP002 | R51: =IFERROR(VLOOKUP(Table_Shelter[[#This Row],[CampName]],CL,3,0),"") -> Open | S51: =IFERROR(Table_Shelter[[#This Row],[HHCovered]]/VLOOKUP(Table_Shelter[[#This Row],[CampName]],CL,4,0),"") -> 0.5517241379
A52: 2013-10-01 | B52: MRCS | C52: MRCS | D52: Rakhine | E52: Minbya | F52: Tha Dar | G52: 8 | J52: 13 | L52: 13 | P52: =Table_Shelter[[#This Row],[HHperShelter]]*(Table_Shelter[[#This Row],['#ofTemporaryShelterBuilt]]+Table_Shelter[[#This Row],['#ofTemporaryShelterUnderConstruction]]+Table_Shelter[[#This Row],['#ofPermanentHouseUnderConstruction]]) -> 104 | Q52: =IFERROR(VLOOKUP(Table_Shelter[[#This Row],[CampName]],CL,2,0),"") -> MMR012CMP002 | R52: =IFERROR(VLOOKUP(Table_Shelter[[#This Row],[CampName]],CL,3,0),"") -> Open | S52: =IFERROR(Table_Shelter[[#This Row],[HHCovered]]/VLOOKUP(Table_Shelter[[#This Row],[CampName]],CL,4,0),"") -> 0.5123152709
A53: 2013-10-01 | B53: Government | C53: Government | D53: Rakhine | E53: Minbya | F53: Tha Yet Oak | G53: 8 | J53: 20 | K53: 20 | P53: =Table_Shelter[[#This Row],[HHperShelter]]*(Table_Shelter[[#This Row],['#ofTemporaryShelterBuilt]]+Table_Shelter[[#This Row],['#ofTemporaryShelterUnderConstruction]]+Table_Shelter[[#This Row],['#ofPermanentHouseUnderConstruction]]) -> 160 | Q53: =IFERROR(VLOOKUP(Table_Shelter[[#This Row],[CampName]],CL,2,0),"") -> MMR012CMP005 | R53: =IFERROR(VLOOKUP(Table_Shelter[[#This Row],[CampName]],CL,3,0),"") -> Open | S53: =IFERROR(Table_Shelter[[#This Row],[HHCovered]]/VLOOKUP(Table_Shelter[[#This Row],[CampName]],CL,4,0),"") -> 0.5405405405
A54: 2013-10-01 | B54: MRCS | C54: MRCS | D54: Rakhine | E54: Minbya | F54: Tha Yet Oak | G54: 8 | J54: 6 | L54: 6 | P54: =Table_Shelter[[#This Row],[HHperShelter]]*(Table_Shelter[[#This Row],['#ofTemporaryShelterBuilt]]+Table_Shelter[[#This Row],['#ofTemporaryShelterUnderConstruction]]+Table_Shelter[[#This Row],['#ofPermanentHouseUnderConstruction]]) -> 48 | Q54: =IFERROR(VLOOKUP(Table_Shelter[[#This Row],[CampName]],CL,2,0),"") -> MMR012CMP005 | R54: =IFERROR(VLOOKUP(Table_Shelter[[#This Row],[CampName]],CL,3,0),"") -> Open | S54: =IFERROR(Table_Shelter[[#This Row],[HHCovered]]/VLOOKUP(Table_Shelter[[#This Row],[CampName]],CL,4,0),"") -> 0.1621621622
A55: 2013-10-01 | B55: Government | C55: Government | D55: Rakhine | E55: Mrauk_U | F55: Pa Rein | G55: 8 | J55: 26 | K55: 26 | P55: =Table_Shelter[[#This Row],[HHperShelter]]*(Table_Shelter[[#This Row],['#ofTemporaryShelterBuilt]]+Table_Shelter[[#This Row],['#ofTemporaryShelterUnderConstruction]]+Table_Shelter[[#This Row],['#ofPermanentHouseUnderConstruction]]) -> 208 | Q55: =IFERROR(VLOOKUP(Table_Shelter[[#This Row],[CampName]],CL,2,0),"") -> MMR012CMP009 | R55: =IFERROR(VLOOKUP(Table_Shelter[[#This Row],[CampName]],CL,3,0),"") -> Open | S55: =IFERROR(Table_Shelter[[#This Row],[HHCovered]]/VLOOKUP(Table_Shelter[[#This Row],[CampName]],CL,4,0),"") -> 0.8666666667
A56: 2013-10-01 | B56: MRCS | C56: MRCS | D56: Rakhine | E56: Mrauk_U | F56: Pa Rein | G56: 8 | J56: 2 | L56: 2 | P56: =Table_Shelter[[#This Row],[HHperShelter]]*(Table_Shelter[[#This Row],['#ofTemporaryShelterBuilt]]+Table_Shelter[[#This Row],['#ofTemporaryShelterUnderConstruction]]+Table_Shelter[[#This Row],['#ofPermanentHouseUnderConstruction]]) -> 16 | Q56: =IFERROR(VLOOKUP(Table_Shelter[[#This Row],[CampName]],CL,2,0),"") -> MMR012CMP009 | R56: =IFERROR(VLOOKUP(Table_Shelter[[#This Row],[CampName]],CL,3,0),"") -> Open | S56: =IFERROR(Table_Shelter[[#This Row],[HHCovered]]/VLOOKUP(Table_Shelter[[#This Row],[CampName]],CL,4,0),"") -> 0.06666666667
A57: 2013-10-01 | B57: Government | C57: Government | D57: Rakhine | E57: Mrauk_U | F57: Yai Thei-Muslim | G57: 8 | J57: 46 | K57: 46 | P57: =Table_Shelter[[#This Row],[HHperShelter]]*(Table_Shelter[[#This Row],['#ofTemporaryShelterBuilt]]+Table_Shelter[[#This Row],['#ofTemporaryShelterUnderConstruction]]+Table_Shelter[[#This Row],['#ofPermanentHouseUnderConstruction]]) -> 368 | Q57: =IFERROR(VLOOKUP(Table_Shelter[[#This Row],[CampName]],CL,2,0),"") -> MMR012CMP010 | R57: =IFERROR(VLOOKUP(Table_Shelter[[#This Row],[CampName]],CL,3,0),"") -> Open | S57: =IFERROR(Table_Shelter[[#This Row],[HHCovered]]/VLOOKUP(Table_Shelter[[#This Row],[CampName]],CL,4,0),"") -> 0.9246231156
A58: 2013-10-01 | B58: DRC | C58: DRC | D58: Rakhine | E58: Pauktaw | F58: Ah Nauk Ywe | G58: 8 | J58: 96 | K58: 96 | L58: 0 | P58: =Table_Shelter[[#This Row],[HHperShelter]]*(Table_Shelter[[#This Row],['#ofTemporaryShelterBuilt]]+Table_Shelter[[#This Row],['#ofTemporaryShelterUnderConstruction]]+Table_Shelter[[#This Row],['#ofPermanentHouseUnderConstruction]]) -> 768 | Q58: =IFERROR(VLOOKUP(Table_Shelter[[#This Row],[CampName]],CL,2,0),"") -> MMR012CMP016 | R58: =IFERROR(VLOOKUP(Table_Shelter[[#This Row],[CampName]],CL,3,0),"") -> Open | S58: =IFERROR(Table_Shelter[[#This Row],[HHCovered]]/VLOOKUP(Table_Shelter[[#This Row],[CampName]],CL,4,0),"") -> 0.8727272727
A59: 2013-10-01 | B59: Government | C59: Government | D59: Rakhine | E59: Pauktaw | F59: Ba Wan Chaung Wa Su | G59: 10 | J59: 3 | K59: 3 | P59: =Table_Shelter[[#This Row],[HHperShelter]]*(Table_Shelter[[#This Row],['#ofTemporaryShelterBuilt]]+Table_Shelter[[#This Row],['#ofTemporaryShelterUnderConstruction]]+Table_Shelter[[#This Row],['#ofPermanentHouseUnderConstruction]]) -> 30 | Q59: =IFERROR(VLOOKUP(Table_Shelter[[#This Row],[CampName]],CL,2,0),"") -> MMR012CMP015 | R59: =IFERROR(VLOOKUP(Table_Shelter[[#This Row],[CampName]],CL,3,0),"") -> Open | S59: =IFERROR(Table_Shelter[[#This Row],[HHCovered]]/VLOOKUP(Table_Shelter[[#This Row],[CampName]],CL,4,0),"") -> 1.428571429
A60: 2013-08-23 | B60: Government | C60: Government | D60: Rakhine | E60: Pauktaw | F60: Kyein Ni Pyin | G60: 8 | J60: 9 | K60: 9 | P60: =Table_Shelter[[#This Row],[HHperShelter]]*(Table_Shelter[[#This Row],['#ofTemporaryShelterBuilt]]+Table_Shelter[[#This Row],['#ofTemporaryShelterUnderConstruction]]+Table_Shelter[[#This Row],['#ofPermanentHouseUnderConstruction]]) -> 72 | Q60: =IFERROR(VLOOKUP(Table_Shelter[[#This Row],[CampName]],CL,2,0),"") -> MMR012CMP018 | R60: =IFERROR(VLOOKUP(Table_Shelter[[#This Row],[CampName]],CL,3,0),"") -> Open | S60: =IFERROR(Table_Shelter[[#This Row],[HHCovered]]/VLOOKUP(Table_Shelter[[#This Row],[CampName]],CL,4,0),"") -> 0.06889952153
A61: 2013-10-01 | B61: UNHCR | C61: UNHCR | D61: Rakhine | E61: Pauktaw | F61: Kyein Ni Pyin | G61: 8 | J61: 98 | K61: 98 | P61: =Table_Shelter[[#This Row],[HHperShelter]]*(Table_Shelter[[#This Row],['#ofTemporaryShelterBuilt]]+Table_Shelter[[#This Row],['#ofTemporaryShelterUnderConstruction]]+Table_Shelter[[#This Row],['#ofPermanentHouseUnderConstruction]]) -> 784 | Q61: =IFERROR(VLOOKUP(Table_Shelter[[#This Row],[CampName]],CL,2,0),"") -> MMR012CMP018 | R61: =IFERROR(VLOOKUP(Table_Shelter[[#This Row],[CampName]],CL,3,0),"") -> Open | S61: =IFERROR(Table_Shelter[[#This Row],[HHCovered]]/VLOOKUP(Table_Shelter[[#This Row],[CampName]],CL,4,0),"") -> 0.7502392344
A62: 2013-10-01 | B62: UNHCR | C62: UNHCR | D62: Rakhine | E62: Pauktaw | F62: Nget Chaung | G62: 8 | J62: 169 | K62: 169 | P62: =Table_Shelter[[#This Row],[HHperShelter]]*(Table_Shelter[[#This Row],['#ofTemporaryShelterBuilt]]+Table_Shelter[[#This Row],['#ofTemporaryShelterUnderConstruction]]+Table_Shelter[[#This Row],['#ofPermanentHouseUnderConstruction]]) -> 1352 | Q62: =IFERROR(VLOOKUP(Table_Shelter[[#This Row],[CampName]],CL,2,0),"") -> MMR012CMP017 | R62: =IFERROR(VLOOKUP(Table_Shelter[[#This Row],[CampName]],CL,3,0),"") -> Open | S62: =IFERROR(Table_Shelter[[#This Row],[HHCovered]]/VLOOKUP(Table_Shelter[[#This Row],[CampName]],CL,4,0),"") -> 1.149659864
A63: 2013-10-01 | B63: DRC | C63: DRC | D63: Rakhine | E63: Pauktaw | F63: Sin Tet Maw | G63: 8 | J63: 106 | K63: 106 | P63: =Table_Shelter[[#This Row],[HHperShelter]]*(Table_Shelter[[#This Row],['#ofTemporaryShelterBuilt]]+Table_Shelter[[#This Row],['#ofTemporaryShelterUnderConstruction]]+Table_Shelter[[#This Row],['#ofPermanentHouseUnderConstruction]]) -> 848 | Q63: =IFERROR(VLOOKUP(Table_Shelter[[#This Row],[CampName]],CL,2,0),"") -> MMR012CMP019 | R63: =IFERROR(VLOOKUP(Table_Shelter[[#This Row],[CampName]],CL,3,0),"") -> Open | S63: =IFERROR(Table_Shelter[[#This Row],[HHCovered]]/VLOOKUP(Table_Shelter[[#This Row],[CampName]],CL,4,0),"") -> 1.13368984
A64: 2013-10-01 | B64: Government | C64: Government | D64: Rakhine | E64: Pauktaw | F64: Ba Wan Chaung Wa Su | G64: 10 | M64: 3 | N64: 3 | P64: =Table_Shelter[[#This Row],[HHperShelter]]*(Table_Shelter[[#This Row],['#ofTemporaryShelterBuilt]]+Table_Shelter[[#This Row],['#ofTemporaryShelterUnderConstruction]]+Table_Shelter[[#This Row],['#ofPermanentHouseUnderConstruction]]) -> 0 | Q64: =IFERROR(VLOOKUP(Table_Shelter[[#This Row],[CampName]],CL,2,0),"") -> MMR012CMP015 | R64: =IFERROR(VLOOKUP(Table_Shelter[[#This Row],[CampName]],CL,3,0),"") -> Open | S64: =IFERROR(Table_Shelter[[#This Row],[HHCovered]]/VLOOKUP(Table_Shelter[[#This Row],[CampName]],CL,4,0),"") -> 0
A65: 2013-10-01 | B65: Government | C65: Government | D65: Rakhine | E65: Ramree | F65: Ramree Ward 6 | G65: 8 | J65: 12 | K65: 12 | P65: =Table_Shelter[[#This Row],[HHperShelter]]*(Table_Shelter[[#This Row],['#ofTemporaryShelterBuilt]]+Table_Shelter[[#This Row],['#ofTemporaryShelterUnderConstruction]]+Table_Shelter[[#This Row],['#ofPermanentHouseUnderConstruction]]) -> 96 | Q65: =IFERROR(VLOOKUP(Table_Shelter[[#This Row],[CampName]],CL,2,0),"") -> MMR012CMP037 | R65: =IFERROR(VLOOKUP(Table_Shelter[[#This Row],[CampName]],CL,3,0),"") -> Open | S65: =IFERROR(Table_Shelter[[#This Row],[HHCovered]]/VLOOKUP(Table_Shelter[[#This Row],[CampName]],CL,4,0),"") -> 1.684210526
A66: 2013-10-01 | B66: Government | C66: Government | D66: Rakhine | E66: Rathedaung | F66: Ah Nauk Pyin | G66: 8 | J66: 4 | K66: 4 | P66: =Table_Shelter[[#This Row],[HHperShelter]]*(Table_Shelter[[#This Row],['#ofTemporaryShelterBuilt]]+Table_Shelter[[#This Row],['#ofTemporaryShelterUnderConstruction]]+Table_Shelter[[#This Row],['#ofPermanentHouseUnderConstruction]]) -> 32 | Q66: =IFERROR(VLOOKUP(Table_Shelter[[#This Row],[CampName]],CL,2,0),"") -> MMR012CMP032 | R66: =IFERROR(VLOOKUP(Table_Shelter[[#This Row],[CampName]],CL,3,0),"") -> Open | S66: =IFERROR(Table_Shelter[[#This Row],[HHCovered]]/VLOOKUP(Table_Shelter[[#This Row],[CampName]],CL,4,0),"") -> 0.5614035088
A67: 2013-10-01 | B67: Government | C67: Government | D67: Rakhine | E67: Rathedaung | F67: Chein Khar Li | G67: 8 | J67: 24 | K67: 24 | P67: =Table_Shelter[[#This Row],[HHperShelter]]*(Table_Shelter[[#This Row],['#ofTemporaryShelterBuilt]]+Table_Shelter[[#This Row],['#ofTemporaryShelterUnderConstruction]]+Table_Shelter[[#This Row],['#ofPermanentHouseUnderConstruction]]) -> 192 | Q67: =IFERROR(VLOOKUP(Table_Shelter[[#This Row],[CampName]],CL,2,0),"") -> MMR012CMP033 | R67: =IFERROR(VLOOKUP(Table_Shelter[[#This Row],[CampName]],CL,3,0),"") -> Open | S67: =IFERROR(Table_Shelter[[#This Row],[HHCovered]]/VLOOKUP(Table_Shelter[[#This Row],[CampName]],CL,4,0),"") -> 0.8847926267
A68: 2013-10-01 | B68: Government | C68: Government | D68: Rakhine | E68: Rathedaung | F68: Koe Tan Kauk | G68: 8 | J68: 29 | K68: 29 | P68: =Table_Shelter[[#This Row],[HHperShelter]]*(Table_Shelter[[#This Row],['#ofTemporaryShelterBuilt]]+Table_Shelter[[#This Row],['#ofTemporaryShelterUnderConstruction]]+Table_Shelter[[#This Row],['#ofPermanentHouseUnderConstruction]]) -> 232 | Q68: =IFERROR(VLOOKUP(Table_Shelter[[#This Row],[CampName]],CL,2,0),"") -> MMR012CMP110 | R68: =IFERROR(VLOOKUP(Table_Shelter[[#This Row],[CampName]],CL,3,0),"") -> Open | S68: =IFERROR(Table_Shelter[[#This Row],[HHCovered]]/VLOOKUP(Table_Shelter[[#This Row],[CampName]],CL,4,0),"") -> 1.183673469
A69: 2013-10-01 | B69: Government | C69: Government | D69: Rakhine | E69: Rathedaung | F69: Nyaung Pin Gyi | G69: 8 | J69: 7 | K69: 7 | P69: =Table_Shelter[[#This Row],[HHperShelter]]*(Table_Shelter[[#This Row],['#ofTemporaryShelterBuilt]]+Table_Shelter[[#This Row],['#ofTemporaryShelterUnderConstruction]]+Table_Shelter[[#This Row],['#ofPermanentHouseUnderConstruction]]) -> 56 | Q69: =IFERROR(VLOOKUP(Table_Shelter[[#This Row],[CampName]],CL,2,0),"") -> MMR012CMP031 | R69: =IFERROR(VLOOKUP(Table_Shelter[[#This Row],[CampName]],CL,3,0),"") -> Open | S69: =IFERROR(Table_Shelter[[#This Row],[HHCovered]]/VLOOKUP(Table_Shelter[[#This Row],[CampName]],CL,4,0),"") -> 0.9032258065
A70: 2013-10-01 | B70: Government | C70: Government | D70: Rakhine | E70: Sittwe | F70: Basare | G70: 8 | J70: 52 | K70: 52 | P70: =Table_Shelter[[#This Row],[HHperShelter]]*(Table_Shelter[[#This Row],['#ofTemporaryShelterBuilt]]+Table_Shelter[[#This Row],['#ofTemporaryShelterUnderConstruction]]+Table_Shelter[[#This Row],['#ofPermanentHouseUnderConstruction]]) -> 416 | Q70: =IFERROR(VLOOKUP(Table_Shelter[[#This Row],[CampName]],CL,2,0),"") -> MMR012CMP039 | R70: =IFERROR(VLOOKUP(Table_Shelter[[#This Row],[CampName]],CL,3,0),"") -> Open | S70: =IFERROR(Table_Shelter[[#This Row],[HHCovered]]/VLOOKUP(Table_Shelter[[#This Row],[CampName]],CL,4,0),"") -> 1.007263923
A71: 2013-10-01 | B71: CARE | C71: CARE | D71: Rakhine | E71: Sittwe | F71: Baw Du Pha 1 | G71: 8 | J71: 50 | K71: 50 | P71: =Table_Shelter[[#This Row],[HHperShelter]]*(Table_Shelter[[#This Row],['#ofTemporaryShelterBuilt]]+Table_Shelter[[#This Row],['#ofTemporaryShelterUnderConstruction]]+Table_Shelter[[#This Row],['#ofPermanentHouseUnderConstruction]]) -> 400 | Q71: =IFERROR(VLOOKUP(Table_Shelter[[#This Row],[CampName]],CL,2,0),"") -> MMR012CMP113 | R71: =IFERROR(VLOOKUP(Table_Shelter[[#This Row],[CampName]],CL,3,0),"") -> Open | S71: =IFERROR(Table_Shelter[[#This Row],[HHCovered]]/VLOOKUP(Table_Shelter[[#This Row],[CampName]],CL,4,0),"") -> 0.4439511654
A72: 2013-10-01 | B72: Government | C72: Government | D72: Rakhine | E72: Sittwe | F72: Baw Du Pha 1 | G72: 8 | J72: 40 | K72: 40 | P72: =Table_Shelter[[#This Row],[HHperShelter]]*(Table_Shelter[[#This Row],['#ofTemporaryShelterBuilt]]+Table_Shelter[[#This Row],['#ofTemporaryShelterUnderConstruction]]+Table_Shelter[[#This Row],['#ofPermanentHouseUnderConstruction]]) -> 320 | Q72: =IFERROR(VLOOKUP(Table_Shelter[[#This Row],[CampName]],CL,2,0),"") -> MMR012CMP113 | R72: =IFERROR(VLOOKUP(Table_Shelter[[#This Row],[CampName]],CL,3,0),"") -> Open | S72: =IFERROR(Table_Shelter[[#This Row],[HHCovered]]/VLOOKUP(Table_Shelter[[#This Row],[CampName]],CL,4,0),"") -> 0.3551609323
A73: 2013-10-01 | B73: ICRC | C73: ICRC | D73: Rakhine | E73: Sittwe | F73: Baw Du Pha 1 | G73: 8 | J73: 5 | K73: 5 | P73: =Table_Shelter[[#This Row],[HHperShelter]]*(Table_Shelter[[#This Row],['#ofTemporaryShelterBuilt]]+Table_Shelter[[#This Row],['#ofTemporaryShelterUnderConstruction]]+Table_Shelter[[#This Row],['#ofPermanentHouseUnderConstruction]]) -> 40 | Q73: =IFERROR(VLOOKUP(Table_Shelter[[#This Row],[CampName]],CL,2,0),"") -> MMR012CMP113 | R73: =IFERROR(VLOOKUP(Table_Shelter[[#This Row],[CampName]],CL,3,0),"") -> Open | S73: =IFERROR(Table_Shelter[[#This Row],[HHCovered]]/VLOOKUP(Table_Shelter[[#This Row],[CampName]],CL,4,0),"") -> 0.04439511654
A74: 2013-10-01 | B74: MAUK | C74: MAUK | D74: Rakhine | E74: Sittwe | F74: Baw Du Pha 1 | G74: 8 | J74: 32 | K74: 32 | L74: 0 | P74: =Table_Shelter[[#This Row],[HHperShelter]]*(Table_Shelter[[#This Row],['#ofTemporaryShelterBuilt]]+Table_Shelter[[#This Row],['#ofTemporaryShelterUnderConstruction]]+Table_Shelter[[#This Row],['#ofPermanentHouseUnderConstruction]]) -> 256 | Q74: =IFERROR(VLOOKUP(Table_Shelter[[#This Row],[CampName]],CL,2,0),"") -> MMR012CMP113 | R74: =IFERROR(VLOOKUP(Table_Shelter[[#This Row],[CampName]],CL,3,0),"") -> Open | S74: =IFERROR(Table_Shelter[[#This Row],[HHCovered]]/VLOOKUP(Table_Shelter[[#This Row],[CampName]],CL,4,0),"") -> 0.2841287458
A75: 2013-10-01 | B75: Government | C75: Government | D75: Rakhine | E75: Sittwe | F75: Baw Du Pha 2 | G75: 8 | J75: 100 | K75: 100 | L75: 0 | P75: =Table_Shelter[[#This Row],[HHperShelter]]*(Table_Shelter[[#This Row],['#ofTemporaryShelterBuilt]]+Table_Shelter[[#This Row],['#ofTemporaryShelterUnderConstruction]]+Table_Shelter[[#This Row],['#ofPermanentHouseUnderConstruction]]) -> 800 | Q75: =IFERROR(VLOOKUP(Table_Shelter[[#This Row],[CampName]],CL,2,0),"") -> MMR012CMP114 | R75: =IFERROR(VLOOKUP(Table_Shelter[[#This Row],[CampName]],CL,3,0),"") -> Open | S75: =IFERROR(Table_Shelter[[#This Row],[HHCovered]]/VLOOKUP(Table_Shelter[[#This Row],[CampName]],CL,4,0),"") -> 0.6482982172
A76: 2013-10-01 | B76: ICRC | C76: ICRC | D76: Rakhine | E76: Sittwe | F76: Baw Du Pha 2 | G76: 8 | J76: 14 | K76: 14 | P76: =Table_Shelter[[#This Row],[HHperShelter]]*(Table_Shelter[[#This Row],['#ofTemporaryShelterBuilt]]+Table_Shelter[[#This Row],['#ofTemporaryShelterUnderConstruction]]+Table_Shelter[[#This Row],['#ofPermanentHouseUnderConstruction]]) -> 112 | Q76: =IFERROR(VLOOKUP(Table_Shelter[[#This Row],[CampName]],CL,2,0),"") -> MMR012CMP114 | R76: =IFERROR(VLOOKUP(Table_Shelter[[#This Row],[CampName]],CL,3,0),"") -> Open | S76: =IFERROR(Table_Shelter[[#This Row],[HHCovered]]/VLOOKUP(Table_Shelter[[#This Row],[CampName]],CL,4,0),"") -> 0.09076175041
A77: 2013-10-01 | B77: WFP | C77: WFP | D77: Rakhine | E77: Sittwe | F77: Baw Du Pha 2 | G77: 10 | J77: 40 | K77: 40 | P77: =Table_Shelter[[#This Row],[HHperShelter]]*(Table_Shelter[[#This Row],['#ofTemporaryShelterBuilt]]+Table_Shelter[[#This Row],['#ofTemporaryShelterUnderConstruction]]+Table_Shelter[[#This Row],['#ofPermanentHouseUnderConstruction]]) -> 400 | Q77: =IFERROR(VLOOKUP(Table_Shelter[[#This Row],[CampName]],CL,2,0),"") -> MMR012CMP114 | R77: =IFERROR(VLOOKUP(Table_Shelter[[#This Row],[CampName]],CL,3,0),"") -> Open | S77: =IFERROR(Table_Shelter[[#This Row],[HHCovered]]/VLOOKUP(Table_Shelter[[#This Row],[CampName]],CL,4,0),"") -> 0.3241491086
A78: 2013-10-01 | B78: CARE | C78: CARE | D78: Rakhine | E78: Sittwe | F78: Dar Pai | G78: 8 | J78: 41 | K78: 41 | P78: =Table_Shelter[[#This Row],[HHperShelter]]*(Table_Shelter[[#This Row],['#ofTemporaryShelterBuilt]]+Table_Shelter[[#This Row],['#ofTemporaryShelterUnderConstruction]]+Table_Shelter[[#This Row],['#ofPermanentHouseUnderConstruction]]) -> 328 | Q78: =IFERROR(VLOOKUP(Table_Shelter[[#This Row],[CampName]],CL,2,0),"") -> MMR012CMP041 | R78: =IFERROR(VLOOKUP(Table_Shelter[[#This Row],[CampName]],CL,3,0),"") -> Open | S78: =IFERROR(Table_Shelter[[#This Row],[HHCovered]]/VLOOKUP(Table_Shelter[[#This Row],[CampName]],CL,4,0),"") -> 0.1846846847
A79: 2013-10-01 | B79: Government | C79: Government | D79: Rakhine | E79: Sittwe | F79: Dar Pai | G79: 8 | J79: 141 | K79: 141 | P79: =Table_Shelter[[#This Row],[HHperShelter]]*(Table_Shelter[[#This Row],['#ofTemporaryShelterBuilt]]+Table_Shelter[[#This Row],['#ofTemporaryShelterUnderConstruction]]+Table_Shelter[[#This Row],['#ofPermanentHouseUnderConstruction]]) -> 1128 | Q79: =IFERROR(VLOOKUP(Table_Shelter[[#This Row],[CampName]],CL,2,0),"") -> MMR012CMP041 | R79: =IFERROR(VLOOKUP(Table_Shelter[[#This Row],[CampName]],CL,3,0),"") -> Open | S79: =IFERROR(Table_Shelter[[#This Row],[HHCovered]]/VLOOKUP(Table_Shelter[[#This Row],[CampName]],CL,4,0),"") -> 0.6351351351
A80: 2013-10-01 | B80: CARE | C80: CARE | D80: Rakhine | E80: Sittwe | F80: Khaung Doke Khar | G80: 8 | J80: 25 | K80: 25 | P80: =Table_Shelter[[#This Row],[HHperShelter]]*(Table_Shelter[[#This Row],['#ofTemporaryShelterBuilt]]+Table_Shelter[[#This Row],['#ofTemporaryShelterUnderConstruction]]+Table_Shelter[[#This Row],['#ofPermanentHouseUnderConstruction]]) -> 200 | Q80: =IFERROR(VLOOKUP(Table_Shelter[[#This Row],[CampName]],CL,2,0),"") -> MMR012CMP042 | R80: =IFERROR(VLOOKUP(Table_Shelter[[#This Row],[CampName]],CL,3,0),"") -> Open | S80: =IFERROR(Table_Shelter[[#This Row],[HHCovered]]/VLOOKUP(Table_Shelter[[#This Row],[CampName]],CL,4,0),"") -> 0.2528445006
A81: 2013-10-01 | B81: Government | C81: Government | D81: Rakhine | E81: Sittwe | F81: Khaung Doke Khar | G81: 8 | J81: 75 | K81: 75 | P81: =Table_Shelter[[#This Row],[HHperShelter]]*(Table_Shelter[[#This Row],['#ofTemporaryShelterBuilt]]+Table_Shelter[[#This Row],['#ofTemporaryShelterUnderConstruction]]+Table_Shelter[[#This Row],['#ofPermanentHouseUnderConstruction]]) -> 600 | Q81: =IFERROR(VLOOKUP(Table_Shelter[[#This Row],[CampName]],CL,2,0),"") -> MMR012CMP042 | R81: =IFERROR(VLOOKUP(Table_Shelter[[#This Row],[CampName]],CL,3,0),"") -> Open | S81: =IFERROR(Table_Shelter[[#This Row],[HHCovered]]/VLOOKUP(Table_Shelter[[#This Row],[CampName]],CL,4,0),"") -> 0.7585335019
A82: 2013-10-01 | B82: Government | C82: Government | D82: Rakhine | E82: Sittwe | F82: Maw Ti Ngar | G82: 8 | J82: 78 | K82: 78 | P82: =Table_Shelter[[#This Row],[HHperShelter]]*(Table_Shelter[[#This Row],['#ofTemporaryShelterBuilt]]+Table_Shelter[[#This Row],['#ofTemporaryShelterUnderConstruction]]+Table_Shelter[[#This Row],['#ofPermanentHouseUnderConstruction]]) -> 624 | Q82: =IFERROR(VLOOKUP(Table_Shelter[[#This Row],[CampName]],CL,2,0),"") -> MMR012CMP092 | R82: =IFERROR(VLOOKUP(Table_Shelter[[#This Row],[CampName]],CL,3,0),"") -> Open | S82: =IFERROR(Table_Shelter[[#This Row],[HHCovered]]/VLOOKUP(Table_Shelter[[#This Row],[CampName]],CL,4,0),"") -> 0.9355322339
A83: 2013-10-01 | B83: UNHCR | C83: UNHCR | D83: Rakhine | E83: Sittwe | F83: Ohn Taw Chay | G83: 8 | J83: 80 | K83: 80 | P83: =Table_Shelter[[#This Row],[HHperShelter]]*(Table_Shelter[[#This Row],['#ofTemporaryShelterBuilt]]+Table_Shelter[[#This Row],['#ofTemporaryShelterUnderConstruction]]+Table_Shelter[[#This Row],['#ofPermanentHouseUnderConstruction]]) -> 640 | Q83: =IFERROR(VLOOKUP(Table_Shelter[[#This Row],[CampName]],CL,2,0),"") -> MMR012CMP098 | R83: =IFERROR(VLOOKUP(Table_Shelter[[#This Row],[CampName]],CL,3,0),"") -> Open | S83: =IFERROR(Table_Shelter[[#This Row],[HHCovered]]/VLOOKUP(Table_Shelter[[#This Row],[CampName]],CL,4,0),"") -> 1.020733652
A84: 2013-10-01 | B84: CARE | C84: CARE | D84: Rakhine | E84: Sittwe | F84: Ohn Taw Gyi (North) | G84: 8 | J84: 45 | K84: 45 | P84: =Table_Shelter[[#This Row],[HHperShelter]]*(Table_Shelter[[#This Row],['#ofTemporaryShelterBuilt]]+Table_Shelter[[#This Row],['#ofTemporaryShelterUnderConstruction]]+Table_Shelter[[#This Row],['#ofPermanentHouseUnderConstruction]]) -> 360 | Q84: =IFERROR(VLOOKUP(Table_Shelter[[#This Row],[CampName]],CL,2,0),"") -> MMR012CMP115 | R84: =IFERROR(VLOOKUP(Table_Shelter[[#This Row],[CampName]],CL,3,0),"") -> Open | S84: =IFERROR(Table_Shelter[[#This Row],[HHCovered]]/VLOOKUP(Table_Shelter[[#This Row],[CampName]],CL,4,0),"") -> 0.2416107383
A85: 2013-10-01 | B85: Government | C85: Government | D85: Rakhine | E85: Sittwe | F85: Ohn Taw Gyi (North) | G85: 8 | J85: 60 | K85: 60 | P85: =Table_Shelter[[#This Row],[HHperShelter]]*(Table_Shelter[[#This Row],['#ofTemporaryShelterBuilt]]+Table_Shelter[[#This Row],['#ofTemporaryShelterUnderConstruction]]+Table_Shelter[[#This Row],['#ofPermanentHouseUnderConstruction]]) -> 480 | Q85: =IFERROR(VLOOKUP(Table_Shelter[[#This Row],[CampName]],CL,2,0),"") -> MMR012CMP115 | R85: =IFERROR(VLOOKUP(Table_Shelter[[#This Row],[CampName]],CL,3,0),"") -> Open | S85: =IFERROR(Table_Shelter[[#This Row],[HHCovered]]/VLOOKUP(Table_Shelter[[#This Row],[CampName]],CL,4,0),"") -> 0.322147651
A86: 2013-10-01 | B86: MRF | C86: MRF | D86: Rakhine | E86: Sittwe | F86: Ohn Taw Gyi (North) | G86: 8 | J86: 115 | K86: 115 | P86: =Table_Shelter[[#This Row],[HHperShelter]]*(Table_Shelter[[#This Row],['#ofTemporaryShelterBuilt]]+Table_Shelter[[#This Row],['#ofTemporaryShelterUnderConstruction]]+Table_Shelter[[#This Row],['#ofPermanentHouseUnderConstruction]]) -> 920 | Q86: =IFERROR(VLOOKUP(Table_Shelter[[#This Row],[CampName]],CL,2,0),"") -> MMR012CMP115 | R86: =IFERROR(VLOOKUP(Table_Shelter[[#This Row],[CampName]],CL,3,0),"") -> Open | S86: =IFERROR(Table_Shelter[[#This Row],[HHCovered]]/VLOOKUP(Table_Shelter[[#This Row],[CampName]],CL,4,0),"") -> 0.6174496644
A87: 2013-10-01 | B87: UNHCR | C87: UNHCR | D87: Rakhine | E87: Sittwe | F87: Ohn Taw Gyi (North) | G87: 8 | J87: 115 | K87: 115 | P87: =Table_Shelter[[#This Row],[HHperShelter]]*(Table_Shelter[[#This Row],['#ofTemporaryShelterBuilt]]+Table_Shelter[[#This Row],['#ofTemporaryShelterUnderConstruction]]+Table_Shelter[[#This Row],['#ofPermanentHouseUnderConstruction]]) -> 920 | Q87: =IFERROR(VLOOKUP(Table_Shelter[[#This Row],[CampName]],CL,2,0),"") -> MMR012CMP115 | R87: =IFERROR(VLOOKUP(Table_Shelter[[#This Row],[CampName]],CL,3,0),"") -> Open | S87: =IFERROR(Table_Shelter[[#This Row],[HHCovered]]/VLOOKUP(Table_Shelter[[#This Row],[CampName]],CL,4,0),"") -> 0.6174496644
A88: 2013-10-01 | B88: Government | C88: Government | D88: Rakhine | E88: Sittwe | F88: Ohn Taw Gyi (South) | G88: 8 | J88: 221 | K88: 221 | P88: =Table_Shelter[[#This Row],[HHperShelter]]*(Table_Shelter[[#This Row],['#ofTemporaryShelterBuilt]]+Table_Shelter[[#This Row],['#ofTemporaryShelterUnderConstruction]]+Table_Shelter[[#This Row],['#ofPermanentHouseUnderConstruction]]) -> 1768 | Q88: =IFERROR(VLOOKUP(Table_Shelter[[#This Row],[CampName]],CL,2,0),"") -> MMR012CMP116 | R88: =IFERROR(VLOOKUP(Table_Shelter[[#This Row],[CampName]],CL,3,0),"") -> Open | S88: =IFERROR(Table_Shelter[[#This Row],[HHCovered]]/VLOOKUP(Table_Shelter[[#This Row],[CampName]],CL,4,0),"") -> 0.776801406
A89: 2013-10-01 | B89: Government | C89: Government | D89: Rakhine | E89: Sittwe | F89: Ohn Taw Gyi (South) | G89: 10 | J89: 20 | K89: 20 | P89: =Table_Shelter[[#This Row],[HHperShelter]]*(Table_Shelter[[#This Row],['#ofTemporaryShelterBuilt]]+Table_Shelter[[#This Row],['#ofTemporaryShelterUnderConstruction]]+Table_Shelter[[#This Row],['#ofPermanentHouseUnderConstruction]]) -> 200 | Q89: =IFERROR(VLOOKUP(Table_Shelter[[#This Row],[CampName]],CL,2,0),"") -> MMR012CMP116 | R89: =IFERROR(VLOOKUP(Table_Shelter[[#This Row],[CampName]],CL,3,0),"") -> Open | S89: =IFERROR(Table_Shelter[[#This Row],[HHCovered]]/VLOOKUP(Table_Shelter[[#This Row],[CampName]],CL,4,0),"") -> 0.08787346221
A90: 2013-10-01 | B90: UNHCR | C90: UNHCR | D90: Rakhine | E90: Sittwe | F90: Ohn Taw Gyi (South) | G90: 8 | J90: 35 | K90: 35 | P90: =Table_Shelter[[#This Row],[HHperShelter]]*(Table_Shelter[[#This Row],['#ofTemporaryShelterBuilt]]+Table_Shelter[[#This Row],['#ofTemporaryShelterUnderConstruction]]+Table_Shelter[[#This Row],['#ofPermanentHouseUnderConstruction]]) -> 280 | Q90: =IFERROR(VLOOKUP(Table_Shelter[[#This Row],[CampName]],CL,2,0),"") -> MMR012CMP116 | R90: =IFERROR(VLOOKUP(Table_Shelter[[#This Row],[CampName]],CL,3,0),"") -> Open | S90: =IFERROR(Table_Shelter[[#This Row],[HHCovered]]/VLOOKUP(Table_Shelter[[#This Row],[CampName]],CL,4,0),"") -> 0.1230228471
A91: 2013-10-01 | B91: Government | C91: Government | D91: Rakhine | E91: Sittwe | F91: Sat Roe Kya | G91: 1 | M91: 669 | N91: 669 | P91: =Table_Shelter[[#This Row],[HHperShelter]]*(Table_Shelter[[#This Row],['#ofTemporaryShelterBuilt]]+Table_Shelter[[#This Row],['#ofTemporaryShelterUnderConstruction]]+Table_Shelter[[#This Row],['#ofPermanentHouseUnderConstruction]]) -> 0 | Q91: =IFERROR(VLOOKUP(Table_Shelter[[#This Row],[CampName]],CL,2,0),"") -> MMR012CMP105 | R91: =IFERROR(VLOOKUP(Table_Shelter[[#This Row],[CampName]],CL,3,0),"") -> Close | S91: =IFERROR(Table_Shelter[[#This Row],[HHCovered]]/VLOOKUP(Table_Shelter[[#This Row],[CampName]],CL,4,0),"") -> 
A92: 2013-10-01 | B92: DRC | C92: DRC | D92: Rakhine | E92: Sittwe | F92: Say Tha Mar Gyi | G92: 8 | J92: 27 | K92: 27 | P92: =Table_Shelter[[#This Row],[HHperShelter]]*(Table_Shelter[[#This Row],['#ofTemporaryShelterBuilt]]+Table_Shelter[[#This Row],['#ofTemporaryShelterUnderConstruction]]+Table_Shelter[[#This Row],['#ofPermanentHouseUnderConstruction]]) -> 216 | Q92: =IFERROR(VLOOKUP(Table_Shelter[[#This Row],[CampName]],CL,2,0),"") -> MMR012CMP045 | R92: =IFERROR(VLOOKUP(Table_Shelter[[#This Row],[CampName]],CL,3,0),"") -> Open | S92: =IFERROR(Table_Shelter[[#This Row],[HHCovered]]/VLOOKUP(Table_Shelter[[#This Row],[CampName]],CL,4,0),"") -> 0.08457321848
A93: 2013-10-01 | B93: Government | C93: Government | D93: Rakhine | E93: Sittwe | F93: Say Tha Mar Gyi | G93: 10 | J93: 63 | K93: 63 | P93: =Table_Shelter[[#This Row],[HHperShelter]]*(Table_Shelter[[#This Row],['#ofTemporaryShelterBuilt]]+Table_Shelter[[#This Row],['#ofTemporaryShelterUnderConstruction]]+Table_Shelter[[#This Row],['#ofPermanentHouseUnderConstruction]]) -> 630 | Q93: =IFERROR(VLOOKUP(Table_Shelter[[#This Row],[CampName]],CL,2,0),"") -> MMR012CMP045 | R93: =IFERROR(VLOOKUP(Table_Shelter[[#This Row],[CampName]],CL,3,0),"") -> Open | S93: =IFERROR(Table_Shelter[[#This Row],[HHCovered]]/VLOOKUP(Table_Shelter[[#This Row],[CampName]],CL,4,0),"") -> 0.2466718872
A94: 2013-10-01 | B94: IRW | C94: IRW | D94: Rakhine | E94: Sittwe | F94: Say Tha Mar Gyi | G94: 8 | J94: 40 | K94: 40 | P94: =Table_Shelter[[#This Row],[HHperShelter]]*(Table_Shelter[[#This Row],['#ofTemporaryShelterBuilt]]+Table_Shelter[[#This Row],['#ofTemporaryShelterUnderConstruction]]+Table_Shelter[[#This Row],['#ofPermanentHouseUnderConstruction]]) -> 320 | Q94: =IFERROR(VLOOKUP(Table_Shelter[[#This Row],[CampName]],CL,2,0),"") -> MMR012CMP045 | R94: =IFERROR(VLOOKUP(Table_Shelter[[#This Row],[CampName]],CL,3,0),"") -> Open | S94: =IFERROR(Table_Shelter[[#This Row],[HHCovered]]/VLOOKUP(Table_Shelter[[#This Row],[CampName]],CL,4,0),"") -> 0.125293657
A95: 2013-10-01 | B95: MRCS | C95: MRCS | D95: Rakhine | E95: Sittwe | F95: Say Tha Mar Gyi | G95: 8 | J95: 60 | K95: 60 | P95: =Table_Shelter[[#This Row],[HHperShelter]]*(Table_Shelter[[#This Row],['#ofTemporaryShelterBuilt]]+Table_Shelter[[#This Row],['#ofTemporaryShelterUnderConstruction]]+Table_Shelter[[#This Row],['#ofPermanentHouseUnderConstruction]]) -> 480 | Q95: =IFERROR(VLOOKUP(Table_Shelter[[#This Row],[CampName]],CL,2,0),"") -> MMR012CMP045 | R95: =IFERROR(VLOOKUP(Table_Shelter[[#This Row],[CampName]],CL,3,0),"") -> Open | S95: =IFERROR(Table_Shelter[[#This Row],[HHCovered]]/VLOOKUP(Table_Shelter[[#This Row],[CampName]],CL,4,0),"") -> 0.1879404855
A96: 2013-10-01 | B96: MRF | C96: MRF | D96: Rakhine | E96: Sittwe | F96: Say Tha Mar Gyi | G96: 10 | J96: 77 | K96: 77 | P96: =Table_Shelter[[#This Row],[HHperShelter]]*(Table_Shelter[[#This Row],['#ofTemporaryShelterBuilt]]+Table_Shelter[[#This Row],['#ofTemporaryShelterUnderConstruction]]+Table_Shelter[[#This Row],['#ofPermanentHouseUnderConstruction]]) -> 770 | Q96: =IFERROR(VLOOKUP(Table_Shelter[[#This Row],[CampName]],CL,2,0),"") -> MMR012CMP045 | R96: =IFERROR(VLOOKUP(Table_Shelter[[#This Row],[CampName]],CL,3,0),"") -> Open | S96: =IFERROR(Table_Shelter[[#This Row],[HHCovered]]/VLOOKUP(Table_Shelter[[#This Row],[CampName]],CL,4,0),"") -> 0.3014878622
A97: 2013-10-01 | B97: UNHCR | C97: UNHCR | D97: Rakhine | E97: Sittwe | F97: Say Tha Mar Gyi | G97: 8 | J97: 33 | K97: 33 | P97: =Table_Shelter[[#This Row],[HHperShelter]]*(Table_Shelter[[#This Row],['#ofTemporaryShelterBuilt]]+Table_Shelter[[#This Row],['#ofTemporaryShelterUnderConstruction]]+Table_Shelter[[#This Row],['#ofPermanentHouseUnderConstruction]]) -> 264 | Q97: =IFERROR(VLOOKUP(Table_Shelter[[#This Row],[CampName]],CL,2,0),"") -> MMR012CMP045 | R97: =IFERROR(VLOOKUP(Table_Shelter[[#This Row],[CampName]],CL,3,0),"") -> Open | S97: =IFERROR(Table_Shelter[[#This Row],[HHCovered]]/VLOOKUP(Table_Shelter[[#This Row],[CampName]],CL,4,0),"") -> 0.103367267
A98: 2013-10-01 | B98: Government | C98: Government | D98: Rakhine | E98: Sittwe | F98: Set Yone Su | G98: 10 | J98: 22 | K98: 22 | P98: =Table_Shelter[[#This Row],[HHperShelter]]*(Table_Shelter[[#This Row],['#ofTemporaryShelterBuilt]]+Table_Shelter[[#This Row],['#ofTemporaryShelterUnderConstruction]]+Table_Shelter[[#This Row],['#ofPermanentHouseUnderConstruction]]) -> 220 | Q98: =IFERROR(VLOOKUP(Table_Shelter[[#This Row],[CampName]],CL,2,0),"") -> MMR012CMP056 | R98: =IFERROR(VLOOKUP(Table_Shelter[[#This Row],[CampName]],CL,3,0),"") -> Open | S98: =IFERROR(Table_Shelter[[#This Row],[HHCovered]]/VLOOKUP(Table_Shelter[[#This Row],[CampName]],CL,4,0),"") -> 2.972972973
A99: 2013-10-01 | B99: UNHCR | C99: UNHCR | D99: Rakhine | E99: Sittwe | F99: Set Yone Su 3 | G99: 8 | J99: 22 | K99: 22 | P99: =Table_Shelter[[#This Row],[HHperShelter]]*(Table_Shelter[[#This Row],['#ofTemporaryShelterBuilt]]+Table_Shelter[[#This Row],['#ofTemporaryShelterUnderConstruction]]+Table_Shelter[[#This Row],['#ofPermanentHouseUnderConstruction]]) -> 176 | Q99: =IFERROR(VLOOKUP(Table_Shelter[[#This Row],[CampName]],CL,2,0),"") -> MMR012CMP093 | R99: =IFERROR(VLOOKUP(Table_Shelter[[#This Row],[CampName]],CL,3,0),"") -> Open | S99: =IFERROR(Table_Shelter[[#This Row],[HHCovered]]/VLOOKUP(Table_Shelter[[#This Row],[CampName]],CL,4,0),"") -> 1
A100: 2013-10-01 | B100: CARE | C100: CARE | D100: Rakhine | E100: Sittwe | F100: Thet Kae Pyin | G100: 8 | J100: 63 | K100: 63 | L100: 0 | P100: =Table_Shelter[[#This Row],[HHperShelter]]*(Table_Shelter[[#This Row],['#ofTemporaryShelterBuilt]]+Table_Shelter[[#This Row],['#ofTemporaryShelterUnderConstruction]]+Table_Shelter[[#This Row],['#ofPermanentHouseUnderConstruction]]) -> 504 | Q100: =IFERROR(VLOOKUP(Table_Shelter[[#This Row],[CampName]],CL,2,0),"") -> MMR012CMP048 | R100: =IFERROR(VLOOKUP(Table_Shelter[[#This Row],[CampName]],CL,3,0),"") -> Open | S100: =IFERROR(Table_Shelter[[#This Row],[HHCovered]]/VLOOKUP(Table_Shelter[[#This Row],[CampName]],CL,4,0),"") -> 0.552026287
A101: 2013-10-01 | B101: Government | C101: Government | D101: Rakhine | E101: Sittwe | F101: Thet Kae Pyin | G101: 8 | J101: 60 | K101: 60 | P101: =Table_Shelter[[#This Row],[HHperShelter]]*(Table_Shelter[[#This Row],['#ofTemporaryShelterBuilt]]+Table_Shelter[[#This Row],['#ofTemporaryShelterUnderConstruction]]+Table_Shelter[[#This Row],['#ofPermanentHouseUnderConstruction]]) -> 480 | Q101: =IFERROR(VLOOKUP(Table_Shelter[[#This Row],[CampName]],CL,2,0),"") -> MMR012CMP048 | R101: =IFERROR(VLOOKUP(Table_Shelter[[#This Row],[CampName]],CL,3,0),"") -> Open | S101: =IFERROR(Table_Shelter[[#This Row],[HHCovered]]/VLOOKUP(Table_Shelter[[#This Row],[CampName]],CL,4,0),"") -> 0.5257393209
B102: MRF | C102: MRF | D102: Rakhine | E102: Sittwe | F102: Ohn Taw Gyi (South) | G102: 8 | J102: 9 | K102: 9 | P102: =Table_Shelter[[#This Row],[HHperShelter]]*(Table_Shelter[[#This Row],['#ofTemporaryShelterBuilt]]+Table_Shelter[[#This Row],['#ofTemporaryShelterUnderConstruction]]+Table_Shelter[[#This Row],['#ofPermanentHouseUnderConstruction]]) -> 72 | Q102: =IFERROR(VLOOKUP(Table_Shelter[[#This Row],[CampName]],CL,2,0),"") -> MMR012CMP116 | R102: =IFERROR(VLOOKUP(Table_Shelter[[#This Row],[CampName]],CL,3,0),"") -> Open | S102: =IFERROR(Table_Shelter[[#This Row],[HHCovered]]/VLOOKUP(Table_Shelter[[#This Row],[CampName]],CL,4,0),"") -> 0.0316344464
B103: MRCS | C103: MRCS | D103: Rakhine | E103: Pauktaw | F103: Kyein Ni Pyin | G103: 8 | J103: 13 | L103: 13 | P103: =Table_Shelter[[#This Row],[HHperShelter]]*(Table_Shelter[[#This Row],['#ofTemporaryShelterBuilt]]+Table_Shelter[[#This Row],['#ofTemporaryShelterUnderConstruction]]+Table_Shelter[[#This Row],['#ofPermanentHouseUnderConstruction]]) -> 104 | Q103: =IFERROR(VLOOKUP(Table_Shelter[[#This Row],[CampName]],CL,2,0),"") -> MMR012CMP018 | R103: =IFERROR(VLOOKUP(Table_Shelter[[#This Row],[CampName]],CL,3,0),"") -> Open | S103: =IFERROR(Table_Shelter[[#This Row],[HHCovered]]/VLOOKUP(Table_Shelter[[#This Row],[CampName]],CL,4,0),"") -> 0.0995215311
B104: MRCS | C104: MRCS | D104: Rakhine | E104: Rathedaung | F104: Ah Nauk Pyin | G104: 8 | J104: 2 | L104: 2 | P104: =Table_Shelter[[#This Row],[HHperShelter]]*(Table_Shelter[[#This Row],['#ofTemporaryShelterBuilt]]+Table_Shelter[[#This Row],['#ofTemporaryShelterUnderConstruction]]+Table_Shelter[[#This Row],['#ofPermanentHouseUnderConstruction]]) -> 16 | Q104: =IFERROR(VLOOKUP(Table_Shelter[[#This Row],[CampName]],CL,2,0),"") -> MMR012CMP032 | R104: =IFERROR(VLOOKUP(Table_Shelter[[#This Row],[CampName]],CL,3,0),"") -> Open | S104: =IFERROR(Table_Shelter[[#This Row],[HHCovered]]/VLOOKUP(Table_Shelter[[#This Row],[CampName]],CL,4,0),"") -> 0.2807017544
B105: MRCS | C105: MRCS | D105: Rakhine | E105: Rathedaung | F105: Koe Tan Kauk | G105: 8 | J105: 2 | L105: 2 | P105: =Table_Shelter[[#This Row],[HHperShelter]]*(Table_Shelter[[#This Row],['#ofTemporaryShelterBuilt]]+Table_Shelter[[#This Row],['#ofTemporaryShelterUnderConstruction]]+Table_Shelter[[#This Row],['#ofPermanentHouseUnderConstruction]]) -> 16 | Q105: =IFERROR(VLOOKUP(Table_Shelter[[#This Row],[CampName]],CL,2,0),"") -> MMR012CMP110 | R105: =IFERROR(VLOOKUP(Table_Shelter[[#This Row],[CampName]],CL,3,0),"") -> Open | S105: =IFERROR(Table_Shelter[[#This Row],[HHCovered]]/VLOOKUP(Table_Shelter[[#This Row],[CampName]],CL,4,0),"") -> 0.08163265306
B106: MRCS | C106: MRCS | D106: Rakhine | E106: Rathedaung | F106: Chein Khar Li | G106: 8 | J106: 8 | L106: 8 | P106: =Table_Shelter[[#This Row],[HHperShelter]]*(Table_Shelter[[#This Row],['#ofTemporaryShelterBuilt]]+Table_Shelter[[#This Row],['#ofTemporaryShelterUnderConstruction]]+Table_Shelter[[#This Row],['#ofPermanentHouseUnderConstruction]]) -> 64 | Q106: =IFERROR(VLOOKUP(Table_Shelter[[#This Row],[CampName]],CL,2,0),"") -> MMR012CMP033 | R106: =IFERROR(VLOOKUP(Table_Shelter[[#This Row],[CampName]],CL,3,0),"") -> Open | S106: =IFERROR(Table_Shelter[[#This Row],[HHCovered]]/VLOOKUP(Table_Shelter[[#This Row],[CampName]],CL,4,0),"") -> 0.2949308756
B107: MRCS | C107: MRCS | D107: Rakhine | E107: Rathedaung | F107: Ah Htet Nan Yar | G107: 8 | J107: 32 | L107: 32 | P107: =Table_Shelter[[#This Row],[HHperShelter]]*(Table_Shelter[[#This Row],['#ofTemporaryShelterBuilt]]+Table_Shelter[[#This Row],['#ofTemporaryShelterUnderConstruction]]+Table_Shelter[[#This Row],['#ofPermanentHouseUnderConstruction]]) -> 256 | Q107: =IFERROR(VLOOKUP(Table_Shelter[[#This Row],[CampName]],CL,2,0),"") -> MMR012CMP034 | R107: =IFERROR(VLOOKUP(Table_Shelter[[#This Row],[CampName]],CL,3,0),"") -> Open | S107: =IFERROR(Table_Shelter[[#This Row],[HHCovered]]/VLOOKUP(Table_Shelter[[#This Row],[CampName]],CL,4,0),"") -> 1.024

Sheet Shelter_Progress
A2: SHELTER PROGRESS
A3: =Report_Date -> 2013-12-01
A5: Rakhine
A6: Township | B6: Total # of HH | C6: Total # of Population | D6: Tents Distributed | E6: Temporary Shelter Built | F6: Temporary Shelter Under Construction | G6: Temporary Shelter Planned | H6: Permanent Shelter Built | I6: Permament Shelter Under Construction | J6: Permanent Shelter Planned | K6: Coverage (HH) | L6: Coverage (in Pop) | M6: Gap - HH | N6: Covered | O6: Ind. Not covered
A7: Kyauk_Phyu | B7: =SUMIF(Camplist_Township,Shelter_Progress!$A7,Camplist_HH) -> 492 | C7: =SUMIF(Camplist_Township,Shelter_Progress!$A7,Camplist_Popl) -> 1856 | D7: =SUMIF(Col_Shelter_Township,$A7,Col_Shelter_Tent_Dist) -> 0 | E7: =SUMIF(Col_Shelter_Township,$A7,Col_Shelter_Temp_B) -> 60 | F7: =SUMIF(Col_Shelter_Township,$A7,Col_Shelter_Temp_U) -> 0 | G7: =SUMIF(Col_Shelter_Township,$A7,Col_Shelter_Temp_P) -> 60 | H7: =SUMIF(Col_Shelter_Township,$A7,Col_Shelter_Perm_B) -> 0 | I7: =SUMIF(Col_Shelter_Township,$A7,Col_Shelter_Perm_U) -> 0 | J7: =SUMIF(Col_Shelter_Township,$A7,Col_Shelter_Perm_P) -> 0 | K7: =SUMIF(Col_Shelter_Township,$A7,Shelter_HH_Covered) -> 480 | L7: =K7*P7 -> 1810.731707 | M7: =B7-K7 -> 12 | N7: =K7/B7 -> 0.9756097561 | O7: =MAX(0,C7-L7) -> 45.26829268 | P7: =C7/B7 -> 3.772357724
A8: Kyauktaw | B8: =SUMIF(Camplist_Township,Shelter_Progress!$A8,Camplist_HH) -> 1088 | C8: =SUMIF(Camplist_Township,Shelter_Progress!$A8,Camplist_Popl) -> 6631 | D8: 0 | E8: 111 | F8: 14 | G8: 125 | H8: 0 | I8: 0 | J8: 0 | K8: 1000 | L8: =K8*P8 -> 6094.669118 | M8: 88 | N8: 0.9191176471 | O8: 536.3308824 | P8: 6.094669118
A9: Maungdaw | B9: =SUMIF(Camplist_Township,Shelter_Progress!$A9,Camplist_HH) -> 282 | C9: =SUMIF(Camplist_Township,Shelter_Progress!$A9,Camplist_Popl) -> 1911 | D9: 0 | E9: 0 | F9: 0 | G9: 0 | H9: 554 | I9: 0 | J9: 554 | K9: 0 | L9: 0 | M9: 282 | N9: 0 | O9: 1911 | P9: 6.776595745
A10: Meybon | B10: =SUMIF(Camplist_Township,Shelter_Progress!$A10,Camplist_HH) -> 796 | C10: =SUMIF(Camplist_Township,Shelter_Progress!$A10,Camplist_Popl) -> 3650 | D10: 0 | E10: 95 | F10: 0 | G10: 95 | H10: 0 | I10: 0 | J10: 0 | K10: 760 | L10: 3484.924623 | M10: 36 | N10: 0.9547738693 | O10: 165.0753769 | P10: 4.585427136
A11: Minbya | B11: =SUMIF(Camplist_Township,Shelter_Progress!$A11,Camplist_HH) -> 968 | C11: =SUMIF(Camplist_Township,Shelter_Progress!$A11,Camplist_Popl) -> 5197 | D11: 0 | E11: 84 | F11: 22 | G11: 106 | H11: 0 | I11: 0 | J11: 0 | K11: 848 | L11: 4552.743802 | M11: 120 | N11: 0.8760330579 | O11: 644.2561983 | P11: 5.368801653
A12: Mrauk_U | B12: =SUMIF(Camplist_Township,Shelter_Progress!$A12,Camplist_HH) -> 680 | C12: =SUMIF(Camplist_Township,Shelter_Progress!$A12,Camplist_Popl) -> 4035 | D12: 0 | E12: 72 | F12: 2 | G12: 74 | H12: 0 | I12: 0 | J12: 0 | K12: 592 | L12: 3512.823529 | M12: 88 | N12: 0.8705882353 | O12: 522.1764706 | P12: 5.933823529
A13: Pauktaw | B13: =SUMIF(Camplist_Township,Shelter_Progress!$A13,Camplist_HH) -> 3870 | C13: =SUMIF(Camplist_Township,Shelter_Progress!$A13,Camplist_Popl) -> 17515 | D13: 0 | E13: 481 | F13: 13 | G13: 494 | H13: 3 | I13: 0 | J13: 3 | K13: 3958 | L13: 17913.2739 | M13: -88 | N13: 1.022739018 | O13: 0 | P13: 4.525839793
A14: Ramree | B14: =SUMIF(Camplist_Township,Shelter_Progress!$A14,Camplist_HH) -> 75 | C14: =SUMIF(Camplist_Township,Shelter_Progress!$A14,Camplist_Popl) -> 255 | D14: 0 | E14: 12 | F14: 0 | G14: 12 | H14: 0 | I14: 0 | J14: 0 | K14: 96 | L14: 326.4 | M14: -21 | N14: 1.28 | O14: 0 | P14: 3.4
A15: Rathedaung | B15: =SUMIF(Camplist_Township,Shelter_Progress!$A15,Camplist_HH) -> 782 | C15: =SUMIF(Camplist_Township,Shelter_Progress!$A15,Camplist_Popl) -> 4076 | D15: 0 | E15: 64 | F15: 44 | G15: 108 | H15: 0 | I15: 0 | J15: 0 | K15: 864 | L15: 4503.40665 | M15: -82 | N15: 1.104859335 | O15: 0 | P15: 5.212276215
A16: Sittwe | B16: =SUMIF(Camplist_Township,Shelter_Progress!$A16,Camplist_HH) -> 17515 | C16: =SUMIF(Camplist_Township,Shelter_Progress!$A16,Camplist_Popl) -> 93707 | D16: 0 | E16: 1860 | F16: 0 | G16: 1860 | H16: 669 | I16: 0 | J16: 669 | K16: =SUMIF(Col_Shelter_Township,$A16,Shelter_HH_Covered) -> 15324 | L16: =K16*P16 -> 81984.93109 | M16: =B16-K16 -> 2191 | N16: 0.8749072224 | O16: 11722.06891 | P16: 5.350099914
A17: Total | B17: =SUM(B7:B16) -> 26548 | C17: 138833 | D17: 0 | E17: 2839 | F17: 95 | G17: 2934 | H17: 1226 | I17: 0 | J17: 1226 | K17: 23922 | L17: 124183.9044 | M17: 2626 | N17: =K17/B17 -> 0.9010848275 | O17: =SUM(O7:O16) -> 15546.17613 | P17: 5.229508814
A22: Rakhine
A48: State | B48: Rakhine | H48: State | I48: Rakhine
A50: Row Labels | B50: Sum of HHCovered | H50: Row Labels | I50: Count of #ofTemporaryShelterBuilt
A51: TDC/Natala Government | B51: 0 | H51: CARE | I51: 5
A52: UNHCR/BAJ | B52: 0 | H52: Maungdaw
A53: ICRC | B53: 152 | H53: Sittwe | I53: 5
A54: MAUK | B54: 256 | H54: DRC | I54: 3
A55: Service City | B55: 304 | H55: Pauktaw | I55: 2
A56: IRW | B56: 320 | H56: Sittwe | I56: 1
A57: WFP | B57: 400 | H57: Government | I57: 40
A58: MRCS | B58: 1240 | H58: Kyauk_Phyu | I58: 1
A59: MRF | B59: 1762 | H59: Kyauktaw | I59: 11
A60: CARE | B60: 1792 | H60: Minbya | I60: 6
A61: DRC | B61: 1832 | H61: Mrauk_U | I61: 2
A62: UNHCR | B62: 5176 | H62: Pauktaw | I62: 2
A63: Government | B63: 11357 | H63: Ramree | I63: 1
A64: Grand Total | B64: 24591 | H64: Rathedaung | I64: 4
H65: Sittwe | I65: 13
H66: IRW | I66: 1
H67: Sittwe | I67: 1
H68: MAUK | I68: 1
H69: Sittwe | I69: 1
H70: MRCS | I70: 1
H71: Kyauktaw
H72: Minbya
H73: Mrauk_U
H74: Pauktaw
H75: Rathedaung
H76: Sittwe | I76: 1
H77: Service City | I77: 2
H78: Kyauk_Phyu | I78: 2
H79: UNHCR | I79: 9
H80: Meybon | I80: 2
H81: Pauktaw | I81: 2
H82: Sittwe | I82: 5
H83: WFP | I83: 1
H84: Sittwe | I84: 1
H85: ICRC | I85: 2
H86: Sittwe | I86: 2
H87: MRF | I87: 3
H88: Sittwe | I88: 3
H89: UNHCR/BAJ
H90: Maungdaw
H91: TDC/Natala Government
H92: Maungdaw
H93: Grand Total | I93: 68

Sheet ShelterAgency
A2: SHELTER SUMMARY BY AGENCY
A3: =Report_Date -> 2013-12-01
A5: State | B5: Rakhine | C5: (Select State)
A7: Row Labels | B7: Temporary Shelter Built | C7: Temporary Shelter Under Construction | D7: Permanent House Built | E7: Permanent House Under Construction
A8: CARE | B8: 224 | C8: 0 | D8: 128
A9: DRC | B9: 229 | C9: 0
A10: Government | B10: 1978 | C10: 0 | D10: 3
A11: ICRC | B11: 19
A12: IRW | B12: 40
A13: MAUK | B13: 32 | C13: 0
A14: MRCS | B14: 60 | C14: 95
A15: MRF | B15: 201
A16: Service City | B16: 38
A17: TDC/Natala Government | D17: 204
A18: UNHCR | B18: 647
A19: UNHCR/BAJ | D19: 222
A20: WFP | B20: 40
A21: Grand Total | B21: 3508 | C21: 95 | D21: 557
A23: State | B23: Rakhine
A25: Row Labels | B25: Sum of HHCovered
A26: Government | B26: 11357
A27: UNHCR | B27: 5176
A28: DRC | B28: 1832
A29: CARE | B29: 1792
A30: MRF | B30: 1762
A31: MRCS | B31: 1240
A32: WFP | B32: 400
A33: IRW | B33: 320
A34: Service City | B34: 304
A35: MAUK | B35: 256
A36: ICRC | B36: 152
A37: Grand Total | B37: 24591
A41: State | B41: Rakhine
A43: Row Labels | B43: Sum of HHCovered
A44: Kyauk_Phyu | B44: 480
A45: Kyauktaw | B45: 1000
A46: Maungdaw | B46: 0
A47: Meybon | B47: 760
A48: Minbya | B48: 848
A49: Mrauk_U | B49: 592
A50: Pauktaw | B50: 3958
A51: Ramree | B51: 96
A52: Rathedaung | B52: 864
A53: Sittwe | B53: 15993
A54: Grand Total | B54: 24591

Sheet Rakhine_Shelter_D
A2: Rakhine Shelter Coverage & Gaps
A3: =Report_Date -> 2013-12-01
B16: Population | E16: Shelter
A17: Township | B17: # of HH | C17: # of Ind. | D17: # of Camp | E17: # Ind. Covered | F17: # Ind. Not Covered | G17: % Coverage
A18: Kyauk_Phyu | B18: =SUMIFS(Camplist_HH,Camplist_Township,Rakhine_Shelter_D!$A18,CampList_Status,"Open") -> 492 | C18: =SUMIFS(Camplist_Popl,Camplist_Township,Rakhine_Shelter_D!$A18,CampList_Status,"Open") -> 1856 | D18: =COUNTIFS(Camplist_Township,Rakhine_Shelter_D!A18,CampList_Status,"open") -> 2 | E18: =Shelter_Progress!L7 -> 1810.731707 | F18: =Shelter_Progress!O7 -> 45.26829268 | G18: =IF(E18>0,E18/(E18+F18),0.00000001) -> 0.9756097561
A19: Kyauktaw | B19: =SUMIFS(Camplist_HH,Camplist_Township,Rakhine_Shelter_D!$A19,CampList_Status,"Open") -> 1088 | C19: =SUMIFS(Camplist_Popl,Camplist_Township,Rakhine_Shelter_D!$A19,CampList_Status,"Open") -> 6631 | D19: =COUNTIFS(Camplist_Township,Rakhine_Shelter_D!A19,CampList_Status,"open") -> 11 | E19: =Shelter_Progress!L8 -> 6094.669118 | F19: =Shelter_Progress!O8 -> 536.3308824 | G19: 0.9191176471
A20: Maungdaw | B20: =SUMIFS(Camplist_HH,Camplist_Township,Rakhine_Shelter_D!$A20,CampList_Status,"Open") -> 282 | C20: =SUMIFS(Camplist_Popl,Camplist_Township,Rakhine_Shelter_D!$A20,CampList_Status,"Open") -> 1911 | D20: =COUNTIFS(Camplist_Township,Rakhine_Shelter_D!A20,CampList_Status,"open") -> 9 | E20: =Shelter_Progress!L9 -> 0 | F20: =Shelter_Progress!O9 -> 1911 | G20: 1e-08
A21: Meybon | B21: =SUMIFS(Camplist_HH,Camplist_Township,Rakhine_Shelter_D!$A21,CampList_Status,"Open") -> 796 | C21: =SUMIFS(Camplist_Popl,Camplist_Township,Rakhine_Shelter_D!$A21,CampList_Status,"Open") -> 3650 | D21: =COUNTIFS(Camplist_Township,Rakhine_Shelter_D!A21,CampList_Status,"open") -> 2 | E21: =Shelter_Progress!L10 -> 3484.924623 | F21: =Shelter_Progress!O10 -> 165.0753769 | G21: 0.9547738693
A22: Minbya | B22: =SUMIFS(Camplist_HH,Camplist_Township,Rakhine_Shelter_D!$A22,CampList_Status,"Open") -> 968 | C22: =SUMIFS(Camplist_Popl,Camplist_Township,Rakhine_Shelter_D!$A22,CampList_Status,"Open") -> 5197 | D22: =COUNTIFS(Camplist_Township,Rakhine_Shelter_D!A22,CampList_Status,"open") -> 7 | E22: =Shelter_Progress!L11 -> 4552.743802 | F22: =Shelter_Progress!O11 -> 644.2561983 | G22: 0.8760330579
A23: Mrauk_U | B23: =SUMIFS(Camplist_HH,Camplist_Township,Rakhine_Shelter_D!$A23,CampList_Status,"Open") -> 680 | C23: =SUMIFS(Camplist_Popl,Camplist_Township,Rakhine_Shelter_D!$A23,CampList_Status,"Open") -> 4035 | D23: =COUNTIFS(Camplist_Township,Rakhine_Shelter_D!A23,CampList_Status,"open") -> 4 | E23: =Shelter_Progress!L12 -> 3512.823529 | F23: =Shelter_Progress!O12 -> 522.1764706 | G23: 0.8705882353
A24: Pauktaw | B24: =SUMIFS(Camplist_HH,Camplist_Township,Rakhine_Shelter_D!$A24,CampList_Status,"Open") -> 3870 | C24: =SUMIFS(Camplist_Popl,Camplist_Township,Rakhine_Shelter_D!$A24,CampList_Status,"Open") -> 17515 | D24: =COUNTIFS(Camplist_Township,Rakhine_Shelter_D!A24,CampList_Status,"open") -> 5 | E24: =Shelter_Progress!L13 -> 17913.2739 | F24: =Shelter_Progress!O13 -> 0 | G24: 1
A25: Ramree | B25: =SUMIFS(Camplist_HH,Camplist_Township,Rakhine_Shelter_D!$A25,CampList_Status,"Open") -> 75 | C25: =SUMIFS(Camplist_Popl,Camplist_Township,Rakhine_Shelter_D!$A25,CampList_Status,"Open") -> 255 | D25: =COUNTIFS(Camplist_Township,Rakhine_Shelter_D!A25,CampList_Status,"open") -> 2 | E25: =Shelter_Progress!L14 -> 326.4 | F25: =Shelter_Progress!O14 -> 0 | G25: 1
A26: Rathedaung | B26: =SUMIFS(Camplist_HH,Camplist_Township,Rakhine_Shelter_D!$A26,CampList_Status,"Open") -> 782 | C26: =SUMIFS(Camplist_Popl,Camplist_Township,Rakhine_Shelter_D!$A26,CampList_Status,"Open") -> 4076 | D26: =COUNTIFS(Camplist_Township,Rakhine_Shelter_D!A26,CampList_Status,"open") -> 5 | E26: =Shelter_Progress!L15 -> 4503.40665 | F26: =Shelter_Progress!O15 -> 0 | G26: 1
A27: Sittwe | B27: =SUMIFS(Camplist_HH,Camplist_Township,Rakhine_Shelter_D!$A27,CampList_Status,"Open") -> 17515 | C27: =SUMIFS(Camplist_Popl,Camplist_Township,Rakhine_Shelter_D!$A27,CampList_Status,"Open") -> 93707 | D27: =COUNTIFS(Camplist_Township,Rakhine_Shelter_D!A27,CampList_Status,"open") -> 21 | E27: =Shelter_Progress!L16 -> 81984.93109 | F27: =Shelter_Progress!O16 -> 11722.06891 | G27: 0.8749072224
A28: Total | B28: =SUM(B18:B27) -> 26548 | C28: =SUM(C18:C27) -> 138833 | D28: =SUM(D18:D27) -> 68 | E28: =Shelter_Progress!L17 -> 124183.9044 | F28: =Shelter_Progress!O17 -> 15546.17613 | G28: 0.8887413786

Sheet Rakhine (hidden)
A1: Camp | H1: Shelter | I1: NFI | L1: Pos | M1: 500
A2: Pcode | B2: Township | C2: Long. | D2: Lat. | E2: HS | F2: Pop | G2: N_camps | H2: Coverage | I2: Hygiene | J2: Core | K2: Sanitary | L2: Y | M2: X
A3: MMR012011 | B3: Kyauk_Phyu | C3: 93.45 | D3: 19.31533074 | E3: 492 | F3: 1793 | G3: =CONCATENATE(N3, " camp",IF(N3>1,"s","")) -> 2 camps | H3: 0.9756097561 | I3: 0.993902439 | J3: 0 | K3: 0 | L3: =1300-ROUND((D3-19)*$M$1,0) -> 1142 | M3: =ROUND((C3-93)*$M$1,0)+300 -> 525 | N3: 2
A4: MMR012004 | B4: Kyauktaw | C4: 92.95405622 | D4: 20.83554217 | E4: 989 | F4: 6518 | G4: 11 camps | H4: 0.8978766431 | I4: 0 | J4: 1 | K4: 0.06066734075 | L4: 382 | M4: 277 | N4: 11
A5: MMR012009 | B5: Maungdaw | C5: 92.44 | D5: 20.89 | E5: 398 | F5: 2354 | G5: 14 camps | H5: 1 | I5: 1 | J5: 0.7914572864 | K5: 1 | L5: 355 | M5: 20 | N5: 14
A6: MMR012006 | B6: Meybon | C6: 93.45 | D6: 19.9 | E6: 674 | F6: 4066 | G6: 2 camps | H6: 1 | I6: 1 | J6: 0 | K6: 0 | L6: 850 | M6: 525 | N6: 2
A7: MMR012005 | B7: Minbya | C7: 93.42 | D7: 20.39 | E7: 865 | F7: 5212 | G7: 7 camps | H7: 0.7768786127 | I7: 1 | J7: 1 | K7: 0 | L7: 605 | M7: 510 | N7: 7
A8: MMR012003 | B8: Mrauk_U | C8: 93.17174468 | D8: 20.58093617 | E8: 644 | F8: 3926 | G8: 4 camps | H8: 0.8944099379 | I8: 0.9937888199 | J8: 1 | K8: 0 | L8: 510 | M8: 386 | N8: 4
A9: MMR012007 | B9: Pauktaw | C9: 93.05 | D9: 19.985 | E9: 3886 | F9: 19690 | G9: 6 camps | H9: 1 | I9: 1 | J9: 0 | K9: 0 | L9: 807 | M9: 325 | N9: 6
A10: MMR012013 | B10: Ramree | C10: 93.65 | D10: 19.03304598 | E10: 70 | F10: 263 | G10: 2 camps | H10: 1 | I10: 1 | J10: 0 | K10: 0 | L10: 1283 | M10: 625 | N10: 2
A11: MMR012008 | B11: Rathedaung | C11: 92.74 | D11: 20.4 | E11: 771 | F11: 3973 | G11: 4 camps | H11: 0.6640726329 | I11: 0 | J11: 0.1712062257 | K11: 0.3424124514 | L11: 600 | M11: 170 | N11: 4
A12: MMR012001 | B12: Sittwe | C12: 92.8 | D12: 20.11 | E12: 16340 | F12: 95372 | G12: 24 camps | H12: 1 | I12: 1 | J12: 0.3635250918 | K12: 0 | L12: 745 | M12: 200 | N12: 24
B13: Rakhine | E13: =SUBTOTAL(109,Table5[HS]) -> 25129 | F13: =SUBTOTAL(109,Table5[Pop]) -> 143167 | G13: =CONCATENATE(SUM(N3:N12)," camps") -> 76 camps | H13: =SUMPRODUCT(Table5[Pop]*Table5[Coverage])/Table5[[#Totals],[Pop]] -> 0.9747046007 | I13: =SUMPRODUCT(Table5[Pop]*Table5[Hygiene])/Table5[[#Totals],[Pop]] -> 0.926475249 | J13: =SUMPRODUCT(Table5[Pop]*Table5[Core])/Table5[[#Totals],[Pop]] -> 0.369284876 | K13: =SUMPRODUCT(Table5[Pop]*Table5[Sanitary])/Table5[[#Totals],[Pop]] -> 0.02870657621 | L13: 1200 | M13: 50

Sheet Sheet2 (hidden)
L1: Row Labels
F2: State | G2: Rakhine | L2: Rakhine
A3: Row Labels | F3: Status | G3: Open | L3: (blank)
A4: Rakhine | D4: 1 Ward, Sein Yadanar Company(Lon Khin) | L4: Minbya
A5: Kyauk_Phyu | D5: AD-2000 Tharthana Compound | F5: Row Labels | G5: Sum of Total | L5: Sittwe
A6: Kyauktaw | D6: Anglican Church, Hmaw Si Sar | F6: Sittwe | G6: 134811 | L6: Kyauktaw
A7: Maungdaw | D7: Away Yar Rama Monastery, Ka Day village | F7: Maungdaw | G7: 1911 | L7: Meybon
A8: Meybon | D8: Aye Mya Tharyar Church of Christ | F8: Kyaukpyu | G8: 2111 | L8: Minbya
A9: Minbya | D9: Belehem | F9: Grand Total | G9: 138833 | L9: Mrauk_U
A10: Mrauk_U | D10: Border Post 10 | L10: Pauktaw
A11: Pauktaw | D11: Border Post 8 | L11: Rathedaung
A12: Ramree | D12: Chin(Zomi) Baptist Church | L12: Sittwe
A13: Rathedaung | D13: Dap Kawng/Tak Kone | L13: Maungdaw
A14: Sittwe | D14: Du Kahtawng Qtr. 14 | L14: Maungdaw
A15: Grand Total | D15: Du Kahtawng Qtr. 4 | L15: Kyaukpyu
D16: Du Kahtawng Qtr. 5 | L16: Kyauk_Phyu
D17: Dum Bung | L17: Ramree
D18: Dumbung | L18: Grand Total
D19: Ei Wan Gali Asso., Ward 1, Seik Mu
D20: Free Christian Asso., Ward 1, Seik Mu
D21: Galile
D22: Hkat Cho
D23: Hkau Shau (BP 12)
D24: Hmaw Wan, Baptist Christian Church
D25: Howa
D26: Howa/Mungbaw/Namhkawng
D27: Hpun Lum Yang
D28: Jan Mai (Pa Jau)
D29: Jan Mai Kawng
D30: Jan Mai Kawng Baptist Church
D31: Jan Mai Kawng Catholic church
D32: Je Yang Hka
D33: Kyun Pin Thar Baptist Church
D34: Kyun Pyin Tar (maisakwang)
D35: Kyun Taw Baptist Church
D36: Lana Zup Ja
D37: Le Kone Bethlehem Church
D38: Le Kone Ziun Baptist Church
D39: Lhaovao Baptist Church (LBC)
D40: Lisu Boarding-House
D41: Loi Je Baptist Church
D42: Loi Je Catholic Church
D43: Loi Je Lisu Camp
D44: Ma Mon Buddhist Monastery
D45: Mading Baptist Church
D46: Maga Yang
D47: Maina AG Church
D48: Maina Catholic Church (St. Joseph)
D49: Maina Catholic Church (St.Joseph)
D50: Maina KBC (Bawng Ring)
D51: Maina KBC Camp
D52: Maina Lawang Baptist Church
D53: Maina Lawang BC
D54: Mali Yang
D55: Maliyang Baptist Church
D56: Man Bung Catholic compound
D57: Man Dung
D58: Man Hkring Baptist Church
D59: Man Wing Baptist Church
D60: Man Wing Catholic Church
D61: Mandung - Jinghpaw
D62: Mang Hawng Baptist Church
D63: Manhkring
D64: Mansi Baptist Church
D66: Mashi Kahtawng Baptist Church
D67: Mashi Kahtawng Catholic Church
D68: Mashi Kahtawng Evangelical Church
D69: Mashi Kahtawng Municipal Dammar Yone
D70: Mashi Kahtawng Myo Oo Taw Ya Monestry
D71: Mashi Kahtawng Rakhine traditional group
D72: Mashi Kahtawng Shan Traditional Monestry
D73: Mashi Kahtawng Yaung Chi Oo Thi la shin Monestry
D74: Maw Hpawng Hka Nan Baptist Church
D75: Maw Hpawng Lhaovo Baptist Church
D76: Maw Si Zar, Thiriyardanar Sein, Damma Compound, Lone Khin
D77: Maw Wan, Catholic Church
D79: Maw Wan, Kachin Baptist Church
D80: Maw Wan, Kyauk Hlaing Gu Pagoda Compound
D81: Maw Wan, Myo Oo Pagoda
D82: May Di Ka Rama Monastery(Lon Khin)
D83: Mogawng Kyungtaw Camp
D84: Mogawng Mahawng Camp
D85: Mogawng Natkyikone Camp
D86: Moke Lwe Village / Hkar Shi
D87: Momauk Baptist Church
D88: Mung Ding Pa
D89: Mungga Zup/Zai Awng
D90: N Jang Dung
D91: Nam Hkam - Nay Win Ni (Palawng)
D92: Nam Hkam (KBC Jaw Wang)
D93: Nam Lim Pa - Scattered IDPs in forest
D94: Nam Tu
D95: Namdu Camp
D96: Namphaka
D97: Nan Kway St. John Catholic Church
D98: Nant Hlaing Church
D99: Nat Gyi Kone Baptist Church
D100: Nawng Ing (Indawgyi) Baptist Church
D101: Nawng Ing Camp
D102: Nawng Si Paw Village / Inn Lay
D103: Nga Pyaw Taw Baptist Nursery School
D104: Nga Pyaw Taw Roman Catholic Church
D105: Ni Thaw Ka Monestry
D106: Njang Dung Baptist Church
D107: Nong Pong
D108: Nong Pong Camp
D109: Nyaung Na Pin
D110: Pa Kahtawng
D111: Padauk Mying (Palana)
D112: Pajau / Jan Mai
D113: Parami, Charity Office, MyoMa Quarter
D114: Phan Khar Kone
D115: Post 6 Camp
D116: Qtr. 2 Lhaovo Baptist Church
D117: Qtr. 2 Myoma Baptist Church
D118: Qtr. 3 Mu-yin Baptist Church
D119: Qtr. 4 Monestry (Thargaya Thayett Taw)
D120: Robert Church
D121: Sa Baw Sarsana Parla Monastery
D122: San Kyel, Masoe Yein Monestry
D123: San Pra
D124: Seng Ja
D125: Shatapru
D126: Shatapru Sut Ngai Tawng
D127: Shing Jai
D128: Shingchyai
D129: Shwe Gu Catholic Church
D130: Shwe Zet
D131: Shwe Zet Baptist Church
D132: St.Patrick catholic church
D133: Ta Gun Taing Monastery (Shwe Kyi Na)
D134: Tar Ma Hkan Buddhist Monastery, Haung Par
D135: Tat Kone Baptist Church
D136: Tat Kone COC Baptist / Tat Kone Htoi San
D137: Tat Kone Emanuel Church
D138: Tat Kone Galile Baptist Church
D139: Tat Kone San Pya Baptist Church
D140: Thargaya Lisu Baptist Church
D141: Thiri Mingalar Manizay Yone, Myoma Quarter
D142: W.M Baptist Association
D143: Waing Maw Town Church
D144: Waingmaw AG Church
D145: Waingmaw Baptist Zonal Office
D146: Wrad(5) Christian Association
D147: Wun Tho Buddhist Monastery
D148: Yumar Baptist Church
D149: Zai Awng / Mung Ga Zup
D150: Ziun
D151: Zomee Baptist Church camp, Hmaw Wan

Sheet NFI_Tracking
I1: =NFISummary!P1 -> 1
A2: NFI TRACKING SHEET
A3: =Report_Date -> 2013-12-01
A5: Months | B5: Distribution Date | C5: Organization | D5: Implementing Partner | E5: State | F5: Township | G5: Camp Name | H5: Hygiene Kit | I5: NFI Core Kit | J5: Sanitary Kit | K5: Mosquito net | L5: Tarpaulin | M5: Blanket | N5: Kitchen Set | O5: Complementary Kit | P5: Plastic Bucket | Q5: Plastic Mat | R5: Hygiene Kit2 | S5: NFI Core Kit3 | T5: Sanitary Kit4 | U5: Mosquito net5 | V5: Tarpaulin6 | W5: Blanket7 | X5: Kitchen Set8 | Y5: Complementary Kit9 | Z5: Plastic Bucket | AA5: Plastic Mat | AB5: Pcode | AC5: Status
A6: =IF(ISBLANK(B6),"",(Report_Date-B6)/30) -> 17.4 | B6: 2012-06-27 | C6: UNHCR | E6: Rakhine | F6: Sittwe | G6: MahaKuthaLa | L6: 11 | R6: =IF(NFI_Expiration=1,IF($A6<VLOOKUP(H$5,NFI,5,0),1,0)*Table_NFI[[#This Row],[Hygiene Kit]],0) -> 0 | S6: =IF(NFI_Expiration=1,IF($A6<VLOOKUP(I$5,NFI,5,0),1,0)*Table_NFI[[#This Row],[NFI Core Kit]],0) -> 0 | T6: =IF(NFI_Expiration=1,IF($A6<VLOOKUP(J$5,NFI,5,0),1,0)*Table_NFI[[#This Row],[Sanitary Kit]],0) -> 0 | U6: =IF(NFI_Expiration=1,IF($A6<VLOOKUP(K$5,NFI,5,0),1,0)*Table_NFI[[#This Row],[Mosquito net]],0) -> 0 | V6: =IF(NFI_Expiration=1,IF($A6<VLOOKUP(L$5,NFI,5,0),1,0)*Table_NFI[[#This Row],[Tarpaulin]],0) -> 0 | W6: =IF(NFI_Expiration=1,IF($A6<VLOOKUP(M$5,NFI,5,0),1,0)*Table_NFI[[#This Row],[Blanket]],0) -> 0 | X6: =IF(NFI_Expiration=1,IF($A6<VLOOKUP(N$5,NFI,5,0),1,0)*Table_NFI[[#This Row],[Kitchen Set]],0) -> 0 | Y6: =IF(NFI_Expiration=1,IF($A6<VLOOKUP(O$5,NFI,5,0),1,0)*Table_NFI[[#This Row],[Complementary Kit]],0) -> 0 | Z6: =IF(NFI_Expiration=1,IF($A6<VLOOKUP(P$5,NFI,5,0),1,0)*Table_NFI[[#This Row],[Plastic Bucket]],0) -> 0 | AA6: =IF(NFI_Expiration=1,IF($A6<VLOOKUP(Q$5,NFI,5,0),1,0)*Table_NFI[[#This Row],[Plastic Mat]],0) -> 0 | AB6: =IFERROR(VLOOKUP(Table_NFI[[#This Row],[Camp Name]],CL,2,0),"") ->  | AC6: =IFERROR(VLOOKUP(Table_NFI[[#This Row],[Camp Name]],CL,3,0),"") -> 
A7: 17.4 | B7: 2012-06-27 | C7: UNHCR | E7: Rakhine | F7: Sittwe | G7: U Ye Kyaw Thu | L7: 200 | R7: =IF(NFI_Expiration=1,IF($A7<VLOOKUP(H$5,NFI,5,0),1,0)*Table_NFI[[#This Row],[Hygiene Kit]],0) -> 0 | S7: =IF(NFI_Expiration=1,IF($A7<VLOOKUP(I$5,NFI,5,0),1,0)*Table_NFI[[#This Row],[NFI Core Kit]],0) -> 0 | T7: =IF(NFI_Expiration=1,IF($A7<VLOOKUP(J$5,NFI,5,0),1,0)*Table_NFI[[#This Row],[Sanitary Kit]],0) -> 0 | U7: =IF(NFI_Expiration=1,IF($A7<VLOOKUP(K$5,NFI,5,0),1,0)*Table_NFI[[#This Row],[Mosquito net]],0) -> 0 | V7: =IF(NFI_Expiration=1,IF($A7<VLOOKUP(L$5,NFI,5,0),1,0)*Table_NFI[[#This Row],[Tarpaulin]],0) -> 0 | W7: =IF(NFI_Expiration=1,IF($A7<VLOOKUP(M$5,NFI,5,0),1,0)*Table_NFI[[#This Row],[Blanket]],0) -> 0 | X7: =IF(NFI_Expiration=1,IF($A7<VLOOKUP(N$5,NFI,5,0),1,0)*Table_NFI[[#This Row],[Kitchen Set]],0) -> 0 | Y7: =IF(NFI_Expiration=1,IF($A7<VLOOKUP(O$5,NFI,5,0),1,0)*Table_NFI[[#This Row],[Complementary Kit]],0) -> 0 | Z7: =IF(NFI_Expiration=1,IF($A7<VLOOKUP(P$5,NFI,5,0),1,0)*Table_NFI[[#This Row],[Plastic Bucket]],0) -> 0 | AA7: =IF(NFI_Expiration=1,IF($A7<VLOOKUP(Q$5,NFI,5,0),1,0)*Table_NFI[[#This Row],[Plastic Mat]],0) -> 0 | AB7: =IFERROR(VLOOKUP(Table_NFI[[#This Row],[Camp Name]],CL,2,0),"") ->  | AC7: =IFERROR(VLOOKUP(Table_NFI[[#This Row],[Camp Name]],CL,3,0),"") -> 
A8: 17.4 | B8: 2012-06-27 | C8: UNHCR | E8: Rakhine | F8: Sittwe | G8: Ywar Gyi | L8: 72 | R8: =IF(NFI_Expiration=1,IF($A8<VLOOKUP(H$5,NFI,5,0),1,0)*Table_NFI[[#This Row],[Hygiene Kit]],0) -> 0 | S8: =IF(NFI_Expiration=1,IF($A8<VLOOKUP(I$5,NFI,5,0),1,0)*Table_NFI[[#This Row],[NFI Core Kit]],0) -> 0 | T8: =IF(NFI_Expiration=1,IF($A8<VLOOKUP(J$5,NFI,5,0),1,0)*Table_NFI[[#This Row],[Sanitary Kit]],0) -> 0 | U8: =IF(NFI_Expiration=1,IF($A8<VLOOKUP(K$5,NFI,5,0),1,0)*Table_NFI[[#This Row],[Mosquito net]],0) -> 0 | V8: =IF(NFI_Expiration=1,IF($A8<VLOOKUP(L$5,NFI,5,0),1,0)*Table_NFI[[#This Row],[Tarpaulin]],0) -> 0 | W8: =IF(NFI_Expiration=1,IF($A8<VLOOKUP(M$5,NFI,5,0),1,0)*Table_NFI[[#This Row],[Blanket]],0) -> 0 | X8: =IF(NFI_Expiration=1,IF($A8<VLOOKUP(N$5,NFI,5,0),1,0)*Table_NFI[[#This Row],[Kitchen Set]],0) -> 0 | Y8: =IF(NFI_Expiration=1,IF($A8<VLOOKUP(O$5,NFI,5,0),1,0)*Table_NFI[[#This Row],[Complementary Kit]],0) -> 0 | Z8: =IF(NFI_Expiration=1,IF($A8<VLOOKUP(P$5,NFI,5,0),1,0)*Table_NFI[[#This Row],[Plastic Bucket]],0) -> 0 | AA8: =IF(NFI_Expiration=1,IF($A8<VLOOKUP(Q$5,NFI,5,0),1,0)*Table_NFI[[#This Row],[Plastic Mat]],0) -> 0 | AB8: =IFERROR(VLOOKUP(Table_NFI[[#This Row],[Camp Name]],CL,2,0),"") ->  | AC8: =IFERROR(VLOOKUP(Table_NFI[[#This Row],[Camp Name]],CL,3,0),"") -> 
A9: 17.4 | B9: 2012-06-27 | C9: UNHCR | E9: Rakhine | F9: Sittwe | G9: Ma Ni Yadanar Monastery | L9: 120 | R9: =IF(NFI_Expiration=1,IF($A9<VLOOKUP(H$5,NFI,5,0),1,0)*Table_NFI[[#This Row],[Hygiene Kit]],0) -> 0 | S9: =IF(NFI_Expiration=1,IF($A9<VLOOKUP(I$5,NFI,5,0),1,0)*Table_NFI[[#This Row],[NFI Core Kit]],0) -> 0 | T9: =IF(NFI_Expiration=1,IF($A9<VLOOKUP(J$5,NFI,5,0),1,0)*Table_NFI[[#This Row],[Sanitary Kit]],0) -> 0 | U9: =IF(NFI_Expiration=1,IF($A9<VLOOKUP(K$5,NFI,5,0),1,0)*Table_NFI[[#This Row],[Mosquito net]],0) -> 0 | V9: =IF(NFI_Expiration=1,IF($A9<VLOOKUP(L$5,NFI,5,0),1,0)*Table_NFI[[#This Row],[Tarpaulin]],0) -> 0 | W9: =IF(NFI_Expiration=1,IF($A9<VLOOKUP(M$5,NFI,5,0),1,0)*Table_NFI[[#This Row],[Blanket]],0) -> 0 | X9: =IF(NFI_Expiration=1,IF($A9<VLOOKUP(N$5,NFI,5,0),1,0)*Table_NFI[[#This Row],[Kitchen Set]],0) -> 0 | Y9: =IF(NFI_Expiration=1,IF($A9<VLOOKUP(O$5,NFI,5,0),1,0)*Table_NFI[[#This Row],[Complementary Kit]],0) -> 0 | Z9: =IF(NFI_Expiration=1,IF($A9<VLOOKUP(P$5,NFI,5,0),1,0)*Table_NFI[[#This Row],[Plastic Bucket]],0) -> 0 | AA9: =IF(NFI_Expiration=1,IF($A9<VLOOKUP(Q$5,NFI,5,0),1,0)*Table_NFI[[#This Row],[Plastic Mat]],0) -> 0 | AB9: =IFERROR(VLOOKUP(Table_NFI[[#This Row],[Camp Name]],CL,2,0),"") -> MMR012CMP072 | AC9: =IFERROR(VLOOKUP(Table_NFI[[#This Row],[Camp Name]],CL,3,0),"") -> Close
A10: 17.36666667 | B10: 2012-06-28 | C10: UNHCR | E10: Rakhine | F10: Sittwe | G10: Da Ma Set Kyar | L10: 52 | R10: =IF(NFI_Expiration=1,IF($A10<VLOOKUP(H$5,NFI,5,0),1,0)*Table_NFI[[#This Row],[Hygiene Kit]],0) -> 0 | S10: =IF(NFI_Expiration=1,IF($A10<VLOOKUP(I$5,NFI,5,0),1,0)*Table_NFI[[#This Row],[NFI Core Kit]],0) -> 0 | T10: =IF(NFI_Expiration=1,IF($A10<VLOOKUP(J$5,NFI,5,0),1,0)*Table_NFI[[#This Row],[Sanitary Kit]],0) -> 0 | U10: =IF(NFI_Expiration=1,IF($A10<VLOOKUP(K$5,NFI,5,0),1,0)*Table_NFI[[#This Row],[Mosquito net]],0) -> 0 | V10: =IF(NFI_Expiration=1,IF($A10<VLOOKUP(L$5,NFI,5,0),1,0)*Table_NFI[[#This Row],[Tarpaulin]],0) -> 0 | W10: =IF(NFI_Expiration=1,IF($A10<VLOOKUP(M$5,NFI,5,0),1,0)*Table_NFI[[#This Row],[Blanket]],0) -> 0 | X10: =IF(NFI_Expiration=1,IF($A10<VLOOKUP(N$5,NFI,5,0),1,0)*Table_NFI[[#This Row],[Kitchen Set]],0) -> 0 | Y10: =IF(NFI_Expiration=1,IF($A10<VLOOKUP(O$5,NFI,5,0),1,0)*Table_NFI[[#This Row],[Complementary Kit]],0) -> 0 | Z10: =IF(NFI_Expiration=1,IF($A10<VLOOKUP(P$5,NFI,5,0),1,0)*Table_NFI[[#This Row],[Plastic Bucket]],0) -> 0 | AA10: =IF(NFI_Expiration=1,IF($A10<VLOOKUP(Q$5,NFI,5,0),1,0)*Table_NFI[[#This Row],[Plastic Mat]],0) -> 0 | AB10: =IFERROR(VLOOKUP(Table_NFI[[#This Row],[Camp Name]],CL,2,0),"") ->  | AC10: =IFERROR(VLOOKUP(Table_NFI[[#This Row],[Camp Name]],CL,3,0),"") -> 
A11: 17.36666667 | B11: 2012-06-28 | C11: UNHCR | E11: Rakhine | F11: Sittwe | G11: Sit Kae Taw Min | L11: 89 | R11: =IF(NFI_Expiration=1,IF($A11<VLOOKUP(H$5,NFI,5,0),1,0)*Table_NFI[[#This Row],[Hygiene Kit]],0) -> 0 | S11: =IF(NFI_Expiration=1,IF($A11<VLOOKUP(I$5,NFI,5,0),1,0)*Table_NFI[[#This Row],[NFI Core Kit]],0) -> 0 | T11: =IF(NFI_Expiration=1,IF($A11<VLOOKUP(J$5,NFI,5,0),1,0)*Table_NFI[[#This Row],[Sanitary Kit]],0) -> 0 | U11: =IF(NFI_Expiration=1,IF($A11<VLOOKUP(K$5,NFI,5,0),1,0)*Table_NFI[[#This Row],[Mosquito net]],0) -> 0 | V11: =IF(NFI_Expiration=1,IF($A11<VLOOKUP(L$5,NFI,5,0),1,0)*Table_NFI[[#This Row],[Tarpaulin]],0) -> 0 | W11: =IF(NFI_Expiration=1,IF($A11<VLOOKUP(M$5,NFI,5,0),1,0)*Table_NFI[[#This Row],[Blanket]],0) -> 0 | X11: =IF(NFI_Expiration=1,IF($A11<VLOOKUP(N$5,NFI,5,0),1,0)*Table_NFI[[#This Row],[Kitchen Set]],0) -> 0 | Y11: =IF(NFI_Expiration=1,IF($A11<VLOOKUP(O$5,NFI,5,0),1,0)*Table_NFI[[#This Row],[Complementary Kit]],0) -> 0 | Z11: =IF(NFI_Expiration=1,IF($A11<VLOOKUP(P$5,NFI,5,0),1,0)*Table_NFI[[#This Row],[Plastic Bucket]],0) -> 0 | AA11: =IF(NFI_Expiration=1,IF($A11<VLOOKUP(Q$5,NFI,5,0),1,0)*Table_NFI[[#This Row],[Plastic Mat]],0) -> 0 | AB11: =IFERROR(VLOOKUP(Table_NFI[[#This Row],[Camp Name]],CL,2,0),"") ->  | AC11: =IFERROR(VLOOKUP(Table_NFI[[#This Row],[Camp Name]],CL,3,0),"") -> 
A12: 17.36666667 | B12: 2012-06-28 | C12: UNHCR | E12: Rakhine | F12: Sittwe | G12: Phyin Nyar Ag Myay | L12: 11 | R12: =IF(NFI_Expiration=1,IF($A12<VLOOKUP(H$5,NFI,5,0),1,0)*Table_NFI[[#This Row],[Hygiene Kit]],0) -> 0 | S12: =IF(NFI_Expiration=1,IF($A12<VLOOKUP(I$5,NFI,5,0),1,0)*Table_NFI[[#This Row],[NFI Core Kit]],0) -> 0 | T12: =IF(NFI_Expiration=1,IF($A12<VLOOKUP(J$5,NFI,5,0),1,0)*Table_NFI[[#This Row],[Sanitary Kit]],0) -> 0 | U12: =IF(NFI_Expiration=1,IF($A12<VLOOKUP(K$5,NFI,5,0),1,0)*Table_NFI[[#This Row],[Mosquito net]],0) -> 0 | V12: =IF(NFI_Expiration=1,IF($A12<VLOOKUP(L$5,NFI,5,0),1,0)*Table_NFI[[#This Row],[Tarpaulin]],0) -> 0 | W12: =IF(NFI_Expiration=1,IF($A12<VLOOKUP(M$5,NFI,5,0),1,0)*Table_NFI[[#This Row],[Blanket]],0) -> 0 | X12: =IF(NFI_Expiration=1,IF($A12<VLOOKUP(N$5,NFI,5,0),1,0)*Table_NFI[[#This Row],[Kitchen Set]],0) -> 0 | Y12: =IF(NFI_Expiration=1,IF($A12<VLOOKUP(O$5,NFI,5,0),1,0)*Table_NFI[[#This Row],[Complementary Kit]],0) -> 0 | Z12: =IF(NFI_Expiration=1,IF($A12<VLOOKUP(P$5,NFI,5,0),1,0)*Table_NFI[[#This Row],[Plastic Bucket]],0) -> 0 | AA12: =IF(NFI_Expiration=1,IF($A12<VLOOKUP(Q$5,NFI,5,0),1,0)*Table_NFI[[#This Row],[Plastic Mat]],0) -> 0 | AB12: =IFERROR(VLOOKUP(Table_NFI[[#This Row],[Camp Name]],CL,2,0),"") ->  | AC12: =IFERROR(VLOOKUP(Table_NFI[[#This Row],[Camp Name]],CL,3,0),"") -> 
A13: 17.36666667 | B13: 2012-06-28 | C13: UNHCR | E13: Rakhine | F13: Sittwe | G13: Kaw Nyar Na | L13: 9 | R13: =IF(NFI_Expiration=1,IF($A13<VLOOKUP(H$5,NFI,5,0),1,0)*Table_NFI[[#This Row],[Hygiene Kit]],0) -> 0 | S13: =IF(NFI_Expiration=1,IF($A13<VLOOKUP(I$5,NFI,5,0),1,0)*Table_NFI[[#This Row],[NFI Core Kit]],0) -> 0 | T13: =IF(NFI_Expiration=1,IF($A13<VLOOKUP(J$5,NFI,5,0),1,0)*Table_NFI[[#This Row],[Sanitary Kit]],0) -> 0 | U13: =IF(NFI_Expiration=1,IF($A13<VLOOKUP(K$5,NFI,5,0),1,0)*Table_NFI[[#This Row],[Mosquito net]],0) -> 0 | V13: =IF(NFI_Expiration=1,IF($A13<VLOOKUP(L$5,NFI,5,0),1,0)*Table_NFI[[#This Row],[Tarpaulin]],0) -> 0 | W13: =IF(NFI_Expiration=1,IF($A13<VLOOKUP(M$5,NFI,5,0),1,0)*Table_NFI[[#This Row],[Blanket]],0) -> 0 | X13: =IF(NFI_Expiration=1,IF($A13<VLOOKUP(N$5,NFI,5,0),1,0)*Table_NFI[[#This Row],[Kitchen Set]],0) -> 0 | Y13: =IF(NFI_Expiration=1,IF($A13<VLOOKUP(O$5,NFI,5,0),1,0)*Table_NFI[[#This Row],[Complementary Kit]],0) -> 0 | Z13: =IF(NFI_Expiration=1,IF($A13<VLOOKUP(P$5,NFI,5,0),1,0)*Table_NFI[[#This Row],[Plastic Bucket]],0) -> 0 | AA13: =IF(NFI_Expiration=1,IF($A13<VLOOKUP(Q$5,NFI,5,0),1,0)*Table_NFI[[#This Row],[Plastic Mat]],0) -> 0 | AB13: =IFERROR(VLOOKUP(Table_NFI[[#This Row],[Camp Name]],CL,2,0),"") ->  | AC13: =IFERROR(VLOOKUP(Table_NFI[[#This Row],[Camp Name]],CL,3,0),"") -> 
A14: 17.36666667 | B14: 2012-06-28 | C14: UNHCR | E14: Rakhine | F14: Sittwe | G14: Dar Pai | L14: 300 | R14: =IF(NFI_Expiration=1,IF($A14<VLOOKUP(H$5,NFI,5,0),1,0)*Table_NFI[[#This Row],[Hygiene Kit]],0) -> 0 | S14: =IF(NFI_Expiration=1,IF($A14<VLOOKUP(I$5,NFI,5,0),1,0)*Table_NFI[[#This Row],[NFI Core Kit]],0) -> 0 | T14: =IF(NFI_Expiration=1,IF($A14<VLOOKUP(J$5,NFI,5,0),1,0)*Table_NFI[[#This Row],[Sanitary Kit]],0) -> 0 | U14: =IF(NFI_Expiration=1,IF($A14<VLOOKUP(K$5,NFI,5,0),1,0)*Table_NFI[[#This Row],[Mosquito net]],0) -> 0 | V14: =IF(NFI_Expiration=1,IF($A14<VLOOKUP(L$5,NFI,5,0),1,0)*Table_NFI[[#This Row],[Tarpaulin]],0) -> 0 | W14: =IF(NFI_Expiration=1,IF($A14<VLOOKUP(M$5,NFI,5,0),1,0)*Table_NFI[[#This Row],[Blanket]],0) -> 0 | X14: =IF(NFI_Expiration=1,IF($A14<VLOOKUP(N$5,NFI,5,0),1,0)*Table_NFI[[#This Row],[Kitchen Set]],0) -> 0 | Y14: =IF(NFI_Expiration=1,IF($A14<VLOOKUP(O$5,NFI,5,0),1,0)*Table_NFI[[#This Row],[Complementary Kit]],0) -> 0 | Z14: =IF(NFI_Expiration=1,IF($A14<VLOOKUP(P$5,NFI,5,0),1,0)*Table_NFI[[#This Row],[Plastic Bucket]],0) -> 0 | AA14: =IF(NFI_Expiration=1,IF($A14<VLOOKUP(Q$5,NFI,5,0),1,0)*Table_NFI[[#This Row],[Plastic Mat]],0) -> 0 | AB14: =IFERROR(VLOOKUP(Table_NFI[[#This Row],[Camp Name]],CL,2,0),"") -> MMR012CMP041 | AC14: =IFERROR(VLOOKUP(Table_NFI[[#This Row],[Camp Name]],CL,3,0),"") -> Open
A15: 17.33333333 | B15: 2012-06-29 | C15: UNHCR | E15: Rakhine | F15: Sittwe | G15: Thet Kae Pyin | L15: 200 | R15: =IF(NFI_Expiration=1,IF($A15<VLOOKUP(H$5,NFI,5,0),1,0)*Table_NFI[[#This Row],[Hygiene Kit]],0) -> 0 | S15: =IF(NFI_Expiration=1,IF($A15<VLOOKUP(I$5,NFI,5,0),1,0)*Table_NFI[[#This Row],[NFI Core Kit]],0) -> 0 | T15: =IF(NFI_Expiration=1,IF($A15<VLOOKUP(J$5,NFI,5,0),1,0)*Table_NFI[[#This Row],[Sanitary Kit]],0) -> 0 | U15: =IF(NFI_Expiration=1,IF($A15<VLOOKUP(K$5,NFI,5,0),1,0)*Table_NFI[[#This Row],[Mosquito net]],0) -> 0 | V15: =IF(NFI_Expiration=1,IF($A15<VLOOKUP(L$5,NFI,5,0),1,0)*Table_NFI[[#This Row],[Tarpaulin]],0) -> 0 | W15: =IF(NFI_Expiration=1,IF($A15<VLOOKUP(M$5,NFI,5,0),1,0)*Table_NFI[[#This Row],[Blanket]],0) -> 0 | X15: =IF(NFI_Expiration=1,IF($A15<VLOOKUP(N$5,NFI,5,0),1,0)*Table_NFI[[#This Row],[Kitchen Set]],0) -> 0 | Y15: =IF(NFI_Expiration=1,IF($A15<VLOOKUP(O$5,NFI,5,0),1,0)*Table_NFI[[#This Row],[Complementary Kit]],0) -> 0 | Z15: =IF(NFI_Expiration=1,IF($A15<VLOOKUP(P$5,NFI,5,0),1,0)*Table_NFI[[#This Row],[Plastic Bucket]],0) -> 0 | AA15: =IF(NFI_Expiration=1,IF($A15<VLOOKUP(Q$5,NFI,5,0),1,0)*Table_NFI[[#This Row],[Plastic Mat]],0) -> 0 | AB15: =IFERROR(VLOOKUP(Table_NFI[[#This Row],[Camp Name]],CL,2,0),"") -> MMR012CMP048 | AC15: =IFERROR(VLOOKUP(Table_NFI[[#This Row],[Camp Name]],CL,3,0),"") -> Open
A16: 17.33333333 | B16: 2012-06-29 | C16: UNHCR | E16: Rakhine | F16: Sittwe | G16: Sin Ku Lann Monastery | L16: 62 | R16: =IF(NFI_Expiration=1,IF($A16<VLOOKUP(H$5,NFI,5,0),1,0)*Table_NFI[[#This Row],[Hygiene Kit]],0) -> 0 | S16: =IF(NFI_Expiration=1,IF($A16<VLOOKUP(I$5,NFI,5,0),1,0)*Table_NFI[[#This Row],[NFI Core Kit]],0) -> 0 | T16: =IF(NFI_Expiration=1,IF($A16<VLOOKUP(J$5,NFI,5,0),1,0)*Table_NFI[[#This Row],[Sanitary Kit]],0) -> 0 | U16: =IF(NFI_Expiration=1,IF($A16<VLOOKUP(K$5,NFI,5,0),1,0)*Table_NFI[[#This Row],[Mosquito net]],0) -> 0 | V16: =IF(NFI_Expiration=1,IF($A16<VLOOKUP(L$5,NFI,5,0),1,0)*Table_NFI[[#This Row],[Tarpaulin]],0) -> 0 | W16: =IF(NFI_Expiration=1,IF($A16<VLOOKUP(M$5,NFI,5,0),1,0)*Table_NFI[[#This Row],[Blanket]],0) -> 0 | X16: =IF(NFI_Expiration=1,IF($A16<VLOOKUP(N$5,NFI,5,0),1,0)*Table_NFI[[#This Row],[Kitchen Set]],0) -> 0 | Y16: =IF(NFI_Expiration=1,IF($A16<VLOOKUP(O$5,NFI,5,0),1,0)*Table_NFI[[#This Row],[Complementary Kit]],0) -> 0 | Z16: =IF(NFI_Expiration=1,IF($A16<VLOOKUP(P$5,NFI,5,0),1,0)*Table_NFI[[#This Row],[Plastic Bucket]],0) -> 0 | AA16: =IF(NFI_Expiration=1,IF($A16<VLOOKUP(Q$5,NFI,5,0),1,0)*Table_NFI[[#This Row],[Plastic Mat]],0) -> 0 | AB16: =IFERROR(VLOOKUP(Table_NFI[[#This Row],[Camp Name]],CL,2,0),"") -> MMR012CMP068 | AC16: =IFERROR(VLOOKUP(Table_NFI[[#This Row],[Camp Name]],CL,3,0),"") -> Close
A17: 17.33333333 | B17: 2012-06-29 | C17: UNHCR | E17: Rakhine | F17: Sittwe | G17: Myo Ma Monastery | L17: 66 | R17: =IF(NFI_Expiration=1,IF($A17<VLOOKUP(H$5,NFI,5,0),1,0)*Table_NFI[[#This Row],[Hygiene Kit]],0) -> 0 | S17: =IF(NFI_Expiration=1,IF($A17<VLOOKUP(I$5,NFI,5,0),1,0)*Table_NFI[[#This Row],[NFI Core Kit]],0) -> 0 | T17: =IF(NFI_Expiration=1,IF($A17<VLOOKUP(J$5,NFI,5,0),1,0)*Table_NFI[[#This Row],[Sanitary Kit]],0) -> 0 | U17: =IF(NFI_Expiration=1,IF($A17<VLOOKUP(K$5,NFI,5,0),1,0)*Table_NFI[[#This Row],[Mosquito net]],0) -> 0 | V17: =IF(NFI_Expiration=1,IF($A17<VLOOKUP(L$5,NFI,5,0),1,0)*Table_NFI[[#This Row],[Tarpaulin]],0) -> 0 | W17: =IF(NFI_Expiration=1,IF($A17<VLOOKUP(M$5,NFI,5,0),1,0)*Table_NFI[[#This Row],[Blanket]],0) -> 0 | X17: =IF(NFI_Expiration=1,IF($A17<VLOOKUP(N$5,NFI,5,0),1,0)*Table_NFI[[#This Row],[Kitchen Set]],0) -> 0 | Y17: =IF(NFI_Expiration=1,IF($A17<VLOOKUP(O$5,NFI,5,0),1,0)*Table_NFI[[#This Row],[Complementary Kit]],0) -> 0 | Z17: =IF(NFI_Expiration=1,IF($A17<VLOOKUP(P$5,NFI,5,0),1,0)*Table_NFI[[#This Row],[Plastic Bucket]],0) -> 0 | AA17: =IF(NFI_Expiration=1,IF($A17<VLOOKUP(Q$5,NFI,5,0),1,0)*Table_NFI[[#This Row],[Plastic Mat]],0) -> 0 | AB17: =IFERROR(VLOOKUP(Table_NFI[[#This Row],[Camp Name]],CL,2,0),"") -> MMR012CMP063 | AC17: =IFERROR(VLOOKUP(Table_NFI[[#This Row],[Camp Name]],CL,3,0),"") -> Close
A18: 17.33333333 | B18: 2012-06-29 | C18: UNHCR | E18: Rakhine | F18: Sittwe | G18: Dak Kaung Monastery | L18: 66 | R18: =IF(NFI_Expiration=1,IF($A18<VLOOKUP(H$5,NFI,5,0),1,0)*Table_NFI[[#This Row],[Hygiene Kit]],0) -> 0 | S18: =IF(NFI_Expiration=1,IF($A18<VLOOKUP(I$5,NFI,5,0),1,0)*Table_NFI[[#This Row],[NFI Core Kit]],0) -> 0 | T18: =IF(NFI_Expiration=1,IF($A18<VLOOKUP(J$5,NFI,5,0),1,0)*Table_NFI[[#This Row],[Sanitary Kit]],0) -> 0 | U18: =IF(NFI_Expiration=1,IF($A18<VLOOKUP(K$5,NFI,5,0),1,0)*Table_NFI[[#This Row],[Mosquito net]],0) -> 0 | V18: =IF(NFI_Expiration=1,IF($A18<VLOOKUP(L$5,NFI,5,0),1,0)*Table_NFI[[#This Row],[Tarpaulin]],0) -> 0 | W18: =IF(NFI_Expiration=1,IF($A18<VLOOKUP(M$5,NFI,5,0),1,0)*Table_NFI[[#This Row],[Blanket]],0) -> 0 | X18: =IF(NFI_Expiration=1,IF($A18<VLOOKUP(N$5,NFI,5,0),1,0)*Table_NFI[[#This Row],[Kitchen Set]],0) -> 0 | Y18: =IF(NFI_Expiration=1,IF($A18<VLOOKUP(O$5,NFI,5,0),1,0)*Table_NFI[[#This Row],[Complementary Kit]],0) -> 0 | Z18: =IF(NFI_Expiration=1,IF($A18<VLOOKUP(P$5,NFI,5,0),1,0)*Table_NFI[[#This Row],[Plastic Bucket]],0) -> 0 | AA18: =IF(NFI_Expiration=1,IF($A18<VLOOKUP(Q$5,NFI,5,0),1,0)*Table_NFI[[#This Row],[Plastic Mat]],0) -> 0 | AB18: =IFERROR(VLOOKUP(Table_NFI[[#This Row],[Camp Name]],CL,2,0),"") -> MMR012CMP059 | AC18: =IFERROR(VLOOKUP(Table_NFI[[#This Row],[Camp Name]],CL,3,0),"") -> Close
A19: 17.33333333 | B19: 2012-06-29 | C19: UNHCR | E19: Rakhine | F19: Sittwe | G19: Mahar Zay Ya Theik | L19: 37 | R19: =IF(NFI_Expiration=1,IF($A19<VLOOKUP(H$5,NFI,5,0),1,0)*Table_NFI[[#This Row],[Hygiene Kit]],0) -> 0 | S19: =IF(NFI_Expiration=1,IF($A19<VLOOKUP(I$5,NFI,5,0),1,0)*Table_NFI[[#This Row],[NFI Core Kit]],0) -> 0 | T19: =IF(NFI_Expiration=1,IF($A19<VLOOKUP(J$5,NFI,5,0),1,0)*Table_NFI[[#This Row],[Sanitary Kit]],0) -> 0 | U19: =IF(NFI_Expiration=1,IF($A19<VLOOKUP(K$5,NFI,5,0),1,0)*Table_NFI[[#This Row],[Mosquito net]],0) -> 0 | V19: =IF(NFI_Expiration=1,IF($A19<VLOOKUP(L$5,NFI,5,0),1,0)*Table_NFI[[#This Row],[Tarpaulin]],0) -> 0 | W19: =IF(NFI_Expiration=1,IF($A19<VLOOKUP(M$5,NFI,5,0),1,0)*Table_NFI[[#This Row],[Blanket]],0) -> 0 | X19: =IF(NFI_Expiration=1,IF($A19<VLOOKUP(N$5,NFI,5,0),1,0)*Table_NFI[[#This Row],[Kitchen Set]],0) -> 0 | Y19: =IF(NFI_Expiration=1,IF($A19<VLOOKUP(O$5,NFI,5,0),1,0)*Table_NFI[[#This Row],[Complementary Kit]],0) -> 0 | Z19: =IF(NFI_Expiration=1,IF($A19<VLOOKUP(P$5,NFI,5,0),1,0)*Table_NFI[[#This Row],[Plastic Bucket]],0) -> 0 | AA19: =IF(NFI_Expiration=1,IF($A19<VLOOKUP(Q$5,NFI,5,0),1,0)*Table_NFI[[#This Row],[Plastic Mat]],0) -> 0 | AB19: =IFERROR(VLOOKUP(Table_NFI[[#This Row],[Camp Name]],CL,2,0),"") ->  | AC19: =IFERROR(VLOOKUP(Table_NFI[[#This Row],[Camp Name]],CL,3,0),"") -> 
A20: 17.3 | B20: 2012-06-30 | C20: UNHCR | E20: Rakhine | F20: Sittwe | G20: Danyawaddy Baw Lone Kwin | L20: 103 | R20: =IF(NFI_Expiration=1,IF($A20<VLOOKUP(H$5,NFI,5,0),1,0)*Table_NFI[[#This Row],[Hygiene Kit]],0) -> 0 | S20: =IF(NFI_Expiration=1,IF($A20<VLOOKUP(I$5,NFI,5,0),1,0)*Table_NFI[[#This Row],[NFI Core Kit]],0) -> 0 | T20: =IF(NFI_Expiration=1,IF($A20<VLOOKUP(J$5,NFI,5,0),1,0)*Table_NFI[[#This Row],[Sanitary Kit]],0) -> 0 | U20: =IF(NFI_Expiration=1,IF($A20<VLOOKUP(K$5,NFI,5,0),1,0)*Table_NFI[[#This Row],[Mosquito net]],0) -> 0 | V20: =IF(NFI_Expiration=1,IF($A20<VLOOKUP(L$5,NFI,5,0),1,0)*Table_NFI[[#This Row],[Tarpaulin]],0) -> 0 | W20: =IF(NFI_Expiration=1,IF($A20<VLOOKUP(M$5,NFI,5,0),1,0)*Table_NFI[[#This Row],[Blanket]],0) -> 0 | X20: =IF(NFI_Expiration=1,IF($A20<VLOOKUP(N$5,NFI,5,0),1,0)*Table_NFI[[#This Row],[Kitchen Set]],0) -> 0 | Y20: =IF(NFI_Expiration=1,IF($A20<VLOOKUP(O$5,NFI,5,0),1,0)*Table_NFI[[#This Row],[Complementary Kit]],0) -> 0 | Z20: =IF(NFI_Expiration=1,IF($A20<VLOOKUP(P$5,NFI,5,0),1,0)*Table_NFI[[#This Row],[Plastic Bucket]],0) -> 0 | AA20: =IF(NFI_Expiration=1,IF($A20<VLOOKUP(Q$5,NFI,5,0),1,0)*Table_NFI[[#This Row],[Plastic Mat]],0) -> 0 | AB20: =IFERROR(VLOOKUP(Table_NFI[[#This Row],[Camp Name]],CL,2,0),"") -> MMR012CMP055 | AC20: =IFERROR(VLOOKUP(Table_NFI[[#This Row],[Camp Name]],CL,3,0),"") -> Close
A21: 17.3 | B21: 2012-06-30 | C21: UNHCR | E21: Rakhine | F21: Sittwe | G21: Tha Ma Da ZTK | L21: 35 | R21: =IF(NFI_Expiration=1,IF($A21<VLOOKUP(H$5,NFI,5,0),1,0)*Table_NFI[[#This Row],[Hygiene Kit]],0) -> 0 | S21: =IF(NFI_Expiration=1,IF($A21<VLOOKUP(I$5,NFI,5,0),1,0)*Table_NFI[[#This Row],[NFI Core Kit]],0) -> 0 | T21: =IF(NFI_Expiration=1,IF($A21<VLOOKUP(J$5,NFI,5,0),1,0)*Table_NFI[[#This Row],[Sanitary Kit]],0) -> 0 | U21: =IF(NFI_Expiration=1,IF($A21<VLOOKUP(K$5,NFI,5,0),1,0)*Table_NFI[[#This Row],[Mosquito net]],0) -> 0 | V21: =IF(NFI_Expiration=1,IF($A21<VLOOKUP(L$5,NFI,5,0),1,0)*Table_NFI[[#This Row],[Tarpaulin]],0) -> 0 | W21: =IF(NFI_Expiration=1,IF($A21<VLOOKUP(M$5,NFI,5,0),1,0)*Table_NFI[[#This Row],[Blanket]],0) -> 0 | X21: =IF(NFI_Expiration=1,IF($A21<VLOOKUP(N$5,NFI,5,0),1,0)*Table_NFI[[#This Row],[Kitchen Set]],0) -> 0 | Y21: =IF(NFI_Expiration=1,IF($A21<VLOOKUP(O$5,NFI,5,0),1,0)*Table_NFI[[#This Row],[Complementary Kit]],0) -> 0 | Z21: =IF(NFI_Expiration=1,IF($A21<VLOOKUP(P$5,NFI,5,0),1,0)*Table_NFI[[#This Row],[Plastic Bucket]],0) -> 0 | AA21: =IF(NFI_Expiration=1,IF($A21<VLOOKUP(Q$5,NFI,5,0),1,0)*Table_NFI[[#This Row],[Plastic Mat]],0) -> 0 | AB21: =IFERROR(VLOOKUP(Table_NFI[[#This Row],[Camp Name]],CL,2,0),"") ->  | AC21: =IFERROR(VLOOKUP(Table_NFI[[#This Row],[Camp Name]],CL,3,0),"") -> 
A22: 17.3 | B22: 2012-06-30 | C22: UNHCR | E22: Rakhine | F22: Sittwe | G22: Khaung Laung | L22: 36 | R22: =IF(NFI_Expiration=1,IF($A22<VLOOKUP(H$5,NFI,5,0),1,0)*Table_NFI[[#This Row],[Hygiene Kit]],0) -> 0 | S22: =IF(NFI_Expiration=1,IF($A22<VLOOKUP(I$5,NFI,5,0),1,0)*Table_NFI[[#This Row],[NFI Core Kit]],0) -> 0 | T22: =IF(NFI_Expiration=1,IF($A22<VLOOKUP(J$5,NFI,5,0),1,0)*Table_NFI[[#This Row],[Sanitary Kit]],0) -> 0 | U22: =IF(NFI_Expiration=1,IF($A22<VLOOKUP(K$5,NFI,5,0),1,0)*Table_NFI[[#This Row],[Mosquito net]],0) -> 0 | V22: =IF(NFI_Expiration=1,IF($A22<VLOOKUP(L$5,NFI,5,0),1,0)*Table_NFI[[#This Row],[Tarpaulin]],0) -> 0 | W22: =IF(NFI_Expiration=1,IF($A22<VLOOKUP(M$5,NFI,5,0),1,0)*Table_NFI[[#This Row],[Blanket]],0) -> 0 | X22: =IF(NFI_Expiration=1,IF($A22<VLOOKUP(N$5,NFI,5,0),1,0)*Table_NFI[[#This Row],[Kitchen Set]],0) -> 0 | Y22: =IF(NFI_Expiration=1,IF($A22<VLOOKUP(O$5,NFI,5,0),1,0)*Table_NFI[[#This Row],[Complementary Kit]],0) -> 0 | Z22: =IF(NFI_Expiration=1,IF($A22<VLOOKUP(P$5,NFI,5,0),1,0)*Table_NFI[[#This Row],[Plastic Bucket]],0) -> 0 | AA22: =IF(NFI_Expiration=1,IF($A22<VLOOKUP(Q$5,NFI,5,0),1,0)*Table_NFI[[#This Row],[Plastic Mat]],0) -> 0 | AB22: =IFERROR(VLOOKUP(Table_NFI[[#This Row],[Camp Name]],CL,2,0),"") ->  | AC22: =IFERROR(VLOOKUP(Table_NFI[[#This Row],[Camp Name]],CL,3,0),"") -> 
A23: 17.3 | B23: 2012-06-30 | C23: UNHCR | E23: Rakhine | F23: Sittwe | G23: Pyin Nyar Mandine Monastery | L23: 9 | R23: =IF(NFI_Expiration=1,IF($A23<VLOOKUP(H$5,NFI,5,0),1,0)*Table_NFI[[#This Row],[Hygiene Kit]],0) -> 0 | S23: =IF(NFI_Expiration=1,IF($A23<VLOOKUP(I$5,NFI,5,0),1,0)*Table_NFI[[#This Row],[NFI Core Kit]],0) -> 0 | T23: =IF(NFI_Expiration=1,IF($A23<VLOOKUP(J$5,NFI,5,0),1,0)*Table_NFI[[#This Row],[Sanitary Kit]],0) -> 0 | U23: =IF(NFI_Expiration=1,IF($A23<VLOOKUP(K$5,NFI,5,0),1,0)*Table_NFI[[#This Row],[Mosquito net]],0) -> 0 | V23: =IF(NFI_Expiration=1,IF($A23<VLOOKUP(L$5,NFI,5,0),1,0)*Table_NFI[[#This Row],[Tarpaulin]],0) -> 0 | W23: =IF(NFI_Expiration=1,IF($A23<VLOOKUP(M$5,NFI,5,0),1,0)*Table_NFI[[#This Row],[Blanket]],0) -> 0 | X23: =IF(NFI_Expiration=1,IF($A23<VLOOKUP(N$5,NFI,5,0),1,0)*Table_NFI[[#This Row],[Kitchen Set]],0) -> 0 | Y23: =IF(NFI_Expiration=1,IF($A23<VLOOKUP(O$5,NFI,5,0),1,0)*Table_NFI[[#This Row],[Complementary Kit]],0) -> 0 | Z23: =IF(NFI_Expiration=1,IF($A23<VLOOKUP(P$5,NFI,5,0),1,0)*Table_NFI[[#This Row],[Plastic Bucket]],0) -> 0 | AA23: =IF(NFI_Expiration=1,IF($A23<VLOOKUP(Q$5,NFI,5,0),1,0)*Table_NFI[[#This Row],[Plastic Mat]],0) -> 0 | AB23: =IFERROR(VLOOKUP(Table_NFI[[#This Row],[Camp Name]],CL,2,0),"") -> MMR012CMP064 | AC23: =IFERROR(VLOOKUP(Table_NFI[[#This Row],[Camp Name]],CL,3,0),"") -> Close
A24: 17.3 | B24: 2012-06-30 | C24: UNHCR | E24: Rakhine | F24: Sittwe | G24: TanTan | L24: 20 | R24: =IF(NFI_Expiration=1,IF($A24<VLOOKUP(H$5,NFI,5,0),1,0)*Table_NFI[[#This Row],[Hygiene Kit]],0) -> 0 | S24: =IF(NFI_Expiration=1,IF($A24<VLOOKUP(I$5,NFI,5,0),1,0)*Table_NFI[[#This Row],[NFI Core Kit]],0) -> 0 | T24: =IF(NFI_Expiration=1,IF($A24<VLOOKUP(J$5,NFI,5,0),1,0)*Table_NFI[[#This Row],[Sanitary Kit]],0) -> 0 | U24: =IF(NFI_Expiration=1,IF($A24<VLOOKUP(K$5,NFI,5,0),1,0)*Table_NFI[[#This Row],[Mosquito net]],0) -> 0 | V24: =IF(NFI_Expiration=1,IF($A24<VLOOKUP(L$5,NFI,5,0),1,0)*Table_NFI[[#This Row],[Tarpaulin]],0) -> 0 | W24: =IF(NFI_Expiration=1,IF($A24<VLOOKUP(M$5,NFI,5,0),1,0)*Table_NFI[[#This Row],[Blanket]],0) -> 0 | X24: =IF(NFI_Expiration=1,IF($A24<VLOOKUP(N$5,NFI,5,0),1,0)*Table_NFI[[#This Row],[Kitchen Set]],0) -> 0 | Y24: =IF(NFI_Expiration=1,IF($A24<VLOOKUP(O$5,NFI,5,0),1,0)*Table_NFI[[#This Row],[Complementary Kit]],0) -> 0 | Z24: =IF(NFI_Expiration=1,IF($A24<VLOOKUP(P$5,NFI,5,0),1,0)*Table_NFI[[#This Row],[Plastic Bucket]],0) -> 0 | AA24: =IF(NFI_Expiration=1,IF($A24<VLOOKUP(Q$5,NFI,5,0),1,0)*Table_NFI[[#This Row],[Plastic Mat]],0) -> 0 | AB24: =IFERROR(VLOOKUP(Table_NFI[[#This Row],[Camp Name]],CL,2,0),"") ->  | AC24: =IFERROR(VLOOKUP(Table_NFI[[#This Row],[Camp Name]],CL,3,0),"") -> 
A25: =IF(ISBLANK(B25),"",(Report_Date-B25)/30) -> 17.3 | B25: 2012-06-30 | C25: UNHCR | E25: Rakhine | F25: Sittwe | G25: Nyar Ni Kar Ya Ma | L25: 36 | R25: =IF(NFI_Expiration=1,IF($A25<VLOOKUP(H$5,NFI,5,0),1,0)*Table_NFI[[#This Row],[Hygiene Kit]],0) -> 0 | S25: =IF(NFI_Expiration=1,IF($A25<VLOOKUP(I$5,NFI,5,0),1,0)*Table_NFI[[#This Row],[NFI Core Kit]],0) -> 0 | T25: =IF(NFI_Expiration=1,IF($A25<VLOOKUP(J$5,NFI,5,0),1,0)*Table_NFI[[#This Row],[Sanitary Kit]],0) -> 0 | U25: =IF(NFI_Expiration=1,IF($A25<VLOOKUP(K$5,NFI,5,0),1,0)*Table_NFI[[#This Row],[Mosquito net]],0) -> 0 | V25: =IF(NFI_Expiration=1,IF($A25<VLOOKUP(L$5,NFI,5,0),1,0)*Table_NFI[[#This Row],[Tarpaulin]],0) -> 0 | W25: =IF(NFI_Expiration=1,IF($A25<VLOOKUP(M$5,NFI,5,0),1,0)*Table_NFI[[#This Row],[Blanket]],0) -> 0 | X25: =IF(NFI_Expiration=1,IF($A25<VLOOKUP(N$5,NFI,5,0),1,0)*Table_NFI[[#This Row],[Kitchen Set]],0) -> 0 | Y25: =IF(NFI_Expiration=1,IF($A25<VLOOKUP(O$5,NFI,5,0),1,0)*Table_NFI[[#This Row],[Complementary Kit]],0) -> 0 | Z25: =IF(NFI_Expiration=1,IF($A25<VLOOKUP(P$5,NFI,5,0),1,0)*Table_NFI[[#This Row],[Plastic Bucket]],0) -> 0 | AA25: =IF(NFI_Expiration=1,IF($A25<VLOOKUP(Q$5,NFI,5,0),1,0)*Table_NFI[[#This Row],[Plastic Mat]],0) -> 0 | AB25: =IFERROR(VLOOKUP(Table_NFI[[#This Row],[Camp Name]],CL,2,0),"") ->  | AC25: =IFERROR(VLOOKUP(Table_NFI[[#This Row],[Camp Name]],CL,3,0),"") -> 
A26: 17.13333333 | B26: 2012-07-05 | C26: UNHCR | E26: Rakhine | F26: Sittwe | G26: Ar Thaw Ka Yone Monastery | L26: 43 | R26: =IF(NFI_Expiration=1,IF($A26<VLOOKUP(H$5,NFI,5,0),1,0)*Table_NFI[[#This Row],[Hygiene Kit]],0) -> 0 | S26: =IF(NFI_Expiration=1,IF($A26<VLOOKUP(I$5,NFI,5,0),1,0)*Table_NFI[[#This Row],[NFI Core Kit]],0) -> 0 | T26: =IF(NFI_Expiration=1,IF($A26<VLOOKUP(J$5,NFI,5,0),1,0)*Table_NFI[[#This Row],[Sanitary Kit]],0) -> 0 | U26: =IF(NFI_Expiration=1,IF($A26<VLOOKUP(K$5,NFI,5,0),1,0)*Table_NFI[[#This Row],[Mosquito net]],0) -> 0 | V26: =IF(NFI_Expiration=1,IF($A26<VLOOKUP(L$5,NFI,5,0),1,0)*Table_NFI[[#This Row],[Tarpaulin]],0) -> 0 | W26: =IF(NFI_Expiration=1,IF($A26<VLOOKUP(M$5,NFI,5,0),1,0)*Table_NFI[[#This Row],[Blanket]],0) -> 0 | X26: =IF(NFI_Expiration=1,IF($A26<VLOOKUP(N$5,NFI,5,0),1,0)*Table_NFI[[#This Row],[Kitchen Set]],0) -> 0 | Y26: =IF(NFI_Expiration=1,IF($A26<VLOOKUP(O$5,NFI,5,0),1,0)*Table_NFI[[#This Row],[Complementary Kit]],0) -> 0 | Z26: =IF(NFI_Expiration=1,IF($A26<VLOOKUP(P$5,NFI,5,0),1,0)*Table_NFI[[#This Row],[Plastic Bucket]],0) -> 0 | AA26: =IF(NFI_Expiration=1,IF($A26<VLOOKUP(Q$5,NFI,5,0),1,0)*Table_NFI[[#This Row],[Plastic Mat]],0) -> 0 | AB26: =IFERROR(VLOOKUP(Table_NFI[[#This Row],[Camp Name]],CL,2,0),"") -> MMR012CMP069 | AC26: =IFERROR(VLOOKUP(Table_NFI[[#This Row],[Camp Name]],CL,3,0),"") -> Close
A27: 17.13333333 | B27: 2012-07-05 | C27: UNHCR | E27: Rakhine | F27: Sittwe | G27: Gyit Bak Monastery | L27: 36 | R27: =IF(NFI_Expiration=1,IF($A27<VLOOKUP(H$5,NFI,5,0),1,0)*Table_NFI[[#This Row],[Hygiene Kit]],0) -> 0 | S27: =IF(NFI_Expiration=1,IF($A27<VLOOKUP(I$5,NFI,5,0),1,0)*Table_NFI[[#This Row],[NFI Core Kit]],0) -> 0 | T27: =IF(NFI_Expiration=1,IF($A27<VLOOKUP(J$5,NFI,5,0),1,0)*Table_NFI[[#This Row],[Sanitary Kit]],0) -> 0 | U27: =IF(NFI_Expiration=1,IF($A27<VLOOKUP(K$5,NFI,5,0),1,0)*Table_NFI[[#This Row],[Mosquito net]],0) -> 0 | V27: =IF(NFI_Expiration=1,IF($A27<VLOOKUP(L$5,NFI,5,0),1,0)*Table_NFI[[#This Row],[Tarpaulin]],0) -> 0 | W27: =IF(NFI_Expiration=1,IF($A27<VLOOKUP(M$5,NFI,5,0),1,0)*Table_NFI[[#This Row],[Blanket]],0) -> 0 | X27: =IF(NFI_Expiration=1,IF($A27<VLOOKUP(N$5,NFI,5,0),1,0)*Table_NFI[[#This Row],[Kitchen Set]],0) -> 0 | Y27: =IF(NFI_Expiration=1,IF($A27<VLOOKUP(O$5,NFI,5,0),1,0)*Table_NFI[[#This Row],[Complementary Kit]],0) -> 0 | Z27: =IF(NFI_Expiration=1,IF($A27<VLOOKUP(P$5,NFI,5,0),1,0)*Table_NFI[[#This Row],[Plastic Bucket]],0) -> 0 | AA27: =IF(NFI_Expiration=1,IF($A27<VLOOKUP(Q$5,NFI,5,0),1,0)*Table_NFI[[#This Row],[Plastic Mat]],0) -> 0 | AB27: =IFERROR(VLOOKUP(Table_NFI[[#This Row],[Camp Name]],CL,2,0),"") -> MMR012CMP073 | AC27: =IFERROR(VLOOKUP(Table_NFI[[#This Row],[Camp Name]],CL,3,0),"") -> Close
A28: 17.13333333 | B28: 2012-07-05 | C28: UNHCR | E28: Rakhine | F28: Sittwe | G28: Gyit Chay Monastery | L28: 69 | R28: =IF(NFI_Expiration=1,IF($A28<VLOOKUP(H$5,NFI,5,0),1,0)*Table_NFI[[#This Row],[Hygiene Kit]],0) -> 0 | S28: =IF(NFI_Expiration=1,IF($A28<VLOOKUP(I$5,NFI,5,0),1,0)*Table_NFI[[#This Row],[NFI Core Kit]],0) -> 0 | T28: =IF(NFI_Expiration=1,IF($A28<VLOOKUP(J$5,NFI,5,0),1,0)*Table_NFI[[#This Row],[Sanitary Kit]],0) -> 0 | U28: =IF(NFI_Expiration=1,IF($A28<VLOOKUP(K$5,NFI,5,0),1,0)*Table_NFI[[#This Row],[Mosquito net]],0) -> 0 | V28: =IF(NFI_Expiration=1,IF($A28<VLOOKUP(L$5,NFI,5,0),1,0)*Table_NFI[[#This Row],[Tarpaulin]],0) -> 0 | W28: =IF(NFI_Expiration=1,IF($A28<VLOOKUP(M$5,NFI,5,0),1,0)*Table_NFI[[#This Row],[Blanket]],0) -> 0 | X28: =IF(NFI_Expiration=1,IF($A28<VLOOKUP(N$5,NFI,5,0),1,0)*Table_NFI[[#This Row],[Kitchen Set]],0) -> 0 | Y28: =IF(NFI_Expiration=1,IF($A28<VLOOKUP(O$5,NFI,5,0),1,0)*Table_NFI[[#This Row],[Complementary Kit]],0) -> 0 | Z28: =IF(NFI_Expiration=1,IF($A28<VLOOKUP(P$5,NFI,5,0),1,0)*Table_NFI[[#This Row],[Plastic Bucket]],0) -> 0 | AA28: =IF(NFI_Expiration=1,IF($A28<VLOOKUP(Q$5,NFI,5,0),1,0)*Table_NFI[[#This Row],[Plastic Mat]],0) -> 0 | AB28: =IFERROR(VLOOKUP(Table_NFI[[#This Row],[Camp Name]],CL,2,0),"") -> MMR012CMP061 | AC28: =IFERROR(VLOOKUP(Table_NFI[[#This Row],[Camp Name]],CL,3,0),"") -> Close
A29: 17.13333333 | B29: 2012-07-05 | C29: UNHCR | E29: Rakhine | F29: Sittwe | G29: Su Taung Pyae Monastery | L29: 280 | R29: =IF(NFI_Expiration=1,IF($A29<VLOOKUP(H$5,NFI,5,0),1,0)*Table_NFI[[#This Row],[Hygiene Kit]],0) -> 0 | S29: =IF(NFI_Expiration=1,IF($A29<VLOOKUP(I$5,NFI,5,0),1,0)*Table_NFI[[#This Row],[NFI Core Kit]],0) -> 0 | T29: =IF(NFI_Expiration=1,IF($A29<VLOOKUP(J$5,NFI,5,0),1,0)*Table_NFI[[#This Row],[Sanitary Kit]],0) -> 0 | U29: =IF(NFI_Expiration=1,IF($A29<VLOOKUP(K$5,NFI,5,0),1,0)*Table_NFI[[#This Row],[Mosquito net]],0) -> 0 | V29: =IF(NFI_Expiration=1,IF($A29<VLOOKUP(L$5,NFI,5,0),1,0)*Table_NFI[[#This Row],[Tarpaulin]],0) -> 0 | W29: =IF(NFI_Expiration=1,IF($A29<VLOOKUP(M$5,NFI,5,0),1,0)*Table_NFI[[#This Row],[Blanket]],0) -> 0 | X29: =IF(NFI_Expiration=1,IF($A29<VLOOKUP(N$5,NFI,5,0),1,0)*Table_NFI[[#This Row],[Kitchen Set]],0) -> 0 | Y29: =IF(NFI_Expiration=1,IF($A29<VLOOKUP(O$5,NFI,5,0),1,0)*Table_NFI[[#This Row],[Complementary Kit]],0) -> 0 | Z29: =IF(NFI_Expiration=1,IF($A29<VLOOKUP(P$5,NFI,5,0),1,0)*Table_NFI[[#This Row],[Plastic Bucket]],0) -> 0 | AA29: =IF(NFI_Expiration=1,IF($A29<VLOOKUP(Q$5,NFI,5,0),1,0)*Table_NFI[[#This Row],[Plastic Mat]],0) -> 0 | AB29: =IFERROR(VLOOKUP(Table_NFI[[#This Row],[Camp Name]],CL,2,0),"") -> MMR012CMP066 | AC29: =IFERROR(VLOOKUP(Table_NFI[[#This Row],[Camp Name]],CL,3,0),"") -> Close
A30: 17.13333333 | B30: 2012-07-05 | C30: UNHCR | E30: Rakhine | F30: Sittwe | G30: Boke Daw Maw | L30: 171 | R30: =IF(NFI_Expiration=1,IF($A30<VLOOKUP(H$5,NFI,5,0),1,0)*Table_NFI[[#This Row],[Hygiene Kit]],0) -> 0 | S30: =IF(NFI_Expiration=1,IF($A30<VLOOKUP(I$5,NFI,5,0),1,0)*Table_NFI[[#This Row],[NFI Core Kit]],0) -> 0 | T30: =IF(NFI_Expiration=1,IF($A30<VLOOKUP(J$5,NFI,5,0),1,0)*Table_NFI[[#This Row],[Sanitary Kit]],0) -> 0 | U30: =IF(NFI_Expiration=1,IF($A30<VLOOKUP(K$5,NFI,5,0),1,0)*Table_NFI[[#This Row],[Mosquito net]],0) -> 0 | V30: =IF(NFI_Expiration=1,IF($A30<VLOOKUP(L$5,NFI,5,0),1,0)*Table_NFI[[#This Row],[Tarpaulin]],0) -> 0 | W30: =IF(NFI_Expiration=1,IF($A30<VLOOKUP(M$5,NFI,5,0),1,0)*Table_NFI[[#This Row],[Blanket]],0) -> 0 | X30: =IF(NFI_Expiration=1,IF($A30<VLOOKUP(N$5,NFI,5,0),1,0)*Table_NFI[[#This Row],[Kitchen Set]],0) -> 0 | Y30: =IF(NFI_Expiration=1,IF($A30<VLOOKUP(O$5,NFI,5,0),1,0)*Table_NFI[[#This Row],[Complementary Kit]],0) -> 0 | Z30: =IF(NFI_Expiration=1,IF($A30<VLOOKUP(P$5,NFI,5,0),1,0)*Table_NFI[[#This Row],[Plastic Bucket]],0) -> 0 | AA30: =IF(NFI_Expiration=1,IF($A30<VLOOKUP(Q$5,NFI,5,0),1,0)*Table_NFI[[#This Row],[Plastic Mat]],0) -> 0 | AB30: =IFERROR(VLOOKUP(Table_NFI[[#This Row],[Camp Name]],CL,2,0),"") ->  | AC30: =IFERROR(VLOOKUP(Table_NFI[[#This Row],[Camp Name]],CL,3,0),"") -> 
A31: 17.13333333 | B31: 2012-07-05 | C31: UNHCR | E31: Rakhine | F31: Sittwe | G31: Khaung Doke Khar | L31: 132 | R31: =IF(NFI_Expiration=1,IF($A31<VLOOKUP(H$5,NFI,5,0),1,0)*Table_NFI[[#This Row],[Hygiene Kit]],0) -> 0 | S31: =IF(NFI_Expiration=1,IF($A31<VLOOKUP(I$5,NFI,5,0),1,0)*Table_NFI[[#This Row],[NFI Core Kit]],0) -> 0 | T31: =IF(NFI_Expiration=1,IF($A31<VLOOKUP(J$5,NFI,5,0),1,0)*Table_NFI[[#This Row],[Sanitary Kit]],0) -> 0 | U31: =IF(NFI_Expiration=1,IF($A31<VLOOKUP(K$5,NFI,5,0),1,0)*Table_NFI[[#This Row],[Mosquito net]],0) -> 0 | V31: =IF(NFI_Expiration=1,IF($A31<VLOOKUP(L$5,NFI,5,0),1,0)*Table_NFI[[#This Row],[Tarpaulin]],0) -> 0 | W31: =IF(NFI_Expiration=1,IF($A31<VLOOKUP(M$5,NFI,5,0),1,0)*Table_NFI[[#This Row],[Blanket]],0) -> 0 | X31: =IF(NFI_Expiration=1,IF($A31<VLOOKUP(N$5,NFI,5,0),1,0)*Table_NFI[[#This Row],[Kitchen Set]],0) -> 0 | Y31: =IF(NFI_Expiration=1,IF($A31<VLOOKUP(O$5,NFI,5,0),1,0)*Table_NFI[[#This Row],[Complementary Kit]],0) -> 0 | Z31: =IF(NFI_Expiration=1,IF($A31<VLOOKUP(P$5,NFI,5,0),1,0)*Table_NFI[[#This Row],[Plastic Bucket]],0) -> 0 | AA31: =IF(NFI_Expiration=1,IF($A31<VLOOKUP(Q$5,NFI,5,0),1,0)*Table_NFI[[#This Row],[Plastic Mat]],0) -> 0 | AB31: =IFERROR(VLOOKUP(Table_NFI[[#This Row],[Camp Name]],CL,2,0),"") -> MMR012CMP042 | AC31: =IFERROR(VLOOKUP(Table_NFI[[#This Row],[Camp Name]],CL,3,0),"") -> Open
A32: 17.13333333 | B32: 2012-07-05 | C32: UNHCR | E32: Rakhine | F32: Sittwe | G32: Dar Pai | L32: 18 | R32: =IF(NFI_Expiration=1,IF($A32<VLOOKUP(H$5,NFI,5,0),1,0)*Table_NFI[[#This Row],[Hygiene Kit]],0) -> 0 | S32: =IF(NFI_Expiration=1,IF($A32<VLOOKUP(I$5,NFI,5,0),1,0)*Table_NFI[[#This Row],[NFI Core Kit]],0) -> 0 | T32: =IF(NFI_Expiration=1,IF($A32<VLOOKUP(J$5,NFI,5,0),1,0)*Table_NFI[[#This Row],[Sanitary Kit]],0) -> 0 | U32: =IF(NFI_Expiration=1,IF($A32<VLOOKUP(K$5,NFI,5,0),1,0)*Table_NFI[[#This Row],[Mosquito net]],0) -> 0 | V32: =IF(NFI_Expiration=1,IF($A32<VLOOKUP(L$5,NFI,5,0),1,0)*Table_NFI[[#This Row],[Tarpaulin]],0) -> 0 | W32: =IF(NFI_Expiration=1,IF($A32<VLOOKUP(M$5,NFI,5,0),1,0)*Table_NFI[[#This Row],[Blanket]],0) -> 0 | X32: =IF(NFI_Expiration=1,IF($A32<VLOOKUP(N$5,NFI,5,0),1,0)*Table_NFI[[#This Row],[Kitchen Set]],0) -> 0 | Y32: =IF(NFI_Expiration=1,IF($A32<VLOOKUP(O$5,NFI,5,0),1,0)*Table_NFI[[#This Row],[Complementary Kit]],0) -> 0 | Z32: =IF(NFI_Expiration=1,IF($A32<VLOOKUP(P$5,NFI,5,0),1,0)*Table_NFI[[#This Row],[Plastic Bucket]],0) -> 0 | AA32: =IF(NFI_Expiration=1,IF($A32<VLOOKUP(Q$5,NFI,5,0),1,0)*Table_NFI[[#This Row],[Plastic Mat]],0) -> 0 | AB32: =IFERROR(VLOOKUP(Table_NFI[[#This Row],[Camp Name]],CL,2,0),"") -> MMR012CMP041 | AC32: =IFERROR(VLOOKUP(Table_NFI[[#This Row],[Camp Name]],CL,3,0),"") -> Open
A33: 17.06666667 | B33: 2012-07-07 | C33: UNHCR | E33: Rakhine | F33: Sittwe | G33: Shwe Zay Ti Monastery | L33: 201 | R33: =IF(NFI_Expiration=1,IF($A33<VLOOKUP(H$5,NFI,5,0),1,0)*Table_NFI[[#This Row],[Hygiene Kit]],0) -> 0 | S33: =IF(NFI_Expiration=1,IF($A33<VLOOKUP(I$5,NFI,5,0),1,0)*Table_NFI[[#This Row],[NFI Core Kit]],0) -> 0 | T33: =IF(NFI_Expiration=1,IF($A33<VLOOKUP(J$5,NFI,5,0),1,0)*Table_NFI[[#This Row],[Sanitary Kit]],0) -> 0 | U33: =IF(NFI_Expiration=1,IF($A33<VLOOKUP(K$5,NFI,5,0),1,0)*Table_NFI[[#This Row],[Mosquito net]],0) -> 0 | V33: =IF(NFI_Expiration=1,IF($A33<VLOOKUP(L$5,NFI,5,0),1,0)*Table_NFI[[#This Row],[Tarpaulin]],0) -> 0 | W33: =IF(NFI_Expiration=1,IF($A33<VLOOKUP(M$5,NFI,5,0),1,0)*Table_NFI[[#This Row],[Blanket]],0) -> 0 | X33: =IF(NFI_Expiration=1,IF($A33<VLOOKUP(N$5,NFI,5,0),1,0)*Table_NFI[[#This Row],[Kitchen Set]],0) -> 0 | Y33: =IF(NFI_Expiration=1,IF($A33<VLOOKUP(O$5,NFI,5,0),1,0)*Table_NFI[[#This Row],[Complementary Kit]],0) -> 0 | Z33: =IF(NFI_Expiration=1,IF($A33<VLOOKUP(P$5,NFI,5,0),1,0)*Table_NFI[[#This Row],[Plastic Bucket]],0) -> 0 | AA33: =IF(NFI_Expiration=1,IF($A33<VLOOKUP(Q$5,NFI,5,0),1,0)*Table_NFI[[#This Row],[Plastic Mat]],0) -> 0 | AB33: =IFERROR(VLOOKUP(Table_NFI[[#This Row],[Camp Name]],CL,2,0),"") -> MMR012CMP065 | AC33: =IFERROR(VLOOKUP(Table_NFI[[#This Row],[Camp Name]],CL,3,0),"") -> Close
A34: 17.06666667 | B34: 2012-07-07 | C34: UNHCR | E34: Rakhine | F34: Sittwe | G34: Kyar Yoke | L34: 33 | R34: =IF(NFI_Expiration=1,IF($A34<VLOOKUP(H$5,NFI,5,0),1,0)*Table_NFI[[#This Row],[Hygiene Kit]],0) -> 0 | S34: =IF(NFI_Expiration=1,IF($A34<VLOOKUP(I$5,NFI,5,0),1,0)*Table_NFI[[#This Row],[NFI Core Kit]],0) -> 0 | T34: =IF(NFI_Expiration=1,IF($A34<VLOOKUP(J$5,NFI,5,0),1,0)*Table_NFI[[#This Row],[Sanitary Kit]],0) -> 0 | U34: =IF(NFI_Expiration=1,IF($A34<VLOOKUP(K$5,NFI,5,0),1,0)*Table_NFI[[#This Row],[Mosquito net]],0) -> 0 | V34: =IF(NFI_Expiration=1,IF($A34<VLOOKUP(L$5,NFI,5,0),1,0)*Table_NFI[[#This Row],[Tarpaulin]],0) -> 0 | W34: =IF(NFI_Expiration=1,IF($A34<VLOOKUP(M$5,NFI,5,0),1,0)*Table_NFI[[#This Row],[Blanket]],0) -> 0 | X34: =IF(NFI_Expiration=1,IF($A34<VLOOKUP(N$5,NFI,5,0),1,0)*Table_NFI[[#This Row],[Kitchen Set]],0) -> 0 | Y34: =IF(NFI_Expiration=1,IF($A34<VLOOKUP(O$5,NFI,5,0),1,0)*Table_NFI[[#This Row],[Complementary Kit]],0) -> 0 | Z34: =IF(NFI_Expiration=1,IF($A34<VLOOKUP(P$5,NFI,5,0),1,0)*Table_NFI[[#This Row],[Plastic Bucket]],0) -> 0 | AA34: =IF(NFI_Expiration=1,IF($A34<VLOOKUP(Q$5,NFI,5,0),1,0)*Table_NFI[[#This Row],[Plastic Mat]],0) -> 0 | AB34: =IFERROR(VLOOKUP(Table_NFI[[#This Row],[Camp Name]],CL,2,0),"") ->  | AC34: =IFERROR(VLOOKUP(Table_NFI[[#This Row],[Camp Name]],CL,3,0),"") -> 
A35: 17.06666667 | B35: 2012-07-07 | C35: UNHCR | E35: Rakhine | F35: Sittwe | G35: Ya Tayar Monastery | L35: 52 | R35: =IF(NFI_Expiration=1,IF($A35<VLOOKUP(H$5,NFI,5,0),1,0)*Table_NFI[[#This Row],[Hygiene Kit]],0) -> 0 | S35: =IF(NFI_Expiration=1,IF($A35<VLOOKUP(I$5,NFI,5,0),1,0)*Table_NFI[[#This Row],[NFI Core Kit]],0) -> 0 | T35: =IF(NFI_Expiration=1,IF($A35<VLOOKUP(J$5,NFI,5,0),1,0)*Table_NFI[[#This Row],[Sanitary Kit]],0) -> 0 | U35: =IF(NFI_Expiration=1,IF($A35<VLOOKUP(K$5,NFI,5,0),1,0)*Table_NFI[[#This Row],[Mosquito net]],0) -> 0 | V35: =IF(NFI_Expiration=1,IF($A35<VLOOKUP(L$5,NFI,5,0),1,0)*Table_NFI[[#This Row],[Tarpaulin]],0) -> 0 | W35: =IF(NFI_Expiration=1,IF($A35<VLOOKUP(M$5,NFI,5,0),1,0)*Table_NFI[[#This Row],[Blanket]],0) -> 0 | X35: =IF(NFI_Expiration=1,IF($A35<VLOOKUP(N$5,NFI,5,0),1,0)*Table_NFI[[#This Row],[Kitchen Set]],0) -> 0 | Y35: =IF(NFI_Expiration=1,IF($A35<VLOOKUP(O$5,NFI,5,0),1,0)*Table_NFI[[#This Row],[Complementary Kit]],0) -> 0 | Z35: =IF(NFI_Expiration=1,IF($A35<VLOOKUP(P$5,NFI,5,0),1,0)*Table_NFI[[#This Row],[Plastic Bucket]],0) -> 0 | AA35: =IF(NFI_Expiration=1,IF($A35<VLOOKUP(Q$5,NFI,5,0),1,0)*Table_NFI[[#This Row],[Plastic Mat]],0) -> 0 | AB35: =IFERROR(VLOOKUP(Table_NFI[[#This Row],[Camp Name]],CL,2,0),"") -> MMR012CMP074 | AC35: =IFERROR(VLOOKUP(Table_NFI[[#This Row],[Camp Name]],CL,3,0),"") -> Close
A36: 17.06666667 | B36: 2012-07-07 | C36: UNHCR | E36: Rakhine | F36: Sittwe | G36: Layaungwin Monastery | L36: 9 | R36: =IF(NFI_Expiration=1,IF($A36<VLOOKUP(H$5,NFI,5,0),1,0)*Table_NFI[[#This Row],[Hygiene Kit]],0) -> 0 | S36: =IF(NFI_Expiration=1,IF($A36<VLOOKUP(I$5,NFI,5,0),1,0)*Table_NFI[[#This Row],[NFI Core Kit]],0) -> 0 | T36: =IF(NFI_Expiration=1,IF($A36<VLOOKUP(J$5,NFI,5,0),1,0)*Table_NFI[[#This Row],[Sanitary Kit]],0) -> 0 | U36: =IF(NFI_Expiration=1,IF($A36<VLOOKUP(K$5,NFI,5,0),1,0)*Table_NFI[[#This Row],[Mosquito net]],0) -> 0 | V36: =IF(NFI_Expiration=1,IF($A36<VLOOKUP(L$5,NFI,5,0),1,0)*Table_NFI[[#This Row],[Tarpaulin]],0) -> 0 | W36: =IF(NFI_Expiration=1,IF($A36<VLOOKUP(M$5,NFI,5,0),1,0)*Table_NFI[[#This Row],[Blanket]],0) -> 0 | X36: =IF(NFI_Expiration=1,IF($A36<VLOOKUP(N$5,NFI,5,0),1,0)*Table_NFI[[#This Row],[Kitchen Set]],0) -> 0 | Y36: =IF(NFI_Expiration=1,IF($A36<VLOOKUP(O$5,NFI,5,0),1,0)*Table_NFI[[#This Row],[Complementary Kit]],0) -> 0 | Z36: =IF(NFI_Expiration=1,IF($A36<VLOOKUP(P$5,NFI,5,0),1,0)*Table_NFI[[#This Row],[Plastic Bucket]],0) -> 0 | AA36: =IF(NFI_Expiration=1,IF($A36<VLOOKUP(Q$5,NFI,5,0),1,0)*Table_NFI[[#This Row],[Plastic Mat]],0) -> 0 | AB36: =IFERROR(VLOOKUP(Table_NFI[[#This Row],[Camp Name]],CL,2,0),"") -> MMR012CMP062 | AC36: =IFERROR(VLOOKUP(Table_NFI[[#This Row],[Camp Name]],CL,3,0),"") -> Close
A37: 17 | B37: 2012-07-09 | C37: UNHCR | E37: Rakhine | F37: Sittwe | G37: Theit Di Kar Yone Monastery | L37: 27 | R37: =IF(NFI_Expiration=1,IF($A37<VLOOKUP(H$5,NFI,5,0),1,0)*Table_NFI[[#This Row],[Hygiene Kit]],0) -> 0 | S37: =IF(NFI_Expiration=1,IF($A37<VLOOKUP(I$5,NFI,5,0),1,0)*Table_NFI[[#This Row],[NFI Core Kit]],0) -> 0 | T37: =IF(NFI_Expiration=1,IF($A37<VLOOKUP(J$5,NFI,5,0),1,0)*Table_NFI[[#This Row],[Sanitary Kit]],0) -> 0 | U37: =IF(NFI_Expiration=1,IF($A37<VLOOKUP(K$5,NFI,5,0),1,0)*Table_NFI[[#This Row],[Mosquito net]],0) -> 0 | V37: =IF(NFI_Expiration=1,IF($A37<VLOOKUP(L$5,NFI,5,0),1,0)*Table_NFI[[#This Row],[Tarpaulin]],0) -> 0 | W37: =IF(NFI_Expiration=1,IF($A37<VLOOKUP(M$5,NFI,5,0),1,0)*Table_NFI[[#This Row],[Blanket]],0) -> 0 | X37: =IF(NFI_Expiration=1,IF($A37<VLOOKUP(N$5,NFI,5,0),1,0)*Table_NFI[[#This Row],[Kitchen Set]],0) -> 0 | Y37: =IF(NFI_Expiration=1,IF($A37<VLOOKUP(O$5,NFI,5,0),1,0)*Table_NFI[[#This Row],[Complementary Kit]],0) -> 0 | Z37: =IF(NFI_Expiration=1,IF($A37<VLOOKUP(P$5,NFI,5,0),1,0)*Table_NFI[[#This Row],[Plastic Bucket]],0) -> 0 | AA37: =IF(NFI_Expiration=1,IF($A37<VLOOKUP(Q$5,NFI,5,0),1,0)*Table_NFI[[#This Row],[Plastic Mat]],0) -> 0 | AB37: =IFERROR(VLOOKUP(Table_NFI[[#This Row],[Camp Name]],CL,2,0),"") -> MMR012CMP067 | AC37: =IFERROR(VLOOKUP(Table_NFI[[#This Row],[Camp Name]],CL,3,0),"") -> Close
A38: 17 | B38: 2012-07-09 | C38: UNHCR | E38: Rakhine | F38: Sittwe | G38: Dama Yar Ma | L38: 10 | R38: =IF(NFI_Expiration=1,IF($A38<VLOOKUP(H$5,NFI,5,0),1,0)*Table_NFI[[#This Row],[Hygiene Kit]],0) -> 0 | S38: =IF(NFI_Expiration=1,IF($A38<VLOOKUP(I$5,NFI,5,0),1,0)*Table_NFI[[#This Row],[NFI Core Kit]],0) -> 0 | T38: =IF(NFI_Expiration=1,IF($A38<VLOOKUP(J$5,NFI,5,0),1,0)*Table_NFI[[#This Row],[Sanitary Kit]],0) -> 0 | U38: =IF(NFI_Expiration=1,IF($A38<VLOOKUP(K$5,NFI,5,0),1,0)*Table_NFI[[#This Row],[Mosquito net]],0) -> 0 | V38: =IF(NFI_Expiration=1,IF($A38<VLOOKUP(L$5,NFI,5,0),1,0)*Table_NFI[[#This Row],[Tarpaulin]],0) -> 0 | W38: =IF(NFI_Expiration=1,IF($A38<VLOOKUP(M$5,NFI,5,0),1,0)*Table_NFI[[#This Row],[Blanket]],0) -> 0 | X38: =IF(NFI_Expiration=1,IF($A38<VLOOKUP(N$5,NFI,5,0),1,0)*Table_NFI[[#This Row],[Kitchen Set]],0) -> 0 | Y38: =IF(NFI_Expiration=1,IF($A38<VLOOKUP(O$5,NFI,5,0),1,0)*Table_NFI[[#This Row],[Complementary Kit]],0) -> 0 | Z38: =IF(NFI_Expiration=1,IF($A38<VLOOKUP(P$5,NFI,5,0),1,0)*Table_NFI[[#This Row],[Plastic Bucket]],0) -> 0 | AA38: =IF(NFI_Expiration=1,IF($A38<VLOOKUP(Q$5,NFI,5,0),1,0)*Table_NFI[[#This Row],[Plastic Mat]],0) -> 0 | AB38: =IFERROR(VLOOKUP(Table_NFI[[#This Row],[Camp Name]],CL,2,0),"") ->  | AC38: =IFERROR(VLOOKUP(Table_NFI[[#This Row],[Camp Name]],CL,3,0),"") -> 
A39: 17 | B39: 2012-07-09 | C39: UNHCR | E39: Rakhine | F39: Sittwe | G39: KyaungGyiLan | L39: 23 | R39: =IF(NFI_Expiration=1,IF($A39<VLOOKUP(H$5,NFI,5,0),1,0)*Table_NFI[[#This Row],[Hygiene Kit]],0) -> 0 | S39: =IF(NFI_Expiration=1,IF($A39<VLOOKUP(I$5,NFI,5,0),1,0)*Table_NFI[[#This Row],[NFI Core Kit]],0) -> 0 | T39: =IF(NFI_Expiration=1,IF($A39<VLOOKUP(J$5,NFI,5,0),1,0)*Table_NFI[[#This Row],[Sanitary Kit]],0) -> 0 | U39: =IF(NFI_Expiration=1,IF($A39<VLOOKUP(K$5,NFI,5,0),1,0)*Table_NFI[[#This Row],[Mosquito net]],0) -> 0 | V39: =IF(NFI_Expiration=1,IF($A39<VLOOKUP(L$5,NFI,5,0),1,0)*Table_NFI[[#This Row],[Tarpaulin]],0) -> 0 | W39: =IF(NFI_Expiration=1,IF($A39<VLOOKUP(M$5,NFI,5,0),1,0)*Table_NFI[[#This Row],[Blanket]],0) -> 0 | X39: =IF(NFI_Expiration=1,IF($A39<VLOOKUP(N$5,NFI,5,0),1,0)*Table_NFI[[#This Row],[Kitchen Set]],0) -> 0 | Y39: =IF(NFI_Expiration=1,IF($A39<VLOOKUP(O$5,NFI,5,0),1,0)*Table_NFI[[#This Row],[Complementary Kit]],0) -> 0 | Z39: =IF(NFI_Expiration=1,IF($A39<VLOOKUP(P$5,NFI,5,0),1,0)*Table_NFI[[#This Row],[Plastic Bucket]],0) -> 0 | AA39: =IF(NFI_Expiration=1,IF($A39<VLOOKUP(Q$5,NFI,5,0),1,0)*Table_NFI[[#This Row],[Plastic Mat]],0) -> 0 | AB39: =IFERROR(VLOOKUP(Table_NFI[[#This Row],[Camp Name]],CL,2,0),"") ->  | AC39: =IFERROR(VLOOKUP(Table_NFI[[#This Row],[Camp Name]],CL,3,0),"") -> 
A40: =IF(ISBLANK(B40),"",(Report_Date-B40)/30) -> 17 | B40: 2012-07-09 | C40: UNHCR | E40: Rakhine | F40: Sittwe | G40: MaYarMaGyi-old | L40: 36 | R40: =IF(NFI_Expiration=1,IF($A40<VLOOKUP(H$5,NFI,5,0),1,0)*Table_NFI[[#This Row],[Hygiene Kit]],0) -> 0 | S40: =IF(NFI_Expiration=1,IF($A40<VLOOKUP(I$5,NFI,5,0),1,0)*Table_NFI[[#This Row],[NFI Core Kit]],0) -> 0 | T40: =IF(NFI_Expiration=1,IF($A40<VLOOKUP(J$5,NFI,5,0),1,0)*Table_NFI[[#This Row],[Sanitary Kit]],0) -> 0 | U40: =IF(NFI_Expiration=1,IF($A40<VLOOKUP(K$5,NFI,5,0),1,0)*Table_NFI[[#This Row],[Mosquito net]],0) -> 0 | V40: =IF(NFI_Expiration=1,IF($A40<VLOOKUP(L$5,NFI,5,0),1,0)*Table_NFI[[#This Row],[Tarpaulin]],0) -> 0 | W40: =IF(NFI_Expiration=1,IF($A40<VLOOKUP(M$5,NFI,5,0),1,0)*Table_NFI[[#This Row],[Blanket]],0) -> 0 | X40: =IF(NFI_Expiration=1,IF($A40<VLOOKUP(N$5,NFI,5,0),1,0)*Table_NFI[[#This Row],[Kitchen Set]],0) -> 0 | Y40: =IF(NFI_Expiration=1,IF($A40<VLOOKUP(O$5,NFI,5,0),1,0)*Table_NFI[[#This Row],[Complementary Kit]],0) -> 0 | Z40: =IF(NFI_Expiration=1,IF($A40<VLOOKUP(P$5,NFI,5,0),1,0)*Table_NFI[[#This Row],[Plastic Bucket]],0) -> 0 | AA40: =IF(NFI_Expiration=1,IF($A40<VLOOKUP(Q$5,NFI,5,0),1,0)*Table_NFI[[#This Row],[Plastic Mat]],0) -> 0 | AB40: =IFERROR(VLOOKUP(Table_NFI[[#This Row],[Camp Name]],CL,2,0),"") ->  | AC40: =IFERROR(VLOOKUP(Table_NFI[[#This Row],[Camp Name]],CL,3,0),"") -> 
A41: =IF(ISBLANK(B41),"",(Report_Date-B41)/30) -> 17 | B41: 2012-07-09 | C41: UNHCR | E41: Rakhine | F41: Sittwe | G41: PyinNyarLinkarya | L41: 33 | R41: =IF(NFI_Expiration=1,IF($A41<VLOOKUP(H$5,NFI,5,0),1,0)*Table_NFI[[#This Row],[Hygiene Kit]],0) -> 0 | S41: =IF(NFI_Expiration=1,IF($A41<VLOOKUP(I$5,NFI,5,0),1,0)*Table_NFI[[#This Row],[NFI Core Kit]],0) -> 0 | T41: =IF(NFI_Expiration=1,IF($A41<VLOOKUP(J$5,NFI,5,0),1,0)*Table_NFI[[#This Row],[Sanitary Kit]],0) -> 0 | U41: =IF(NFI_Expiration=1,IF($A41<VLOOKUP(K$5,NFI,5,0),1,0)*Table_NFI[[#This Row],[Mosquito net]],0) -> 0 | V41: =IF(NFI_Expiration=1,IF($A41<VLOOKUP(L$5,NFI,5,0),1,0)*Table_NFI[[#This Row],[Tarpaulin]],0) -> 0 | W41: =IF(NFI_Expiration=1,IF($A41<VLOOKUP(M$5,NFI,5,0),1,0)*Table_NFI[[#This Row],[Blanket]],0) -> 0 | X41: =IF(NFI_Expiration=1,IF($A41<VLOOKUP(N$5,NFI,5,0),1,0)*Table_NFI[[#This Row],[Kitchen Set]],0) -> 0 | Y41: =IF(NFI_Expiration=1,IF($A41<VLOOKUP(O$5,NFI,5,0),1,0)*Table_NFI[[#This Row],[Complementary Kit]],0) -> 0 | Z41: =IF(NFI_Expiration=1,IF($A41<VLOOKUP(P$5,NFI,5,0),1,0)*Table_NFI[[#This Row],[Plastic Bucket]],0) -> 0 | AA41: =IF(NFI_Expiration=1,IF($A41<VLOOKUP(Q$5,NFI,5,0),1,0)*Table_NFI[[#This Row],[Plastic Mat]],0) -> 0 | AB41: =IFERROR(VLOOKUP(Table_NFI[[#This Row],[Camp Name]],CL,2,0),"") ->  | AC41: =IFERROR(VLOOKUP(Table_NFI[[#This Row],[Camp Name]],CL,3,0),"") -> 
A42: =IF(ISBLANK(B42),"",(Report_Date-B42)/30) -> 17 | B42: 2012-07-09 | C42: UNHCR | E42: Rakhine | F42: Sittwe | G42: Kha Maung Taw | L42: 12 | R42: =IF(NFI_Expiration=1,IF($A42<VLOOKUP(H$5,NFI,5,0),1,0)*Table_NFI[[#This Row],[Hygiene Kit]],0) -> 0 | S42: =IF(NFI_Expiration=1,IF($A42<VLOOKUP(I$5,NFI,5,0),1,0)*Table_NFI[[#This Row],[NFI Core Kit]],0) -> 0 | T42: =IF(NFI_Expiration=1,IF($A42<VLOOKUP(J$5,NFI,5,0),1,0)*Table_NFI[[#This Row],[Sanitary Kit]],0) -> 0 | U42: =IF(NFI_Expiration=1,IF($A42<VLOOKUP(K$5,NFI,5,0),1,0)*Table_NFI[[#This Row],[Mosquito net]],0) -> 0 | V42: =IF(NFI_Expiration=1,IF($A42<VLOOKUP(L$5,NFI,5,0),1,0)*Table_NFI[[#This Row],[Tarpaulin]],0) -> 0 | W42: =IF(NFI_Expiration=1,IF($A42<VLOOKUP(M$5,NFI,5,0),1,0)*Table_NFI[[#This Row],[Blanket]],0) -> 0 | X42: =IF(NFI_Expiration=1,IF($A42<VLOOKUP(N$5,NFI,5,0),1,0)*Table_NFI[[#This Row],[Kitchen Set]],0) -> 0 | Y42: =IF(NFI_Expiration=1,IF($A42<VLOOKUP(O$5,NFI,5,0),1,0)*Table_NFI[[#This Row],[Complementary Kit]],0) -> 0 | Z42: =IF(NFI_Expiration=1,IF($A42<VLOOKUP(P$5,NFI,5,0),1,0)*Table_NFI[[#This Row],[Plastic Bucket]],0) -> 0 | AA42: =IF(NFI_Expiration=1,IF($A42<VLOOKUP(Q$5,NFI,5,0),1,0)*Table_NFI[[#This Row],[Plastic Mat]],0) -> 0 | AB42: =IFERROR(VLOOKUP(Table_NFI[[#This Row],[Camp Name]],CL,2,0),"") ->  | AC42: =IFERROR(VLOOKUP(Table_NFI[[#This Row],[Camp Name]],CL,3,0),"") -> 
A43: 17 | B43: 2012-07-09 | C43: UNHCR | E43: Rakhine | F43: Sittwe | G43: Ka Yu Chaung | L43: 26 | R43: =IF(NFI_Expiration=1,IF($A43<VLOOKUP(H$5,NFI,5,0),1,0)*Table_NFI[[#This Row],[Hygiene Kit]],0) -> 0 | S43: =IF(NFI_Expiration=1,IF($A43<VLOOKUP(I$5,NFI,5,0),1,0)*Table_NFI[[#This Row],[NFI Core Kit]],0) -> 0 | T43: =IF(NFI_Expiration=1,IF($A43<VLOOKUP(J$5,NFI,5,0),1,0)*Table_NFI[[#This Row],[Sanitary Kit]],0) -> 0 | U43: =IF(NFI_Expiration=1,IF($A43<VLOOKUP(K$5,NFI,5,0),1,0)*Table_NFI[[#This Row],[Mosquito net]],0) -> 0 | V43: =IF(NFI_Expiration=1,IF($A43<VLOOKUP(L$5,NFI,5,0),1,0)*Table_NFI[[#This Row],[Tarpaulin]],0) -> 0 | W43: =IF(NFI_Expiration=1,IF($A43<VLOOKUP(M$5,NFI,5,0),1,0)*Table_NFI[[#This Row],[Blanket]],0) -> 0 | X43: =IF(NFI_Expiration=1,IF($A43<VLOOKUP(N$5,NFI,5,0),1,0)*Table_NFI[[#This Row],[Kitchen Set]],0) -> 0 | Y43: =IF(NFI_Expiration=1,IF($A43<VLOOKUP(O$5,NFI,5,0),1,0)*Table_NFI[[#This Row],[Complementary Kit]],0) -> 0 | Z43: =IF(NFI_Expiration=1,IF($A43<VLOOKUP(P$5,NFI,5,0),1,0)*Table_NFI[[#This Row],[Plastic Bucket]],0) -> 0 | AA43: =IF(NFI_Expiration=1,IF($A43<VLOOKUP(Q$5,NFI,5,0),1,0)*Table_NFI[[#This Row],[Plastic Mat]],0) -> 0 | AB43: =IFERROR(VLOOKUP(Table_NFI[[#This Row],[Camp Name]],CL,2,0),"") ->  | AC43: =IFERROR(VLOOKUP(Table_NFI[[#This Row],[Camp Name]],CL,3,0),"") -> 
A44: 17 | B44: 2012-07-09 | C44: UNHCR | E44: Rakhine | F44: Sittwe | G44: Uwa Ya Ma | L44: 19 | R44: =IF(NFI_Expiration=1,IF($A44<VLOOKUP(H$5,NFI,5,0),1,0)*Table_NFI[[#This Row],[Hygiene Kit]],0) -> 0 | S44: =IF(NFI_Expiration=1,IF($A44<VLOOKUP(I$5,NFI,5,0),1,0)*Table_NFI[[#This Row],[NFI Core Kit]],0) -> 0 | T44: =IF(NFI_Expiration=1,IF($A44<VLOOKUP(J$5,NFI,5,0),1,0)*Table_NFI[[#This Row],[Sanitary Kit]],0) -> 0 | U44: =IF(NFI_Expiration=1,IF($A44<VLOOKUP(K$5,NFI,5,0),1,0)*Table_NFI[[#This Row],[Mosquito net]],0) -> 0 | V44: =IF(NFI_Expiration=1,IF($A44<VLOOKUP(L$5,NFI,5,0),1,0)*Table_NFI[[#This Row],[Tarpaulin]],0) -> 0 | W44: =IF(NFI_Expiration=1,IF($A44<VLOOKUP(M$5,NFI,5,0),1,0)*Table_NFI[[#This Row],[Blanket]],0) -> 0 | X44: =IF(NFI_Expiration=1,IF($A44<VLOOKUP(N$5,NFI,5,0),1,0)*Table_NFI[[#This Row],[Kitchen Set]],0) -> 0 | Y44: =IF(NFI_Expiration=1,IF($A44<VLOOKUP(O$5,NFI,5,0),1,0)*Table_NFI[[#This Row],[Complementary Kit]],0) -> 0 | Z44: =IF(NFI_Expiration=1,IF($A44<VLOOKUP(P$5,NFI,5,0),1,0)*Table_NFI[[#This Row],[Plastic Bucket]],0) -> 0 | AA44: =IF(NFI_Expiration=1,IF($A44<VLOOKUP(Q$5,NFI,5,0),1,0)*Table_NFI[[#This Row],[Plastic Mat]],0) -> 0 | AB44: =IFERROR(VLOOKUP(Table_NFI[[#This Row],[Camp Name]],CL,2,0),"") ->  | AC44: =IFERROR(VLOOKUP(Table_NFI[[#This Row],[Camp Name]],CL,3,0),"") -> 
A45: 17 | B45: 2012-07-09 | C45: UNHCR | E45: Rakhine | F45: Sittwe | G45: Shwe Pyar | L45: 3 | R45: =IF(NFI_Expiration=1,IF($A45<VLOOKUP(H$5,NFI,5,0),1,0)*Table_NFI[[#This Row],[Hygiene Kit]],0) -> 0 | S45: =IF(NFI_Expiration=1,IF($A45<VLOOKUP(I$5,NFI,5,0),1,0)*Table_NFI[[#This Row],[NFI Core Kit]],0) -> 0 | T45: =IF(NFI_Expiration=1,IF($A45<VLOOKUP(J$5,NFI,5,0),1,0)*Table_NFI[[#This Row],[Sanitary Kit]],0) -> 0 | U45: =IF(NFI_Expiration=1,IF($A45<VLOOKUP(K$5,NFI,5,0),1,0)*Table_NFI[[#This Row],[Mosquito net]],0) -> 0 | V45: =IF(NFI_Expiration=1,IF($A45<VLOOKUP(L$5,NFI,5,0),1,0)*Table_NFI[[#This Row],[Tarpaulin]],0) -> 0 | W45: =IF(NFI_Expiration=1,IF($A45<VLOOKUP(M$5,NFI,5,0),1,0)*Table_NFI[[#This Row],[Blanket]],0) -> 0 | X45: =IF(NFI_Expiration=1,IF($A45<VLOOKUP(N$5,NFI,5,0),1,0)*Table_NFI[[#This Row],[Kitchen Set]],0) -> 0 | Y45: =IF(NFI_Expiration=1,IF($A45<VLOOKUP(O$5,NFI,5,0),1,0)*Table_NFI[[#This Row],[Complementary Kit]],0) -> 0 | Z45: =IF(NFI_Expiration=1,IF($A45<VLOOKUP(P$5,NFI,5,0),1,0)*Table_NFI[[#This Row],[Plastic Bucket]],0) -> 0 | AA45: =IF(NFI_Expiration=1,IF($A45<VLOOKUP(Q$5,NFI,5,0),1,0)*Table_NFI[[#This Row],[Plastic Mat]],0) -> 0 | AB45: =IFERROR(VLOOKUP(Table_NFI[[#This Row],[Camp Name]],CL,2,0),"") ->  | AC45: =IFERROR(VLOOKUP(Table_NFI[[#This Row],[Camp Name]],CL,3,0),"") -> 
A46: 17 | B46: 2012-07-09 | C46: UNHCR | E46: Rakhine | F46: Sittwe | G46: Bamgalar A Wa Kune | L46: 5 | R46: =IF(NFI_Expiration=1,IF($A46<VLOOKUP(H$5,NFI,5,0),1,0)*Table_NFI[[#This Row],[Hygiene Kit]],0) -> 0 | S46: =IF(NFI_Expiration=1,IF($A46<VLOOKUP(I$5,NFI,5,0),1,0)*Table_NFI[[#This Row],[NFI Core Kit]],0) -> 0 | T46: =IF(NFI_Expiration=1,IF($A46<VLOOKUP(J$5,NFI,5,0),1,0)*Table_NFI[[#This Row],[Sanitary Kit]],0) -> 0 | U46: =IF(NFI_Expiration=1,IF($A46<VLOOKUP(K$5,NFI,5,0),1,0)*Table_NFI[[#This Row],[Mosquito net]],0) -> 0 | V46: =IF(NFI_Expiration=1,IF($A46<VLOOKUP(L$5,NFI,5,0),1,0)*Table_NFI[[#This Row],[Tarpaulin]],0) -> 0 | W46: =IF(NFI_Expiration=1,IF($A46<VLOOKUP(M$5,NFI,5,0),1,0)*Table_NFI[[#This Row],[Blanket]],0) -> 0 | X46: =IF(NFI_Expiration=1,IF($A46<VLOOKUP(N$5,NFI,5,0),1,0)*Table_NFI[[#This Row],[Kitchen Set]],0) -> 0 | Y46: =IF(NFI_Expiration=1,IF($A46<VLOOKUP(O$5,NFI,5,0),1,0)*Table_NFI[[#This Row],[Complementary Kit]],0) -> 0 | Z46: =IF(NFI_Expiration=1,IF($A46<VLOOKUP(P$5,NFI,5,0),1,0)*Table_NFI[[#This Row],[Plastic Bucket]],0) -> 0 | AA46: =IF(NFI_Expiration=1,IF($A46<VLOOKUP(Q$5,NFI,5,0),1,0)*Table_NFI[[#This Row],[Plastic Mat]],0) -> 0 | AB46: =IFERROR(VLOOKUP(Table_NFI[[#This Row],[Camp Name]],CL,2,0),"") ->  | AC46: =IFERROR(VLOOKUP(Table_NFI[[#This Row],[Camp Name]],CL,3,0),"") -> 
A47: 16.96666667 | B47: 2012-07-10 | C47: UNHCR | E47: Rakhine | F47: Sittwe | G47: DamaYeikThar | L47: 32 | R47: =IF(NFI_Expiration=1,IF($A47<VLOOKUP(H$5,NFI,5,0),1,0)*Table_NFI[[#This Row],[Hygiene Kit]],0) -> 0 | S47: =IF(NFI_Expiration=1,IF($A47<VLOOKUP(I$5,NFI,5,0),1,0)*Table_NFI[[#This Row],[NFI Core Kit]],0) -> 0 | T47: =IF(NFI_Expiration=1,IF($A47<VLOOKUP(J$5,NFI,5,0),1,0)*Table_NFI[[#This Row],[Sanitary Kit]],0) -> 0 | U47: =IF(NFI_Expiration=1,IF($A47<VLOOKUP(K$5,NFI,5,0),1,0)*Table_NFI[[#This Row],[Mosquito net]],0) -> 0 | V47: =IF(NFI_Expiration=1,IF($A47<VLOOKUP(L$5,NFI,5,0),1,0)*Table_NFI[[#This Row],[Tarpaulin]],0) -> 0 | W47: =IF(NFI_Expiration=1,IF($A47<VLOOKUP(M$5,NFI,5,0),1,0)*Table_NFI[[#This Row],[Blanket]],0) -> 0 | X47: =IF(NFI_Expiration=1,IF($A47<VLOOKUP(N$5,NFI,5,0),1,0)*Table_NFI[[#This Row],[Kitchen Set]],0) -> 0 | Y47: =IF(NFI_Expiration=1,IF($A47<VLOOKUP(O$5,NFI,5,0),1,0)*Table_NFI[[#This Row],[Complementary Kit]],0) -> 0 | Z47: =IF(NFI_Expiration=1,IF($A47<VLOOKUP(P$5,NFI,5,0),1,0)*Table_NFI[[#This Row],[Plastic Bucket]],0) -> 0 | AA47: =IF(NFI_Expiration=1,IF($A47<VLOOKUP(Q$5,NFI,5,0),1,0)*Table_NFI[[#This Row],[Plastic Mat]],0) -> 0 | AB47: =IFERROR(VLOOKUP(Table_NFI[[#This Row],[Camp Name]],CL,2,0),"") ->  | AC47: =IFERROR(VLOOKUP(Table_NFI[[#This Row],[Camp Name]],CL,3,0),"") -> 
A48: 16.96666667 | B48: 2012-07-10 | C48: UNHCR | E48: Rakhine | F48: Sittwe | G48: Weikzar Thaikdi Monastery | L48: 20 | R48: =IF(NFI_Expiration=1,IF($A48<VLOOKUP(H$5,NFI,5,0),1,0)*Table_NFI[[#This Row],[Hygiene Kit]],0) -> 0 | S48: =IF(NFI_Expiration=1,IF($A48<VLOOKUP(I$5,NFI,5,0),1,0)*Table_NFI[[#This Row],[NFI Core Kit]],0) -> 0 | T48: =IF(NFI_Expiration=1,IF($A48<VLOOKUP(J$5,NFI,5,0),1,0)*Table_NFI[[#This Row],[Sanitary Kit]],0) -> 0 | U48: =IF(NFI_Expiration=1,IF($A48<VLOOKUP(K$5,NFI,5,0),1,0)*Table_NFI[[#This Row],[Mosquito net]],0) -> 0 | V48: =IF(NFI_Expiration=1,IF($A48<VLOOKUP(L$5,NFI,5,0),1,0)*Table_NFI[[#This Row],[Tarpaulin]],0) -> 0 | W48: =IF(NFI_Expiration=1,IF($A48<VLOOKUP(M$5,NFI,5,0),1,0)*Table_NFI[[#This Row],[Blanket]],0) -> 0 | X48: =IF(NFI_Expiration=1,IF($A48<VLOOKUP(N$5,NFI,5,0),1,0)*Table_NFI[[#This Row],[Kitchen Set]],0) -> 0 | Y48: =IF(NFI_Expiration=1,IF($A48<VLOOKUP(O$5,NFI,5,0),1,0)*Table_NFI[[#This Row],[Complementary Kit]],0) -> 0 | Z48: =IF(NFI_Expiration=1,IF($A48<VLOOKUP(P$5,NFI,5,0),1,0)*Table_NFI[[#This Row],[Plastic Bucket]],0) -> 0 | AA48: =IF(NFI_Expiration=1,IF($A48<VLOOKUP(Q$5,NFI,5,0),1,0)*Table_NFI[[#This Row],[Plastic Mat]],0) -> 0 | AB48: =IFERROR(VLOOKUP(Table_NFI[[#This Row],[Camp Name]],CL,2,0),"") -> MMR012CMP075 | AC48: =IFERROR(VLOOKUP(Table_NFI[[#This Row],[Camp Name]],CL,3,0),"") -> Close
A49: 16.96666667 | B49: 2012-07-10 | C49: UNHCR | E49: Rakhine | F49: Sittwe | G49: Tayzindayama | L49: 11 | R49: =IF(NFI_Expiration=1,IF($A49<VLOOKUP(H$5,NFI,5,0),1,0)*Table_NFI[[#This Row],[Hygiene Kit]],0) -> 0 | S49: =IF(NFI_Expiration=1,IF($A49<VLOOKUP(I$5,NFI,5,0),1,0)*Table_NFI[[#This Row],[NFI Core Kit]],0) -> 0 | T49: =IF(NFI_Expiration=1,IF($A49<VLOOKUP(J$5,NFI,5,0),1,0)*Table_NFI[[#This Row],[Sanitary Kit]],0) -> 0 | U49: =IF(NFI_Expiration=1,IF($A49<VLOOKUP(K$5,NFI,5,0),1,0)*Table_NFI[[#This Row],[Mosquito net]],0) -> 0 | V49: =IF(NFI_Expiration=1,IF($A49<VLOOKUP(L$5,NFI,5,0),1,0)*Table_NFI[[#This Row],[Tarpaulin]],0) -> 0 | W49: =IF(NFI_Expiration=1,IF($A49<VLOOKUP(M$5,NFI,5,0),1,0)*Table_NFI[[#This Row],[Blanket]],0) -> 0 | X49: =IF(NFI_Expiration=1,IF($A49<VLOOKUP(N$5,NFI,5,0),1,0)*Table_NFI[[#This Row],[Kitchen Set]],0) -> 0 | Y49: =IF(NFI_Expiration=1,IF($A49<VLOOKUP(O$5,NFI,5,0),1,0)*Table_NFI[[#This Row],[Complementary Kit]],0) -> 0 | Z49: =IF(NFI_Expiration=1,IF($A49<VLOOKUP(P$5,NFI,5,0),1,0)*Table_NFI[[#This Row],[Plastic Bucket]],0) -> 0 | AA49: =IF(NFI_Expiration=1,IF($A49<VLOOKUP(Q$5,NFI,5,0),1,0)*Table_NFI[[#This Row],[Plastic Mat]],0) -> 0 | AB49: =IFERROR(VLOOKUP(Table_NFI[[#This Row],[Camp Name]],CL,2,0),"") ->  | AC49: =IFERROR(VLOOKUP(Table_NFI[[#This Row],[Camp Name]],CL,3,0),"") -> 
A50: 16.96666667 | B50: 2012-07-10 | C50: UNHCR | E50: Rakhine | F50: Sittwe | G50: OhnTaPin | L50: 16 | R50: =IF(NFI_Expiration=1,IF($A50<VLOOKUP(H$5,NFI,5,0),1,0)*Table_NFI[[#This Row],[Hygiene Kit]],0) -> 0 | S50: =IF(NFI_Expiration=1,IF($A50<VLOOKUP(I$5,NFI,5,0),1,0)*Table_NFI[[#This Row],[NFI Core Kit]],0) -> 0 | T50: =IF(NFI_Expiration=1,IF($A50<VLOOKUP(J$5,NFI,5,0),1,0)*Table_NFI[[#This Row],[Sanitary Kit]],0) -> 0 | U50: =IF(NFI_Expiration=1,IF($A50<VLOOKUP(K$5,NFI,5,0),1,0)*Table_NFI[[#This Row],[Mosquito net]],0) -> 0 | V50: =IF(NFI_Expiration=1,IF($A50<VLOOKUP(L$5,NFI,5,0),1,0)*Table_NFI[[#This Row],[Tarpaulin]],0) -> 0 | W50: =IF(NFI_Expiration=1,IF($A50<VLOOKUP(M$5,NFI,5,0),1,0)*Table_NFI[[#This Row],[Blanket]],0) -> 0 | X50: =IF(NFI_Expiration=1,IF($A50<VLOOKUP(N$5,NFI,5,0),1,0)*Table_NFI[[#This Row],[Kitchen Set]],0) -> 0 | Y50: =IF(NFI_Expiration=1,IF($A50<VLOOKUP(O$5,NFI,5,0),1,0)*Table_NFI[[#This Row],[Complementary Kit]],0) -> 0 | Z50: =IF(NFI_Expiration=1,IF($A50<VLOOKUP(P$5,NFI,5,0),1,0)*Table_NFI[[#This Row],[Plastic Bucket]],0) -> 0 | AA50: =IF(NFI_Expiration=1,IF($A50<VLOOKUP(Q$5,NFI,5,0),1,0)*Table_NFI[[#This Row],[Plastic Mat]],0) -> 0 | AB50: =IFERROR(VLOOKUP(Table_NFI[[#This Row],[Camp Name]],CL,2,0),"") ->  | AC50: =IFERROR(VLOOKUP(Table_NFI[[#This Row],[Camp Name]],CL,3,0),"") -> 
A51: 16.96666667 | B51: 2012-07-10 | C51: UNHCR | E51: Rakhine | F51: Sittwe | G51: MyaTheinTan | L51: 5 | R51: =IF(NFI_Expiration=1,IF($A51<VLOOKUP(H$5,NFI,5,0),1,0)*Table_NFI[[#This Row],[Hygiene Kit]],0) -> 0 | S51: =IF(NFI_Expiration=1,IF($A51<VLOOKUP(I$5,NFI,5,0),1,0)*Table_NFI[[#This Row],[NFI Core Kit]],0) -> 0 | T51: =IF(NFI_Expiration=1,IF($A51<VLOOKUP(J$5,NFI,5,0),1,0)*Table_NFI[[#This Row],[Sanitary Kit]],0) -> 0 | U51: =IF(NFI_Expiration=1,IF($A51<VLOOKUP(K$5,NFI,5,0),1,0)*Table_NFI[[#This Row],[Mosquito net]],0) -> 0 | V51: =IF(NFI_Expiration=1,IF($A51<VLOOKUP(L$5,NFI,5,0),1,0)*Table_NFI[[#This Row],[Tarpaulin]],0) -> 0 | W51: =IF(NFI_Expiration=1,IF($A51<VLOOKUP(M$5,NFI,5,0),1,0)*Table_NFI[[#This Row],[Blanket]],0) -> 0 | X51: =IF(NFI_Expiration=1,IF($A51<VLOOKUP(N$5,NFI,5,0),1,0)*Table_NFI[[#This Row],[Kitchen Set]],0) -> 0 | Y51: =IF(NFI_Expiration=1,IF($A51<VLOOKUP(O$5,NFI,5,0),1,0)*Table_NFI[[#This Row],[Complementary Kit]],0) -> 0 | Z51: =IF(NFI_Expiration=1,IF($A51<VLOOKUP(P$5,NFI,5,0),1,0)*Table_NFI[[#This Row],[Plastic Bucket]],0) -> 0 | AA51: =IF(NFI_Expiration=1,IF($A51<VLOOKUP(Q$5,NFI,5,0),1,0)*Table_NFI[[#This Row],[Plastic Mat]],0) -> 0 | AB51: =IFERROR(VLOOKUP(Table_NFI[[#This Row],[Camp Name]],CL,2,0),"") ->  | AC51: =IFERROR(VLOOKUP(Table_NFI[[#This Row],[Camp Name]],CL,3,0),"") -> 
A52: 16.96666667 | B52: 2012-07-10 | C52: UNHCR | E52: Rakhine | F52: Sittwe | G52: YadaNarMinDaing | L52: 2 | R52: =IF(NFI_Expiration=1,IF($A52<VLOOKUP(H$5,NFI,5,0),1,0)*Table_NFI[[#This Row],[Hygiene Kit]],0) -> 0 | S52: =IF(NFI_Expiration=1,IF($A52<VLOOKUP(I$5,NFI,5,0),1,0)*Table_NFI[[#This Row],[NFI Core Kit]],0) -> 0 | T52: =IF(NFI_Expiration=1,IF($A52<VLOOKUP(J$5,NFI,5,0),1,0)*Table_NFI[[#This Row],[Sanitary Kit]],0) -> 0 | U52: =IF(NFI_Expiration=1,IF($A52<VLOOKUP(K$5,NFI,5,0),1,0)*Table_NFI[[#This Row],[Mosquito net]],0) -> 0 | V52: =IF(NFI_Expiration=1,IF($A52<VLOOKUP(L$5,NFI,5,0),1,0)*Table_NFI[[#This Row],[Tarpaulin]],0) -> 0 | W52: =IF(NFI_Expiration=1,IF($A52<VLOOKUP(M$5,NFI,5,0),1,0)*Table_NFI[[#This Row],[Blanket]],0) -> 0 | X52: =IF(NFI_Expiration=1,IF($A52<VLOOKUP(N$5,NFI,5,0),1,0)*Table_NFI[[#This Row],[Kitchen Set]],0) -> 0 | Y52: =IF(NFI_Expiration=1,IF($A52<VLOOKUP(O$5,NFI,5,0),1,0)*Table_NFI[[#This Row],[Complementary Kit]],0) -> 0 | Z52: =IF(NFI_Expiration=1,IF($A52<VLOOKUP(P$5,NFI,5,0),1,0)*Table_NFI[[#This Row],[Plastic Bucket]],0) -> 0 | AA52: =IF(NFI_Expiration=1,IF($A52<VLOOKUP(Q$5,NFI,5,0),1,0)*Table_NFI[[#This Row],[Plastic Mat]],0) -> 0 | AB52: =IFERROR(VLOOKUP(Table_NFI[[#This Row],[Camp Name]],CL,2,0),"") ->  | AC52: =IFERROR(VLOOKUP(Table_NFI[[#This Row],[Camp Name]],CL,3,0),"") -> 
A53: 16.93333333 | B53: 2012-07-11 | C53: UNHCR | E53: Rakhine | F53: Sittwe | G53: MinnGanHighSchool | L53: 492 | R53: =IF(NFI_Expiration=1,IF($A53<VLOOKUP(H$5,NFI,5,0),1,0)*Table_NFI[[#This Row],[Hygiene Kit]],0) -> 0 | S53: =IF(NFI_Expiration=1,IF($A53<VLOOKUP(I$5,NFI,5,0),1,0)*Table_NFI[[#This Row],[NFI Core Kit]],0) -> 0 | T53: =IF(NFI_Expiration=1,IF($A53<VLOOKUP(J$5,NFI,5,0),1,0)*Table_NFI[[#This Row],[Sanitary Kit]],0) -> 0 | U53: =IF(NFI_Expiration=1,IF($A53<VLOOKUP(K$5,NFI,5,0),1,0)*Table_NFI[[#This Row],[Mosquito net]],0) -> 0 | V53: =IF(NFI_Expiration=1,IF($A53<VLOOKUP(L$5,NFI,5,0),1,0)*Table_NFI[[#This Row],[Tarpaulin]],0) -> 0 | W53: =IF(NFI_Expiration=1,IF($A53<VLOOKUP(M$5,NFI,5,0),1,0)*Table_NFI[[#This Row],[Blanket]],0) -> 0 | X53: =IF(NFI_Expiration=1,IF($A53<VLOOKUP(N$5,NFI,5,0),1,0)*Table_NFI[[#This Row],[Kitchen Set]],0) -> 0 | Y53: =IF(NFI_Expiration=1,IF($A53<VLOOKUP(O$5,NFI,5,0),1,0)*Table_NFI[[#This Row],[Complementary Kit]],0) -> 0 | Z53: =IF(NFI_Expiration=1,IF($A53<VLOOKUP(P$5,NFI,5,0),1,0)*Table_NFI[[#This Row],[Plastic Bucket]],0) -> 0 | AA53: =IF(NFI_Expiration=1,IF($A53<VLOOKUP(Q$5,NFI,5,0),1,0)*Table_NFI[[#This Row],[Plastic Mat]],0) -> 0 | AB53: =IFERROR(VLOOKUP(Table_NFI[[#This Row],[Camp Name]],CL,2,0),"") ->  | AC53: =IFERROR(VLOOKUP(Table_NFI[[#This Row],[Camp Name]],CL,3,0),"") -> 
A54: 16.9 | B54: 2012-07-12 | C54: UNHCR | E54: Rakhine | F54: Sittwe | G54: Khaymarmandine | L54: 4 | R54: =IF(NFI_Expiration=1,IF($A54<VLOOKUP(H$5,NFI,5,0),1,0)*Table_NFI[[#This Row],[Hygiene Kit]],0) -> 0 | S54: =IF(NFI_Expiration=1,IF($A54<VLOOKUP(I$5,NFI,5,0),1,0)*Table_NFI[[#This Row],[NFI Core Kit]],0) -> 0 | T54: =IF(NFI_Expiration=1,IF($A54<VLOOKUP(J$5,NFI,5,0),1,0)*Table_NFI[[#This Row],[Sanitary Kit]],0) -> 0 | U54: =IF(NFI_Expiration=1,IF($A54<VLOOKUP(K$5,NFI,5,0),1,0)*Table_NFI[[#This Row],[Mosquito net]],0) -> 0 | V54: =IF(NFI_Expiration=1,IF($A54<VLOOKUP(L$5,NFI,5,0),1,0)*Table_NFI[[#This Row],[Tarpaulin]],0) -> 0 | W54: =IF(NFI_Expiration=1,IF($A54<VLOOKUP(M$5,NFI,5,0),1,0)*Table_NFI[[#This Row],[Blanket]],0) -> 0 | X54: =IF(NFI_Expiration=1,IF($A54<VLOOKUP(N$5,NFI,5,0),1,0)*Table_NFI[[#This Row],[Kitchen Set]],0) -> 0 | Y54: =IF(NFI_Expiration=1,IF($A54<VLOOKUP(O$5,NFI,5,0),1,0)*Table_NFI[[#This Row],[Complementary Kit]],0) -> 0 | Z54: =IF(NFI_Expiration=1,IF($A54<VLOOKUP(P$5,NFI,5,0),1,0)*Table_NFI[[#This Row],[Plastic Bucket]],0) -> 0 | AA54: =IF(NFI_Expiration=1,IF($A54<VLOOKUP(Q$5,NFI,5,0),1,0)*Table_NFI[[#This Row],[Plastic Mat]],0) -> 0 | AB54: =IFERROR(VLOOKUP(Table_NFI[[#This Row],[Camp Name]],CL,2,0),"") ->  | AC54: =IFERROR(VLOOKUP(Table_NFI[[#This Row],[Camp Name]],CL,3,0),"") -> 
A55: =IF(ISBLANK(B55),"",(Report_Date-B55)/30) -> 16.8 | B55: 2012-07-15 | C55: UNHCR | E55: Rakhine | F55: Sittwe | G55: Thet Kae Pyin | L55: 200 | R55: =IF(NFI_Expiration=1,IF($A55<VLOOKUP(H$5,NFI,5,0),1,0)*Table_NFI[[#This Row],[Hygiene Kit]],0) -> 0 | S55: =IF(NFI_Expiration=1,IF($A55<VLOOKUP(I$5,NFI,5,0),1,0)*Table_NFI[[#This Row],[NFI Core Kit]],0) -> 0 | T55: =IF(NFI_Expiration=1,IF($A55<VLOOKUP(J$5,NFI,5,0),1,0)*Table_NFI[[#This Row],[Sanitary Kit]],0) -> 0 | U55: =IF(NFI_Expiration=1,IF($A55<VLOOKUP(K$5,NFI,5,0),1,0)*Table_NFI[[#This Row],[Mosquito net]],0) -> 0 | V55: =IF(NFI_Expiration=1,IF($A55<VLOOKUP(L$5,NFI,5,0),1,0)*Table_NFI[[#This Row],[Tarpaulin]],0) -> 0 | W55: =IF(NFI_Expiration=1,IF($A55<VLOOKUP(M$5,NFI,5,0),1,0)*Table_NFI[[#This Row],[Blanket]],0) -> 0 | X55: =IF(NFI_Expiration=1,IF($A55<VLOOKUP(N$5,NFI,5,0),1,0)*Table_NFI[[#This Row],[Kitchen Set]],0) -> 0 | Y55: =IF(NFI_Expiration=1,IF($A55<VLOOKUP(O$5,NFI,5,0),1,0)*Table_NFI[[#This Row],[Complementary Kit]],0) -> 0 | Z55: =IF(NFI_Expiration=1,IF($A55<VLOOKUP(P$5,NFI,5,0),1,0)*Table_NFI[[#This Row],[Plastic Bucket]],0) -> 0 | AA55: =IF(NFI_Expiration=1,IF($A55<VLOOKUP(Q$5,NFI,5,0),1,0)*Table_NFI[[#This Row],[Plastic Mat]],0) -> 0 | AB55: =IFERROR(VLOOKUP(Table_NFI[[#This Row],[Camp Name]],CL,2,0),"") -> MMR012CMP048 | AC55: =IFERROR(VLOOKUP(Table_NFI[[#This Row],[Camp Name]],CL,3,0),"") -> Open
A56: 16.8 | B56: 2012-07-15 | C56: UNHCR | E56: Rakhine | F56: Sittwe | G56: Baw Du Pha | L56: 150 | R56: =IF(NFI_Expiration=1,IF($A56<VLOOKUP(H$5,NFI,5,0),1,0)*Table_NFI[[#This Row],[Hygiene Kit]],0) -> 0 | S56: =IF(NFI_Expiration=1,IF($A56<VLOOKUP(I$5,NFI,5,0),1,0)*Table_NFI[[#This Row],[NFI Core Kit]],0) -> 0 | T56: =IF(NFI_Expiration=1,IF($A56<VLOOKUP(J$5,NFI,5,0),1,0)*Table_NFI[[#This Row],[Sanitary Kit]],0) -> 0 | U56: =IF(NFI_Expiration=1,IF($A56<VLOOKUP(K$5,NFI,5,0),1,0)*Table_NFI[[#This Row],[Mosquito net]],0) -> 0 | V56: =IF(NFI_Expiration=1,IF($A56<VLOOKUP(L$5,NFI,5,0),1,0)*Table_NFI[[#This Row],[Tarpaulin]],0) -> 0 | W56: =IF(NFI_Expiration=1,IF($A56<VLOOKUP(M$5,NFI,5,0),1,0)*Table_NFI[[#This Row],[Blanket]],0) -> 0 | X56: =IF(NFI_Expiration=1,IF($A56<VLOOKUP(N$5,NFI,5,0),1,0)*Table_NFI[[#This Row],[Kitchen Set]],0) -> 0 | Y56: =IF(NFI_Expiration=1,IF($A56<VLOOKUP(O$5,NFI,5,0),1,0)*Table_NFI[[#This Row],[Complementary Kit]],0) -> 0 | Z56: =IF(NFI_Expiration=1,IF($A56<VLOOKUP(P$5,NFI,5,0),1,0)*Table_NFI[[#This Row],[Plastic Bucket]],0) -> 0 | AA56: =IF(NFI_Expiration=1,IF($A56<VLOOKUP(Q$5,NFI,5,0),1,0)*Table_NFI[[#This Row],[Plastic Mat]],0) -> 0 | AB56: =IFERROR(VLOOKUP(Table_NFI[[#This Row],[Camp Name]],CL,2,0),"") -> MMR012CMP040 | AC56: =IFERROR(VLOOKUP(Table_NFI[[#This Row],[Camp Name]],CL,3,0),"") -> Close
A57: 16.76666667 | B57: 2012-07-16 | C57: UNHCR | E57: Rakhine | F57: Sittwe | G57: Baw Du Pha | L57: 120 | R57: =IF(NFI_Expiration=1,IF($A57<VLOOKUP(H$5,NFI,5,0),1,0)*Table_NFI[[#This Row],[Hygiene Kit]],0) -> 0 | S57: =IF(NFI_Expiration=1,IF($A57<VLOOKUP(I$5,NFI,5,0),1,0)*Table_NFI[[#This Row],[NFI Core Kit]],0) -> 0 | T57: =IF(NFI_Expiration=1,IF($A57<VLOOKUP(J$5,NFI,5,0),1,0)*Table_NFI[[#This Row],[Sanitary Kit]],0) -> 0 | U57: =IF(NFI_Expiration=1,IF($A57<VLOOKUP(K$5,NFI,5,0),1,0)*Table_NFI[[#This Row],[Mosquito net]],0) -> 0 | V57: =IF(NFI_Expiration=1,IF($A57<VLOOKUP(L$5,NFI,5,0),1,0)*Table_NFI[[#This Row],[Tarpaulin]],0) -> 0 | W57: =IF(NFI_Expiration=1,IF($A57<VLOOKUP(M$5,NFI,5,0),1,0)*Table_NFI[[#This Row],[Blanket]],0) -> 0 | X57: =IF(NFI_Expiration=1,IF($A57<VLOOKUP(N$5,NFI,5,0),1,0)*Table_NFI[[#This Row],[Kitchen Set]],0) -> 0 | Y57: =IF(NFI_Expiration=1,IF($A57<VLOOKUP(O$5,NFI,5,0),1,0)*Table_NFI[[#This Row],[Complementary Kit]],0) -> 0 | Z57: =IF(NFI_Expiration=1,IF($A57<VLOOKUP(P$5,NFI,5,0),1,0)*Table_NFI[[#This Row],[Plastic Bucket]],0) -> 0 | AA57: =IF(NFI_Expiration=1,IF($A57<VLOOKUP(Q$5,NFI,5,0),1,0)*Table_NFI[[#This Row],[Plastic Mat]],0) -> 0 | AB57: =IFERROR(VLOOKUP(Table_NFI[[#This Row],[Camp Name]],CL,2,0),"") -> MMR012CMP040 | AC57: =IFERROR(VLOOKUP(Table_NFI[[#This Row],[Camp Name]],CL,3,0),"") -> Close
A58: 16.73333333 | B58: 2012-07-17 | C58: UNHCR | E58: Rakhine | F58: Sittwe | G58: Baw Du Pha | L58: 630 | R58: =IF(NFI_Expiration=1,IF($A58<VLOOKUP(H$5,NFI,5,0),1,0)*Table_NFI[[#This Row],[Hygiene Kit]],0) -> 0 | S58: =IF(NFI_Expiration=1,IF($A58<VLOOKUP(I$5,NFI,5,0),1,0)*Table_NFI[[#This Row],[NFI Core Kit]],0) -> 0 | T58: =IF(NFI_Expiration=1,IF($A58<VLOOKUP(J$5,NFI,5,0),1,0)*Table_NFI[[#This Row],[Sanitary Kit]],0) -> 0 | U58: =IF(NFI_Expiration=1,IF($A58<VLOOKUP(K$5,NFI,5,0),1,0)*Table_NFI[[#This Row],[Mosquito net]],0) -> 0 | V58: =IF(NFI_Expiration=1,IF($A58<VLOOKUP(L$5,NFI,5,0),1,0)*Table_NFI[[#This Row],[Tarpaulin]],0) -> 0 | W58: =IF(NFI_Expiration=1,IF($A58<VLOOKUP(M$5,NFI,5,0),1,0)*Table_NFI[[#This Row],[Blanket]],0) -> 0 | X58: =IF(NFI_Expiration=1,IF($A58<VLOOKUP(N$5,NFI,5,0),1,0)*Table_NFI[[#This Row],[Kitchen Set]],0) -> 0 | Y58: =IF(NFI_Expiration=1,IF($A58<VLOOKUP(O$5,NFI,5,0),1,0)*Table_NFI[[#This Row],[Complementary Kit]],0) -> 0 | Z58: =IF(NFI_Expiration=1,IF($A58<VLOOKUP(P$5,NFI,5,0),1,0)*Table_NFI[[#This Row],[Plastic Bucket]],0) -> 0 | AA58: =IF(NFI_Expiration=1,IF($A58<VLOOKUP(Q$5,NFI,5,0),1,0)*Table_NFI[[#This Row],[Plastic Mat]],0) -> 0 | AB58: =IFERROR(VLOOKUP(Table_NFI[[#This Row],[Camp Name]],CL,2,0),"") -> MMR012CMP040 | AC58: =IFERROR(VLOOKUP(Table_NFI[[#This Row],[Camp Name]],CL,3,0),"") -> Close
A59: 16.7 | B59: 2012-07-18 | C59: UNHCR | E59: Rakhine | F59: Sittwe | G59: Baw Du Pha | L59: 248 | R59: =IF(NFI_Expiration=1,IF($A59<VLOOKUP(H$5,NFI,5,0),1,0)*Table_NFI[[#This Row],[Hygiene Kit]],0) -> 0 | S59: =IF(NFI_Expiration=1,IF($A59<VLOOKUP(I$5,NFI,5,0),1,0)*Table_NFI[[#This Row],[NFI Core Kit]],0) -> 0 | T59: =IF(NFI_Expiration=1,IF($A59<VLOOKUP(J$5,NFI,5,0),1,0)*Table_NFI[[#This Row],[Sanitary Kit]],0) -> 0 | U59: =IF(NFI_Expiration=1,IF($A59<VLOOKUP(K$5,NFI,5,0),1,0)*Table_NFI[[#This Row],[Mosquito net]],0) -> 0 | V59: =IF(NFI_Expiration=1,IF($A59<VLOOKUP(L$5,NFI,5,0),1,0)*Table_NFI[[#This Row],[Tarpaulin]],0) -> 0 | W59: =IF(NFI_Expiration=1,IF($A59<VLOOKUP(M$5,NFI,5,0),1,0)*Table_NFI[[#This Row],[Blanket]],0) -> 0 | X59: =IF(NFI_Expiration=1,IF($A59<VLOOKUP(N$5,NFI,5,0),1,0)*Table_NFI[[#This Row],[Kitchen Set]],0) -> 0 | Y59: =IF(NFI_Expiration=1,IF($A59<VLOOKUP(O$5,NFI,5,0),1,0)*Table_NFI[[#This Row],[Complementary Kit]],0) -> 0 | Z59: =IF(NFI_Expiration=1,IF($A59<VLOOKUP(P$5,NFI,5,0),1,0)*Table_NFI[[#This Row],[Plastic Bucket]],0) -> 0 | AA59: =IF(NFI_Expiration=1,IF($A59<VLOOKUP(Q$5,NFI,5,0),1,0)*Table_NFI[[#This Row],[Plastic Mat]],0) -> 0 | AB59: =IFERROR(VLOOKUP(Table_NFI[[#This Row],[Camp Name]],CL,2,0),"") -> MMR012CMP040 | AC59: =IFERROR(VLOOKUP(Table_NFI[[#This Row],[Camp Name]],CL,3,0),"") -> Close
A60: 16.7 | B60: 2012-07-18 | C60: UNHCR | E60: Rakhine | F60: Sittwe | G60: Khaung Doke Khar | L60: 121 | R60: =IF(NFI_Expiration=1,IF($A60<VLOOKUP(H$5,NFI,5,0),1,0)*Table_NFI[[#This Row],[Hygiene Kit]],0) -> 0 | S60: =IF(NFI_Expiration=1,IF($A60<VLOOKUP(I$5,NFI,5,0),1,0)*Table_NFI[[#This Row],[NFI Core Kit]],0) -> 0 | T60: =IF(NFI_Expiration=1,IF($A60<VLOOKUP(J$5,NFI,5,0),1,0)*Table_NFI[[#This Row],[Sanitary Kit]],0) -> 0 | U60: =IF(NFI_Expiration=1,IF($A60<VLOOKUP(K$5,NFI,5,0),1,0)*Table_NFI[[#This Row],[Mosquito net]],0) -> 0 | V60: =IF(NFI_Expiration=1,IF($A60<VLOOKUP(L$5,NFI,5,0),1,0)*Table_NFI[[#This Row],[Tarpaulin]],0) -> 0 | W60: =IF(NFI_Expiration=1,IF($A60<VLOOKUP(M$5,NFI,5,0),1,0)*Table_NFI[[#This Row],[Blanket]],0) -> 0 | X60: =IF(NFI_Expiration=1,IF($A60<VLOOKUP(N$5,NFI,5,0),1,0)*Table_NFI[[#This Row],[Kitchen Set]],0) -> 0 | Y60: =IF(NFI_Expiration=1,IF($A60<VLOOKUP(O$5,NFI,5,0),1,0)*Table_NFI[[#This Row],[Complementary Kit]],0) -> 0 | Z60: =IF(NFI_Expiration=1,IF($A60<VLOOKUP(P$5,NFI,5,0),1,0)*Table_NFI[[#This Row],[Plastic Bucket]],0) -> 0 | AA60: =IF(NFI_Expiration=1,IF($A60<VLOOKUP(Q$5,NFI,5,0),1,0)*Table_NFI[[#This Row],[Plastic Mat]],0) -> 0 | AB60: =IFERROR(VLOOKUP(Table_NFI[[#This Row],[Camp Name]],CL,2,0),"") -> MMR012CMP042 | AC60: =IFERROR(VLOOKUP(Table_NFI[[#This Row],[Camp Name]],CL,3,0),"") -> Open
A61: 16.66666667 | B61: 2012-07-19 | C61: UNHCR | E61: Rakhine | F61: Sittwe | G61: Thet Kae Pyin | L61: 572 | R61: =IF(NFI_Expiration=1,IF($A61<VLOOKUP(H$5,NFI,5,0),1,0)*Table_NFI[[#This Row],[Hygiene Kit]],0) -> 0 | S61: =IF(NFI_Expiration=1,IF($A61<VLOOKUP(I$5,NFI,5,0),1,0)*Table_NFI[[#This Row],[NFI Core Kit]],0) -> 0 | T61: =IF(NFI_Expiration=1,IF($A61<VLOOKUP(J$5,NFI,5,0),1,0)*Table_NFI[[#This Row],[Sanitary Kit]],0) -> 0 | U61: =IF(NFI_Expiration=1,IF($A61<VLOOKUP(K$5,NFI,5,0),1,0)*Table_NFI[[#This Row],[Mosquito net]],0) -> 0 | V61: =IF(NFI_Expiration=1,IF($A61<VLOOKUP(L$5,NFI,5,0),1,0)*Table_NFI[[#This Row],[Tarpaulin]],0) -> 0 | W61: =IF(NFI_Expiration=1,IF($A61<VLOOKUP(M$5,NFI,5,0),1,0)*Table_NFI[[#This Row],[Blanket]],0) -> 0 | X61: =IF(NFI_Expiration=1,IF($A61<VLOOKUP(N$5,NFI,5,0),1,0)*Table_NFI[[#This Row],[Kitchen Set]],0) -> 0 | Y61: =IF(NFI_Expiration=1,IF($A61<VLOOKUP(O$5,NFI,5,0),1,0)*Table_NFI[[#This Row],[Complementary Kit]],0) -> 0 | Z61: =IF(NFI_Expiration=1,IF($A61<VLOOKUP(P$5,NFI,5,0),1,0)*Table_NFI[[#This Row],[Plastic Bucket]],0) -> 0 | AA61: =IF(NFI_Expiration=1,IF($A61<VLOOKUP(Q$5,NFI,5,0),1,0)*Table_NFI[[#This Row],[Plastic Mat]],0) -> 0 | AB61: =IFERROR(VLOOKUP(Table_NFI[[#This Row],[Camp Name]],CL,2,0),"") -> MMR012CMP048 | AC61: =IFERROR(VLOOKUP(Table_NFI[[#This Row],[Camp Name]],CL,3,0),"") -> Open
A62: 16.63333333 | B62: 2012-07-20 | C62: UNHCR | E62: Rakhine | F62: Sittwe | G62: Basare | L62: 383 | R62: =IF(NFI_Expiration=1,IF($A62<VLOOKUP(H$5,NFI,5,0),1,0)*Table_NFI[[#This Row],[Hygiene Kit]],0) -> 0 | S62: =IF(NFI_Expiration=1,IF($A62<VLOOKUP(I$5,NFI,5,0),1,0)*Table_NFI[[#This Row],[NFI Core Kit]],0) -> 0 | T62: =IF(NFI_Expiration=1,IF($A62<VLOOKUP(J$5,NFI,5,0),1,0)*Table_NFI[[#This Row],[Sanitary Kit]],0) -> 0 | U62: =IF(NFI_Expiration=1,IF($A62<VLOOKUP(K$5,NFI,5,0),1,0)*Table_NFI[[#This Row],[Mosquito net]],0) -> 0 | V62: =IF(NFI_Expiration=1,IF($A62<VLOOKUP(L$5,NFI,5,0),1,0)*Table_NFI[[#This Row],[Tarpaulin]],0) -> 0 | W62: =IF(NFI_Expiration=1,IF($A62<VLOOKUP(M$5,NFI,5,0),1,0)*Table_NFI[[#This Row],[Blanket]],0) -> 0 | X62: =IF(NFI_Expiration=1,IF($A62<VLOOKUP(N$5,NFI,5,0),1,0)*Table_NFI[[#This Row],[Kitchen Set]],0) -> 0 | Y62: =IF(NFI_Expiration=1,IF($A62<VLOOKUP(O$5,NFI,5,0),1,0)*Table_NFI[[#This Row],[Complementary Kit]],0) -> 0 | Z62: =IF(NFI_Expiration=1,IF($A62<VLOOKUP(P$5,NFI,5,0),1,0)*Table_NFI[[#This Row],[Plastic Bucket]],0) -> 0 | AA62: =IF(NFI_Expiration=1,IF($A62<VLOOKUP(Q$5,NFI,5,0),1,0)*Table_NFI[[#This Row],[Plastic Mat]],0) -> 0 | AB62: =IFERROR(VLOOKUP(Table_NFI[[#This Row],[Camp Name]],CL,2,0),"") -> MMR012CMP039 | AC62: =IFERROR(VLOOKUP(Table_NFI[[#This Row],[Camp Name]],CL,3,0),"") -> Open
A63: 16.6 | B63: 2012-07-21 | C63: UNHCR | E63: Rakhine | F63: Sittwe | G63: Say Tha Mar Gyi | L63: 117 | R63: =IF(NFI_Expiration=1,IF($A63<VLOOKUP(H$5,NFI,5,0),1,0)*Table_NFI[[#This Row],[Hygiene Kit]],0) -> 0 | S63: =IF(NFI_Expiration=1,IF($A63<VLOOKUP(I$5,NFI,5,0),1,0)*Table_NFI[[#This Row],[NFI Core Kit]],0) -> 0 | T63: =IF(NFI_Expiration=1,IF($A63<VLOOKUP(J$5,NFI,5,0),1,0)*Table_NFI[[#This Row],[Sanitary Kit]],0) -> 0 | U63: =IF(NFI_Expiration=1,IF($A63<VLOOKUP(K$5,NFI,5,0),1,0)*Table_NFI[[#This Row],[Mosquito net]],0) -> 0 | V63: =IF(NFI_Expiration=1,IF($A63<VLOOKUP(L$5,NFI,5,0),1,0)*Table_NFI[[#This Row],[Tarpaulin]],0) -> 0 | W63: =IF(NFI_Expiration=1,IF($A63<VLOOKUP(M$5,NFI,5,0),1,0)*Table_NFI[[#This Row],[Blanket]],0) -> 0 | X63: =IF(NFI_Expiration=1,IF($A63<VLOOKUP(N$5,NFI,5,0),1,0)*Table_NFI[[#This Row],[Kitchen Set]],0) -> 0 | Y63: =IF(NFI_Expiration=1,IF($A63<VLOOKUP(O$5,NFI,5,0),1,0)*Table_NFI[[#This Row],[Complementary Kit]],0) -> 0 | Z63: =IF(NFI_Expiration=1,IF($A63<VLOOKUP(P$5,NFI,5,0),1,0)*Table_NFI[[#This Row],[Plastic Bucket]],0) -> 0 | AA63: =IF(NFI_Expiration=1,IF($A63<VLOOKUP(Q$5,NFI,5,0),1,0)*Table_NFI[[#This Row],[Plastic Mat]],0) -> 0 | AB63: =IFERROR(VLOOKUP(Table_NFI[[#This Row],[Camp Name]],CL,2,0),"") -> MMR012CMP045 | AC63: =IFERROR(VLOOKUP(Table_NFI[[#This Row],[Camp Name]],CL,3,0),"") -> Open
A64: 16.33333333 | B64: 2012-07-29 | C64: UNHCR | E64: Rakhine | F64: Sittwe | G64: Say Tha Mar Gyi | L64: 456 | R64: =IF(NFI_Expiration=1,IF($A64<VLOOKUP(H$5,NFI,5,0),1,0)*Table_NFI[[#This Row],[Hygiene Kit]],0) -> 0 | S64: =IF(NFI_Expiration=1,IF($A64<VLOOKUP(I$5,NFI,5,0),1,0)*Table_NFI[[#This Row],[NFI Core Kit]],0) -> 0 | T64: =IF(NFI_Expiration=1,IF($A64<VLOOKUP(J$5,NFI,5,0),1,0)*Table_NFI[[#This Row],[Sanitary Kit]],0) -> 0 | U64: =IF(NFI_Expiration=1,IF($A64<VLOOKUP(K$5,NFI,5,0),1,0)*Table_NFI[[#This Row],[Mosquito net]],0) -> 0 | V64: =IF(NFI_Expiration=1,IF($A64<VLOOKUP(L$5,NFI,5,0),1,0)*Table_NFI[[#This Row],[Tarpaulin]],0) -> 0 | W64: =IF(NFI_Expiration=1,IF($A64<VLOOKUP(M$5,NFI,5,0),1,0)*Table_NFI[[#This Row],[Blanket]],0) -> 0 | X64: =IF(NFI_Expiration=1,IF($A64<VLOOKUP(N$5,NFI,5,0),1,0)*Table_NFI[[#This Row],[Kitchen Set]],0) -> 0 | Y64: =IF(NFI_Expiration=1,IF($A64<VLOOKUP(O$5,NFI,5,0),1,0)*Table_NFI[[#This Row],[Complementary Kit]],0) -> 0 | Z64: =IF(NFI_Expiration=1,IF($A64<VLOOKUP(P$5,NFI,5,0),1,0)*Table_NFI[[#This Row],[Plastic Bucket]],0) -> 0 | AA64: =IF(NFI_Expiration=1,IF($A64<VLOOKUP(Q$5,NFI,5,0),1,0)*Table_NFI[[#This Row],[Plastic Mat]],0) -> 0 | AB64: =IFERROR(VLOOKUP(Table_NFI[[#This Row],[Camp Name]],CL,2,0),"") -> MMR012CMP045 | AC64: =IFERROR(VLOOKUP(Table_NFI[[#This Row],[Camp Name]],CL,3,0),"") -> Open
A65: 16.33333333 | B65: 2012-07-29 | C65: UNHCR | E65: Rakhine | F65: Sittwe | G65: Khaung Doke Khar | L65: 22 | R65: =IF(NFI_Expiration=1,IF($A65<VLOOKUP(H$5,NFI,5,0),1,0)*Table_NFI[[#This Row],[Hygiene Kit]],0) -> 0 | S65: =IF(NFI_Expiration=1,IF($A65<VLOOKUP(I$5,NFI,5,0),1,0)*Table_NFI[[#This Row],[NFI Core Kit]],0) -> 0 | T65: =IF(NFI_Expiration=1,IF($A65<VLOOKUP(J$5,NFI,5,0),1,0)*Table_NFI[[#This Row],[Sanitary Kit]],0) -> 0 | U65: =IF(NFI_Expiration=1,IF($A65<VLOOKUP(K$5,NFI,5,0),1,0)*Table_NFI[[#This Row],[Mosquito net]],0) -> 0 | V65: =IF(NFI_Expiration=1,IF($A65<VLOOKUP(L$5,NFI,5,0),1,0)*Table_NFI[[#This Row],[Tarpaulin]],0) -> 0 | W65: =IF(NFI_Expiration=1,IF($A65<VLOOKUP(M$5,NFI,5,0),1,0)*Table_NFI[[#This Row],[Blanket]],0) -> 0 | X65: =IF(NFI_Expiration=1,IF($A65<VLOOKUP(N$5,NFI,5,0),1,0)*Table_NFI[[#This Row],[Kitchen Set]],0) -> 0 | Y65: =IF(NFI_Expiration=1,IF($A65<VLOOKUP(O$5,NFI,5,0),1,0)*Table_NFI[[#This Row],[Complementary Kit]],0) -> 0 | Z65: =IF(NFI_Expiration=1,IF($A65<VLOOKUP(P$5,NFI,5,0),1,0)*Table_NFI[[#This Row],[Plastic Bucket]],0) -> 0 | AA65: =IF(NFI_Expiration=1,IF($A65<VLOOKUP(Q$5,NFI,5,0),1,0)*Table_NFI[[#This Row],[Plastic Mat]],0) -> 0 | AB65: =IFERROR(VLOOKUP(Table_NFI[[#This Row],[Camp Name]],CL,2,0),"") -> MMR012CMP042 | AC65: =IFERROR(VLOOKUP(Table_NFI[[#This Row],[Camp Name]],CL,3,0),"") -> Open
A66: 16.3 | B66: 2012-07-30 | C66: UNHCR | E66: Rakhine | F66: Sittwe | G66: Say Tha Mar Gyi | L66: 461 | R66: =IF(NFI_Expiration=1,IF($A66<VLOOKUP(H$5,NFI,5,0),1,0)*Table_NFI[[#This Row],[Hygiene Kit]],0) -> 0 | S66: =IF(NFI_Expiration=1,IF($A66<VLOOKUP(I$5,NFI,5,0),1,0)*Table_NFI[[#This Row],[NFI Core Kit]],0) -> 0 | T66: =IF(NFI_Expiration=1,IF($A66<VLOOKUP(J$5,NFI,5,0),1,0)*Table_NFI[[#This Row],[Sanitary Kit]],0) -> 0 | U66: =IF(NFI_Expiration=1,IF($A66<VLOOKUP(K$5,NFI,5,0),1,0)*Table_NFI[[#This Row],[Mosquito net]],0) -> 0 | V66: =IF(NFI_Expiration=1,IF($A66<VLOOKUP(L$5,NFI,5,0),1,0)*Table_NFI[[#This Row],[Tarpaulin]],0) -> 0 | W66: =IF(NFI_Expiration=1,IF($A66<VLOOKUP(M$5,NFI,5,0),1,0)*Table_NFI[[#This Row],[Blanket]],0) -> 0 | X66: =IF(NFI_Expiration=1,IF($A66<VLOOKUP(N$5,NFI,5,0),1,0)*Table_NFI[[#This Row],[Kitchen Set]],0) -> 0 | Y66: =IF(NFI_Expiration=1,IF($A66<VLOOKUP(O$5,NFI,5,0),1,0)*Table_NFI[[#This Row],[Complementary Kit]],0) -> 0 | Z66: =IF(NFI_Expiration=1,IF($A66<VLOOKUP(P$5,NFI,5,0),1,0)*Table_NFI[[#This Row],[Plastic Bucket]],0) -> 0 | AA66: =IF(NFI_Expiration=1,IF($A66<VLOOKUP(Q$5,NFI,5,0),1,0)*Table_NFI[[#This Row],[Plastic Mat]],0) -> 0 | AB66: =IFERROR(VLOOKUP(Table_NFI[[#This Row],[Camp Name]],CL,2,0),"") -> MMR012CMP045 | AC66: =IFERROR(VLOOKUP(Table_NFI[[#This Row],[Camp Name]],CL,3,0),"") -> Open
A67: 16.3 | B67: 2012-07-30 | C67: UNHCR | E67: Rakhine | F67: Sittwe | G67: Thet Kae Pyin | L67: 11 | R67: =IF(NFI_Expiration=1,IF($A67<VLOOKUP(H$5,NFI,5,0),1,0)*Table_NFI[[#This Row],[Hygiene Kit]],0) -> 0 | S67: =IF(NFI_Expiration=1,IF($A67<VLOOKUP(I$5,NFI,5,0),1,0)*Table_NFI[[#This Row],[NFI Core Kit]],0) -> 0 | T67: =IF(NFI_Expiration=1,IF($A67<VLOOKUP(J$5,NFI,5,0),1,0)*Table_NFI[[#This Row],[Sanitary Kit]],0) -> 0 | U67: =IF(NFI_Expiration=1,IF($A67<VLOOKUP(K$5,NFI,5,0),1,0)*Table_NFI[[#This Row],[Mosquito net]],0) -> 0 | V67: =IF(NFI_Expiration=1,IF($A67<VLOOKUP(L$5,NFI,5,0),1,0)*Table_NFI[[#This Row],[Tarpaulin]],0) -> 0 | W67: =IF(NFI_Expiration=1,IF($A67<VLOOKUP(M$5,NFI,5,0),1,0)*Table_NFI[[#This Row],[Blanket]],0) -> 0 | X67: =IF(NFI_Expiration=1,IF($A67<VLOOKUP(N$5,NFI,5,0),1,0)*Table_NFI[[#This Row],[Kitchen Set]],0) -> 0 | Y67: =IF(NFI_Expiration=1,IF($A67<VLOOKUP(O$5,NFI,5,0),1,0)*Table_NFI[[#This Row],[Complementary Kit]],0) -> 0 | Z67: =IF(NFI_Expiration=1,IF($A67<VLOOKUP(P$5,NFI,5,0),1,0)*Table_NFI[[#This Row],[Plastic Bucket]],0) -> 0 | AA67: =IF(NFI_Expiration=1,IF($A67<VLOOKUP(Q$5,NFI,5,0),1,0)*Table_NFI[[#This Row],[Plastic Mat]],0) -> 0 | AB67: =IFERROR(VLOOKUP(Table_NFI[[#This Row],[Camp Name]],CL,2,0),"") -> MMR012CMP048 | AC67: =IFERROR(VLOOKUP(Table_NFI[[#This Row],[Camp Name]],CL,3,0),"") -> Open
A68: 16.1 | B68: 2012-08-05 | C68: UNHCR | E68: Rakhine | F68: Sittwe | G68: Thet Kae Pyin | L68: 98 | R68: =IF(NFI_Expiration=1,IF($A68<VLOOKUP(H$5,NFI,5,0),1,0)*Table_NFI[[#This Row],[Hygiene Kit]],0) -> 0 | S68: =IF(NFI_Expiration=1,IF($A68<VLOOKUP(I$5,NFI,5,0),1,0)*Table_NFI[[#This Row],[NFI Core Kit]],0) -> 0 | T68: =IF(NFI_Expiration=1,IF($A68<VLOOKUP(J$5,NFI,5,0),1,0)*Table_NFI[[#This Row],[Sanitary Kit]],0) -> 0 | U68: =IF(NFI_Expiration=1,IF($A68<VLOOKUP(K$5,NFI,5,0),1,0)*Table_NFI[[#This Row],[Mosquito net]],0) -> 0 | V68: =IF(NFI_Expiration=1,IF($A68<VLOOKUP(L$5,NFI,5,0),1,0)*Table_NFI[[#This Row],[Tarpaulin]],0) -> 0 | W68: =IF(NFI_Expiration=1,IF($A68<VLOOKUP(M$5,NFI,5,0),1,0)*Table_NFI[[#This Row],[Blanket]],0) -> 0 | X68: =IF(NFI_Expiration=1,IF($A68<VLOOKUP(N$5,NFI,5,0),1,0)*Table_NFI[[#This Row],[Kitchen Set]],0) -> 0 | Y68: =IF(NFI_Expiration=1,IF($A68<VLOOKUP(O$5,NFI,5,0),1,0)*Table_NFI[[#This Row],[Complementary Kit]],0) -> 0 | Z68: =IF(NFI_Expiration=1,IF($A68<VLOOKUP(P$5,NFI,5,0),1,0)*Table_NFI[[#This Row],[Plastic Bucket]],0) -> 0 | AA68: =IF(NFI_Expiration=1,IF($A68<VLOOKUP(Q$5,NFI,5,0),1,0)*Table_NFI[[#This Row],[Plastic Mat]],0) -> 0 | AB68: =IFERROR(VLOOKUP(Table_NFI[[#This Row],[Camp Name]],CL,2,0),"") -> MMR012CMP048 | AC68: =IFERROR(VLOOKUP(Table_NFI[[#This Row],[Camp Name]],CL,3,0),"") -> Open
A69: 15.5 | B69: 2012-08-23 | C69: UNHCR | E69: Rakhine | F69: Sittwe | G69: Dar Pai | L69: 805 | R69: =IF(NFI_Expiration=1,IF($A69<VLOOKUP(H$5,NFI,5,0),1,0)*Table_NFI[[#This Row],[Hygiene Kit]],0) -> 0 | S69: =IF(NFI_Expiration=1,IF($A69<VLOOKUP(I$5,NFI,5,0),1,0)*Table_NFI[[#This Row],[NFI Core Kit]],0) -> 0 | T69: =IF(NFI_Expiration=1,IF($A69<VLOOKUP(J$5,NFI,5,0),1,0)*Table_NFI[[#This Row],[Sanitary Kit]],0) -> 0 | U69: =IF(NFI_Expiration=1,IF($A69<VLOOKUP(K$5,NFI,5,0),1,0)*Table_NFI[[#This Row],[Mosquito net]],0) -> 0 | V69: =IF(NFI_Expiration=1,IF($A69<VLOOKUP(L$5,NFI,5,0),1,0)*Table_NFI[[#This Row],[Tarpaulin]],0) -> 0 | W69: =IF(NFI_Expiration=1,IF($A69<VLOOKUP(M$5,NFI,5,0),1,0)*Table_NFI[[#This Row],[Blanket]],0) -> 0 | X69: =IF(NFI_Expiration=1,IF($A69<VLOOKUP(N$5,NFI,5,0),1,0)*Table_NFI[[#This Row],[Kitchen Set]],0) -> 0 | Y69: =IF(NFI_Expiration=1,IF($A69<VLOOKUP(O$5,NFI,5,0),1,0)*Table_NFI[[#This Row],[Complementary Kit]],0) -> 0 | Z69: =IF(NFI_Expiration=1,IF($A69<VLOOKUP(P$5,NFI,5,0),1,0)*Table_NFI[[#This Row],[Plastic Bucket]],0) -> 0 | AA69: =IF(NFI_Expiration=1,IF($A69<VLOOKUP(Q$5,NFI,5,0),1,0)*Table_NFI[[#This Row],[Plastic Mat]],0) -> 0 | AB69: =IFERROR(VLOOKUP(Table_NFI[[#This Row],[Camp Name]],CL,2,0),"") -> MMR012CMP041 | AC69: =IFERROR(VLOOKUP(Table_NFI[[#This Row],[Camp Name]],CL,3,0),"") -> Open
